Workbook

Sheet Instructions
A1: =IF('Enter data here!'!D3="", "F3F Competition Spreadsheet",CONCATENATE("F3F Competition - ",'Enter data here!'!D3)) -> F3F Competition - mynd bmfa
A44: Please post feedback/comments/questions/new versions to the original RCGroups thread - click here.

Sheet Enter data here!
A1: Timing data
A3: Before starting the event, fill out the event parameters (light blue cells): | C3: Event title | D3: mynd bmfa
C4: Event date
C5: CD Name
C6: No. discards in use (0,1 or 2) | D6: 1
C7: Length of course/m | D7: 100
A9: Now fill out the Pilot Name and Aircraft fields (light blue cells) - once complete, just enter each time (or dnf)
A10: in the relevent box, add any penalties in the box underneath, and all calculations will be completed for you:
C12: Pilot | CP12: Round Winners
B13: Pilot Name | C13: Bruce | D13: phil | E13: Aleix | F13: Mark R | G13: Les | H13: Mark T | I13: Paul | J13: mike | K13: Ian | L13: Dave | CP13: Time: | CQ13: Competitor:
B14: Frequencies
B15: Aircraft 1
B16: Aircraft 2
B17: Current rank | C17: =C229 -> 8 | D17: 9 | E17: 3 | F17: 1 | G17: 4 | H17: 2 | I17: 6 | J17: 5 | K17: 10 | L17: 7 | M17: 11 | N17: 11 | O17: 11 | P17: 11 | Q17: 11 | R17: 11 | S17: 11 | T17: 11 | U17: 11 | V17: 11 | W17: 11 | X17: 11 | Y17: 11 | Z17: 11 | AA17: 11 | AB17: 11 | AC17: 11 | AD17: 11 | AE17: 11 | AF17: 11 | AG17: 11 | AH17: 11 | AI17: =AI229 -> 11 | AJ17: 11 | AK17: 11 | AL17: 11 | AM17: 11 | AN17: 11 | AO17: 11 | AP17: 11 | AQ17: 11 | AR17: 11 | AS17: 11 | AT17: 11 | AU17: 11 | AV17: 11 | AW17: 11 | AX17: 11 | AY17: 11 | AZ17: 11 | BA17: 11 | BB17: 11 | BC17: 11 | BD17: 11 | BE17: 11 | BF17: 11 | BG17: 11 | BH17: 11 | BI17: 11 | BJ17: 11 | BK17: 11 | BL17: 11 | BM17: 11 | BN17: 11 | BO17: =BO229 -> 11 | BP17: 11 | BQ17: 11 | BR17: 11 | BS17: 11 | BT17: 11 | BU17: 11 | BV17: 11 | BW17: 11 | BX17: 11 | BY17: 11 | BZ17: 11 | CA17: 11 | CB17: 11 | CC17: 11 | CD17: 11 | CE17: 11 | CF17: 11 | CG17: 11 | CH17: 11 | CI17: 11 | CJ17: 11 | CK17: 11 | CL17: 11 | CM17: 11 | CN17: 11
B18: Total penalties | C18: =SUM(C23,C28,C33,C38,C43,C48,C53,C58,C63,C68,C73,C78,C83,C88,C93,C98,C103,C108,C113,C118,C123,C128,C133,C138,C143,C148,C153,C158,C163,C168)+C19 -> 0 | D18: 0 | E18: 0 | F18: 0 | G18: 0 | H18: 0 | I18: 0 | J18: 0 | K18: 0 | L18: 0 | M18: 0 | N18: 0 | O18: 0 | P18: 0 | Q18: 0 | R18: 0 | S18: 0 | T18: 0 | U18: 0 | V18: 0 | W18: 0 | X18: 100 | Y18: 0 | Z18: 0 | AA18: 0 | AB18: 0 | AC18: 0 | AD18: 0 | AE18: 0 | AF18: 0 | AG18: 0 | AH18: 0 | AI18: =SUM(AI23,AI28,AI33,AI38,AI43,AI48,AI53,AI58,AI63,AI68,AI73,AI78,AI83,AI88,AI93,AI98,AI103,AI108,AI113,AI118,AI123,AI128,AI133,AI138,AI143,AI148,AI153,AI158,AI163,AI168)+AI19 -> 0 | AJ18: 0 | AK18: 0 | AL18: 0 | AM18: 0 | AN18: 0 | AO18: 0 | AP18: 0 | AQ18: 0 | AR18: 0 | AS18: 0 | AT18: 0 | AU18: 0 | AV18: 0 | AW18: 0 | AX18: 0 | AY18: 0 | AZ18: 0 | BA18: 0 | BB18: 0 | BC18: 0 | BD18: 0 | BE18: 0 | BF18: 0 | BG18: 0 | BH18: 0 | BI18: 0 | BJ18: 0 | BK18: 0 | BL18: 0 | BM18: 0 | BN18: 0 | BO18: =SUM(BO23,BO28,BO33,BO38,BO43,BO48,BO53,BO58,BO63,BO68,BO73,BO78,BO83,BO88,BO93,BO98,BO103,BO108,BO113,BO118,BO123,BO128,BO133,BO138,BO143,BO148,BO153,BO158,BO163,BO168)+BO19 -> 0 | BP18: 0 | BQ18: 0 | BR18: 0 | BS18: 0 | BT18: 0 | BU18: 0 | BV18: 0 | BW18: 0 | BX18: 0 | BY18: 0 | BZ18: 0 | CA18: 0 | CB18: 0 | CC18: 0 | CD18: 0 | CE18: 0 | CF18: 0 | CG18: 0 | CH18: 0 | CI18: 0 | CJ18: 0 | CK18: 0 | CL18: 0 | CM18: 0 | CN18: 0
C19: =SUM(C178,C183,C188,C193,C198,C203,C208,C213,C218,C223) -> 0 | D19: 0 | E19: 0 | F19: 0 | G19: 0 | H19: 0 | I19: 0 | J19: 0 | K19: 0 | L19: 0 | M19: 0 | N19: 0 | O19: 0 | P19: 0 | Q19: 0 | R19: 0 | S19: 0 | T19: 0 | U19: 0 | V19: 0 | W19: 0 | X19: 0 | Y19: 0 | Z19: 0 | AA19: 0 | AB19: 0 | AC19: 0 | AD19: 0 | AE19: 0 | AF19: 0 | AG19: 0 | AH19: 0 | AI19: =SUM(AI178,AI183,AI188,AI193,AI198,AI203,AI208,AI213,AI218,AI223) -> 0 | AJ19: 0 | AK19: 0 | AL19: 0 | AM19: 0 | AN19: 0 | AO19: 0 | AP19: 0 | AQ19: 0 | AR19: 0 | AS19: 0 | AT19: 0 | AU19: 0 | AV19: 0 | AW19: 0 | AX19: 0 | AY19: 0 | AZ19: 0 | BA19: 0 | BB19: 0 | BC19: 0 | BD19: 0 | BE19: 0 | BF19: 0 | BG19: 0 | BH19: 0 | BI19: 0 | BJ19: 0 | BK19: 0 | BL19: 0 | BM19: 0 | BN19: 0 | BO19: =SUM(BO178,BO183,BO188,BO193,BO198,BO203,BO208,BO213,BO218,BO223) -> 0 | BP19: 0 | BQ19: 0 | BR19: 0 | BS19: 0 | BT19: 0 | BU19: 0 | BV19: 0 | BW19: 0 | BX19: 0 | BY19: 0 | BZ19: 0 | CA19: 0 | CB19: 0 | CC19: 0 | CD19: 0 | CE19: 0 | CF19: 0 | CG19: 0 | CH19: 0 | CI19: 0 | CJ19: 0 | CK19: 0 | CL19: 0 | CM19: 0 | CN19: 0
A20: Round
A21: 0 | B21: Round rank | C21: =RANK(C24,$C24:$CN24,0) -> 1 | D21: 1 | E21: 1 | F21: 1 | G21: 1 | H21: 1 | I21: 1 | J21: 1 | K21: 1 | L21: 1 | M21: 1 | N21: 1 | O21: 1 | P21: 1 | Q21: 1 | R21: 1 | S21: 1 | T21: 1 | U21: 1 | V21: 1 | W21: 1 | X21: 1 | Y21: 1 | Z21: 1 | AA21: 1 | AB21: 1 | AC21: 1 | AD21: 1 | AE21: 1
B22: Time | CP22: =IF(Randomizer!CP11=0, "",Randomizer!CP11) ->  | CQ22: =IF(CP22=0, "", Randomizer!CQ11) ->  | CT22: =A21 -> 0
B23: Penalties
B24: Score | C24: =Randomizer!C14 -> 0 | D24: =Randomizer!D14 -> 0 | E24: =Randomizer!E14 -> 0 | F24: =Randomizer!F14 -> 0 | G24: =Randomizer!G14 -> 0 | H24: =Randomizer!H14 -> 0 | I24: =Randomizer!I14 -> 0 | J24: =Randomizer!J14 -> 0 | K24: =Randomizer!K14 -> 0 | L24: =Randomizer!L14 -> 0 | M24: =Randomizer!M14 -> 0 | N24: =Randomizer!N14 -> 0 | O24: =Randomizer!O14 -> 0 | P24: =Randomizer!P14 -> 0 | Q24: =Randomizer!Q14 -> 0 | R24: =Randomizer!R14 -> 0 | S24: =Randomizer!S14 -> 0 | T24: =Randomizer!T14 -> 0 | U24: =Randomizer!U14 -> 0 | V24: =Randomizer!V14 -> 0 | W24: =Randomizer!W14 -> 0 | X24: =Randomizer!X14 -> 0 | Y24: =Randomizer!Y14 -> 0 | Z24: =Randomizer!Z14 -> 0 | AA24: =Randomizer!AA14 -> 0 | AB24: =Randomizer!AB14 -> 0 | AC24: =Randomizer!AC14 -> 0 | AD24: =Randomizer!AD14 -> 0 | AE24: =Randomizer!AE14 -> 0 | AF24: =Randomizer!AF14 -> 0 | AG24: =Randomizer!AG14 -> 0 | AH24: =Randomizer!AH14 -> 0 | AI24: =Randomizer!AI14 -> 0 | AJ24: =Randomizer!AJ14 -> 0 | AK24: =Randomizer!AK14 -> 0 | AL24: =Randomizer!AL14 -> 0 | AM24: =Randomizer!AM14 -> 0 | AN24: =Randomizer!AN14 -> 0 | AO24: =Randomizer!AO14 -> 0 | AP24: =Randomizer!AP14 -> 0 | AQ24: =Randomizer!AQ14 -> 0 | AR24: =Randomizer!AR14 -> 0 | AS24: =Randomizer!AS14 -> 0 | AT24: =Randomizer!AT14 -> 0 | AU24: =Randomizer!AU14 -> 0 | AV24: =Randomizer!AV14 -> 0 | AW24: =Randomizer!AW14 -> 0 | AX24: =Randomizer!AX14 -> 0 | AY24: =Randomizer!AY14 -> 0 | AZ24: =Randomizer!AZ14 -> 0 | BA24: =Randomizer!BA14 -> 0 | BB24: =Randomizer!BB14 -> 0 | BC24: =Randomizer!BC14 -> 0 | BD24: =Randomizer!BD14 -> 0 | BE24: =Randomizer!BE14 -> 0 | BF24: =Randomizer!BF14 -> 0 | BG24: =Randomizer!BG14 -> 0 | BH24: =Randomizer!BH14 -> 0 | BI24: =Randomizer!BI14 -> 0 | BJ24: =Randomizer!BJ14 -> 0 | BK24: =Randomizer!BK14 -> 0 | BL24: =Randomizer!BL14 -> 0 | BM24: =Randomizer!BM14 -> 0 | BN24: =Randomizer!BN14 -> 0 | BO24: =Randomizer!BO14 -> 0 | BP24: =Randomizer!BP14 -> 0 | BQ24: =Randomizer!BQ14 -> 0 | BR24: =Randomizer!BR14 -> 0 | BS24: =Randomizer!BS14 -> 0 | BT24: =Randomizer!BT14 -> 0 | BU24: =Randomizer!BU14 -> 0 | BV24: =Randomizer!BV14 -> 0 | BW24: =Randomizer!BW14 -> 0 | BX24: =Randomizer!BX14 -> 0 | BY24: =Randomizer!BY14 -> 0 | BZ24: =Randomizer!BZ14 -> 0 | CA24: =Randomizer!CA14 -> 0 | CB24: =Randomizer!CB14 -> 0 | CC24: =Randomizer!CC14 -> 0 | CD24: =Randomizer!CD14 -> 0 | CE24: =Randomizer!CE14 -> 0 | CF24: =Randomizer!CF14 -> 0 | CG24: =Randomizer!CG14 -> 0 | CH24: =Randomizer!CH14 -> 0 | CI24: =Randomizer!CI14 -> 0 | CJ24: =Randomizer!CJ14 -> 0 | CK24: =Randomizer!CK14 -> 0 | CL24: =Randomizer!CL14 -> 0 | CM24: =Randomizer!CM14 -> 0 | CN24: =Randomizer!CN14 -> 0
B25: Name | C25: =C13 -> Bruce | D25: phil | E25: Aleix | F25: Mark R | G25: Les | H25: Mark T | I25: Paul | J25: mike | K25: Ian | L25: Dave | M25: 0 | N25: 0 | O25: 0 | P25: 0 | Q25: 0 | R25: 0 | S25: 0 | T25: 0 | U25: 0 | V25: 0 | W25: 0 | X25: 0 | Y25: 0 | Z25: 0 | AA25: 0 | AB25: 0 | AC25: 0 | AD25: 0 | AE25: 0 | AF25: 0 | AG25: 0 | AH25: 0 | AI25: =AI13 -> 0 | AJ25: 0 | AK25: 0 | AL25: 0 | AM25: 0 | AN25: 0 | AO25: 0 | AP25: 0 | AQ25: 0 | AR25: 0 | AS25: 0 | AT25: 0 | AU25: 0 | AV25: 0 | AW25: 0 | AX25: 0 | AY25: 0 | AZ25: 0 | BA25: 0 | BB25: 0 | BC25: 0 | BD25: 0 | BE25: 0 | BF25: 0 | BG25: 0 | BH25: 0 | BI25: 0 | BJ25: 0 | BK25: 0 | BL25: 0 | BM25: 0 | BN25: 0 | BO25: =BO13 -> 0 | BP25: 0 | BQ25: 0 | BR25: 0 | BS25: 0 | BT25: 0 | BU25: 0 | BV25: 0 | BW25: 0 | BX25: 0 | BY25: 0 | BZ25: 0 | CA25: 0 | CB25: 0 | CC25: 0 | CD25: 0 | CE25: 0 | CF25: 0 | CG25: 0 | CH25: 0 | CI25: 0 | CJ25: 0 | CK25: 0 | CL25: 0 | CM25: 0 | CN25: 0
A26: 1 | B26: Round rank | C26: =RANK(C29,$C29:$CN29,0) -> 8 | D26: 10 | E26: 2 | F26: 1 | G26: 4 | H26: 6 | I26: 9 | J26: 3 | K26: 7 | L26: 5 | M26: 11 | N26: 11 | O26: 11 | P26: 11 | Q26: 11 | R26: 11 | S26: 11 | T26: 11 | U26: 11 | V26: 11 | W26: 11 | X26: 11 | Y26: 11 | Z26: 11 | AA26: 11 | AB26: 11 | AC26: 11 | AD26: 11 | AE26: 11 | AF26: 11 | AG26: 11 | AH26: 11 | AI26: =RANK(AI29,$C29:$CN29,0) -> 11 | AJ26: 11 | AK26: 11 | AL26: 11 | AM26: 11 | AN26: 11 | AO26: 11 | AP26: 11 | AQ26: 11 | AR26: 11 | AS26: 11 | AT26: 11 | AU26: 11 | AV26: 11 | AW26: 11 | AX26: 11 | AY26: 11 | AZ26: 11 | BA26: 11 | BB26: 11 | BC26: 11 | BD26: 11 | BE26: 11 | BF26: 11 | BG26: 11 | BH26: 11 | BI26: 11 | BJ26: 11 | BK26: 11 | BL26: 11 | BM26: 11 | BN26: 11 | BO26: =RANK(BO29,$C29:$CN29,0) -> 11 | BP26: 11 | BQ26: 11 | BR26: 11 | BS26: 11 | BT26: 11 | BU26: 11 | BV26: 11 | BW26: 11 | BX26: 11 | BY26: 11 | BZ26: 11 | CA26: 11 | CB26: 11 | CC26: 11 | CD26: 11 | CE26: 11 | CF26: 11 | CG26: 11 | CH26: 11 | CI26: 11 | CJ26: 11 | CK26: 11 | CL26: 11 | CM26: 11 | CN26: 11
B27: Time | C27: 67.35 | D27: 74.12 | E27: 52.34 | F27: 51.02 | G27: 55.49 | H27: 56.89 | I27: 68.55 | J27: 54.33 | K27: 58.74 | L27: 56.74 | CP27: =IF(Randomizer!CP17=0,"",Randomizer!CP17) -> 51.02 | CQ27: =IF(CP27=0, "", Randomizer!CQ17) -> Mark R | CT27: =A26 -> 1
B28: Penalties
B29: Score | C29: =Randomizer!C20 -> 757.5352635 | D29: =Randomizer!D20 -> 688.3432272 | E29: =Randomizer!E20 -> 974.7802828 | F29: =Randomizer!F20 -> 1000 | G29: =Randomizer!G20 -> 919.444945 | H29: =Randomizer!H20 -> 896.8184215 | I29: =Randomizer!I20 -> 744.2742524 | J29: =Randomizer!J20 -> 939.0760169 | K29: =Randomizer!K20 -> 868.5733742 | L29: =Randomizer!L20 -> 899.1892845 | M29: =Randomizer!M20 -> 0 | N29: =Randomizer!N20 -> 0 | O29: =Randomizer!O20 -> 0 | P29: =Randomizer!P20 -> 0 | Q29: =Randomizer!Q20 -> 0 | R29: =Randomizer!R20 -> 0 | S29: =Randomizer!S20 -> 0 | T29: =Randomizer!T20 -> 0 | U29: =Randomizer!U20 -> 0 | V29: =Randomizer!V20 -> 0 | W29: =Randomizer!W20 -> 0 | X29: =Randomizer!X20 -> 0 | Y29: =Randomizer!Y20 -> 0 | Z29: =Randomizer!Z20 -> 0 | AA29: =Randomizer!AA20 -> 0 | AB29: =Randomizer!AB20 -> 0 | AC29: =Randomizer!AC20 -> 0 | AD29: =Randomizer!AD20 -> 0 | AE29: =Randomizer!AE20 -> 0 | AF29: =Randomizer!AF20 -> 0 | AG29: =Randomizer!AG20 -> 0 | AH29: =Randomizer!AH20 -> 0 | AI29: =Randomizer!AI20 -> 0 | AJ29: =Randomizer!AJ20 -> 0 | AK29: =Randomizer!AK20 -> 0 | AL29: =Randomizer!AL20 -> 0 | AM29: =Randomizer!AM20 -> 0 | AN29: =Randomizer!AN20 -> 0 | AO29: =Randomizer!AO20 -> 0 | AP29: =Randomizer!AP20 -> 0 | AQ29: =Randomizer!AQ20 -> 0 | AR29: =Randomizer!AR20 -> 0 | AS29: =Randomizer!AS20 -> 0 | AT29: =Randomizer!AT20 -> 0 | AU29: =Randomizer!AU20 -> 0 | AV29: =Randomizer!AV20 -> 0 | AW29: =Randomizer!AW20 -> 0 | AX29: =Randomizer!AX20 -> 0 | AY29: =Randomizer!AY20 -> 0 | AZ29: =Randomizer!AZ20 -> 0 | BA29: =Randomizer!BA20 -> 0 | BB29: =Randomizer!BB20 -> 0 | BC29: =Randomizer!BC20 -> 0 | BD29: =Randomizer!BD20 -> 0 | BE29: =Randomizer!BE20 -> 0 | BF29: =Randomizer!BF20 -> 0 | BG29: =Randomizer!BG20 -> 0 | BH29: =Randomizer!BH20 -> 0 | BI29: =Randomizer!BI20 -> 0 | BJ29: =Randomizer!BJ20 -> 0 | BK29: =Randomizer!BK20 -> 0 | BL29: =Randomizer!BL20 -> 0 | BM29: =Randomizer!BM20 -> 0 | BN29: =Randomizer!BN20 -> 0 | BO29: =Randomizer!BO20 -> 0 | BP29: =Randomizer!BP20 -> 0 | BQ29: =Randomizer!BQ20 -> 0 | BR29: =Randomizer!BR20 -> 0 | BS29: =Randomizer!BS20 -> 0 | BT29: =Randomizer!BT20 -> 0 | BU29: =Randomizer!BU20 -> 0 | BV29: =Randomizer!BV20 -> 0 | BW29: =Randomizer!BW20 -> 0 | BX29: =Randomizer!BX20 -> 0 | BY29: =Randomizer!BY20 -> 0 | BZ29: =Randomizer!BZ20 -> 0 | CA29: =Randomizer!CA20 -> 0 | CB29: =Randomizer!CB20 -> 0 | CC29: =Randomizer!CC20 -> 0 | CD29: =Randomizer!CD20 -> 0 | CE29: =Randomizer!CE20 -> 0 | CF29: =Randomizer!CF20 -> 0 | CG29: =Randomizer!CG20 -> 0 | CH29: =Randomizer!CH20 -> 0 | CI29: =Randomizer!CI20 -> 0 | CJ29: =Randomizer!CJ20 -> 0 | CK29: =Randomizer!CK20 -> 0 | CL29: =Randomizer!CL20 -> 0 | CM29: =Randomizer!CM20 -> 0 | CN29: =Randomizer!CN20 -> 0
B30: Name | C30: =C25 -> Bruce | D30: phil | E30: Aleix | F30: Mark R | G30: Les | H30: Mark T | I30: Paul | J30: mike | K30: Ian | L30: Dave | M30: 0 | N30: 0 | O30: 0 | P30: 0 | Q30: 0 | R30: 0 | S30: 0 | T30: 0 | U30: 0 | V30: 0 | W30: 0 | X30: 0 | Y30: 0 | Z30: 0 | AA30: 0 | AB30: 0 | AC30: 0 | AD30: 0 | AE30: 0 | AF30: 0 | AG30: 0 | AH30: 0 | AI30: =AI25 -> 0 | AJ30: 0 | AK30: 0 | AL30: 0 | AM30: 0 | AN30: 0 | AO30: 0 | AP30: 0 | AQ30: 0 | AR30: 0 | AS30: 0 | AT30: 0 | AU30: 0 | AV30: 0 | AW30: 0 | AX30: 0 | AY30: 0 | AZ30: 0 | BA30: 0 | BB30: 0 | BC30: 0 | BD30: 0 | BE30: 0 | BF30: 0 | BG30: 0 | BH30: 0 | BI30: 0 | BJ30: 0 | BK30: 0 | BL30: 0 | BM30: 0 | BN30: 0 | BO30: =BO25 -> 0 | BP30: 0 | BQ30: 0 | BR30: 0 | BS30: 0 | BT30: 0 | BU30: 0 | BV30: 0 | BW30: 0 | BX30: 0 | BY30: 0 | BZ30: 0 | CA30: 0 | CB30: 0 | CC30: 0 | CD30: 0 | CE30: 0 | CF30: 0 | CG30: 0 | CH30: 0 | CI30: 0 | CJ30: 0 | CK30: 0 | CL30: 0 | CM30: 0 | CN30: 0 | CT30: =A29 -> 0
A31: 2 | B31: Round rank | C31: =RANK(C34,$C34:$CN34,0) -> 3 | D31: 9 | E31: 4 | F31: 1 | G31: 5 | H31: 2 | I31: 6 | J31: 8 | K31: 7 | L31: 10 | M31: 11 | N31: 11 | O31: 11 | P31: 11 | Q31: 11 | R31: 11 | S31: 11 | T31: 11 | U31: 11 | V31: 11 | W31: 11 | X31: 11 | Y31: 11 | Z31: 11 | AA31: 11 | AB31: 11 | AC31: 11 | AD31: 11 | AE31: 11 | AF31: 11 | AG31: 11 | AH31: 11 | AI31: =RANK(AI34,$C34:$CN34,0) -> 11 | AJ31: 11 | AK31: 11 | AL31: 11 | AM31: 11 | AN31: 11 | AO31: 11 | AP31: 11 | AQ31: 11 | AR31: 11 | AS31: 11 | AT31: 11 | AU31: 11 | AV31: 11 | AW31: 11 | AX31: 11 | AY31: 11 | AZ31: 11 | BA31: 11 | BB31: 11 | BC31: 11 | BD31: 11 | BE31: 11 | BF31: 11 | BG31: 11 | BH31: 11 | BI31: 11 | BJ31: 11 | BK31: 11 | BL31: 11 | BM31: 11 | BN31: 11 | BO31: =RANK(BO34,$C34:$CN34,0) -> 11 | BP31: 11 | BQ31: 11 | BR31: 11 | BS31: 11 | BT31: 11 | BU31: 11 | BV31: 11 | BW31: 11 | BX31: 11 | BY31: 11 | BZ31: 11 | CA31: 11 | CB31: 11 | CC31: 11 | CD31: 11 | CE31: 11 | CF31: 11 | CG31: 11 | CH31: 11 | CI31: 11 | CJ31: 11 | CK31: 11 | CL31: 11 | CM31: 11 | CN31: 11
B32: Time | C32: 51.43 | D32: 58.51 | E32: 52.86 | F32: 44.76 | G32: 54 | H32: 47.68 | I32: 56.61 | J32: 58.07 | K32: 57.36 | L32: 58.79 | CP32: =IF(Randomizer!CP23=0,"",Randomizer!CP23) -> 44.76 | CQ32: =IF(CP32=0, "", Randomizer!CQ23) -> Mark R | CT32: =A31 -> 2
B33: Penalties
B34: Score | C34: =Randomizer!C26 -> 870.3091581 | D34: =Randomizer!D26 -> 764.9974363 | E34: =Randomizer!E26 -> 846.7650397 | F34: =Randomizer!F26 -> 1000 | G34: =Randomizer!G26 -> 828.8888889 | H34: =Randomizer!H26 -> 938.7583893 | I34: =Randomizer!I26 -> 790.673026 | J34: =Randomizer!J26 -> 770.7938695 | K34: =Randomizer!K26 -> 780.334728 | L34: =Randomizer!L26 -> 761.3539718 | M34: =Randomizer!M26 -> 0 | N34: =Randomizer!N26 -> 0 | O34: =Randomizer!O26 -> 0 | P34: =Randomizer!P26 -> 0 | Q34: =Randomizer!Q26 -> 0 | R34: =Randomizer!R26 -> 0 | S34: =Randomizer!S26 -> 0 | T34: =Randomizer!T26 -> 0 | U34: =Randomizer!U26 -> 0 | V34: =Randomizer!V26 -> 0 | W34: =Randomizer!W26 -> 0 | X34: =Randomizer!X26 -> 0 | Y34: =Randomizer!Y26 -> 0 | Z34: =Randomizer!Z26 -> 0 | AA34: =Randomizer!AA26 -> 0 | AB34: =Randomizer!AB26 -> 0 | AC34: =Randomizer!AC26 -> 0 | AD34: =Randomizer!AD26 -> 0 | AE34: =Randomizer!AE26 -> 0 | AF34: =Randomizer!AF26 -> 0 | AG34: =Randomizer!AG26 -> 0 | AH34: =Randomizer!AH26 -> 0 | AI34: =Randomizer!AI26 -> 0 | AJ34: =Randomizer!AJ26 -> 0 | AK34: =Randomizer!AK26 -> 0 | AL34: =Randomizer!AL26 -> 0 | AM34: =Randomizer!AM26 -> 0 | AN34: =Randomizer!AN26 -> 0 | AO34: =Randomizer!AO26 -> 0 | AP34: =Randomizer!AP26 -> 0 | AQ34: =Randomizer!AQ26 -> 0 | AR34: =Randomizer!AR26 -> 0 | AS34: =Randomizer!AS26 -> 0 | AT34: =Randomizer!AT26 -> 0 | AU34: =Randomizer!AU26 -> 0 | AV34: =Randomizer!AV26 -> 0 | AW34: =Randomizer!AW26 -> 0 | AX34: =Randomizer!AX26 -> 0 | AY34: =Randomizer!AY26 -> 0 | AZ34: =Randomizer!AZ26 -> 0 | BA34: =Randomizer!BA26 -> 0 | BB34: =Randomizer!BB26 -> 0 | BC34: =Randomizer!BC26 -> 0 | BD34: =Randomizer!BD26 -> 0 | BE34: =Randomizer!BE26 -> 0 | BF34: =Randomizer!BF26 -> 0 | BG34: =Randomizer!BG26 -> 0 | BH34: =Randomizer!BH26 -> 0 | BI34: =Randomizer!BI26 -> 0 | BJ34: =Randomizer!BJ26 -> 0 | BK34: =Randomizer!BK26 -> 0 | BL34: =Randomizer!BL26 -> 0 | BM34: =Randomizer!BM26 -> 0 | BN34: =Randomizer!BN26 -> 0 | BO34: =Randomizer!BO26 -> 0 | BP34: =Randomizer!BP26 -> 0 | BQ34: =Randomizer!BQ26 -> 0 | BR34: =Randomizer!BR26 -> 0 | BS34: =Randomizer!BS26 -> 0 | BT34: =Randomizer!BT26 -> 0 | BU34: =Randomizer!BU26 -> 0 | BV34: =Randomizer!BV26 -> 0 | BW34: =Randomizer!BW26 -> 0 | BX34: =Randomizer!BX26 -> 0 | BY34: =Randomizer!BY26 -> 0 | BZ34: =Randomizer!BZ26 -> 0 | CA34: =Randomizer!CA26 -> 0 | CB34: =Randomizer!CB26 -> 0 | CC34: =Randomizer!CC26 -> 0 | CD34: =Randomizer!CD26 -> 0 | CE34: =Randomizer!CE26 -> 0 | CF34: =Randomizer!CF26 -> 0 | CG34: =Randomizer!CG26 -> 0 | CH34: =Randomizer!CH26 -> 0 | CI34: =Randomizer!CI26 -> 0 | CJ34: =Randomizer!CJ26 -> 0 | CK34: =Randomizer!CK26 -> 0 | CL34: =Randomizer!CL26 -> 0 | CM34: =Randomizer!CM26 -> 0 | CN34: =Randomizer!CN26 -> 0
B35: Name | C35: =C30 -> Bruce | D35: phil | E35: Aleix | F35: Mark R | G35: Les | H35: Mark T | I35: Paul | J35: mike | K35: Ian | L35: Dave | M35: 0 | N35: 0 | O35: 0 | P35: 0 | Q35: 0 | R35: 0 | S35: 0 | T35: 0 | U35: 0 | V35: 0 | W35: 0 | X35: 0 | Y35: 0 | Z35: 0 | AA35: 0 | AB35: 0 | AC35: 0 | AD35: 0 | AE35: 0 | AF35: 0 | AG35: 0 | AH35: 0 | AI35: =AI30 -> 0 | AJ35: 0 | AK35: 0 | AL35: 0 | AM35: 0 | AN35: 0 | AO35: 0 | AP35: 0 | AQ35: 0 | AR35: 0 | AS35: 0 | AT35: 0 | AU35: 0 | AV35: 0 | AW35: 0 | AX35: 0 | AY35: 0 | AZ35: 0 | BA35: 0 | BB35: 0 | BC35: 0 | BD35: 0 | BE35: 0 | BF35: 0 | BG35: 0 | BH35: 0 | BI35: 0 | BJ35: 0 | BK35: 0 | BL35: 0 | BM35: 0 | BN35: 0 | BO35: =BO30 -> 0 | BP35: 0 | BQ35: 0 | BR35: 0 | BS35: 0 | BT35: 0 | BU35: 0 | BV35: 0 | BW35: 0 | BX35: 0 | BY35: 0 | BZ35: 0 | CA35: 0 | CB35: 0 | CC35: 0 | CD35: 0 | CE35: 0 | CF35: 0 | CG35: 0 | CH35: 0 | CI35: 0 | CJ35: 0 | CK35: 0 | CL35: 0 | CM35: 0 | CN35: 0 | CT35: =A34 -> 0
A36: 3 | B36: Round rank | C36: =RANK(C39,$C39:$CN39,0) -> 2 | D36: 9 | E36: 4 | F36: 7 | G36: 3 | H36: 1 | I36: 6 | J36: 8 | K36: 10 | L36: 5 | M36: 11 | N36: 11 | O36: 11 | P36: 11 | Q36: 11 | R36: 11 | S36: 11 | T36: 11 | U36: 11 | V36: 11 | W36: 11 | X36: 11 | Y36: 11 | Z36: 11 | AA36: 11 | AB36: 11 | AC36: 11 | AD36: 11 | AE36: 11 | AF36: 11 | AG36: 11 | AH36: 11 | AI36: =RANK(AI39,$C39:$CN39,0) -> 11 | AJ36: 11 | AK36: 11 | AL36: 11 | AM36: 11 | AN36: 11 | AO36: 11 | AP36: 11 | AQ36: 11 | AR36: 11 | AS36: 11 | AT36: 11 | AU36: 11 | AV36: 11 | AW36: 11 | AX36: 11 | AY36: 11 | AZ36: 11 | BA36: 11 | BB36: 11 | BC36: 11 | BD36: 11 | BE36: 11 | BF36: 11 | BG36: 11 | BH36: 11 | BI36: 11 | BJ36: 11 | BK36: 11 | BL36: 11 | BM36: 11 | BN36: 11 | BO36: =RANK(BO39,$C39:$CN39,0) -> 11 | BP36: 11 | BQ36: 11 | BR36: 11 | BS36: 11 | BT36: 11 | BU36: 11 | BV36: 11 | BW36: 11 | BX36: 11 | BY36: 11 | BZ36: 11 | CA36: 11 | CB36: 11 | CC36: 11 | CD36: 11 | CE36: 11 | CF36: 11 | CG36: 11 | CH36: 11 | CI36: 11 | CJ36: 11 | CK36: 11 | CL36: 11 | CM36: 11 | CN36: 11
B37: Time | C37: 53.48 | D37: 60.62 | E37: 55.3 | F37: 57.7 | G37: 54.75 | H37: 49.36 | I37: 57.68 | J37: 57.85 | K37: 73.86 | L37: 56.18 | CP37: =IF(Randomizer!CP29=0,"",Randomizer!CP29) -> 49.36 | CQ37: =IF(CP37=0, "", Randomizer!CQ29) -> Mark T | CT37: =A36 -> 3
B38: Penalties
B39: Score | C39: =Randomizer!C32 -> 922.9618549 | D39: =Randomizer!D32 -> 814.2527219 | E39: =Randomizer!E32 -> 892.5858951 | F39: =Randomizer!F32 -> 855.4592721 | G39: =Randomizer!G32 -> 901.5525114 | H39: =Randomizer!H32 -> 1000 | I39: =Randomizer!I32 -> 855.7558946 | J39: =Randomizer!J32 -> 853.2411409 | K39: =Randomizer!K32 -> 668.291362 | L39: =Randomizer!L32 -> 878.6044856 | M39: =Randomizer!M32 -> 0 | N39: =Randomizer!N32 -> 0 | O39: =Randomizer!O32 -> 0 | P39: =Randomizer!P32 -> 0 | Q39: =Randomizer!Q32 -> 0 | R39: =Randomizer!R32 -> 0 | S39: =Randomizer!S32 -> 0 | T39: =Randomizer!T32 -> 0 | U39: =Randomizer!U32 -> 0 | V39: =Randomizer!V32 -> 0 | W39: =Randomizer!W32 -> 0 | X39: =Randomizer!X32 -> 0 | Y39: =Randomizer!Y32 -> 0 | Z39: =Randomizer!Z32 -> 0 | AA39: =Randomizer!AA32 -> 0 | AB39: =Randomizer!AB32 -> 0 | AC39: =Randomizer!AC32 -> 0 | AD39: =Randomizer!AD32 -> 0 | AE39: =Randomizer!AE32 -> 0 | AF39: =Randomizer!AF32 -> 0 | AG39: =Randomizer!AG32 -> 0 | AH39: =Randomizer!AH32 -> 0 | AI39: =Randomizer!AI32 -> 0 | AJ39: =Randomizer!AJ32 -> 0 | AK39: =Randomizer!AK32 -> 0 | AL39: =Randomizer!AL32 -> 0 | AM39: =Randomizer!AM32 -> 0 | AN39: =Randomizer!AN32 -> 0 | AO39: =Randomizer!AO32 -> 0 | AP39: =Randomizer!AP32 -> 0 | AQ39: =Randomizer!AQ32 -> 0 | AR39: =Randomizer!AR32 -> 0 | AS39: =Randomizer!AS32 -> 0 | AT39: =Randomizer!AT32 -> 0 | AU39: =Randomizer!AU32 -> 0 | AV39: =Randomizer!AV32 -> 0 | AW39: =Randomizer!AW32 -> 0 | AX39: =Randomizer!AX32 -> 0 | AY39: =Randomizer!AY32 -> 0 | AZ39: =Randomizer!AZ32 -> 0 | BA39: =Randomizer!BA32 -> 0 | BB39: =Randomizer!BB32 -> 0 | BC39: =Randomizer!BC32 -> 0 | BD39: =Randomizer!BD32 -> 0 | BE39: =Randomizer!BE32 -> 0 | BF39: =Randomizer!BF32 -> 0 | BG39: =Randomizer!BG32 -> 0 | BH39: =Randomizer!BH32 -> 0 | BI39: =Randomizer!BI32 -> 0 | BJ39: =Randomizer!BJ32 -> 0 | BK39: =Randomizer!BK32 -> 0 | BL39: =Randomizer!BL32 -> 0 | BM39: =Randomizer!BM32 -> 0 | BN39: =Randomizer!BN32 -> 0 | BO39: =Randomizer!BO32 -> 0 | BP39: =Randomizer!BP32 -> 0 | BQ39: =Randomizer!BQ32 -> 0 | BR39: =Randomizer!BR32 -> 0 | BS39: =Randomizer!BS32 -> 0 | BT39: =Randomizer!BT32 -> 0 | BU39: =Randomizer!BU32 -> 0 | BV39: =Randomizer!BV32 -> 0 | BW39: =Randomizer!BW32 -> 0 | BX39: =Randomizer!BX32 -> 0 | BY39: =Randomizer!BY32 -> 0 | BZ39: =Randomizer!BZ32 -> 0 | CA39: =Randomizer!CA32 -> 0 | CB39: =Randomizer!CB32 -> 0 | CC39: =Randomizer!CC32 -> 0 | CD39: =Randomizer!CD32 -> 0 | CE39: =Randomizer!CE32 -> 0 | CF39: =Randomizer!CF32 -> 0 | CG39: =Randomizer!CG32 -> 0 | CH39: =Randomizer!CH32 -> 0 | CI39: =Randomizer!CI32 -> 0 | CJ39: =Randomizer!CJ32 -> 0 | CK39: =Randomizer!CK32 -> 0 | CL39: =Randomizer!CL32 -> 0 | CM39: =Randomizer!CM32 -> 0 | CN39: =Randomizer!CN32 -> 0
B40: Name | C40: =C30 -> Bruce | D40: phil | E40: Aleix | F40: Mark R | G40: Les | H40: Mark T | I40: Paul | J40: mike | K40: Ian | L40: Dave | M40: 0 | N40: 0 | O40: 0 | P40: 0 | Q40: 0 | R40: 0 | S40: 0 | T40: 0 | U40: 0 | V40: 0 | W40: 0 | X40: 0 | Y40: 0 | Z40: 0 | AA40: 0 | AB40: 0 | AC40: 0 | AD40: 0 | AE40: 0 | AF40: 0 | AG40: 0 | AH40: 0 | AI40: =AI30 -> 0 | AJ40: 0 | AK40: 0 | AL40: 0 | AM40: 0 | AN40: 0 | AO40: 0 | AP40: 0 | AQ40: 0 | AR40: 0 | AS40: 0 | AT40: 0 | AU40: 0 | AV40: 0 | AW40: 0 | AX40: 0 | AY40: 0 | AZ40: 0 | BA40: 0 | BB40: 0 | BC40: 0 | BD40: 0 | BE40: 0 | BF40: 0 | BG40: 0 | BH40: 0 | BI40: 0 | BJ40: 0 | BK40: 0 | BL40: 0 | BM40: 0 | BN40: 0 | BO40: =BO30 -> 0 | BP40: 0 | BQ40: 0 | BR40: 0 | BS40: 0 | BT40: 0 | BU40: 0 | BV40: 0 | BW40: 0 | BX40: 0 | BY40: 0 | BZ40: 0 | CA40: 0 | CB40: 0 | CC40: 0 | CD40: 0 | CE40: 0 | CF40: 0 | CG40: 0 | CH40: 0 | CI40: 0 | CJ40: 0 | CK40: 0 | CL40: 0 | CM40: 0 | CN40: 0 | CT40: =A39 -> 0
A41: 4 | B41: Round rank | C41: =RANK(C44,$C44:$CN44,0) -> 10 | D41: 8 | E41: 3 | F41: 2 | G41: 1 | H41: 4 | I41: 5 | J41: 7 | K41: 9 | L41: 6 | M41: 11 | N41: 11 | O41: 11 | P41: 11 | Q41: 11 | R41: 11 | S41: 11 | T41: 11 | U41: 11 | V41: 11 | W41: 11 | X41: 11 | Y41: 11 | Z41: 11 | AA41: 11 | AB41: 11 | AC41: 11 | AD41: 11 | AE41: 11 | AF41: 11 | AG41: 11 | AH41: 11 | AI41: =RANK(AI44,$C44:$CN44,0) -> 11 | AJ41: 11 | AK41: 11 | AL41: 11 | AM41: 11 | AN41: 11 | AO41: 11 | AP41: 11 | AQ41: 11 | AR41: 11 | AS41: 11 | AT41: 11 | AU41: 11 | AV41: 11 | AW41: 11 | AX41: 11 | AY41: 11 | AZ41: 11 | BA41: 11 | BB41: 11 | BC41: 11 | BD41: 11 | BE41: 11 | BF41: 11 | BG41: 11 | BH41: 11 | BI41: 11 | BJ41: 11 | BK41: 11 | BL41: 11 | BM41: 11 | BN41: 11 | BO41: =RANK(BO44,$C44:$CN44,0) -> 11 | BP41: 11 | BQ41: 11 | BR41: 11 | BS41: 11 | BT41: 11 | BU41: 11 | BV41: 11 | BW41: 11 | BX41: 11 | BY41: 11 | BZ41: 11 | CA41: 11 | CB41: 11 | CC41: 11 | CD41: 11 | CE41: 11 | CF41: 11 | CG41: 11 | CH41: 11 | CI41: 11 | CJ41: 11 | CK41: 11 | CL41: 11 | CM41: 11 | CN41: 11
B42: Time | C42: 60.78 | D42: 54.04 | E42: 46.15 | F42: 45.79 | G42: 45.39 | H42: 48.94 | I42: 49.76 | J42: 52.16 | K42: 59.78 | L42: 50 | CP42: =IF(Randomizer!CP35=0,"",Randomizer!CP35) -> 45.39 | CQ42: =IF(CP42=0, "", Randomizer!CQ35) -> Les | CT42: =A41 -> 4
B43: Penalties | X43: 100
B44: Score | C44: =Randomizer!C38 -> 746.7917078 | D44: =Randomizer!D38 -> 839.9333827 | E44: =Randomizer!E38 -> 983.531961 | F44: =Randomizer!F38 -> 991.2644682 | G44: =Randomizer!G38 -> 1000 | H44: =Randomizer!H38 -> 927.4621986 | I44: =Randomizer!I38 -> 912.1784566 | J44: =Randomizer!J38 -> 870.2070552 | K44: =Randomizer!K38 -> 759.2840415 | L44: =Randomizer!L38 -> 907.8 | M44: =Randomizer!M38 -> 0 | N44: =Randomizer!N38 -> 0 | O44: =Randomizer!O38 -> 0 | P44: =Randomizer!P38 -> 0 | Q44: =Randomizer!Q38 -> 0 | R44: =Randomizer!R38 -> 0 | S44: =Randomizer!S38 -> 0 | T44: =Randomizer!T38 -> 0 | U44: =Randomizer!U38 -> 0 | V44: =Randomizer!V38 -> 0 | W44: =Randomizer!W38 -> 0 | X44: =Randomizer!X38 -> 0 | Y44: =Randomizer!Y38 -> 0 | Z44: =Randomizer!Z38 -> 0 | AA44: =Randomizer!AA38 -> 0 | AB44: =Randomizer!AB38 -> 0 | AC44: =Randomizer!AC38 -> 0 | AD44: =Randomizer!AD38 -> 0 | AE44: =Randomizer!AE38 -> 0 | AF44: =Randomizer!AF38 -> 0 | AG44: =Randomizer!AG38 -> 0 | AH44: =Randomizer!AH38 -> 0 | AI44: =Randomizer!AI38 -> 0 | AJ44: =Randomizer!AJ38 -> 0 | AK44: =Randomizer!AK38 -> 0 | AL44: =Randomizer!AL38 -> 0 | AM44: =Randomizer!AM38 -> 0 | AN44: =Randomizer!AN38 -> 0 | AO44: =Randomizer!AO38 -> 0 | AP44: =Randomizer!AP38 -> 0 | AQ44: =Randomizer!AQ38 -> 0 | AR44: =Randomizer!AR38 -> 0 | AS44: =Randomizer!AS38 -> 0 | AT44: =Randomizer!AT38 -> 0 | AU44: =Randomizer!AU38 -> 0 | AV44: =Randomizer!AV38 -> 0 | AW44: =Randomizer!AW38 -> 0 | AX44: =Randomizer!AX38 -> 0 | AY44: =Randomizer!AY38 -> 0 | AZ44: =Randomizer!AZ38 -> 0 | BA44: =Randomizer!BA38 -> 0 | BB44: =Randomizer!BB38 -> 0 | BC44: =Randomizer!BC38 -> 0 | BD44: =Randomizer!BD38 -> 0 | BE44: =Randomizer!BE38 -> 0 | BF44: =Randomizer!BF38 -> 0 | BG44: =Randomizer!BG38 -> 0 | BH44: =Randomizer!BH38 -> 0 | BI44: =Randomizer!BI38 -> 0 | BJ44: =Randomizer!BJ38 -> 0 | BK44: =Randomizer!BK38 -> 0 | BL44: =Randomizer!BL38 -> 0 | BM44: =Randomizer!BM38 -> 0 | BN44: =Randomizer!BN38 -> 0 | BO44: =Randomizer!BO38 -> 0 | BP44: =Randomizer!BP38 -> 0 | BQ44: =Randomizer!BQ38 -> 0 | BR44: =Randomizer!BR38 -> 0 | BS44: =Randomizer!BS38 -> 0 | BT44: =Randomizer!BT38 -> 0 | BU44: =Randomizer!BU38 -> 0 | BV44: =Randomizer!BV38 -> 0 | BW44: =Randomizer!BW38 -> 0 | BX44: =Randomizer!BX38 -> 0 | BY44: =Randomizer!BY38 -> 0 | BZ44: =Randomizer!BZ38 -> 0 | CA44: =Randomizer!CA38 -> 0 | CB44: =Randomizer!CB38 -> 0 | CC44: =Randomizer!CC38 -> 0 | CD44: =Randomizer!CD38 -> 0 | CE44: =Randomizer!CE38 -> 0 | CF44: =Randomizer!CF38 -> 0 | CG44: =Randomizer!CG38 -> 0 | CH44: =Randomizer!CH38 -> 0 | CI44: =Randomizer!CI38 -> 0 | CJ44: =Randomizer!CJ38 -> 0 | CK44: =Randomizer!CK38 -> 0 | CL44: =Randomizer!CL38 -> 0 | CM44: =Randomizer!CM38 -> 0 | CN44: =Randomizer!CN38 -> 0
B45: Name | C45: =C40 -> Bruce | D45: phil | E45: Aleix | F45: Mark R | G45: Les | H45: Mark T | I45: Paul | J45: mike | K45: Ian | L45: Dave | M45: 0 | N45: 0 | O45: 0 | P45: 0 | Q45: 0 | R45: 0 | S45: 0 | T45: 0 | U45: 0 | V45: 0 | W45: 0 | X45: 0 | Y45: 0 | Z45: 0 | AA45: 0 | AB45: 0 | AC45: 0 | AD45: 0 | AE45: 0 | AF45: 0 | AG45: 0 | AH45: 0 | AI45: =AI40 -> 0 | AJ45: 0 | AK45: 0 | AL45: 0 | AM45: 0 | AN45: 0 | AO45: 0 | AP45: 0 | AQ45: 0 | AR45: 0 | AS45: 0 | AT45: 0 | AU45: 0 | AV45: 0 | AW45: 0 | AX45: 0 | AY45: 0 | AZ45: 0 | BA45: 0 | BB45: 0 | BC45: 0 | BD45: 0 | BE45: 0 | BF45: 0 | BG45: 0 | BH45: 0 | BI45: 0 | BJ45: 0 | BK45: 0 | BL45: 0 | BM45: 0 | BN45: 0 | BO45: =BO40 -> 0 | BP45: 0 | BQ45: 0 | BR45: 0 | BS45: 0 | BT45: 0 | BU45: 0 | BV45: 0 | BW45: 0 | BX45: 0 | BY45: 0 | BZ45: 0 | CA45: 0 | CB45: 0 | CC45: 0 | CD45: 0 | CE45: 0 | CF45: 0 | CG45: 0 | CH45: 0 | CI45: 0 | CJ45: 0 | CK45: 0 | CL45: 0 | CM45: 0 | CN45: 0 | CT45: =A44 -> 0
A46: 5 | B46: Round rank | C46: =RANK(C49,$C49:$CN49,0) -> 10 | D46: 9 | E46: 4 | F46: 5 | G46: 2 | H46: 1 | I46: 6 | J46: 3 | K46: 7 | L46: 8 | M46: 11 | N46: 11 | O46: 11 | P46: 11 | Q46: 11 | R46: 11 | S46: 11 | T46: 11 | U46: 11 | V46: 11 | W46: 11 | X46: 11 | Y46: 11 | Z46: 11 | AA46: 11 | AB46: 11 | AC46: 11 | AD46: 11 | AE46: 11 | AF46: 11 | AG46: 11 | AH46: 11 | AI46: =RANK(AI49,$C49:$CN49,0) -> 11 | AJ46: 11 | AK46: 11 | AL46: 11 | AM46: 11 | AN46: 11 | AO46: 11 | AP46: 11 | AQ46: 11 | AR46: 11 | AS46: 11 | AT46: 11 | AU46: 11 | AV46: 11 | AW46: 11 | AX46: 11 | AY46: 11 | AZ46: 11 | BA46: 11 | BB46: 11 | BC46: 11 | BD46: 11 | BE46: 11 | BF46: 11 | BG46: 11 | BH46: 11 | BI46: 11 | BJ46: 11 | BK46: 11 | BL46: 11 | BM46: 11 | BN46: 11 | BO46: =RANK(BO49,$C49:$CN49,0) -> 11 | BP46: 11 | BQ46: 11 | BR46: 11 | BS46: 11 | BT46: 11 | BU46: 11 | BV46: 11 | BW46: 11 | BX46: 11 | BY46: 11 | BZ46: 11 | CA46: 11 | CB46: 11 | CC46: 11 | CD46: 11 | CE46: 11 | CF46: 11 | CG46: 11 | CH46: 11 | CI46: 11 | CJ46: 11 | CK46: 11 | CL46: 11 | CM46: 11 | CN46: 11
B47: Time | C47: 62.55 | D47: 62.02 | E47: 51.02 | F47: 51.12 | G47: 49.26 | H47: 46.36 | I47: 53.58 | J47: 50.8 | K47: 57.83 | L47: 61.68 | CP47: =IF(Randomizer!CP41=0,"",Randomizer!CP41) -> 46.36 | CQ47: =IF(CP47=0, "", Randomizer!CQ41) -> Mark T | CT47: =A46 -> 5
B48: Penalties
B49: Score | C49: =Randomizer!C44 -> 741.1670663 | D49: =Randomizer!D44 -> 747.5008062 | E49: =Randomizer!E44 -> 908.6632693 | F49: =Randomizer!F44 -> 906.885759 | G49: =Randomizer!G44 -> 941.1287048 | H49: =Randomizer!H44 -> 1000 | I49: =Randomizer!I44 -> 865.248227 | J49: =Randomizer!J44 -> 912.5984252 | K49: =Randomizer!K44 -> 801.660038 | L49: =Randomizer!L44 -> 751.6212711 | M49: =Randomizer!M44 -> 0 | N49: =Randomizer!N44 -> 0 | O49: =Randomizer!O44 -> 0 | P49: =Randomizer!P44 -> 0 | Q49: =Randomizer!Q44 -> 0 | R49: =Randomizer!R44 -> 0 | S49: =Randomizer!S44 -> 0 | T49: =Randomizer!T44 -> 0 | U49: =Randomizer!U44 -> 0 | V49: =Randomizer!V44 -> 0 | W49: =Randomizer!W44 -> 0 | X49: =Randomizer!X44 -> 0 | Y49: =Randomizer!Y44 -> 0 | Z49: =Randomizer!Z44 -> 0 | AA49: =Randomizer!AA44 -> 0 | AB49: =Randomizer!AB44 -> 0 | AC49: =Randomizer!AC44 -> 0 | AD49: =Randomizer!AD44 -> 0 | AE49: =Randomizer!AE44 -> 0 | AF49: =Randomizer!AF44 -> 0 | AG49: =Randomizer!AG44 -> 0 | AH49: =Randomizer!AH44 -> 0 | AI49: =Randomizer!AI44 -> 0 | AJ49: =Randomizer!AJ44 -> 0 | AK49: =Randomizer!AK44 -> 0 | AL49: =Randomizer!AL44 -> 0 | AM49: =Randomizer!AM44 -> 0 | AN49: =Randomizer!AN44 -> 0 | AO49: =Randomizer!AO44 -> 0 | AP49: =Randomizer!AP44 -> 0 | AQ49: =Randomizer!AQ44 -> 0 | AR49: =Randomizer!AR44 -> 0 | AS49: =Randomizer!AS44 -> 0 | AT49: =Randomizer!AT44 -> 0 | AU49: =Randomizer!AU44 -> 0 | AV49: =Randomizer!AV44 -> 0 | AW49: =Randomizer!AW44 -> 0 | AX49: =Randomizer!AX44 -> 0 | AY49: =Randomizer!AY44 -> 0 | AZ49: =Randomizer!AZ44 -> 0 | BA49: =Randomizer!BA44 -> 0 | BB49: =Randomizer!BB44 -> 0 | BC49: =Randomizer!BC44 -> 0 | BD49: =Randomizer!BD44 -> 0 | BE49: =Randomizer!BE44 -> 0 | BF49: =Randomizer!BF44 -> 0 | BG49: =Randomizer!BG44 -> 0 | BH49: =Randomizer!BH44 -> 0 | BI49: =Randomizer!BI44 -> 0 | BJ49: =Randomizer!BJ44 -> 0 | BK49: =Randomizer!BK44 -> 0 | BL49: =Randomizer!BL44 -> 0 | BM49: =Randomizer!BM44 -> 0 | BN49: =Randomizer!BN44 -> 0 | BO49: =Randomizer!BO44 -> 0 | BP49: =Randomizer!BP44 -> 0 | BQ49: =Randomizer!BQ44 -> 0 | BR49: =Randomizer!BR44 -> 0 | BS49: =Randomizer!BS44 -> 0 | BT49: =Randomizer!BT44 -> 0 | BU49: =Randomizer!BU44 -> 0 | BV49: =Randomizer!BV44 -> 0 | BW49: =Randomizer!BW44 -> 0 | BX49: =Randomizer!BX44 -> 0 | BY49: =Randomizer!BY44 -> 0 | BZ49: =Randomizer!BZ44 -> 0 | CA49: =Randomizer!CA44 -> 0 | CB49: =Randomizer!CB44 -> 0 | CC49: =Randomizer!CC44 -> 0 | CD49: =Randomizer!CD44 -> 0 | CE49: =Randomizer!CE44 -> 0 | CF49: =Randomizer!CF44 -> 0 | CG49: =Randomizer!CG44 -> 0 | CH49: =Randomizer!CH44 -> 0 | CI49: =Randomizer!CI44 -> 0 | CJ49: =Randomizer!CJ44 -> 0 | CK49: =Randomizer!CK44 -> 0 | CL49: =Randomizer!CL44 -> 0 | CM49: =Randomizer!CM44 -> 0 | CN49: =Randomizer!CN44 -> 0
B50: Name | C50: =C45 -> Bruce | D50: phil | E50: Aleix | F50: Mark R | G50: Les | H50: Mark T | I50: Paul | J50: mike | K50: Ian | L50: Dave | M50: 0 | N50: 0 | O50: 0 | P50: 0 | Q50: 0 | R50: 0 | S50: 0 | T50: 0 | U50: 0 | V50: 0 | W50: 0 | X50: 0 | Y50: 0 | Z50: 0 | AA50: 0 | AB50: 0 | AC50: 0 | AD50: 0 | AE50: 0 | AF50: 0 | AG50: 0 | AH50: 0 | AI50: =AI45 -> 0 | AJ50: 0 | AK50: 0 | AL50: 0 | AM50: 0 | AN50: 0 | AO50: 0 | AP50: 0 | AQ50: 0 | AR50: 0 | AS50: 0 | AT50: 0 | AU50: 0 | AV50: 0 | AW50: 0 | AX50: 0 | AY50: 0 | AZ50: 0 | BA50: 0 | BB50: 0 | BC50: 0 | BD50: 0 | BE50: 0 | BF50: 0 | BG50: 0 | BH50: 0 | BI50: 0 | BJ50: 0 | BK50: 0 | BL50: 0 | BM50: 0 | BN50: 0 | BO50: =BO45 -> 0 | BP50: 0 | BQ50: 0 | BR50: 0 | BS50: 0 | BT50: 0 | BU50: 0 | BV50: 0 | BW50: 0 | BX50: 0 | BY50: 0 | BZ50: 0 | CA50: 0 | CB50: 0 | CC50: 0 | CD50: 0 | CE50: 0 | CF50: 0 | CG50: 0 | CH50: 0 | CI50: 0 | CJ50: 0 | CK50: 0 | CL50: 0 | CM50: 0 | CN50: 0 | CT50: =A49 -> 0
A51: 6 | B51: Round rank | C51: =RANK(C54,$C54:$CN54,0) -> 7 | D51: 6 | E51: 3 | F51: 2 | G51: 5 | H51: 4 | I51: 8 | J51: 1 | K51: 9 | L51: 10 | M51: 11 | N51: 11 | O51: 11 | P51: 11 | Q51: 11 | R51: 11 | S51: 11 | T51: 11 | U51: 11 | V51: 11 | W51: 11 | X51: 11 | Y51: 11 | Z51: 11 | AA51: 11 | AB51: 11 | AC51: 11 | AD51: 11 | AE51: 11 | AF51: 11 | AG51: 11 | AH51: 11 | AI51: =RANK(AI54,$C54:$CN54,0) -> 11 | AJ51: 11 | AK51: 11 | AL51: 11 | AM51: 11 | AN51: 11 | AO51: 11 | AP51: 11 | AQ51: 11 | AR51: 11 | AS51: 11 | AT51: 11 | AU51: 11 | AV51: 11 | AW51: 11 | AX51: 11 | AY51: 11 | AZ51: 11 | BA51: 11 | BB51: 11 | BC51: 11 | BD51: 11 | BE51: 11 | BF51: 11 | BG51: 11 | BH51: 11 | BI51: 11 | BJ51: 11 | BK51: 11 | BL51: 11 | BM51: 11 | BN51: 11 | BO51: =RANK(BO54,$C54:$CN54,0) -> 11 | BP51: 11 | BQ51: 11 | BR51: 11 | BS51: 11 | BT51: 11 | BU51: 11 | BV51: 11 | BW51: 11 | BX51: 11 | BY51: 11 | BZ51: 11 | CA51: 11 | CB51: 11 | CC51: 11 | CD51: 11 | CE51: 11 | CF51: 11 | CG51: 11 | CH51: 11 | CI51: 11 | CJ51: 11 | CK51: 11 | CL51: 11 | CM51: 11 | CN51: 11
B52: Time | C52: 61.3 | D52: 56.41 | E52: 54.52 | F52: 54.1 | G52: 56.25 | H52: 55.15 | I52: 61.81 | J52: 53.5 | K52: 62.29 | L52: 65.69 | CP52: =IF(Randomizer!CP47=0,"",Randomizer!CP47) -> 53.5 | CQ52: =IF(CP52=0, "", Randomizer!CQ47) -> mike | CT52: =A51 -> 6
B53: Penalties
B54: Score | C54: =Randomizer!C50 -> 872.7569331 | D54: =Randomizer!D50 -> 948.4134019 | E54: =Randomizer!E50 -> 981.2912693 | F54: =Randomizer!F50 -> 988.909427 | G54: =Randomizer!G50 -> 951.1111111 | H54: =Randomizer!H50 -> 970.0815956 | I54: =Randomizer!I50 -> 865.5557353 | J54: =Randomizer!J50 -> 1000 | K54: =Randomizer!K50 -> 858.8858565 | L54: =Randomizer!L50 -> 814.4314203 | M54: =Randomizer!M50 -> 0 | N54: =Randomizer!N50 -> 0 | O54: =Randomizer!O50 -> 0 | P54: =Randomizer!P50 -> 0 | Q54: =Randomizer!Q50 -> 0 | R54: =Randomizer!R50 -> 0 | S54: =Randomizer!S50 -> 0 | T54: =Randomizer!T50 -> 0 | U54: =Randomizer!U50 -> 0 | V54: =Randomizer!V50 -> 0 | W54: =Randomizer!W50 -> 0 | X54: =Randomizer!X50 -> 0 | Y54: =Randomizer!Y50 -> 0 | Z54: =Randomizer!Z50 -> 0 | AA54: =Randomizer!AA50 -> 0 | AB54: =Randomizer!AB50 -> 0 | AC54: =Randomizer!AC50 -> 0 | AD54: =Randomizer!AD50 -> 0 | AE54: =Randomizer!AE50 -> 0 | AF54: =Randomizer!AF50 -> 0 | AG54: =Randomizer!AG50 -> 0 | AH54: =Randomizer!AH50 -> 0 | AI54: =Randomizer!AI50 -> 0 | AJ54: =Randomizer!AJ50 -> 0 | AK54: =Randomizer!AK50 -> 0 | AL54: =Randomizer!AL50 -> 0 | AM54: =Randomizer!AM50 -> 0 | AN54: =Randomizer!AN50 -> 0 | AO54: =Randomizer!AO50 -> 0 | AP54: =Randomizer!AP50 -> 0 | AQ54: =Randomizer!AQ50 -> 0 | AR54: =Randomizer!AR50 -> 0 | AS54: =Randomizer!AS50 -> 0 | AT54: =Randomizer!AT50 -> 0 | AU54: =Randomizer!AU50 -> 0 | AV54: =Randomizer!AV50 -> 0 | AW54: =Randomizer!AW50 -> 0 | AX54: =Randomizer!AX50 -> 0 | AY54: =Randomizer!AY50 -> 0 | AZ54: =Randomizer!AZ50 -> 0 | BA54: =Randomizer!BA50 -> 0 | BB54: =Randomizer!BB50 -> 0 | BC54: =Randomizer!BC50 -> 0 | BD54: =Randomizer!BD50 -> 0 | BE54: =Randomizer!BE50 -> 0 | BF54: =Randomizer!BF50 -> 0 | BG54: =Randomizer!BG50 -> 0 | BH54: =Randomizer!BH50 -> 0 | BI54: =Randomizer!BI50 -> 0 | BJ54: =Randomizer!BJ50 -> 0 | BK54: =Randomizer!BK50 -> 0 | BL54: =Randomizer!BL50 -> 0 | BM54: =Randomizer!BM50 -> 0 | BN54: =Randomizer!BN50 -> 0 | BO54: =Randomizer!BO50 -> 0 | BP54: =Randomizer!BP50 -> 0 | BQ54: =Randomizer!BQ50 -> 0 | BR54: =Randomizer!BR50 -> 0 | BS54: =Randomizer!BS50 -> 0 | BT54: =Randomizer!BT50 -> 0 | BU54: =Randomizer!BU50 -> 0 | BV54: =Randomizer!BV50 -> 0 | BW54: =Randomizer!BW50 -> 0 | BX54: =Randomizer!BX50 -> 0 | BY54: =Randomizer!BY50 -> 0 | BZ54: =Randomizer!BZ50 -> 0 | CA54: =Randomizer!CA50 -> 0 | CB54: =Randomizer!CB50 -> 0 | CC54: =Randomizer!CC50 -> 0 | CD54: =Randomizer!CD50 -> 0 | CE54: =Randomizer!CE50 -> 0 | CF54: =Randomizer!CF50 -> 0 | CG54: =Randomizer!CG50 -> 0 | CH54: =Randomizer!CH50 -> 0 | CI54: =Randomizer!CI50 -> 0 | CJ54: =Randomizer!CJ50 -> 0 | CK54: =Randomizer!CK50 -> 0 | CL54: =Randomizer!CL50 -> 0 | CM54: =Randomizer!CM50 -> 0 | CN54: =Randomizer!CN50 -> 0
B55: Name | C55: =C50 -> Bruce | D55: phil | E55: Aleix | F55: Mark R | G55: Les | H55: Mark T | I55: Paul | J55: mike | K55: Ian | L55: Dave | M55: 0 | N55: 0 | O55: 0 | P55: 0 | Q55: 0 | R55: 0 | S55: 0 | T55: 0 | U55: 0 | V55: 0 | W55: 0 | X55: 0 | Y55: 0 | Z55: 0 | AA55: 0 | AB55: 0 | AC55: 0 | AD55: 0 | AE55: 0 | AF55: 0 | AG55: 0 | AH55: 0 | AI55: =AI50 -> 0 | AJ55: 0 | AK55: 0 | AL55: 0 | AM55: 0 | AN55: 0 | AO55: 0 | AP55: 0 | AQ55: 0 | AR55: 0 | AS55: 0 | AT55: 0 | AU55: 0 | AV55: 0 | AW55: 0 | AX55: 0 | AY55: 0 | AZ55: 0 | BA55: 0 | BB55: 0 | BC55: 0 | BD55: 0 | BE55: 0 | BF55: 0 | BG55: 0 | BH55: 0 | BI55: 0 | BJ55: 0 | BK55: 0 | BL55: 0 | BM55: 0 | BN55: 0 | BO55: =BO50 -> 0 | BP55: 0 | BQ55: 0 | BR55: 0 | BS55: 0 | BT55: 0 | BU55: 0 | BV55: 0 | BW55: 0 | BX55: 0 | BY55: 0 | BZ55: 0 | CA55: 0 | CB55: 0 | CC55: 0 | CD55: 0 | CE55: 0 | CF55: 0 | CG55: 0 | CH55: 0 | CI55: 0 | CJ55: 0 | CK55: 0 | CL55: 0 | CM55: 0 | CN55: 0 | CT55: =A54 -> 0
A56: 7 | B56: Round rank | C56: =RANK(C59,$C59:$CN59,0) -> 1 | D56: 1 | E56: 1 | F56: 1 | G56: 1 | H56: 1 | I56: 1 | J56: 1 | K56: 1 | L56: 1 | M56: 1 | N56: 1 | O56: 1 | P56: 1 | Q56: 1 | R56: 1 | S56: 1 | T56: 1 | U56: 1 | V56: 1 | W56: 1 | X56: 1 | Y56: 1 | Z56: 1 | AA56: 1 | AB56: 1 | AC56: 1 | AD56: 1 | AE56: 1 | AF56: 1 | AG56: 1 | AH56: 1 | AI56: =RANK(AI59,$C59:$CN59,0) -> 1 | AJ56: 1 | AK56: 1 | AL56: 1 | AM56: 1 | AN56: 1 | AO56: 1 | AP56: 1 | AQ56: 1 | AR56: 1 | AS56: 1 | AT56: 1 | AU56: 1 | AV56: 1 | AW56: 1 | AX56: 1 | AY56: 1 | AZ56: 1 | BA56: 1 | BB56: 1 | BC56: 1 | BD56: 1 | BE56: 1 | BF56: 1 | BG56: 1 | BH56: 1 | BI56: 1 | BJ56: 1 | BK56: 1 | BL56: 1 | BM56: 1 | BN56: 1 | BO56: =RANK(BO59,$C59:$CN59,0) -> 1 | BP56: 1 | BQ56: 1 | BR56: 1 | BS56: 1 | BT56: 1 | BU56: 1 | BV56: 1 | BW56: 1 | BX56: 1 | BY56: 1 | BZ56: 1 | CA56: 1 | CB56: 1 | CC56: 1 | CD56: 1 | CE56: 1 | CF56: 1 | CG56: 1 | CH56: 1 | CI56: 1 | CJ56: 1 | CK56: 1 | CL56: 1 | CM56: 1 | CN56: 1
B57: Time | CP57: =IF(Randomizer!CP53=0,"",Randomizer!CP53) ->  | CQ57: =IF(CP57=0, "", Randomizer!CQ53) ->  | CT57: =A56 -> 7
B58: Penalties
B59: Score | C59: =Randomizer!C56 -> 0 | D59: =Randomizer!D56 -> 0 | E59: =Randomizer!E56 -> 0 | F59: =Randomizer!F56 -> 0 | G59: =Randomizer!G56 -> 0 | H59: =Randomizer!H56 -> 0 | I59: =Randomizer!I56 -> 0 | J59: =Randomizer!J56 -> 0 | K59: =Randomizer!K56 -> 0 | L59: =Randomizer!L56 -> 0 | M59: =Randomizer!M56 -> 0 | N59: =Randomizer!N56 -> 0 | O59: =Randomizer!O56 -> 0 | P59: =Randomizer!P56 -> 0 | Q59: =Randomizer!Q56 -> 0 | R59: =Randomizer!R56 -> 0 | S59: =Randomizer!S56 -> 0 | T59: =Randomizer!T56 -> 0 | U59: =Randomizer!U56 -> 0 | V59: =Randomizer!V56 -> 0 | W59: =Randomizer!W56 -> 0 | X59: =Randomizer!X56 -> 0 | Y59: =Randomizer!Y56 -> 0 | Z59: =Randomizer!Z56 -> 0 | AA59: =Randomizer!AA56 -> 0 | AB59: =Randomizer!AB56 -> 0 | AC59: =Randomizer!AC56 -> 0 | AD59: =Randomizer!AD56 -> 0 | AE59: =Randomizer!AE56 -> 0 | AF59: =Randomizer!AF56 -> 0 | AG59: =Randomizer!AG56 -> 0 | AH59: =Randomizer!AH56 -> 0 | AI59: =Randomizer!AI56 -> 0 | AJ59: =Randomizer!AJ56 -> 0 | AK59: =Randomizer!AK56 -> 0 | AL59: =Randomizer!AL56 -> 0 | AM59: =Randomizer!AM56 -> 0 | AN59: =Randomizer!AN56 -> 0 | AO59: =Randomizer!AO56 -> 0 | AP59: =Randomizer!AP56 -> 0 | AQ59: =Randomizer!AQ56 -> 0 | AR59: =Randomizer!AR56 -> 0 | AS59: =Randomizer!AS56 -> 0 | AT59: =Randomizer!AT56 -> 0 | AU59: =Randomizer!AU56 -> 0 | AV59: =Randomizer!AV56 -> 0 | AW59: =Randomizer!AW56 -> 0 | AX59: =Randomizer!AX56 -> 0 | AY59: =Randomizer!AY56 -> 0 | AZ59: =Randomizer!AZ56 -> 0 | BA59: =Randomizer!BA56 -> 0 | BB59: =Randomizer!BB56 -> 0 | BC59: =Randomizer!BC56 -> 0 | BD59: =Randomizer!BD56 -> 0 | BE59: =Randomizer!BE56 -> 0 | BF59: =Randomizer!BF56 -> 0 | BG59: =Randomizer!BG56 -> 0 | BH59: =Randomizer!BH56 -> 0 | BI59: =Randomizer!BI56 -> 0 | BJ59: =Randomizer!BJ56 -> 0 | BK59: =Randomizer!BK56 -> 0 | BL59: =Randomizer!BL56 -> 0 | BM59: =Randomizer!BM56 -> 0 | BN59: =Randomizer!BN56 -> 0 | BO59: =Randomizer!BO56 -> 0 | BP59: =Randomizer!BP56 -> 0 | BQ59: =Randomizer!BQ56 -> 0 | BR59: =Randomizer!BR56 -> 0 | BS59: =Randomizer!BS56 -> 0 | BT59: =Randomizer!BT56 -> 0 | BU59: =Randomizer!BU56 -> 0 | BV59: =Randomizer!BV56 -> 0 | BW59: =Randomizer!BW56 -> 0 | BX59: =Randomizer!BX56 -> 0 | BY59: =Randomizer!BY56 -> 0 | BZ59: =Randomizer!BZ56 -> 0 | CA59: =Randomizer!CA56 -> 0 | CB59: =Randomizer!CB56 -> 0 | CC59: =Randomizer!CC56 -> 0 | CD59: =Randomizer!CD56 -> 0 | CE59: =Randomizer!CE56 -> 0 | CF59: =Randomizer!CF56 -> 0 | CG59: =Randomizer!CG56 -> 0 | CH59: =Randomizer!CH56 -> 0 | CI59: =Randomizer!CI56 -> 0 | CJ59: =Randomizer!CJ56 -> 0 | CK59: =Randomizer!CK56 -> 0 | CL59: =Randomizer!CL56 -> 0 | CM59: =Randomizer!CM56 -> 0 | CN59: =Randomizer!CN56 -> 0
B60: Name | C60: =C55 -> Bruce | D60: phil | E60: Aleix | F60: Mark R | G60: Les | H60: Mark T | I60: Paul | J60: mike | K60: Ian | L60: Dave | M60: 0 | N60: 0 | O60: 0 | P60: 0 | Q60: 0 | R60: 0 | S60: 0 | T60: 0 | U60: 0 | V60: 0 | W60: 0 | X60: 0 | Y60: 0 | Z60: 0 | AA60: 0 | AB60: 0 | AC60: 0 | AD60: 0 | AE60: 0 | AF60: 0 | AG60: 0 | AH60: 0 | AI60: =AI55 -> 0 | AJ60: 0 | AK60: 0 | AL60: 0 | AM60: 0 | AN60: 0 | AO60: 0 | AP60: 0 | AQ60: 0 | AR60: 0 | AS60: 0 | AT60: 0 | AU60: 0 | AV60: 0 | AW60: 0 | AX60: 0 | AY60: 0 | AZ60: 0 | BA60: 0 | BB60: 0 | BC60: 0 | BD60: 0 | BE60: 0 | BF60: 0 | BG60: 0 | BH60: 0 | BI60: 0 | BJ60: 0 | BK60: 0 | BL60: 0 | BM60: 0 | BN60: 0 | BO60: =BO55 -> 0 | BP60: 0 | BQ60: 0 | BR60: 0 | BS60: 0 | BT60: 0 | BU60: 0 | BV60: 0 | BW60: 0 | BX60: 0 | BY60: 0 | BZ60: 0 | CA60: 0 | CB60: 0 | CC60: 0 | CD60: 0 | CE60: 0 | CF60: 0 | CG60: 0 | CH60: 0 | CI60: 0 | CJ60: 0 | CK60: 0 | CL60: 0 | CM60: 0 | CN60: 0 | CT60: =A59 -> 0
A61: 8 | B61: Round rank | C61: =RANK(C64,$C64:$CN64,0) -> 1 | D61: 1 | E61: 1 | F61: 1 | G61: 1 | H61: 1 | I61: 1 | J61: 1 | K61: 1 | L61: 1 | M61: 1 | N61: 1 | O61: 1 | P61: 1 | Q61: 1 | R61: 1 | S61: 1 | T61: 1 | U61: 1 | V61: 1 | W61: 1 | X61: 1 | Y61: 1 | Z61: 1 | AA61: 1 | AB61: 1 | AC61: 1 | AD61: 1 | AE61: 1 | AF61: 1 | AG61: 1 | AH61: 1 | AI61: =RANK(AI64,$C64:$CN64,0) -> 1 | AJ61: 1 | AK61: 1 | AL61: 1 | AM61: 1 | AN61: 1 | AO61: 1 | AP61: 1 | AQ61: 1 | AR61: 1 | AS61: 1 | AT61: 1 | AU61: 1 | AV61: 1 | AW61: 1 | AX61: 1 | AY61: 1 | AZ61: 1 | BA61: 1 | BB61: 1 | BC61: 1 | BD61: 1 | BE61: 1 | BF61: 1 | BG61: 1 | BH61: 1 | BI61: 1 | BJ61: 1 | BK61: 1 | BL61: 1 | BM61: 1 | BN61: 1 | BO61: =RANK(BO64,$C64:$CN64,0) -> 1 | BP61: 1 | BQ61: 1 | BR61: 1 | BS61: 1 | BT61: 1 | BU61: 1 | BV61: 1 | BW61: 1 | BX61: 1 | BY61: 1 | BZ61: 1 | CA61: 1 | CB61: 1 | CC61: 1 | CD61: 1 | CE61: 1 | CF61: 1 | CG61: 1 | CH61: 1 | CI61: 1 | CJ61: 1 | CK61: 1 | CL61: 1 | CM61: 1 | CN61: 1
B62: Time | CP62: =IF(Randomizer!CP59=0,"",Randomizer!CP59) ->  | CQ62: =IF(CP62=0, "", Randomizer!CQ59) ->  | CT62: =A61 -> 8
B63: Penalties
B64: Score | C64: =Randomizer!C62 -> 0 | D64: =Randomizer!D62 -> 0 | E64: =Randomizer!E62 -> 0 | F64: =Randomizer!F62 -> 0 | G64: =Randomizer!G62 -> 0 | H64: =Randomizer!H62 -> 0 | I64: =Randomizer!I62 -> 0 | J64: =Randomizer!J62 -> 0 | K64: =Randomizer!K62 -> 0 | L64: =Randomizer!L62 -> 0 | M64: =Randomizer!M62 -> 0 | N64: =Randomizer!N62 -> 0 | O64: =Randomizer!O62 -> 0 | P64: =Randomizer!P62 -> 0 | Q64: =Randomizer!Q62 -> 0 | R64: =Randomizer!R62 -> 0 | S64: =Randomizer!S62 -> 0 | T64: =Randomizer!T62 -> 0 | U64: =Randomizer!U62 -> 0 | V64: =Randomizer!V62 -> 0 | W64: =Randomizer!W62 -> 0 | X64: =Randomizer!X62 -> 0 | Y64: =Randomizer!Y62 -> 0 | Z64: =Randomizer!Z62 -> 0 | AA64: =Randomizer!AA62 -> 0 | AB64: =Randomizer!AB62 -> 0 | AC64: =Randomizer!AC62 -> 0 | AD64: =Randomizer!AD62 -> 0 | AE64: =Randomizer!AE62 -> 0 | AF64: =Randomizer!AF62 -> 0 | AG64: =Randomizer!AG62 -> 0 | AH64: =Randomizer!AH62 -> 0 | AI64: =Randomizer!AI62 -> 0 | AJ64: =Randomizer!AJ62 -> 0 | AK64: =Randomizer!AK62 -> 0 | AL64: =Randomizer!AL62 -> 0 | AM64: =Randomizer!AM62 -> 0 | AN64: =Randomizer!AN62 -> 0 | AO64: =Randomizer!AO62 -> 0 | AP64: =Randomizer!AP62 -> 0 | AQ64: =Randomizer!AQ62 -> 0 | AR64: =Randomizer!AR62 -> 0 | AS64: =Randomizer!AS62 -> 0 | AT64: =Randomizer!AT62 -> 0 | AU64: =Randomizer!AU62 -> 0 | AV64: =Randomizer!AV62 -> 0 | AW64: =Randomizer!AW62 -> 0 | AX64: =Randomizer!AX62 -> 0 | AY64: =Randomizer!AY62 -> 0 | AZ64: =Randomizer!AZ62 -> 0 | BA64: =Randomizer!BA62 -> 0 | BB64: =Randomizer!BB62 -> 0 | BC64: =Randomizer!BC62 -> 0 | BD64: =Randomizer!BD62 -> 0 | BE64: =Randomizer!BE62 -> 0 | BF64: =Randomizer!BF62 -> 0 | BG64: =Randomizer!BG62 -> 0 | BH64: =Randomizer!BH62 -> 0 | BI64: =Randomizer!BI62 -> 0 | BJ64: =Randomizer!BJ62 -> 0 | BK64: =Randomizer!BK62 -> 0 | BL64: =Randomizer!BL62 -> 0 | BM64: =Randomizer!BM62 -> 0 | BN64: =Randomizer!BN62 -> 0 | BO64: =Randomizer!BO62 -> 0 | BP64: =Randomizer!BP62 -> 0 | BQ64: =Randomizer!BQ62 -> 0 | BR64: =Randomizer!BR62 -> 0 | BS64: =Randomizer!BS62 -> 0 | BT64: =Randomizer!BT62 -> 0 | BU64: =Randomizer!BU62 -> 0 | BV64: =Randomizer!BV62 -> 0 | BW64: =Randomizer!BW62 -> 0 | BX64: =Randomizer!BX62 -> 0 | BY64: =Randomizer!BY62 -> 0 | BZ64: =Randomizer!BZ62 -> 0 | CA64: =Randomizer!CA62 -> 0 | CB64: =Randomizer!CB62 -> 0 | CC64: =Randomizer!CC62 -> 0 | CD64: =Randomizer!CD62 -> 0 | CE64: =Randomizer!CE62 -> 0 | CF64: =Randomizer!CF62 -> 0 | CG64: =Randomizer!CG62 -> 0 | CH64: =Randomizer!CH62 -> 0 | CI64: =Randomizer!CI62 -> 0 | CJ64: =Randomizer!CJ62 -> 0 | CK64: =Randomizer!CK62 -> 0 | CL64: =Randomizer!CL62 -> 0 | CM64: =Randomizer!CM62 -> 0 | CN64: =Randomizer!CN62 -> 0
B65: Name | C65: =C60 -> Bruce | D65: phil | E65: Aleix | F65: Mark R | G65: Les | H65: Mark T | I65: Paul | J65: mike | K65: Ian | L65: Dave | M65: 0 | N65: 0 | O65: 0 | P65: 0 | Q65: 0 | R65: 0 | S65: 0 | T65: 0 | U65: 0 | V65: 0 | W65: 0 | X65: 0 | Y65: 0 | Z65: 0 | AA65: 0 | AB65: 0 | AC65: 0 | AD65: 0 | AE65: 0 | AF65: 0 | AG65: 0 | AH65: 0 | AI65: =AI60 -> 0 | AJ65: 0 | AK65: 0 | AL65: 0 | AM65: 0 | AN65: 0 | AO65: 0 | AP65: 0 | AQ65: 0 | AR65: 0 | AS65: 0 | AT65: 0 | AU65: 0 | AV65: 0 | AW65: 0 | AX65: 0 | AY65: 0 | AZ65: 0 | BA65: 0 | BB65: 0 | BC65: 0 | BD65: 0 | BE65: 0 | BF65: 0 | BG65: 0 | BH65: 0 | BI65: 0 | BJ65: 0 | BK65: 0 | BL65: 0 | BM65: 0 | BN65: 0 | BO65: =BO60 -> 0 | BP65: 0 | BQ65: 0 | BR65: 0 | BS65: 0 | BT65: 0 | BU65: 0 | BV65: 0 | BW65: 0 | BX65: 0 | BY65: 0 | BZ65: 0 | CA65: 0 | CB65: 0 | CC65: 0 | CD65: 0 | CE65: 0 | CF65: 0 | CG65: 0 | CH65: 0 | CI65: 0 | CJ65: 0 | CK65: 0 | CL65: 0 | CM65: 0 | CN65: 0 | CT65: =A64 -> 0
A66: 9 | B66: Round rank | C66: =RANK(C69,$C69:$CN69,0) -> 1 | D66: 1 | E66: 1 | F66: 1 | G66: 1 | H66: 1 | I66: 1 | J66: 1 | K66: 1 | L66: 1 | M66: 1 | N66: 1 | O66: 1 | P66: 1 | Q66: 1 | R66: 1 | S66: 1 | T66: 1 | U66: 1 | V66: 1 | W66: 1 | X66: 1 | Y66: 1 | Z66: 1 | AA66: 1 | AB66: 1 | AC66: 1 | AD66: 1 | AE66: 1 | AF66: 1 | AG66: 1 | AH66: 1 | AI66: =RANK(AI69,$C69:$CN69,0) -> 1 | AJ66: 1 | AK66: 1 | AL66: 1 | AM66: 1 | AN66: 1 | AO66: 1 | AP66: 1 | AQ66: 1 | AR66: 1 | AS66: 1 | AT66: 1 | AU66: 1 | AV66: 1 | AW66: 1 | AX66: 1 | AY66: 1 | AZ66: 1 | BA66: 1 | BB66: 1 | BC66: 1 | BD66: 1 | BE66: 1 | BF66: 1 | BG66: 1 | BH66: 1 | BI66: 1 | BJ66: 1 | BK66: 1 | BL66: 1 | BM66: 1 | BN66: 1 | BO66: =RANK(BO69,$C69:$CN69,0) -> 1 | BP66: 1 | BQ66: 1 | BR66: 1 | BS66: 1 | BT66: 1 | BU66: 1 | BV66: 1 | BW66: 1 | BX66: 1 | BY66: 1 | BZ66: 1 | CA66: 1 | CB66: 1 | CC66: 1 | CD66: 1 | CE66: 1 | CF66: 1 | CG66: 1 | CH66: 1 | CI66: 1 | CJ66: 1 | CK66: 1 | CL66: 1 | CM66: 1 | CN66: 1
B67: Time | CP67: =IF(Randomizer!CP65=0,"",Randomizer!CP65) ->  | CQ67: =IF(CP67=0, "", Randomizer!CQ65) ->  | CT67: =A66 -> 9
B68: Penalties
B69: Score | C69: =Randomizer!C68 -> 0 | D69: =Randomizer!D68 -> 0 | E69: =Randomizer!E68 -> 0 | F69: =Randomizer!F68 -> 0 | G69: =Randomizer!G68 -> 0 | H69: =Randomizer!H68 -> 0 | I69: =Randomizer!I68 -> 0 | J69: =Randomizer!J68 -> 0 | K69: =Randomizer!K68 -> 0 | L69: =Randomizer!L68 -> 0 | M69: =Randomizer!M68 -> 0 | N69: =Randomizer!N68 -> 0 | O69: =Randomizer!O68 -> 0 | P69: =Randomizer!P68 -> 0 | Q69: =Randomizer!Q68 -> 0 | R69: =Randomizer!R68 -> 0 | S69: =Randomizer!S68 -> 0 | T69: =Randomizer!T68 -> 0 | U69: =Randomizer!U68 -> 0 | V69: =Randomizer!V68 -> 0 | W69: =Randomizer!W68 -> 0 | X69: =Randomizer!X68 -> 0 | Y69: =Randomizer!Y68 -> 0 | Z69: =Randomizer!Z68 -> 0 | AA69: =Randomizer!AA68 -> 0 | AB69: =Randomizer!AB68 -> 0 | AC69: =Randomizer!AC68 -> 0 | AD69: =Randomizer!AD68 -> 0 | AE69: =Randomizer!AE68 -> 0 | AF69: =Randomizer!AF68 -> 0 | AG69: =Randomizer!AG68 -> 0 | AH69: =Randomizer!AH68 -> 0 | AI69: =Randomizer!AI68 -> 0 | AJ69: =Randomizer!AJ68 -> 0 | AK69: =Randomizer!AK68 -> 0 | AL69: =Randomizer!AL68 -> 0 | AM69: =Randomizer!AM68 -> 0 | AN69: =Randomizer!AN68 -> 0 | AO69: =Randomizer!AO68 -> 0 | AP69: =Randomizer!AP68 -> 0 | AQ69: =Randomizer!AQ68 -> 0 | AR69: =Randomizer!AR68 -> 0 | AS69: =Randomizer!AS68 -> 0 | AT69: =Randomizer!AT68 -> 0 | AU69: =Randomizer!AU68 -> 0 | AV69: =Randomizer!AV68 -> 0 | AW69: =Randomizer!AW68 -> 0 | AX69: =Randomizer!AX68 -> 0 | AY69: =Randomizer!AY68 -> 0 | AZ69: =Randomizer!AZ68 -> 0 | BA69: =Randomizer!BA68 -> 0 | BB69: =Randomizer!BB68 -> 0 | BC69: =Randomizer!BC68 -> 0 | BD69: =Randomizer!BD68 -> 0 | BE69: =Randomizer!BE68 -> 0 | BF69: =Randomizer!BF68 -> 0 | BG69: =Randomizer!BG68 -> 0 | BH69: =Randomizer!BH68 -> 0 | BI69: =Randomizer!BI68 -> 0 | BJ69: =Randomizer!BJ68 -> 0 | BK69: =Randomizer!BK68 -> 0 | BL69: =Randomizer!BL68 -> 0 | BM69: =Randomizer!BM68 -> 0 | BN69: =Randomizer!BN68 -> 0 | BO69: =Randomizer!BO68 -> 0 | BP69: =Randomizer!BP68 -> 0 | BQ69: =Randomizer!BQ68 -> 0 | BR69: =Randomizer!BR68 -> 0 | BS69: =Randomizer!BS68 -> 0 | BT69: =Randomizer!BT68 -> 0 | BU69: =Randomizer!BU68 -> 0 | BV69: =Randomizer!BV68 -> 0 | BW69: =Randomizer!BW68 -> 0 | BX69: =Randomizer!BX68 -> 0 | BY69: =Randomizer!BY68 -> 0 | BZ69: =Randomizer!BZ68 -> 0 | CA69: =Randomizer!CA68 -> 0 | CB69: =Randomizer!CB68 -> 0 | CC69: =Randomizer!CC68 -> 0 | CD69: =Randomizer!CD68 -> 0 | CE69: =Randomizer!CE68 -> 0 | CF69: =Randomizer!CF68 -> 0 | CG69: =Randomizer!CG68 -> 0 | CH69: =Randomizer!CH68 -> 0 | CI69: =Randomizer!CI68 -> 0 | CJ69: =Randomizer!CJ68 -> 0 | CK69: =Randomizer!CK68 -> 0 | CL69: =Randomizer!CL68 -> 0 | CM69: =Randomizer!CM68 -> 0 | CN69: =Randomizer!CN68 -> 0
B70: Name | C70: =C65 -> Bruce | D70: phil | E70: Aleix | F70: Mark R | G70: Les | H70: Mark T | I70: Paul | J70: mike | K70: Ian | L70: Dave | M70: 0 | N70: 0 | O70: 0 | P70: 0 | Q70: 0 | R70: 0 | S70: 0 | T70: 0 | U70: 0 | V70: 0 | W70: 0 | X70: 0 | Y70: 0 | Z70: 0 | AA70: 0 | AB70: 0 | AC70: 0 | AD70: 0 | AE70: 0 | AF70: 0 | AG70: 0 | AH70: 0 | AI70: =AI65 -> 0 | AJ70: 0 | AK70: 0 | AL70: 0 | AM70: 0 | AN70: 0 | AO70: 0 | AP70: 0 | AQ70: 0 | AR70: 0 | AS70: 0 | AT70: 0 | AU70: 0 | AV70: 0 | AW70: 0 | AX70: 0 | AY70: 0 | AZ70: 0 | BA70: 0 | BB70: 0 | BC70: 0 | BD70: 0 | BE70: 0 | BF70: 0 | BG70: 0 | BH70: 0 | BI70: 0 | BJ70: 0 | BK70: 0 | BL70: 0 | BM70: 0 | BN70: 0 | BO70: =BO65 -> 0 | BP70: 0 | BQ70: 0 | BR70: 0 | BS70: 0 | BT70: 0 | BU70: 0 | BV70: 0 | BW70: 0 | BX70: 0 | BY70: 0 | BZ70: 0 | CA70: 0 | CB70: 0 | CC70: 0 | CD70: 0 | CE70: 0 | CF70: 0 | CG70: 0 | CH70: 0 | CI70: 0 | CJ70: 0 | CK70: 0 | CL70: 0 | CM70: 0 | CN70: 0 | CT70: =A69 -> 0
A71: 10 | B71: Round rank | C71: =RANK(C74,$C74:$CN74,0) -> 1 | D71: 1 | E71: 1 | F71: 1 | G71: 1 | H71: 1 | I71: 1 | J71: 1 | K71: 1 | L71: 1 | M71: 1 | N71: 1 | O71: 1 | P71: 1 | Q71: 1 | R71: 1 | S71: 1 | T71: 1 | U71: 1 | V71: 1 | W71: 1 | X71: 1 | Y71: 1 | Z71: 1 | AA71: 1 | AB71: 1 | AC71: 1 | AD71: 1 | AE71: 1 | AF71: 1 | AG71: 1 | AH71: 1 | AI71: =RANK(AI74,$C74:$CN74,0) -> 1 | AJ71: 1 | AK71: 1 | AL71: 1 | AM71: 1 | AN71: 1 | AO71: 1 | AP71: 1 | AQ71: 1 | AR71: 1 | AS71: 1 | AT71: 1 | AU71: 1 | AV71: 1 | AW71: 1 | AX71: 1 | AY71: 1 | AZ71: 1 | BA71: 1 | BB71: 1 | BC71: 1 | BD71: 1 | BE71: 1 | BF71: 1 | BG71: 1 | BH71: 1 | BI71: 1 | BJ71: 1 | BK71: 1 | BL71: 1 | BM71: 1 | BN71: 1 | BO71: =RANK(BO74,$C74:$CN74,0) -> 1 | BP71: 1 | BQ71: 1 | BR71: 1 | BS71: 1 | BT71: 1 | BU71: 1 | BV71: 1 | BW71: 1 | BX71: 1 | BY71: 1 | BZ71: 1 | CA71: 1 | CB71: 1 | CC71: 1 | CD71: 1 | CE71: 1 | CF71: 1 | CG71: 1 | CH71: 1 | CI71: 1 | CJ71: 1 | CK71: 1 | CL71: 1 | CM71: 1 | CN71: 1
B72: Time | CP72: =IF(Randomizer!CP71=0,"",Randomizer!CP71) ->  | CQ72: =IF(CP72=0, "", Randomizer!CQ71) ->  | CT72: =A71 -> 10
B73: Penalties
B74: Score | C74: =Randomizer!C74 -> 0 | D74: =Randomizer!D74 -> 0 | E74: =Randomizer!E74 -> 0 | F74: =Randomizer!F74 -> 0 | G74: =Randomizer!G74 -> 0 | H74: =Randomizer!H74 -> 0 | I74: =Randomizer!I74 -> 0 | J74: =Randomizer!J74 -> 0 | K74: =Randomizer!K74 -> 0 | L74: =Randomizer!L74 -> 0 | M74: =Randomizer!M74 -> 0 | N74: =Randomizer!N74 -> 0 | O74: =Randomizer!O74 -> 0 | P74: =Randomizer!P74 -> 0 | Q74: =Randomizer!Q74 -> 0 | R74: =Randomizer!R74 -> 0 | S74: =Randomizer!S74 -> 0 | T74: =Randomizer!T74 -> 0 | U74: =Randomizer!U74 -> 0 | V74: =Randomizer!V74 -> 0 | W74: =Randomizer!W74 -> 0 | X74: =Randomizer!X74 -> 0 | Y74: =Randomizer!Y74 -> 0 | Z74: =Randomizer!Z74 -> 0 | AA74: =Randomizer!AA74 -> 0 | AB74: =Randomizer!AB74 -> 0 | AC74: =Randomizer!AC74 -> 0 | AD74: =Randomizer!AD74 -> 0 | AE74: =Randomizer!AE74 -> 0 | AF74: =Randomizer!AF74 -> 0 | AG74: =Randomizer!AG74 -> 0 | AH74: =Randomizer!AH74 -> 0 | AI74: =Randomizer!AI74 -> 0 | AJ74: =Randomizer!AJ74 -> 0 | AK74: =Randomizer!AK74 -> 0 | AL74: =Randomizer!AL74 -> 0 | AM74: =Randomizer!AM74 -> 0 | AN74: =Randomizer!AN74 -> 0 | AO74: =Randomizer!AO74 -> 0 | AP74: =Randomizer!AP74 -> 0 | AQ74: =Randomizer!AQ74 -> 0 | AR74: =Randomizer!AR74 -> 0 | AS74: =Randomizer!AS74 -> 0 | AT74: =Randomizer!AT74 -> 0 | AU74: =Randomizer!AU74 -> 0 | AV74: =Randomizer!AV74 -> 0 | AW74: =Randomizer!AW74 -> 0 | AX74: =Randomizer!AX74 -> 0 | AY74: =Randomizer!AY74 -> 0 | AZ74: =Randomizer!AZ74 -> 0 | BA74: =Randomizer!BA74 -> 0 | BB74: =Randomizer!BB74 -> 0 | BC74: =Randomizer!BC74 -> 0 | BD74: =Randomizer!BD74 -> 0 | BE74: =Randomizer!BE74 -> 0 | BF74: =Randomizer!BF74 -> 0 | BG74: =Randomizer!BG74 -> 0 | BH74: =Randomizer!BH74 -> 0 | BI74: =Randomizer!BI74 -> 0 | BJ74: =Randomizer!BJ74 -> 0 | BK74: =Randomizer!BK74 -> 0 | BL74: =Randomizer!BL74 -> 0 | BM74: =Randomizer!BM74 -> 0 | BN74: =Randomizer!BN74 -> 0 | BO74: =Randomizer!BO74 -> 0 | BP74: =Randomizer!BP74 -> 0 | BQ74: =Randomizer!BQ74 -> 0 | BR74: =Randomizer!BR74 -> 0 | BS74: =Randomizer!BS74 -> 0 | BT74: =Randomizer!BT74 -> 0 | BU74: =Randomizer!BU74 -> 0 | BV74: =Randomizer!BV74 -> 0 | BW74: =Randomizer!BW74 -> 0 | BX74: =Randomizer!BX74 -> 0 | BY74: =Randomizer!BY74 -> 0 | BZ74: =Randomizer!BZ74 -> 0 | CA74: =Randomizer!CA74 -> 0 | CB74: =Randomizer!CB74 -> 0 | CC74: =Randomizer!CC74 -> 0 | CD74: =Randomizer!CD74 -> 0 | CE74: =Randomizer!CE74 -> 0 | CF74: =Randomizer!CF74 -> 0 | CG74: =Randomizer!CG74 -> 0 | CH74: =Randomizer!CH74 -> 0 | CI74: =Randomizer!CI74 -> 0 | CJ74: =Randomizer!CJ74 -> 0 | CK74: =Randomizer!CK74 -> 0 | CL74: =Randomizer!CL74 -> 0 | CM74: =Randomizer!CM74 -> 0 | CN74: =Randomizer!CN74 -> 0
B75: Name | C75: =C70 -> Bruce | D75: phil | E75: Aleix | F75: Mark R | G75: Les | H75: Mark T | I75: Paul | J75: mike | K75: Ian | L75: Dave | M75: 0 | N75: 0 | O75: 0 | P75: 0 | Q75: 0 | R75: 0 | S75: 0 | T75: 0 | U75: 0 | V75: 0 | W75: 0 | X75: 0 | Y75: 0 | Z75: 0 | AA75: 0 | AB75: 0 | AC75: 0 | AD75: 0 | AE75: 0 | AF75: 0 | AG75: 0 | AH75: 0 | AI75: =AI70 -> 0 | AJ75: 0 | AK75: 0 | AL75: 0 | AM75: 0 | AN75: 0 | AO75: 0 | AP75: 0 | AQ75: 0 | AR75: 0 | AS75: 0 | AT75: 0 | AU75: 0 | AV75: 0 | AW75: 0 | AX75: 0 | AY75: 0 | AZ75: 0 | BA75: 0 | BB75: 0 | BC75: 0 | BD75: 0 | BE75: 0 | BF75: 0 | BG75: 0 | BH75: 0 | BI75: 0 | BJ75: 0 | BK75: 0 | BL75: 0 | BM75: 0 | BN75: 0 | BO75: =BO70 -> 0 | BP75: 0 | BQ75: 0 | BR75: 0 | BS75: 0 | BT75: 0 | BU75: 0 | BV75: 0 | BW75: 0 | BX75: 0 | BY75: 0 | BZ75: 0 | CA75: 0 | CB75: 0 | CC75: 0 | CD75: 0 | CE75: 0 | CF75: 0 | CG75: 0 | CH75: 0 | CI75: 0 | CJ75: 0 | CK75: 0 | CL75: 0 | CM75: 0 | CN75: 0 | CT75: =A74 -> 0
A76: 11 | B76: Round rank | C76: =RANK(C79,$C79:$CN79,0) -> 1 | D76: 1 | E76: 1 | F76: 1 | G76: 1 | H76: 1 | I76: 1 | J76: 1 | K76: 1 | L76: 1 | M76: 1 | N76: 1 | O76: 1 | P76: 1 | Q76: 1 | R76: 1 | S76: 1 | T76: 1 | U76: 1 | V76: 1 | W76: 1 | X76: 1 | Y76: 1 | Z76: 1 | AA76: 1 | AB76: 1 | AC76: 1 | AD76: 1 | AE76: 1 | AF76: 1 | AG76: 1 | AH76: 1 | AI76: =RANK(AI79,$C79:$CN79,0) -> 1 | AJ76: 1 | AK76: 1 | AL76: 1 | AM76: 1 | AN76: 1 | AO76: 1 | AP76: 1 | AQ76: 1 | AR76: 1 | AS76: 1 | AT76: 1 | AU76: 1 | AV76: 1 | AW76: 1 | AX76: 1 | AY76: 1 | AZ76: 1 | BA76: 1 | BB76: 1 | BC76: 1 | BD76: 1 | BE76: 1 | BF76: 1 | BG76: 1 | BH76: 1 | BI76: 1 | BJ76: 1 | BK76: 1 | BL76: 1 | BM76: 1 | BN76: 1 | BO76: =RANK(BO79,$C79:$CN79,0) -> 1 | BP76: 1 | BQ76: 1 | BR76: 1 | BS76: 1 | BT76: 1 | BU76: 1 | BV76: 1 | BW76: 1 | BX76: 1 | BY76: 1 | BZ76: 1 | CA76: 1 | CB76: 1 | CC76: 1 | CD76: 1 | CE76: 1 | CF76: 1 | CG76: 1 | CH76: 1 | CI76: 1 | CJ76: 1 | CK76: 1 | CL76: 1 | CM76: 1 | CN76: 1
B77: Time | CP77: =IF(Randomizer!CP77=0,"",Randomizer!CP77) ->  | CQ77: =IF(CP77=0, "", Randomizer!CQ77) ->  | CT77: =A76 -> 11
B78: Penalties
B79: Score | C79: =Randomizer!C80 -> 0 | D79: =Randomizer!D80 -> 0 | E79: =Randomizer!E80 -> 0 | F79: =Randomizer!F80 -> 0 | G79: =Randomizer!G80 -> 0 | H79: =Randomizer!H80 -> 0 | I79: =Randomizer!I80 -> 0 | J79: =Randomizer!J80 -> 0 | K79: =Randomizer!K80 -> 0 | L79: =Randomizer!L80 -> 0 | M79: =Randomizer!M80 -> 0 | N79: =Randomizer!N80 -> 0 | O79: =Randomizer!O80 -> 0 | P79: =Randomizer!P80 -> 0 | Q79: =Randomizer!Q80 -> 0 | R79: =Randomizer!R80 -> 0 | S79: =Randomizer!S80 -> 0 | T79: =Randomizer!T80 -> 0 | U79: =Randomizer!U80 -> 0 | V79: =Randomizer!V80 -> 0 | W79: =Randomizer!W80 -> 0 | X79: =Randomizer!X80 -> 0 | Y79: =Randomizer!Y80 -> 0 | Z79: =Randomizer!Z80 -> 0 | AA79: =Randomizer!AA80 -> 0 | AB79: =Randomizer!AB80 -> 0 | AC79: =Randomizer!AC80 -> 0 | AD79: =Randomizer!AD80 -> 0 | AE79: =Randomizer!AE80 -> 0 | AF79: =Randomizer!AF80 -> 0 | AG79: =Randomizer!AG80 -> 0 | AH79: =Randomizer!AH80 -> 0 | AI79: =Randomizer!AI80 -> 0 | AJ79: =Randomizer!AJ80 -> 0 | AK79: =Randomizer!AK80 -> 0 | AL79: =Randomizer!AL80 -> 0 | AM79: =Randomizer!AM80 -> 0 | AN79: =Randomizer!AN80 -> 0 | AO79: =Randomizer!AO80 -> 0 | AP79: =Randomizer!AP80 -> 0 | AQ79: =Randomizer!AQ80 -> 0 | AR79: =Randomizer!AR80 -> 0 | AS79: =Randomizer!AS80 -> 0 | AT79: =Randomizer!AT80 -> 0 | AU79: =Randomizer!AU80 -> 0 | AV79: =Randomizer!AV80 -> 0 | AW79: =Randomizer!AW80 -> 0 | AX79: =Randomizer!AX80 -> 0 | AY79: =Randomizer!AY80 -> 0 | AZ79: =Randomizer!AZ80 -> 0 | BA79: =Randomizer!BA80 -> 0 | BB79: =Randomizer!BB80 -> 0 | BC79: =Randomizer!BC80 -> 0 | BD79: =Randomizer!BD80 -> 0 | BE79: =Randomizer!BE80 -> 0 | BF79: =Randomizer!BF80 -> 0 | BG79: =Randomizer!BG80 -> 0 | BH79: =Randomizer!BH80 -> 0 | BI79: =Randomizer!BI80 -> 0 | BJ79: =Randomizer!BJ80 -> 0 | BK79: =Randomizer!BK80 -> 0 | BL79: =Randomizer!BL80 -> 0 | BM79: =Randomizer!BM80 -> 0 | BN79: =Randomizer!BN80 -> 0 | BO79: =Randomizer!BO80 -> 0 | BP79: =Randomizer!BP80 -> 0 | BQ79: =Randomizer!BQ80 -> 0 | BR79: =Randomizer!BR80 -> 0 | BS79: =Randomizer!BS80 -> 0 | BT79: =Randomizer!BT80 -> 0 | BU79: =Randomizer!BU80 -> 0 | BV79: =Randomizer!BV80 -> 0 | BW79: =Randomizer!BW80 -> 0 | BX79: =Randomizer!BX80 -> 0 | BY79: =Randomizer!BY80 -> 0 | BZ79: =Randomizer!BZ80 -> 0 | CA79: =Randomizer!CA80 -> 0 | CB79: =Randomizer!CB80 -> 0 | CC79: =Randomizer!CC80 -> 0 | CD79: =Randomizer!CD80 -> 0 | CE79: =Randomizer!CE80 -> 0 | CF79: =Randomizer!CF80 -> 0 | CG79: =Randomizer!CG80 -> 0 | CH79: =Randomizer!CH80 -> 0 | CI79: =Randomizer!CI80 -> 0 | CJ79: =Randomizer!CJ80 -> 0 | CK79: =Randomizer!CK80 -> 0 | CL79: =Randomizer!CL80 -> 0 | CM79: =Randomizer!CM80 -> 0 | CN79: =Randomizer!CN80 -> 0
B80: Name | C80: =C75 -> Bruce | D80: phil | E80: Aleix | F80: Mark R | G80: Les | H80: Mark T | I80: Paul | J80: mike | K80: Ian | L80: Dave | M80: 0 | N80: 0 | O80: 0 | P80: 0 | Q80: 0 | R80: 0 | S80: 0 | T80: 0 | U80: 0 | V80: 0 | W80: 0 | X80: 0 | Y80: 0 | Z80: 0 | AA80: 0 | AB80: 0 | AC80: 0 | AD80: 0 | AE80: 0 | AF80: 0 | AG80: 0 | AH80: 0 | AI80: =AI75 -> 0 | AJ80: 0 | AK80: 0 | AL80: 0 | AM80: 0 | AN80: 0 | AO80: 0 | AP80: 0 | AQ80: 0 | AR80: 0 | AS80: 0 | AT80: 0 | AU80: 0 | AV80: 0 | AW80: 0 | AX80: 0 | AY80: 0 | AZ80: 0 | BA80: 0 | BB80: 0 | BC80: 0 | BD80: 0 | BE80: 0 | BF80: 0 | BG80: 0 | BH80: 0 | BI80: 0 | BJ80: 0 | BK80: 0 | BL80: 0 | BM80: 0 | BN80: 0 | BO80: =BO75 -> 0 | BP80: 0 | BQ80: 0 | BR80: 0 | BS80: 0 | BT80: 0 | BU80: 0 | BV80: 0 | BW80: 0 | BX80: 0 | BY80: 0 | BZ80: 0 | CA80: 0 | CB80: 0 | CC80: 0 | CD80: 0 | CE80: 0 | CF80: 0 | CG80: 0 | CH80: 0 | CI80: 0 | CJ80: 0 | CK80: 0 | CL80: 0 | CM80: 0 | CN80: 0 | CT80: =A79 -> 0
A81: 12 | B81: Round rank | C81: =RANK(C84,$C84:$CN84,0) -> 1 | D81: 1 | E81: 1 | F81: 1 | G81: 1 | H81: 1 | I81: 1 | J81: 1 | K81: 1 | L81: 1 | M81: 1 | N81: 1 | O81: 1 | P81: 1 | Q81: 1 | R81: 1 | S81: 1 | T81: 1 | U81: 1 | V81: 1 | W81: 1 | X81: 1 | Y81: 1 | Z81: 1 | AA81: 1 | AB81: 1 | AC81: 1 | AD81: 1 | AE81: 1 | AF81: 1 | AG81: 1 | AH81: 1 | AI81: =RANK(AI84,$C84:$CN84,0) -> 1 | AJ81: 1 | AK81: 1 | AL81: 1 | AM81: 1 | AN81: 1 | AO81: 1 | AP81: 1 | AQ81: 1 | AR81: 1 | AS81: 1 | AT81: 1 | AU81: 1 | AV81: 1 | AW81: 1 | AX81: 1 | AY81: 1 | AZ81: 1 | BA81: 1 | BB81: 1 | BC81: 1 | BD81: 1 | BE81: 1 | BF81: 1 | BG81: 1 | BH81: 1 | BI81: 1 | BJ81: 1 | BK81: 1 | BL81: 1 | BM81: 1 | BN81: 1 | BO81: =RANK(BO84,$C84:$CN84,0) -> 1 | BP81: 1 | BQ81: 1 | BR81: 1 | BS81: 1 | BT81: 1 | BU81: 1 | BV81: 1 | BW81: 1 | BX81: 1 | BY81: 1 | BZ81: 1 | CA81: 1 | CB81: 1 | CC81: 1 | CD81: 1 | CE81: 1 | CF81: 1 | CG81: 1 | CH81: 1 | CI81: 1 | CJ81: 1 | CK81: 1 | CL81: 1 | CM81: 1 | CN81: 1
B82: Time | CP82: =IF(Randomizer!CP83=0,"",Randomizer!CP83) ->  | CQ82: =IF(CP82=0, "", Randomizer!CQ83) ->  | CT82: =A81 -> 12
B83: Penalties
B84: Score | C84: =Randomizer!C86 -> 0 | D84: =Randomizer!D86 -> 0 | E84: =Randomizer!E86 -> 0 | F84: =Randomizer!F86 -> 0 | G84: =Randomizer!G86 -> 0 | H84: =Randomizer!H86 -> 0 | I84: =Randomizer!I86 -> 0 | J84: =Randomizer!J86 -> 0 | K84: =Randomizer!K86 -> 0 | L84: =Randomizer!L86 -> 0 | M84: =Randomizer!M86 -> 0 | N84: =Randomizer!N86 -> 0 | O84: =Randomizer!O86 -> 0 | P84: =Randomizer!P86 -> 0 | Q84: =Randomizer!Q86 -> 0 | R84: =Randomizer!R86 -> 0 | S84: =Randomizer!S86 -> 0 | T84: =Randomizer!T86 -> 0 | U84: =Randomizer!U86 -> 0 | V84: =Randomizer!V86 -> 0 | W84: =Randomizer!W86 -> 0 | X84: =Randomizer!X86 -> 0 | Y84: =Randomizer!Y86 -> 0 | Z84: =Randomizer!Z86 -> 0 | AA84: =Randomizer!AA86 -> 0 | AB84: =Randomizer!AB86 -> 0 | AC84: =Randomizer!AC86 -> 0 | AD84: =Randomizer!AD86 -> 0 | AE84: =Randomizer!AE86 -> 0 | AF84: =Randomizer!AF86 -> 0 | AG84: =Randomizer!AG86 -> 0 | AH84: =Randomizer!AH86 -> 0 | AI84: =Randomizer!AI86 -> 0 | AJ84: =Randomizer!AJ86 -> 0 | AK84: =Randomizer!AK86 -> 0 | AL84: =Randomizer!AL86 -> 0 | AM84: =Randomizer!AM86 -> 0 | AN84: =Randomizer!AN86 -> 0 | AO84: =Randomizer!AO86 -> 0 | AP84: =Randomizer!AP86 -> 0 | AQ84: =Randomizer!AQ86 -> 0 | AR84: =Randomizer!AR86 -> 0 | AS84: =Randomizer!AS86 -> 0 | AT84: =Randomizer!AT86 -> 0 | AU84: =Randomizer!AU86 -> 0 | AV84: =Randomizer!AV86 -> 0 | AW84: =Randomizer!AW86 -> 0 | AX84: =Randomizer!AX86 -> 0 | AY84: =Randomizer!AY86 -> 0 | AZ84: =Randomizer!AZ86 -> 0 | BA84: =Randomizer!BA86 -> 0 | BB84: =Randomizer!BB86 -> 0 | BC84: =Randomizer!BC86 -> 0 | BD84: =Randomizer!BD86 -> 0 | BE84: =Randomizer!BE86 -> 0 | BF84: =Randomizer!BF86 -> 0 | BG84: =Randomizer!BG86 -> 0 | BH84: =Randomizer!BH86 -> 0 | BI84: =Randomizer!BI86 -> 0 | BJ84: =Randomizer!BJ86 -> 0 | BK84: =Randomizer!BK86 -> 0 | BL84: =Randomizer!BL86 -> 0 | BM84: =Randomizer!BM86 -> 0 | BN84: =Randomizer!BN86 -> 0 | BO84: =Randomizer!BO86 -> 0 | BP84: =Randomizer!BP86 -> 0 | BQ84: =Randomizer!BQ86 -> 0 | BR84: =Randomizer!BR86 -> 0 | BS84: =Randomizer!BS86 -> 0 | BT84: =Randomizer!BT86 -> 0 | BU84: =Randomizer!BU86 -> 0 | BV84: =Randomizer!BV86 -> 0 | BW84: =Randomizer!BW86 -> 0 | BX84: =Randomizer!BX86 -> 0 | BY84: =Randomizer!BY86 -> 0 | BZ84: =Randomizer!BZ86 -> 0 | CA84: =Randomizer!CA86 -> 0 | CB84: =Randomizer!CB86 -> 0 | CC84: =Randomizer!CC86 -> 0 | CD84: =Randomizer!CD86 -> 0 | CE84: =Randomizer!CE86 -> 0 | CF84: =Randomizer!CF86 -> 0 | CG84: =Randomizer!CG86 -> 0 | CH84: =Randomizer!CH86 -> 0 | CI84: =Randomizer!CI86 -> 0 | CJ84: =Randomizer!CJ86 -> 0 | CK84: =Randomizer!CK86 -> 0 | CL84: =Randomizer!CL86 -> 0 | CM84: =Randomizer!CM86 -> 0 | CN84: =Randomizer!CN86 -> 0
B85: Name | C85: =C80 -> Bruce | D85: phil | E85: Aleix | F85: Mark R | G85: Les | H85: Mark T | I85: Paul | J85: mike | K85: Ian | L85: Dave | M85: 0 | N85: 0 | O85: 0 | P85: 0 | Q85: 0 | R85: 0 | S85: 0 | T85: 0 | U85: 0 | V85: 0 | W85: 0 | X85: 0 | Y85: 0 | Z85: 0 | AA85: 0 | AB85: 0 | AC85: 0 | AD85: 0 | AE85: 0 | AF85: 0 | AG85: 0 | AH85: 0 | AI85: =AI80 -> 0 | AJ85: 0 | AK85: 0 | AL85: 0 | AM85: 0 | AN85: 0 | AO85: 0 | AP85: 0 | AQ85: 0 | AR85: 0 | AS85: 0 | AT85: 0 | AU85: 0 | AV85: 0 | AW85: 0 | AX85: 0 | AY85: 0 | AZ85: 0 | BA85: 0 | BB85: 0 | BC85: 0 | BD85: 0 | BE85: 0 | BF85: 0 | BG85: 0 | BH85: 0 | BI85: 0 | BJ85: 0 | BK85: 0 | BL85: 0 | BM85: 0 | BN85: 0 | BO85: =BO80 -> 0 | BP85: 0 | BQ85: 0 | BR85: 0 | BS85: 0 | BT85: 0 | BU85: 0 | BV85: 0 | BW85: 0 | BX85: 0 | BY85: 0 | BZ85: 0 | CA85: 0 | CB85: 0 | CC85: 0 | CD85: 0 | CE85: 0 | CF85: 0 | CG85: 0 | CH85: 0 | CI85: 0 | CJ85: 0 | CK85: 0 | CL85: 0 | CM85: 0 | CN85: 0 | CT85: =A84 -> 0
A86: 13 | B86: Round rank | C86: =RANK(C89,$C89:$CN89,0) -> 1 | D86: 1 | E86: 1 | F86: 1 | G86: 1 | H86: 1 | I86: 1 | J86: 1 | K86: 1 | L86: 1 | M86: 1 | N86: 1 | O86: 1 | P86: 1 | Q86: 1 | R86: 1 | S86: 1 | T86: 1 | U86: 1 | V86: 1 | W86: 1 | X86: 1 | Y86: 1 | Z86: 1 | AA86: 1 | AB86: 1 | AC86: 1 | AD86: 1 | AE86: 1 | AF86: 1 | AG86: 1 | AH86: 1 | AI86: =RANK(AI89,$C89:$CN89,0) -> 1 | AJ86: 1 | AK86: 1 | AL86: 1 | AM86: 1 | AN86: 1 | AO86: 1 | AP86: 1 | AQ86: 1 | AR86: 1 | AS86: 1 | AT86: 1 | AU86: 1 | AV86: 1 | AW86: 1 | AX86: 1 | AY86: 1 | AZ86: 1 | BA86: 1 | BB86: 1 | BC86: 1 | BD86: 1 | BE86: 1 | BF86: 1 | BG86: 1 | BH86: 1 | BI86: 1 | BJ86: 1 | BK86: 1 | BL86: 1 | BM86: 1 | BN86: 1 | BO86: =RANK(BO89,$C89:$CN89,0) -> 1 | BP86: 1 | BQ86: 1 | BR86: 1 | BS86: 1 | BT86: 1 | BU86: 1 | BV86: 1 | BW86: 1 | BX86: 1 | BY86: 1 | BZ86: 1 | CA86: 1 | CB86: 1 | CC86: 1 | CD86: 1 | CE86: 1 | CF86: 1 | CG86: 1 | CH86: 1 | CI86: 1 | CJ86: 1 | CK86: 1 | CL86: 1 | CM86: 1 | CN86: 1
B87: Time | CP87: =IF(Randomizer!CP89=0,"",Randomizer!CP89) ->  | CQ87: =IF(CP87=0, "", Randomizer!CQ89) ->  | CT87: =A86 -> 13
B88: Penalties
B89: Score | C89: =Randomizer!C92 -> 0 | D89: =Randomizer!D92 -> 0 | E89: =Randomizer!E92 -> 0 | F89: =Randomizer!F92 -> 0 | G89: =Randomizer!G92 -> 0 | H89: =Randomizer!H92 -> 0 | I89: =Randomizer!I92 -> 0 | J89: =Randomizer!J92 -> 0 | K89: =Randomizer!K92 -> 0 | L89: =Randomizer!L92 -> 0 | M89: =Randomizer!M92 -> 0 | N89: =Randomizer!N92 -> 0 | O89: =Randomizer!O92 -> 0 | P89: =Randomizer!P92 -> 0 | Q89: =Randomizer!Q92 -> 0 | R89: =Randomizer!R92 -> 0 | S89: =Randomizer!S92 -> 0 | T89: =Randomizer!T92 -> 0 | U89: =Randomizer!U92 -> 0 | V89: =Randomizer!V92 -> 0 | W89: =Randomizer!W92 -> 0 | X89: =Randomizer!X92 -> 0 | Y89: =Randomizer!Y92 -> 0 | Z89: =Randomizer!Z92 -> 0 | AA89: =Randomizer!AA92 -> 0 | AB89: =Randomizer!AB92 -> 0 | AC89: =Randomizer!AC92 -> 0 | AD89: =Randomizer!AD92 -> 0 | AE89: =Randomizer!AE92 -> 0 | AF89: =Randomizer!AF92 -> 0 | AG89: =Randomizer!AG92 -> 0 | AH89: =Randomizer!AH92 -> 0 | AI89: =Randomizer!AI92 -> 0 | AJ89: =Randomizer!AJ92 -> 0 | AK89: =Randomizer!AK92 -> 0 | AL89: =Randomizer!AL92 -> 0 | AM89: =Randomizer!AM92 -> 0 | AN89: =Randomizer!AN92 -> 0 | AO89: =Randomizer!AO92 -> 0 | AP89: =Randomizer!AP92 -> 0 | AQ89: =Randomizer!AQ92 -> 0 | AR89: =Randomizer!AR92 -> 0 | AS89: =Randomizer!AS92 -> 0 | AT89: =Randomizer!AT92 -> 0 | AU89: =Randomizer!AU92 -> 0 | AV89: =Randomizer!AV92 -> 0 | AW89: =Randomizer!AW92 -> 0 | AX89: =Randomizer!AX92 -> 0 | AY89: =Randomizer!AY92 -> 0 | AZ89: =Randomizer!AZ92 -> 0 | BA89: =Randomizer!BA92 -> 0 | BB89: =Randomizer!BB92 -> 0 | BC89: =Randomizer!BC92 -> 0 | BD89: =Randomizer!BD92 -> 0 | BE89: =Randomizer!BE92 -> 0 | BF89: =Randomizer!BF92 -> 0 | BG89: =Randomizer!BG92 -> 0 | BH89: =Randomizer!BH92 -> 0 | BI89: =Randomizer!BI92 -> 0 | BJ89: =Randomizer!BJ92 -> 0 | BK89: =Randomizer!BK92 -> 0 | BL89: =Randomizer!BL92 -> 0 | BM89: =Randomizer!BM92 -> 0 | BN89: =Randomizer!BN92 -> 0 | BO89: =Randomizer!BO92 -> 0 | BP89: =Randomizer!BP92 -> 0 | BQ89: =Randomizer!BQ92 -> 0 | BR89: =Randomizer!BR92 -> 0 | BS89: =Randomizer!BS92 -> 0 | BT89: =Randomizer!BT92 -> 0 | BU89: =Randomizer!BU92 -> 0 | BV89: =Randomizer!BV92 -> 0 | BW89: =Randomizer!BW92 -> 0 | BX89: =Randomizer!BX92 -> 0 | BY89: =Randomizer!BY92 -> 0 | BZ89: =Randomizer!BZ92 -> 0 | CA89: =Randomizer!CA92 -> 0 | CB89: =Randomizer!CB92 -> 0 | CC89: =Randomizer!CC92 -> 0 | CD89: =Randomizer!CD92 -> 0 | CE89: =Randomizer!CE92 -> 0 | CF89: =Randomizer!CF92 -> 0 | CG89: =Randomizer!CG92 -> 0 | CH89: =Randomizer!CH92 -> 0 | CI89: =Randomizer!CI92 -> 0 | CJ89: =Randomizer!CJ92 -> 0 | CK89: =Randomizer!CK92 -> 0 | CL89: =Randomizer!CL92 -> 0 | CM89: =Randomizer!CM92 -> 0 | CN89: =Randomizer!CN92 -> 0
B90: Name | C90: =C85 -> Bruce | D90: phil | E90: Aleix | F90: Mark R | G90: Les | H90: Mark T | I90: Paul | J90: mike | K90: Ian | L90: Dave | M90: 0 | N90: 0 | O90: 0 | P90: 0 | Q90: 0 | R90: 0 | S90: 0 | T90: 0 | U90: 0 | V90: 0 | W90: 0 | X90: 0 | Y90: 0 | Z90: 0 | AA90: 0 | AB90: 0 | AC90: 0 | AD90: 0 | AE90: 0 | AF90: 0 | AG90: 0 | AH90: 0 | AI90: =AI85 -> 0 | AJ90: 0 | AK90: 0 | AL90: 0 | AM90: 0 | AN90: 0 | AO90: 0 | AP90: 0 | AQ90: 0 | AR90: 0 | AS90: 0 | AT90: 0 | AU90: 0 | AV90: 0 | AW90: 0 | AX90: 0 | AY90: 0 | AZ90: 0 | BA90: 0 | BB90: 0 | BC90: 0 | BD90: 0 | BE90: 0 | BF90: 0 | BG90: 0 | BH90: 0 | BI90: 0 | BJ90: 0 | BK90: 0 | BL90: 0 | BM90: 0 | BN90: 0 | BO90: =BO85 -> 0 | BP90: 0 | BQ90: 0 | BR90: 0 | BS90: 0 | BT90: 0 | BU90: 0 | BV90: 0 | BW90: 0 | BX90: 0 | BY90: 0 | BZ90: 0 | CA90: 0 | CB90: 0 | CC90: 0 | CD90: 0 | CE90: 0 | CF90: 0 | CG90: 0 | CH90: 0 | CI90: 0 | CJ90: 0 | CK90: 0 | CL90: 0 | CM90: 0 | CN90: 0 | CT90: =A89 -> 0
A91: 14 | B91: Round rank | C91: =RANK(C94,$C94:$CN94,0) -> 1 | D91: 1 | E91: 1 | F91: 1 | G91: 1 | H91: 1 | I91: 1 | J91: 1 | K91: 1 | L91: 1 | M91: 1 | N91: 1 | O91: 1 | P91: 1 | Q91: 1 | R91: 1 | S91: 1 | T91: 1 | U91: 1 | V91: 1 | W91: 1 | X91: 1 | Y91: 1 | Z91: 1 | AA91: 1 | AB91: 1 | AC91: 1 | AD91: 1 | AE91: 1 | AF91: 1 | AG91: 1 | AH91: 1 | AI91: =RANK(AI94,$C94:$CN94,0) -> 1 | AJ91: 1 | AK91: 1 | AL91: 1 | AM91: 1 | AN91: 1 | AO91: 1 | AP91: 1 | AQ91: 1 | AR91: 1 | AS91: 1 | AT91: 1 | AU91: 1 | AV91: 1 | AW91: 1 | AX91: 1 | AY91: 1 | AZ91: 1 | BA91: 1 | BB91: 1 | BC91: 1 | BD91: 1 | BE91: 1 | BF91: 1 | BG91: 1 | BH91: 1 | BI91: 1 | BJ91: 1 | BK91: 1 | BL91: 1 | BM91: 1 | BN91: 1 | BO91: =RANK(BO94,$C94:$CN94,0) -> 1 | BP91: 1 | BQ91: 1 | BR91: 1 | BS91: 1 | BT91: 1 | BU91: 1 | BV91: 1 | BW91: 1 | BX91: 1 | BY91: 1 | BZ91: 1 | CA91: 1 | CB91: 1 | CC91: 1 | CD91: 1 | CE91: 1 | CF91: 1 | CG91: 1 | CH91: 1 | CI91: 1 | CJ91: 1 | CK91: 1 | CL91: 1 | CM91: 1 | CN91: 1
B92: Time | CP92: =IF(Randomizer!CP95=0,"",Randomizer!CP95) ->  | CQ92: =IF(CP92=0, "", Randomizer!CQ95) ->  | CT92: =A91 -> 14
B93: Penalties
B94: Score | C94: =Randomizer!C98 -> 0 | D94: =Randomizer!D98 -> 0 | E94: =Randomizer!E98 -> 0 | F94: =Randomizer!F98 -> 0 | G94: =Randomizer!G98 -> 0 | H94: =Randomizer!H98 -> 0 | I94: =Randomizer!I98 -> 0 | J94: =Randomizer!J98 -> 0 | K94: =Randomizer!K98 -> 0 | L94: =Randomizer!L98 -> 0 | M94: =Randomizer!M98 -> 0 | N94: =Randomizer!N98 -> 0 | O94: =Randomizer!O98 -> 0 | P94: =Randomizer!P98 -> 0 | Q94: =Randomizer!Q98 -> 0 | R94: =Randomizer!R98 -> 0 | S94: =Randomizer!S98 -> 0 | T94: =Randomizer!T98 -> 0 | U94: =Randomizer!U98 -> 0 | V94: =Randomizer!V98 -> 0 | W94: =Randomizer!W98 -> 0 | X94: =Randomizer!X98 -> 0 | Y94: =Randomizer!Y98 -> 0 | Z94: =Randomizer!Z98 -> 0 | AA94: =Randomizer!AA98 -> 0 | AB94: =Randomizer!AB98 -> 0 | AC94: =Randomizer!AC98 -> 0 | AD94: =Randomizer!AD98 -> 0 | AE94: =Randomizer!AE98 -> 0 | AF94: =Randomizer!AF98 -> 0 | AG94: =Randomizer!AG98 -> 0 | AH94: =Randomizer!AH98 -> 0 | AI94: =Randomizer!AI98 -> 0 | AJ94: =Randomizer!AJ98 -> 0 | AK94: =Randomizer!AK98 -> 0 | AL94: =Randomizer!AL98 -> 0 | AM94: =Randomizer!AM98 -> 0 | AN94: =Randomizer!AN98 -> 0 | AO94: =Randomizer!AO98 -> 0 | AP94: =Randomizer!AP98 -> 0 | AQ94: =Randomizer!AQ98 -> 0 | AR94: =Randomizer!AR98 -> 0 | AS94: =Randomizer!AS98 -> 0 | AT94: =Randomizer!AT98 -> 0 | AU94: =Randomizer!AU98 -> 0 | AV94: =Randomizer!AV98 -> 0 | AW94: =Randomizer!AW98 -> 0 | AX94: =Randomizer!AX98 -> 0 | AY94: =Randomizer!AY98 -> 0 | AZ94: =Randomizer!AZ98 -> 0 | BA94: =Randomizer!BA98 -> 0 | BB94: =Randomizer!BB98 -> 0 | BC94: =Randomizer!BC98 -> 0 | BD94: =Randomizer!BD98 -> 0 | BE94: =Randomizer!BE98 -> 0 | BF94: =Randomizer!BF98 -> 0 | BG94: =Randomizer!BG98 -> 0 | BH94: =Randomizer!BH98 -> 0 | BI94: =Randomizer!BI98 -> 0 | BJ94: =Randomizer!BJ98 -> 0 | BK94: =Randomizer!BK98 -> 0 | BL94: =Randomizer!BL98 -> 0 | BM94: =Randomizer!BM98 -> 0 | BN94: =Randomizer!BN98 -> 0 | BO94: =Randomizer!BO98 -> 0 | BP94: =Randomizer!BP98 -> 0 | BQ94: =Randomizer!BQ98 -> 0 | BR94: =Randomizer!BR98 -> 0 | BS94: =Randomizer!BS98 -> 0 | BT94: =Randomizer!BT98 -> 0 | BU94: =Randomizer!BU98 -> 0 | BV94: =Randomizer!BV98 -> 0 | BW94: =Randomizer!BW98 -> 0 | BX94: =Randomizer!BX98 -> 0 | BY94: =Randomizer!BY98 -> 0 | BZ94: =Randomizer!BZ98 -> 0 | CA94: =Randomizer!CA98 -> 0 | CB94: =Randomizer!CB98 -> 0 | CC94: =Randomizer!CC98 -> 0 | CD94: =Randomizer!CD98 -> 0 | CE94: =Randomizer!CE98 -> 0 | CF94: =Randomizer!CF98 -> 0 | CG94: =Randomizer!CG98 -> 0 | CH94: =Randomizer!CH98 -> 0 | CI94: =Randomizer!CI98 -> 0 | CJ94: =Randomizer!CJ98 -> 0 | CK94: =Randomizer!CK98 -> 0 | CL94: =Randomizer!CL98 -> 0 | CM94: =Randomizer!CM98 -> 0 | CN94: =Randomizer!CN98 -> 0
B95: Name | C95: =C90 -> Bruce | D95: phil | E95: Aleix | F95: Mark R | G95: Les | H95: Mark T | I95: Paul | J95: mike | K95: Ian | L95: Dave | M95: 0 | N95: 0 | O95: 0 | P95: 0 | Q95: 0 | R95: 0 | S95: 0 | T95: 0 | U95: 0 | V95: 0 | W95: 0 | X95: 0 | Y95: 0 | Z95: 0 | AA95: 0 | AB95: 0 | AC95: 0 | AD95: 0 | AE95: 0 | AF95: 0 | AG95: 0 | AH95: 0 | AI95: =AI90 -> 0 | AJ95: 0 | AK95: 0 | AL95: 0 | AM95: 0 | AN95: 0 | AO95: 0 | AP95: 0 | AQ95: 0 | AR95: 0 | AS95: 0 | AT95: 0 | AU95: 0 | AV95: 0 | AW95: 0 | AX95: 0 | AY95: 0 | AZ95: 0 | BA95: 0 | BB95: 0 | BC95: 0 | BD95: 0 | BE95: 0 | BF95: 0 | BG95: 0 | BH95: 0 | BI95: 0 | BJ95: 0 | BK95: 0 | BL95: 0 | BM95: 0 | BN95: 0 | BO95: =BO90 -> 0 | BP95: 0 | BQ95: 0 | BR95: 0 | BS95: 0 | BT95: 0 | BU95: 0 | BV95: 0 | BW95: 0 | BX95: 0 | BY95: 0 | BZ95: 0 | CA95: 0 | CB95: 0 | CC95: 0 | CD95: 0 | CE95: 0 | CF95: 0 | CG95: 0 | CH95: 0 | CI95: 0 | CJ95: 0 | CK95: 0 | CL95: 0 | CM95: 0 | CN95: 0 | CT95: =A94 -> 0
A96: 15 | B96: Round rank | C96: =RANK(C99,$C99:$CN99,0) -> 1 | D96: 1 | E96: 1 | F96: 1 | G96: 1 | H96: 1 | I96: 1 | J96: 1 | K96: 1 | L96: 1 | M96: 1 | N96: 1 | O96: 1 | P96: 1 | Q96: 1 | R96: 1 | S96: 1 | T96: 1 | U96: 1 | V96: 1 | W96: 1 | X96: 1 | Y96: 1 | Z96: 1 | AA96: 1 | AB96: 1 | AC96: 1 | AD96: 1 | AE96: 1 | AF96: 1 | AG96: 1 | AH96: 1 | AI96: =RANK(AI99,$C99:$CN99,0) -> 1 | AJ96: 1 | AK96: 1 | AL96: 1 | AM96: 1 | AN96: 1 | AO96: 1 | AP96: 1 | AQ96: 1 | AR96: 1 | AS96: 1 | AT96: 1 | AU96: 1 | AV96: 1 | AW96: 1 | AX96: 1 | AY96: 1 | AZ96: 1 | BA96: 1 | BB96: 1 | BC96: 1 | BD96: 1 | BE96: 1 | BF96: 1 | BG96: 1 | BH96: 1 | BI96: 1 | BJ96: 1 | BK96: 1 | BL96: 1 | BM96: 1 | BN96: 1 | BO96: =RANK(BO99,$C99:$CN99,0) -> 1 | BP96: 1 | BQ96: 1 | BR96: 1 | BS96: 1 | BT96: 1 | BU96: 1 | BV96: 1 | BW96: 1 | BX96: 1 | BY96: 1 | BZ96: 1 | CA96: 1 | CB96: 1 | CC96: 1 | CD96: 1 | CE96: 1 | CF96: 1 | CG96: 1 | CH96: 1 | CI96: 1 | CJ96: 1 | CK96: 1 | CL96: 1 | CM96: 1 | CN96: 1
B97: Time | CP97: =IF(Randomizer!CP101=0,"",Randomizer!CP101) ->  | CQ97: =IF(CP97=0, "", Randomizer!CQ101) ->  | CT97: =A96 -> 15
B98: Penalties
B99: Score | C99: =Randomizer!C104 -> 0 | D99: =Randomizer!D104 -> 0 | E99: =Randomizer!E104 -> 0 | F99: =Randomizer!F104 -> 0 | G99: =Randomizer!G104 -> 0 | H99: =Randomizer!H104 -> 0 | I99: =Randomizer!I104 -> 0 | J99: =Randomizer!J104 -> 0 | K99: =Randomizer!K104 -> 0 | L99: =Randomizer!L104 -> 0 | M99: =Randomizer!M104 -> 0 | N99: =Randomizer!N104 -> 0 | O99: =Randomizer!O104 -> 0 | P99: =Randomizer!P104 -> 0 | Q99: =Randomizer!Q104 -> 0 | R99: =Randomizer!R104 -> 0 | S99: =Randomizer!S104 -> 0 | T99: =Randomizer!T104 -> 0 | U99: =Randomizer!U104 -> 0 | V99: =Randomizer!V104 -> 0 | W99: =Randomizer!W104 -> 0 | X99: =Randomizer!X104 -> 0 | Y99: =Randomizer!Y104 -> 0 | Z99: =Randomizer!Z104 -> 0 | AA99: =Randomizer!AA104 -> 0 | AB99: =Randomizer!AB104 -> 0 | AC99: =Randomizer!AC104 -> 0 | AD99: =Randomizer!AD104 -> 0 | AE99: =Randomizer!AE104 -> 0 | AF99: =Randomizer!AF104 -> 0 | AG99: =Randomizer!AG104 -> 0 | AH99: =Randomizer!AH104 -> 0 | AI99: =Randomizer!AI104 -> 0 | AJ99: =Randomizer!AJ104 -> 0 | AK99: =Randomizer!AK104 -> 0 | AL99: =Randomizer!AL104 -> 0 | AM99: =Randomizer!AM104 -> 0 | AN99: =Randomizer!AN104 -> 0 | AO99: =Randomizer!AO104 -> 0 | AP99: =Randomizer!AP104 -> 0 | AQ99: =Randomizer!AQ104 -> 0 | AR99: =Randomizer!AR104 -> 0 | AS99: =Randomizer!AS104 -> 0 | AT99: =Randomizer!AT104 -> 0 | AU99: =Randomizer!AU104 -> 0 | AV99: =Randomizer!AV104 -> 0 | AW99: =Randomizer!AW104 -> 0 | AX99: =Randomizer!AX104 -> 0 | AY99: =Randomizer!AY104 -> 0 | AZ99: =Randomizer!AZ104 -> 0 | BA99: =Randomizer!BA104 -> 0 | BB99: =Randomizer!BB104 -> 0 | BC99: =Randomizer!BC104 -> 0 | BD99: =Randomizer!BD104 -> 0 | BE99: =Randomizer!BE104 -> 0 | BF99: =Randomizer!BF104 -> 0 | BG99: =Randomizer!BG104 -> 0 | BH99: =Randomizer!BH104 -> 0 | BI99: =Randomizer!BI104 -> 0 | BJ99: =Randomizer!BJ104 -> 0 | BK99: =Randomizer!BK104 -> 0 | BL99: =Randomizer!BL104 -> 0 | BM99: =Randomizer!BM104 -> 0 | BN99: =Randomizer!BN104 -> 0 | BO99: =Randomizer!BO104 -> 0 | BP99: =Randomizer!BP104 -> 0 | BQ99: =Randomizer!BQ104 -> 0 | BR99: =Randomizer!BR104 -> 0 | BS99: =Randomizer!BS104 -> 0 | BT99: =Randomizer!BT104 -> 0 | BU99: =Randomizer!BU104 -> 0 | BV99: =Randomizer!BV104 -> 0 | BW99: =Randomizer!BW104 -> 0 | BX99: =Randomizer!BX104 -> 0 | BY99: =Randomizer!BY104 -> 0 | BZ99: =Randomizer!BZ104 -> 0 | CA99: =Randomizer!CA104 -> 0 | CB99: =Randomizer!CB104 -> 0 | CC99: =Randomizer!CC104 -> 0 | CD99: =Randomizer!CD104 -> 0 | CE99: =Randomizer!CE104 -> 0 | CF99: =Randomizer!CF104 -> 0 | CG99: =Randomizer!CG104 -> 0 | CH99: =Randomizer!CH104 -> 0 | CI99: =Randomizer!CI104 -> 0 | CJ99: =Randomizer!CJ104 -> 0 | CK99: =Randomizer!CK104 -> 0 | CL99: =Randomizer!CL104 -> 0 | CM99: =Randomizer!CM104 -> 0 | CN99: =Randomizer!CN104 -> 0
B100: Name | C100: =C95 -> Bruce | D100: phil | E100: Aleix | F100: Mark R | G100: Les | H100: Mark T | I100: Paul | J100: mike | K100: Ian | L100: Dave | M100: 0 | N100: 0 | O100: 0 | P100: 0 | Q100: 0 | R100: 0 | S100: 0 | T100: 0 | U100: 0 | V100: 0 | W100: 0 | X100: 0 | Y100: 0 | Z100: 0 | AA100: 0 | AB100: 0 | AC100: 0 | AD100: 0 | AE100: 0 | AF100: 0 | AG100: 0 | AH100: 0 | AI100: =AI95 -> 0 | AJ100: 0 | AK100: 0 | AL100: 0 | AM100: 0 | AN100: 0 | AO100: 0 | AP100: 0 | AQ100: 0 | AR100: 0 | AS100: 0 | AT100: 0 | AU100: 0 | AV100: 0 | AW100: 0 | AX100: 0 | AY100: 0 | AZ100: 0 | BA100: 0 | BB100: 0 | BC100: 0 | BD100: 0 | BE100: 0 | BF100: 0 | BG100: 0 | BH100: 0 | BI100: 0 | BJ100: 0 | BK100: 0 | BL100: 0 | BM100: 0 | BN100: 0 | BO100: =BO95 -> 0 | BP100: 0 | BQ100: 0 | BR100: 0 | BS100: 0 | BT100: 0 | BU100: 0 | BV100: 0 | BW100: 0 | BX100: 0 | BY100: 0 | BZ100: 0 | CA100: 0 | CB100: 0 | CC100: 0 | CD100: 0 | CE100: 0 | CF100: 0 | CG100: 0 | CH100: 0 | CI100: 0 | CJ100: 0 | CK100: 0 | CL100: 0 | CM100: 0 | CN100: 0 | CT100: =A99 -> 0
A101: 16 | B101: Round rank | C101: =RANK(C104,$C104:$CN104,0) -> 1 | D101: 1 | E101: 1 | F101: 1 | G101: 1 | H101: 1 | I101: 1 | J101: 1 | K101: 1 | L101: 1 | M101: 1 | N101: 1 | O101: 1 | P101: 1 | Q101: 1 | R101: 1 | S101: 1 | T101: 1 | U101: 1 | V101: 1 | W101: 1 | X101: 1 | Y101: 1 | Z101: 1 | AA101: 1 | AB101: 1 | AC101: 1 | AD101: 1 | AE101: 1 | AF101: 1 | AG101: 1 | AH101: 1 | AI101: =RANK(AI104,$C104:$CN104,0) -> 1 | AJ101: 1 | AK101: 1 | AL101: 1 | AM101: 1 | AN101: 1 | AO101: 1 | AP101: 1 | AQ101: 1 | AR101: 1 | AS101: 1 | AT101: 1 | AU101: 1 | AV101: 1 | AW101: 1 | AX101: 1 | AY101: 1 | AZ101: 1 | BA101: 1 | BB101: 1 | BC101: 1 | BD101: 1 | BE101: 1 | BF101: 1 | BG101: 1 | BH101: 1 | BI101: 1 | BJ101: 1 | BK101: 1 | BL101: 1 | BM101: 1 | BN101: 1 | BO101: =RANK(BO104,$C104:$CN104,0) -> 1 | BP101: 1 | BQ101: 1 | BR101: 1 | BS101: 1 | BT101: 1 | BU101: 1 | BV101: 1 | BW101: 1 | BX101: 1 | BY101: 1 | BZ101: 1 | CA101: 1 | CB101: 1 | CC101: 1 | CD101: 1 | CE101: 1 | CF101: 1 | CG101: 1 | CH101: 1 | CI101: 1 | CJ101: 1 | CK101: 1 | CL101: 1 | CM101: 1 | CN101: 1
B102: Time | CP102: =IF(Randomizer!CP107=0,"",Randomizer!CP107) ->  | CQ102: =IF(CP102=0, "", Randomizer!CQ107) ->  | CT102: =A101 -> 16
B103: Penalties
B104: Score | C104: =Randomizer!C110 -> 0 | D104: =Randomizer!D110 -> 0 | E104: =Randomizer!E110 -> 0 | F104: =Randomizer!F110 -> 0 | G104: =Randomizer!G110 -> 0 | H104: =Randomizer!H110 -> 0 | I104: =Randomizer!I110 -> 0 | J104: =Randomizer!J110 -> 0 | K104: =Randomizer!K110 -> 0 | L104: =Randomizer!L110 -> 0 | M104: =Randomizer!M110 -> 0 | N104: =Randomizer!N110 -> 0 | O104: =Randomizer!O110 -> 0 | P104: =Randomizer!P110 -> 0 | Q104: =Randomizer!Q110 -> 0 | R104: =Randomizer!R110 -> 0 | S104: =Randomizer!S110 -> 0 | T104: =Randomizer!T110 -> 0 | U104: =Randomizer!U110 -> 0 | V104: =Randomizer!V110 -> 0 | W104: =Randomizer!W110 -> 0 | X104: =Randomizer!X110 -> 0 | Y104: =Randomizer!Y110 -> 0 | Z104: =Randomizer!Z110 -> 0 | AA104: =Randomizer!AA110 -> 0 | AB104: =Randomizer!AB110 -> 0 | AC104: =Randomizer!AC110 -> 0 | AD104: =Randomizer!AD110 -> 0 | AE104: =Randomizer!AE110 -> 0 | AF104: =Randomizer!AF110 -> 0 | AG104: =Randomizer!AG110 -> 0 | AH104: =Randomizer!AH110 -> 0 | AI104: =Randomizer!AI110 -> 0 | AJ104: =Randomizer!AJ110 -> 0 | AK104: =Randomizer!AK110 -> 0 | AL104: =Randomizer!AL110 -> 0 | AM104: =Randomizer!AM110 -> 0 | AN104: =Randomizer!AN110 -> 0 | AO104: =Randomizer!AO110 -> 0 | AP104: =Randomizer!AP110 -> 0 | AQ104: =Randomizer!AQ110 -> 0 | AR104: =Randomizer!AR110 -> 0 | AS104: =Randomizer!AS110 -> 0 | AT104: =Randomizer!AT110 -> 0 | AU104: =Randomizer!AU110 -> 0 | AV104: =Randomizer!AV110 -> 0 | AW104: =Randomizer!AW110 -> 0 | AX104: =Randomizer!AX110 -> 0 | AY104: =Randomizer!AY110 -> 0 | AZ104: =Randomizer!AZ110 -> 0 | BA104: =Randomizer!BA110 -> 0 | BB104: =Randomizer!BB110 -> 0 | BC104: =Randomizer!BC110 -> 0 | BD104: =Randomizer!BD110 -> 0 | BE104: =Randomizer!BE110 -> 0 | BF104: =Randomizer!BF110 -> 0 | BG104: =Randomizer!BG110 -> 0 | BH104: =Randomizer!BH110 -> 0 | BI104: =Randomizer!BI110 -> 0 | BJ104: =Randomizer!BJ110 -> 0 | BK104: =Randomizer!BK110 -> 0 | BL104: =Randomizer!BL110 -> 0 | BM104: =Randomizer!BM110 -> 0 | BN104: =Randomizer!BN110 -> 0 | BO104: =Randomizer!BO110 -> 0 | BP104: =Randomizer!BP110 -> 0 | BQ104: =Randomizer!BQ110 -> 0 | BR104: =Randomizer!BR110 -> 0 | BS104: =Randomizer!BS110 -> 0 | BT104: =Randomizer!BT110 -> 0 | BU104: =Randomizer!BU110 -> 0 | BV104: =Randomizer!BV110 -> 0 | BW104: =Randomizer!BW110 -> 0 | BX104: =Randomizer!BX110 -> 0 | BY104: =Randomizer!BY110 -> 0 | BZ104: =Randomizer!BZ110 -> 0 | CA104: =Randomizer!CA110 -> 0 | CB104: =Randomizer!CB110 -> 0 | CC104: =Randomizer!CC110 -> 0 | CD104: =Randomizer!CD110 -> 0 | CE104: =Randomizer!CE110 -> 0 | CF104: =Randomizer!CF110 -> 0 | CG104: =Randomizer!CG110 -> 0 | CH104: =Randomizer!CH110 -> 0 | CI104: =Randomizer!CI110 -> 0 | CJ104: =Randomizer!CJ110 -> 0 | CK104: =Randomizer!CK110 -> 0 | CL104: =Randomizer!CL110 -> 0 | CM104: =Randomizer!CM110 -> 0 | CN104: =Randomizer!CN110 -> 0
B105: Name | C105: =C100 -> Bruce | D105: phil | E105: Aleix | F105: Mark R | G105: Les | H105: Mark T | I105: Paul | J105: mike | K105: Ian | L105: Dave | M105: 0 | N105: 0 | O105: 0 | P105: 0 | Q105: 0 | R105: 0 | S105: 0 | T105: 0 | U105: 0 | V105: 0 | W105: 0 | X105: 0 | Y105: 0 | Z105: 0 | AA105: 0 | AB105: 0 | AC105: 0 | AD105: 0 | AE105: 0 | AF105: 0 | AG105: 0 | AH105: 0 | AI105: =AI100 -> 0 | AJ105: 0 | AK105: 0 | AL105: 0 | AM105: 0 | AN105: 0 | AO105: 0 | AP105: 0 | AQ105: 0 | AR105: 0 | AS105: 0 | AT105: 0 | AU105: 0 | AV105: 0 | AW105: 0 | AX105: 0 | AY105: 0 | AZ105: 0 | BA105: 0 | BB105: 0 | BC105: 0 | BD105: 0 | BE105: 0 | BF105: 0 | BG105: 0 | BH105: 0 | BI105: 0 | BJ105: 0 | BK105: 0 | BL105: 0 | BM105: 0 | BN105: 0 | BO105: =BO100 -> 0 | BP105: 0 | BQ105: 0 | BR105: 0 | BS105: 0 | BT105: 0 | BU105: 0 | BV105: 0 | BW105: 0 | BX105: 0 | BY105: 0 | BZ105: 0 | CA105: 0 | CB105: 0 | CC105: 0 | CD105: 0 | CE105: 0 | CF105: 0 | CG105: 0 | CH105: 0 | CI105: 0 | CJ105: 0 | CK105: 0 | CL105: 0 | CM105: 0 | CN105: 0 | CT105: =A104 -> 0
A106: 17 | B106: Round rank | C106: =RANK(C109,$C109:$CN109,0) -> 1 | D106: 1 | E106: 1 | F106: 1 | G106: 1 | H106: 1 | I106: 1 | J106: 1 | K106: 1 | L106: 1 | M106: 1 | N106: 1 | O106: 1 | P106: 1 | Q106: 1 | R106: 1 | S106: 1 | T106: 1 | U106: 1 | V106: 1 | W106: 1 | X106: 1 | Y106: 1 | Z106: 1 | AA106: 1 | AB106: 1 | AC106: 1 | AD106: 1 | AE106: 1 | AF106: 1 | AG106: 1 | AH106: 1 | AI106: =RANK(AI109,$C109:$CN109,0) -> 1 | AJ106: 1 | AK106: 1 | AL106: 1 | AM106: 1 | AN106: 1 | AO106: 1 | AP106: 1 | AQ106: 1 | AR106: 1 | AS106: 1 | AT106: 1 | AU106: 1 | AV106: 1 | AW106: 1 | AX106: 1 | AY106: 1 | AZ106: 1 | BA106: 1 | BB106: 1 | BC106: 1 | BD106: 1 | BE106: 1 | BF106: 1 | BG106: 1 | BH106: 1 | BI106: 1 | BJ106: 1 | BK106: 1 | BL106: 1 | BM106: 1 | BN106: 1 | BO106: =RANK(BO109,$C109:$CN109,0) -> 1 | BP106: 1 | BQ106: 1 | BR106: 1 | BS106: 1 | BT106: 1 | BU106: 1 | BV106: 1 | BW106: 1 | BX106: 1 | BY106: 1 | BZ106: 1 | CA106: 1 | CB106: 1 | CC106: 1 | CD106: 1 | CE106: 1 | CF106: 1 | CG106: 1 | CH106: 1 | CI106: 1 | CJ106: 1 | CK106: 1 | CL106: 1 | CM106: 1 | CN106: 1
B107: Time | CP107: =IF(Randomizer!CP113=0,"",Randomizer!CP113) ->  | CQ107: =IF(CP107=0, "", Randomizer!CQ113) ->  | CT107: =A106 -> 17
B108: Penalties
B109: Score | C109: =Randomizer!C116 -> 0 | D109: =Randomizer!D116 -> 0 | E109: =Randomizer!E116 -> 0 | F109: =Randomizer!F116 -> 0 | G109: =Randomizer!G116 -> 0 | H109: =Randomizer!H116 -> 0 | I109: =Randomizer!I116 -> 0 | J109: =Randomizer!J116 -> 0 | K109: =Randomizer!K116 -> 0 | L109: =Randomizer!L116 -> 0 | M109: =Randomizer!M116 -> 0 | N109: =Randomizer!N116 -> 0 | O109: =Randomizer!O116 -> 0 | P109: =Randomizer!P116 -> 0 | Q109: =Randomizer!Q116 -> 0 | R109: =Randomizer!R116 -> 0 | S109: =Randomizer!S116 -> 0 | T109: =Randomizer!T116 -> 0 | U109: =Randomizer!U116 -> 0 | V109: =Randomizer!V116 -> 0 | W109: =Randomizer!W116 -> 0 | X109: =Randomizer!X116 -> 0 | Y109: =Randomizer!Y116 -> 0 | Z109: =Randomizer!Z116 -> 0 | AA109: =Randomizer!AA116 -> 0 | AB109: =Randomizer!AB116 -> 0 | AC109: =Randomizer!AC116 -> 0 | AD109: =Randomizer!AD116 -> 0 | AE109: =Randomizer!AE116 -> 0 | AF109: =Randomizer!AF116 -> 0 | AG109: =Randomizer!AG116 -> 0 | AH109: =Randomizer!AH116 -> 0 | AI109: =Randomizer!AI116 -> 0 | AJ109: =Randomizer!AJ116 -> 0 | AK109: =Randomizer!AK116 -> 0 | AL109: =Randomizer!AL116 -> 0 | AM109: =Randomizer!AM116 -> 0 | AN109: =Randomizer!AN116 -> 0 | AO109: =Randomizer!AO116 -> 0 | AP109: =Randomizer!AP116 -> 0 | AQ109: =Randomizer!AQ116 -> 0 | AR109: =Randomizer!AR116 -> 0 | AS109: =Randomizer!AS116 -> 0 | AT109: =Randomizer!AT116 -> 0 | AU109: =Randomizer!AU116 -> 0 | AV109: =Randomizer!AV116 -> 0 | AW109: =Randomizer!AW116 -> 0 | AX109: =Randomizer!AX116 -> 0 | AY109: =Randomizer!AY116 -> 0 | AZ109: =Randomizer!AZ116 -> 0 | BA109: =Randomizer!BA116 -> 0 | BB109: =Randomizer!BB116 -> 0 | BC109: =Randomizer!BC116 -> 0 | BD109: =Randomizer!BD116 -> 0 | BE109: =Randomizer!BE116 -> 0 | BF109: =Randomizer!BF116 -> 0 | BG109: =Randomizer!BG116 -> 0 | BH109: =Randomizer!BH116 -> 0 | BI109: =Randomizer!BI116 -> 0 | BJ109: =Randomizer!BJ116 -> 0 | BK109: =Randomizer!BK116 -> 0 | BL109: =Randomizer!BL116 -> 0 | BM109: =Randomizer!BM116 -> 0 | BN109: =Randomizer!BN116 -> 0 | BO109: =Randomizer!BO116 -> 0 | BP109: =Randomizer!BP116 -> 0 | BQ109: =Randomizer!BQ116 -> 0 | BR109: =Randomizer!BR116 -> 0 | BS109: =Randomizer!BS116 -> 0 | BT109: =Randomizer!BT116 -> 0 | BU109: =Randomizer!BU116 -> 0 | BV109: =Randomizer!BV116 -> 0 | BW109: =Randomizer!BW116 -> 0 | BX109: =Randomizer!BX116 -> 0 | BY109: =Randomizer!BY116 -> 0 | BZ109: =Randomizer!BZ116 -> 0 | CA109: =Randomizer!CA116 -> 0 | CB109: =Randomizer!CB116 -> 0 | CC109: =Randomizer!CC116 -> 0 | CD109: =Randomizer!CD116 -> 0 | CE109: =Randomizer!CE116 -> 0 | CF109: =Randomizer!CF116 -> 0 | CG109: =Randomizer!CG116 -> 0 | CH109: =Randomizer!CH116 -> 0 | CI109: =Randomizer!CI116 -> 0 | CJ109: =Randomizer!CJ116 -> 0 | CK109: =Randomizer!CK116 -> 0 | CL109: =Randomizer!CL116 -> 0 | CM109: =Randomizer!CM116 -> 0 | CN109: =Randomizer!CN116 -> 0
B110: Name | C110: =C105 -> Bruce | D110: phil | E110: Aleix | F110: Mark R | G110: Les | H110: Mark T | I110: Paul | J110: mike | K110: Ian | L110: Dave | M110: 0 | N110: 0 | O110: 0 | P110: 0 | Q110: 0 | R110: 0 | S110: 0 | T110: 0 | U110: 0 | V110: 0 | W110: 0 | X110: 0 | Y110: 0 | Z110: 0 | AA110: 0 | AB110: 0 | AC110: 0 | AD110: 0 | AE110: 0 | AF110: 0 | AG110: 0 | AH110: 0 | AI110: =AI105 -> 0 | AJ110: 0 | AK110: 0 | AL110: 0 | AM110: 0 | AN110: 0 | AO110: 0 | AP110: 0 | AQ110: 0 | AR110: 0 | AS110: 0 | AT110: 0 | AU110: 0 | AV110: 0 | AW110: 0 | AX110: 0 | AY110: 0 | AZ110: 0 | BA110: 0 | BB110: 0 | BC110: 0 | BD110: 0 | BE110: 0 | BF110: 0 | BG110: 0 | BH110: 0 | BI110: 0 | BJ110: 0 | BK110: 0 | BL110: 0 | BM110: 0 | BN110: 0 | BO110: =BO105 -> 0 | BP110: 0 | BQ110: 0 | BR110: 0 | BS110: 0 | BT110: 0 | BU110: 0 | BV110: 0 | BW110: 0 | BX110: 0 | BY110: 0 | BZ110: 0 | CA110: 0 | CB110: 0 | CC110: 0 | CD110: 0 | CE110: 0 | CF110: 0 | CG110: 0 | CH110: 0 | CI110: 0 | CJ110: 0 | CK110: 0 | CL110: 0 | CM110: 0 | CN110: 0 | CT110: =A109 -> 0
A111: 18 | B111: Round rank | C111: =RANK(C114,$C114:$CN114,0) -> 1 | D111: 1 | E111: 1 | F111: 1 | G111: 1 | H111: 1 | I111: 1 | J111: 1 | K111: 1 | L111: 1 | M111: 1 | N111: 1 | O111: 1 | P111: 1 | Q111: 1 | R111: 1 | S111: 1 | T111: 1 | U111: 1 | V111: 1 | W111: 1 | X111: 1 | Y111: 1 | Z111: 1 | AA111: 1 | AB111: 1 | AC111: 1 | AD111: 1 | AE111: 1 | AF111: 1 | AG111: 1 | AH111: 1 | AI111: =RANK(AI114,$C114:$CN114,0) -> 1 | AJ111: 1 | AK111: 1 | AL111: 1 | AM111: 1 | AN111: 1 | AO111: 1 | AP111: 1 | AQ111: 1 | AR111: 1 | AS111: 1 | AT111: 1 | AU111: 1 | AV111: 1 | AW111: 1 | AX111: 1 | AY111: 1 | AZ111: 1 | BA111: 1 | BB111: 1 | BC111: 1 | BD111: 1 | BE111: 1 | BF111: 1 | BG111: 1 | BH111: 1 | BI111: 1 | BJ111: 1 | BK111: 1 | BL111: 1 | BM111: 1 | BN111: 1 | BO111: =RANK(BO114,$C114:$CN114,0) -> 1 | BP111: 1 | BQ111: 1 | BR111: 1 | BS111: 1 | BT111: 1 | BU111: 1 | BV111: 1 | BW111: 1 | BX111: 1 | BY111: 1 | BZ111: 1 | CA111: 1 | CB111: 1 | CC111: 1 | CD111: 1 | CE111: 1 | CF111: 1 | CG111: 1 | CH111: 1 | CI111: 1 | CJ111: 1 | CK111: 1 | CL111: 1 | CM111: 1 | CN111: 1
B112: Time | CP112: =IF(Randomizer!CP119=0,"",Randomizer!CP119) ->  | CQ112: =IF(CP112=0, "", Randomizer!CQ119) ->  | CT112: =A111 -> 18
B113: Penalties
B114: Score | C114: =Randomizer!C122 -> 0 | D114: =Randomizer!D122 -> 0 | E114: =Randomizer!E122 -> 0 | F114: =Randomizer!F122 -> 0 | G114: =Randomizer!G122 -> 0 | H114: =Randomizer!H122 -> 0 | I114: =Randomizer!I122 -> 0 | J114: =Randomizer!J122 -> 0 | K114: =Randomizer!K122 -> 0 | L114: =Randomizer!L122 -> 0 | M114: =Randomizer!M122 -> 0 | N114: =Randomizer!N122 -> 0 | O114: =Randomizer!O122 -> 0 | P114: =Randomizer!P122 -> 0 | Q114: =Randomizer!Q122 -> 0 | R114: =Randomizer!R122 -> 0 | S114: =Randomizer!S122 -> 0 | T114: =Randomizer!T122 -> 0 | U114: =Randomizer!U122 -> 0 | V114: =Randomizer!V122 -> 0 | W114: =Randomizer!W122 -> 0 | X114: =Randomizer!X122 -> 0 | Y114: =Randomizer!Y122 -> 0 | Z114: =Randomizer!Z122 -> 0 | AA114: =Randomizer!AA122 -> 0 | AB114: =Randomizer!AB122 -> 0 | AC114: =Randomizer!AC122 -> 0 | AD114: =Randomizer!AD122 -> 0 | AE114: =Randomizer!AE122 -> 0 | AF114: =Randomizer!AF122 -> 0 | AG114: =Randomizer!AG122 -> 0 | AH114: =Randomizer!AH122 -> 0 | AI114: =Randomizer!AI122 -> 0 | AJ114: =Randomizer!AJ122 -> 0 | AK114: =Randomizer!AK122 -> 0 | AL114: =Randomizer!AL122 -> 0 | AM114: =Randomizer!AM122 -> 0 | AN114: =Randomizer!AN122 -> 0 | AO114: =Randomizer!AO122 -> 0 | AP114: =Randomizer!AP122 -> 0 | AQ114: =Randomizer!AQ122 -> 0 | AR114: =Randomizer!AR122 -> 0 | AS114: =Randomizer!AS122 -> 0 | AT114: =Randomizer!AT122 -> 0 | AU114: =Randomizer!AU122 -> 0 | AV114: =Randomizer!AV122 -> 0 | AW114: =Randomizer!AW122 -> 0 | AX114: =Randomizer!AX122 -> 0 | AY114: =Randomizer!AY122 -> 0 | AZ114: =Randomizer!AZ122 -> 0 | BA114: =Randomizer!BA122 -> 0 | BB114: =Randomizer!BB122 -> 0 | BC114: =Randomizer!BC122 -> 0 | BD114: =Randomizer!BD122 -> 0 | BE114: =Randomizer!BE122 -> 0 | BF114: =Randomizer!BF122 -> 0 | BG114: =Randomizer!BG122 -> 0 | BH114: =Randomizer!BH122 -> 0 | BI114: =Randomizer!BI122 -> 0 | BJ114: =Randomizer!BJ122 -> 0 | BK114: =Randomizer!BK122 -> 0 | BL114: =Randomizer!BL122 -> 0 | BM114: =Randomizer!BM122 -> 0 | BN114: =Randomizer!BN122 -> 0 | BO114: =Randomizer!BO122 -> 0 | BP114: =Randomizer!BP122 -> 0 | BQ114: =Randomizer!BQ122 -> 0 | BR114: =Randomizer!BR122 -> 0 | BS114: =Randomizer!BS122 -> 0 | BT114: =Randomizer!BT122 -> 0 | BU114: =Randomizer!BU122 -> 0 | BV114: =Randomizer!BV122 -> 0 | BW114: =Randomizer!BW122 -> 0 | BX114: =Randomizer!BX122 -> 0 | BY114: =Randomizer!BY122 -> 0 | BZ114: =Randomizer!BZ122 -> 0 | CA114: =Randomizer!CA122 -> 0 | CB114: =Randomizer!CB122 -> 0 | CC114: =Randomizer!CC122 -> 0 | CD114: =Randomizer!CD122 -> 0 | CE114: =Randomizer!CE122 -> 0 | CF114: =Randomizer!CF122 -> 0 | CG114: =Randomizer!CG122 -> 0 | CH114: =Randomizer!CH122 -> 0 | CI114: =Randomizer!CI122 -> 0 | CJ114: =Randomizer!CJ122 -> 0 | CK114: =Randomizer!CK122 -> 0 | CL114: =Randomizer!CL122 -> 0 | CM114: =Randomizer!CM122 -> 0 | CN114: =Randomizer!CN122 -> 0
B115: Name | C115: =C110 -> Bruce | D115: phil | E115: Aleix | F115: Mark R | G115: Les | H115: Mark T | I115: Paul | J115: mike | K115: Ian | L115: Dave | M115: 0 | N115: 0 | O115: 0 | P115: 0 | Q115: 0 | R115: 0 | S115: 0 | T115: 0 | U115: 0 | V115: 0 | W115: 0 | X115: 0 | Y115: 0 | Z115: 0 | AA115: 0 | AB115: 0 | AC115: 0 | AD115: 0 | AE115: 0 | AF115: 0 | AG115: 0 | AH115: 0 | AI115: =AI110 -> 0 | AJ115: 0 | AK115: 0 | AL115: 0 | AM115: 0 | AN115: 0 | AO115: 0 | AP115: 0 | AQ115: 0 | AR115: 0 | AS115: 0 | AT115: 0 | AU115: 0 | AV115: 0 | AW115: 0 | AX115: 0 | AY115: 0 | AZ115: 0 | BA115: 0 | BB115: 0 | BC115: 0 | BD115: 0 | BE115: 0 | BF115: 0 | BG115: 0 | BH115: 0 | BI115: 0 | BJ115: 0 | BK115: 0 | BL115: 0 | BM115: 0 | BN115: 0 | BO115: =BO110 -> 0 | BP115: 0 | BQ115: 0 | BR115: 0 | BS115: 0 | BT115: 0 | BU115: 0 | BV115: 0 | BW115: 0 | BX115: 0 | BY115: 0 | BZ115: 0 | CA115: 0 | CB115: 0 | CC115: 0 | CD115: 0 | CE115: 0 | CF115: 0 | CG115: 0 | CH115: 0 | CI115: 0 | CJ115: 0 | CK115: 0 | CL115: 0 | CM115: 0 | CN115: 0 | CT115: =A114 -> 0
A116: 19 | B116: Round rank | C116: =RANK(C119,$C119:$CN119,0) -> 1 | D116: 1 | E116: 1 | F116: 1 | G116: 1 | H116: 1 | I116: 1 | J116: 1 | K116: 1 | L116: 1 | M116: 1 | N116: 1 | O116: 1 | P116: 1 | Q116: 1 | R116: 1 | S116: 1 | T116: 1 | U116: 1 | V116: 1 | W116: 1 | X116: 1 | Y116: 1 | Z116: 1 | AA116: 1 | AB116: 1 | AC116: 1 | AD116: 1 | AE116: 1 | AF116: 1 | AG116: 1 | AH116: 1 | AI116: =RANK(AI119,$C119:$CN119,0) -> 1 | AJ116: 1 | AK116: 1 | AL116: 1 | AM116: 1 | AN116: 1 | AO116: 1 | AP116: 1 | AQ116: 1 | AR116: 1 | AS116: 1 | AT116: 1 | AU116: 1 | AV116: 1 | AW116: 1 | AX116: 1 | AY116: 1 | AZ116: 1 | BA116: 1 | BB116: 1 | BC116: 1 | BD116: 1 | BE116: 1 | BF116: 1 | BG116: 1 | BH116: 1 | BI116: 1 | BJ116: 1 | BK116: 1 | BL116: 1 | BM116: 1 | BN116: 1 | BO116: =RANK(BO119,$C119:$CN119,0) -> 1 | BP116: 1 | BQ116: 1 | BR116: 1 | BS116: 1 | BT116: 1 | BU116: 1 | BV116: 1 | BW116: 1 | BX116: 1 | BY116: 1 | BZ116: 1 | CA116: 1 | CB116: 1 | CC116: 1 | CD116: 1 | CE116: 1 | CF116: 1 | CG116: 1 | CH116: 1 | CI116: 1 | CJ116: 1 | CK116: 1 | CL116: 1 | CM116: 1 | CN116: 1
B117: Time | CP117: =IF(Randomizer!CP125=0,"",Randomizer!CP125) ->  | CQ117: =IF(CP117=0, "", Randomizer!CQ125) ->  | CT117: =A116 -> 19
B118: Penalties
B119: Score | C119: =Randomizer!C128 -> 0 | D119: =Randomizer!D128 -> 0 | E119: =Randomizer!E128 -> 0 | F119: =Randomizer!F128 -> 0 | G119: =Randomizer!G128 -> 0 | H119: =Randomizer!H128 -> 0 | I119: =Randomizer!I128 -> 0 | J119: =Randomizer!J128 -> 0 | K119: =Randomizer!K128 -> 0 | L119: =Randomizer!L128 -> 0 | M119: =Randomizer!M128 -> 0 | N119: =Randomizer!N128 -> 0 | O119: =Randomizer!O128 -> 0 | P119: =Randomizer!P128 -> 0 | Q119: =Randomizer!Q128 -> 0 | R119: =Randomizer!R128 -> 0 | S119: =Randomizer!S128 -> 0 | T119: =Randomizer!T128 -> 0 | U119: =Randomizer!U128 -> 0 | V119: =Randomizer!V128 -> 0 | W119: =Randomizer!W128 -> 0 | X119: =Randomizer!X128 -> 0 | Y119: =Randomizer!Y128 -> 0 | Z119: =Randomizer!Z128 -> 0 | AA119: =Randomizer!AA128 -> 0 | AB119: =Randomizer!AB128 -> 0 | AC119: =Randomizer!AC128 -> 0 | AD119: =Randomizer!AD128 -> 0 | AE119: =Randomizer!AE128 -> 0 | AF119: =Randomizer!AF128 -> 0 | AG119: =Randomizer!AG128 -> 0 | AH119: =Randomizer!AH128 -> 0 | AI119: =Randomizer!AI128 -> 0 | AJ119: =Randomizer!AJ128 -> 0 | AK119: =Randomizer!AK128 -> 0 | AL119: =Randomizer!AL128 -> 0 | AM119: =Randomizer!AM128 -> 0 | AN119: =Randomizer!AN128 -> 0 | AO119: =Randomizer!AO128 -> 0 | AP119: =Randomizer!AP128 -> 0 | AQ119: =Randomizer!AQ128 -> 0 | AR119: =Randomizer!AR128 -> 0 | AS119: =Randomizer!AS128 -> 0 | AT119: =Randomizer!AT128 -> 0 | AU119: =Randomizer!AU128 -> 0 | AV119: =Randomizer!AV128 -> 0 | AW119: =Randomizer!AW128 -> 0 | AX119: =Randomizer!AX128 -> 0 | AY119: =Randomizer!AY128 -> 0 | AZ119: =Randomizer!AZ128 -> 0 | BA119: =Randomizer!BA128 -> 0 | BB119: =Randomizer!BB128 -> 0 | BC119: =Randomizer!BC128 -> 0 | BD119: =Randomizer!BD128 -> 0 | BE119: =Randomizer!BE128 -> 0 | BF119: =Randomizer!BF128 -> 0 | BG119: =Randomizer!BG128 -> 0 | BH119: =Randomizer!BH128 -> 0 | BI119: =Randomizer!BI128 -> 0 | BJ119: =Randomizer!BJ128 -> 0 | BK119: =Randomizer!BK128 -> 0 | BL119: =Randomizer!BL128 -> 0 | BM119: =Randomizer!BM128 -> 0 | BN119: =Randomizer!BN128 -> 0 | BO119: =Randomizer!BO128 -> 0 | BP119: =Randomizer!BP128 -> 0 | BQ119: =Randomizer!BQ128 -> 0 | BR119: =Randomizer!BR128 -> 0 | BS119: =Randomizer!BS128 -> 0 | BT119: =Randomizer!BT128 -> 0 | BU119: =Randomizer!BU128 -> 0 | BV119: =Randomizer!BV128 -> 0 | BW119: =Randomizer!BW128 -> 0 | BX119: =Randomizer!BX128 -> 0 | BY119: =Randomizer!BY128 -> 0 | BZ119: =Randomizer!BZ128 -> 0 | CA119: =Randomizer!CA128 -> 0 | CB119: =Randomizer!CB128 -> 0 | CC119: =Randomizer!CC128 -> 0 | CD119: =Randomizer!CD128 -> 0 | CE119: =Randomizer!CE128 -> 0 | CF119: =Randomizer!CF128 -> 0 | CG119: =Randomizer!CG128 -> 0 | CH119: =Randomizer!CH128 -> 0 | CI119: =Randomizer!CI128 -> 0 | CJ119: =Randomizer!CJ128 -> 0 | CK119: =Randomizer!CK128 -> 0 | CL119: =Randomizer!CL128 -> 0 | CM119: =Randomizer!CM128 -> 0 | CN119: =Randomizer!CN128 -> 0
B120: Name | C120: =C115 -> Bruce | D120: phil | E120: Aleix | F120: Mark R | G120: Les | H120: Mark T | I120: Paul | J120: mike | K120: Ian | L120: Dave | M120: 0 | N120: 0 | O120: 0 | P120: 0 | Q120: 0 | R120: 0 | S120: 0 | T120: 0 | U120: 0 | V120: 0 | W120: 0 | X120: 0 | Y120: 0 | Z120: 0 | AA120: 0 | AB120: 0 | AC120: 0 | AD120: 0 | AE120: 0 | AF120: 0 | AG120: 0 | AH120: 0 | AI120: =AI115 -> 0 | AJ120: 0 | AK120: 0 | AL120: 0 | AM120: 0 | AN120: 0 | AO120: 0 | AP120: 0 | AQ120: 0 | AR120: 0 | AS120: 0 | AT120: 0 | AU120: 0 | AV120: 0 | AW120: 0 | AX120: 0 | AY120: 0 | AZ120: 0 | BA120: 0 | BB120: 0 | BC120: 0 | BD120: 0 | BE120: 0 | BF120: 0 | BG120: 0 | BH120: 0 | BI120: 0 | BJ120: 0 | BK120: 0 | BL120: 0 | BM120: 0 | BN120: 0 | BO120: =BO115 -> 0 | BP120: 0 | BQ120: 0 | BR120: 0 | BS120: 0 | BT120: 0 | BU120: 0 | BV120: 0 | BW120: 0 | BX120: 0 | BY120: 0 | BZ120: 0 | CA120: 0 | CB120: 0 | CC120: 0 | CD120: 0 | CE120: 0 | CF120: 0 | CG120: 0 | CH120: 0 | CI120: 0 | CJ120: 0 | CK120: 0 | CL120: 0 | CM120: 0 | CN120: 0 | CT120: =A119 -> 0
A121: 20 | B121: Round rank | C121: =RANK(C124,$C124:$CN124,0) -> 1 | D121: 1 | E121: 1 | F121: 1 | G121: 1 | H121: 1 | I121: 1 | J121: 1 | K121: 1 | L121: 1 | M121: 1 | N121: 1 | O121: 1 | P121: 1 | Q121: 1 | R121: 1 | S121: 1 | T121: 1 | U121: 1 | V121: 1 | W121: 1 | X121: 1 | Y121: 1 | Z121: 1 | AA121: 1 | AB121: 1 | AC121: 1 | AD121: 1 | AE121: 1 | AF121: 1 | AG121: 1 | AH121: 1 | AI121: =RANK(AI124,$C124:$CN124,0) -> 1 | AJ121: 1 | AK121: 1 | AL121: 1 | AM121: 1 | AN121: 1 | AO121: 1 | AP121: 1 | AQ121: 1 | AR121: 1 | AS121: 1 | AT121: 1 | AU121: 1 | AV121: 1 | AW121: 1 | AX121: 1 | AY121: 1 | AZ121: 1 | BA121: 1 | BB121: 1 | BC121: 1 | BD121: 1 | BE121: 1 | BF121: 1 | BG121: 1 | BH121: 1 | BI121: 1 | BJ121: 1 | BK121: 1 | BL121: 1 | BM121: 1 | BN121: 1 | BO121: =RANK(BO124,$C124:$CN124,0) -> 1 | BP121: 1 | BQ121: 1 | BR121: 1 | BS121: 1 | BT121: 1 | BU121: 1 | BV121: 1 | BW121: 1 | BX121: 1 | BY121: 1 | BZ121: 1 | CA121: 1 | CB121: 1 | CC121: 1 | CD121: 1 | CE121: 1 | CF121: 1 | CG121: 1 | CH121: 1 | CI121: 1 | CJ121: 1 | CK121: 1 | CL121: 1 | CM121: 1 | CN121: 1
B122: Time | CP122: =IF(Randomizer!CP131=0,"",Randomizer!CP131) ->  | CQ122: =IF(CP122=0, "", Randomizer!CQ131) ->  | CT122: =A121 -> 20
B123: Penalties
B124: Score | C124: =Randomizer!C134 -> 0 | D124: =Randomizer!D134 -> 0 | E124: =Randomizer!E134 -> 0 | F124: =Randomizer!F134 -> 0 | G124: =Randomizer!G134 -> 0 | H124: =Randomizer!H134 -> 0 | I124: =Randomizer!I134 -> 0 | J124: =Randomizer!J134 -> 0 | K124: =Randomizer!K134 -> 0 | L124: =Randomizer!L134 -> 0 | M124: =Randomizer!M134 -> 0 | N124: =Randomizer!N134 -> 0 | O124: =Randomizer!O134 -> 0 | P124: =Randomizer!P134 -> 0 | Q124: =Randomizer!Q134 -> 0 | R124: =Randomizer!R134 -> 0 | S124: =Randomizer!S134 -> 0 | T124: =Randomizer!T134 -> 0 | U124: =Randomizer!U134 -> 0 | V124: =Randomizer!V134 -> 0 | W124: =Randomizer!W134 -> 0 | X124: =Randomizer!X134 -> 0 | Y124: =Randomizer!Y134 -> 0 | Z124: =Randomizer!Z134 -> 0 | AA124: =Randomizer!AA134 -> 0 | AB124: =Randomizer!AB134 -> 0 | AC124: =Randomizer!AC134 -> 0 | AD124: =Randomizer!AD134 -> 0 | AE124: =Randomizer!AE134 -> 0 | AF124: =Randomizer!AF134 -> 0 | AG124: =Randomizer!AG134 -> 0 | AH124: =Randomizer!AH134 -> 0 | AI124: =Randomizer!AI134 -> 0 | AJ124: =Randomizer!AJ134 -> 0 | AK124: =Randomizer!AK134 -> 0 | AL124: =Randomizer!AL134 -> 0 | AM124: =Randomizer!AM134 -> 0 | AN124: =Randomizer!AN134 -> 0 | AO124: =Randomizer!AO134 -> 0 | AP124: =Randomizer!AP134 -> 0 | AQ124: =Randomizer!AQ134 -> 0 | AR124: =Randomizer!AR134 -> 0 | AS124: =Randomizer!AS134 -> 0 | AT124: =Randomizer!AT134 -> 0 | AU124: =Randomizer!AU134 -> 0 | AV124: =Randomizer!AV134 -> 0 | AW124: =Randomizer!AW134 -> 0 | AX124: =Randomizer!AX134 -> 0 | AY124: =Randomizer!AY134 -> 0 | AZ124: =Randomizer!AZ134 -> 0 | BA124: =Randomizer!BA134 -> 0 | BB124: =Randomizer!BB134 -> 0 | BC124: =Randomizer!BC134 -> 0 | BD124: =Randomizer!BD134 -> 0 | BE124: =Randomizer!BE134 -> 0 | BF124: =Randomizer!BF134 -> 0 | BG124: =Randomizer!BG134 -> 0 | BH124: =Randomizer!BH134 -> 0 | BI124: =Randomizer!BI134 -> 0 | BJ124: =Randomizer!BJ134 -> 0 | BK124: =Randomizer!BK134 -> 0 | BL124: =Randomizer!BL134 -> 0 | BM124: =Randomizer!BM134 -> 0 | BN124: =Randomizer!BN134 -> 0 | BO124: =Randomizer!BO134 -> 0 | BP124: =Randomizer!BP134 -> 0 | BQ124: =Randomizer!BQ134 -> 0 | BR124: =Randomizer!BR134 -> 0 | BS124: =Randomizer!BS134 -> 0 | BT124: =Randomizer!BT134 -> 0 | BU124: =Randomizer!BU134 -> 0 | BV124: =Randomizer!BV134 -> 0 | BW124: =Randomizer!BW134 -> 0 | BX124: =Randomizer!BX134 -> 0 | BY124: =Randomizer!BY134 -> 0 | BZ124: =Randomizer!BZ134 -> 0 | CA124: =Randomizer!CA134 -> 0 | CB124: =Randomizer!CB134 -> 0 | CC124: =Randomizer!CC134 -> 0 | CD124: =Randomizer!CD134 -> 0 | CE124: =Randomizer!CE134 -> 0 | CF124: =Randomizer!CF134 -> 0 | CG124: =Randomizer!CG134 -> 0 | CH124: =Randomizer!CH134 -> 0 | CI124: =Randomizer!CI134 -> 0 | CJ124: =Randomizer!CJ134 -> 0 | CK124: =Randomizer!CK134 -> 0 | CL124: =Randomizer!CL134 -> 0 | CM124: =Randomizer!CM134 -> 0 | CN124: =Randomizer!CN134 -> 0
B125: Name | C125: =C120 -> Bruce | D125: phil | E125: Aleix | F125: Mark R | G125: Les | H125: Mark T | I125: Paul | J125: mike | K125: Ian | L125: Dave | M125: 0 | N125: 0 | O125: 0 | P125: 0 | Q125: 0 | R125: 0 | S125: 0 | T125: 0 | U125: 0 | V125: 0 | W125: 0 | X125: 0 | Y125: 0 | Z125: 0 | AA125: 0 | AB125: 0 | AC125: 0 | AD125: 0 | AE125: 0 | AF125: 0 | AG125: 0 | AH125: 0 | AI125: =AI120 -> 0 | AJ125: 0 | AK125: 0 | AL125: 0 | AM125: 0 | AN125: 0 | AO125: 0 | AP125: 0 | AQ125: 0 | AR125: 0 | AS125: 0 | AT125: 0 | AU125: 0 | AV125: 0 | AW125: 0 | AX125: 0 | AY125: 0 | AZ125: 0 | BA125: 0 | BB125: 0 | BC125: 0 | BD125: 0 | BE125: 0 | BF125: 0 | BG125: 0 | BH125: 0 | BI125: 0 | BJ125: 0 | BK125: 0 | BL125: 0 | BM125: 0 | BN125: 0 | BO125: =BO120 -> 0 | BP125: 0 | BQ125: 0 | BR125: 0 | BS125: 0 | BT125: 0 | BU125: 0 | BV125: 0 | BW125: 0 | BX125: 0 | BY125: 0 | BZ125: 0 | CA125: 0 | CB125: 0 | CC125: 0 | CD125: 0 | CE125: 0 | CF125: 0 | CG125: 0 | CH125: 0 | CI125: 0 | CJ125: 0 | CK125: 0 | CL125: 0 | CM125: 0 | CN125: 0 | CT125: =A124 -> 0
A126: 21 | B126: Round rank | C126: =RANK(C129,$C129:$CN129,0) -> 1 | D126: 1 | E126: 1 | F126: 1 | G126: 1 | H126: 1 | I126: 1 | J126: 1 | K126: 1 | L126: 1 | M126: 1 | N126: 1 | O126: 1 | P126: 1 | Q126: 1 | R126: 1 | S126: 1 | T126: 1 | U126: 1 | V126: 1 | W126: 1 | X126: 1 | Y126: 1 | Z126: 1 | AA126: 1 | AB126: 1 | AC126: 1 | AD126: 1 | AE126: 1 | AF126: 1 | AG126: 1 | AH126: 1 | AI126: =RANK(AI129,$C129:$CN129,0) -> 1 | AJ126: 1 | AK126: 1 | AL126: 1 | AM126: 1 | AN126: 1 | AO126: 1 | AP126: 1 | AQ126: 1 | AR126: 1 | AS126: 1 | AT126: 1 | AU126: 1 | AV126: 1 | AW126: 1 | AX126: 1 | AY126: 1 | AZ126: 1 | BA126: 1 | BB126: 1 | BC126: 1 | BD126: 1 | BE126: 1 | BF126: 1 | BG126: 1 | BH126: 1 | BI126: 1 | BJ126: 1 | BK126: 1 | BL126: 1 | BM126: 1 | BN126: 1 | BO126: =RANK(BO129,$C129:$CN129,0) -> 1 | BP126: 1 | BQ126: 1 | BR126: 1 | BS126: 1 | BT126: 1 | BU126: 1 | BV126: 1 | BW126: 1 | BX126: 1 | BY126: 1 | BZ126: 1 | CA126: 1 | CB126: 1 | CC126: 1 | CD126: 1 | CE126: 1 | CF126: 1 | CG126: 1 | CH126: 1 | CI126: 1 | CJ126: 1 | CK126: 1 | CL126: 1 | CM126: 1 | CN126: 1
B127: Time | CP127: =IF(Randomizer!CP114=0,"",Randomizer!CP114) ->  | CQ127: =IF(CP127=0, "", Randomizer!CQ137) ->  | CT127: =A126 -> 21
B128: Penalties
B129: Score | C129: =Randomizer!C140 -> 0 | D129: =Randomizer!D140 -> 0 | E129: =Randomizer!E140 -> 0 | F129: =Randomizer!F140 -> 0 | G129: =Randomizer!G140 -> 0 | H129: =Randomizer!H140 -> 0 | I129: =Randomizer!I140 -> 0 | J129: =Randomizer!J140 -> 0 | K129: =Randomizer!K140 -> 0 | L129: =Randomizer!L140 -> 0 | M129: =Randomizer!M140 -> 0 | N129: =Randomizer!N140 -> 0 | O129: =Randomizer!O140 -> 0 | P129: =Randomizer!P140 -> 0 | Q129: =Randomizer!Q140 -> 0 | R129: =Randomizer!R140 -> 0 | S129: =Randomizer!S140 -> 0 | T129: =Randomizer!T140 -> 0 | U129: =Randomizer!U140 -> 0 | V129: =Randomizer!V140 -> 0 | W129: =Randomizer!W140 -> 0 | X129: =Randomizer!X140 -> 0 | Y129: =Randomizer!Y140 -> 0 | Z129: =Randomizer!Z140 -> 0 | AA129: =Randomizer!AA140 -> 0 | AB129: =Randomizer!AB140 -> 0 | AC129: =Randomizer!AC140 -> 0 | AD129: =Randomizer!AD140 -> 0 | AE129: =Randomizer!AE140 -> 0 | AF129: =Randomizer!AF140 -> 0 | AG129: =Randomizer!AG140 -> 0 | AH129: =Randomizer!AH140 -> 0 | AI129: =Randomizer!AI140 -> 0 | AJ129: =Randomizer!AJ140 -> 0 | AK129: =Randomizer!AK140 -> 0 | AL129: =Randomizer!AL140 -> 0 | AM129: =Randomizer!AM140 -> 0 | AN129: =Randomizer!AN140 -> 0 | AO129: =Randomizer!AO140 -> 0 | AP129: =Randomizer!AP140 -> 0 | AQ129: =Randomizer!AQ140 -> 0 | AR129: =Randomizer!AR140 -> 0 | AS129: =Randomizer!AS140 -> 0 | AT129: =Randomizer!AT140 -> 0 | AU129: =Randomizer!AU140 -> 0 | AV129: =Randomizer!AV140 -> 0 | AW129: =Randomizer!AW140 -> 0 | AX129: =Randomizer!AX140 -> 0 | AY129: =Randomizer!AY140 -> 0 | AZ129: =Randomizer!AZ140 -> 0 | BA129: =Randomizer!BA140 -> 0 | BB129: =Randomizer!BB140 -> 0 | BC129: =Randomizer!BC140 -> 0 | BD129: =Randomizer!BD140 -> 0 | BE129: =Randomizer!BE140 -> 0 | BF129: =Randomizer!BF140 -> 0 | BG129: =Randomizer!BG140 -> 0 | BH129: =Randomizer!BH140 -> 0 | BI129: =Randomizer!BI140 -> 0 | BJ129: =Randomizer!BJ140 -> 0 | BK129: =Randomizer!BK140 -> 0 | BL129: =Randomizer!BL140 -> 0 | BM129: =Randomizer!BM140 -> 0 | BN129: =Randomizer!BN140 -> 0 | BO129: =Randomizer!BO140 -> 0 | BP129: =Randomizer!BP140 -> 0 | BQ129: =Randomizer!BQ140 -> 0 | BR129: =Randomizer!BR140 -> 0 | BS129: =Randomizer!BS140 -> 0 | BT129: =Randomizer!BT140 -> 0 | BU129: =Randomizer!BU140 -> 0 | BV129: =Randomizer!BV140 -> 0 | BW129: =Randomizer!BW140 -> 0 | BX129: =Randomizer!BX140 -> 0 | BY129: =Randomizer!BY140 -> 0 | BZ129: =Randomizer!BZ140 -> 0 | CA129: =Randomizer!CA140 -> 0 | CB129: =Randomizer!CB140 -> 0 | CC129: =Randomizer!CC140 -> 0 | CD129: =Randomizer!CD140 -> 0 | CE129: =Randomizer!CE140 -> 0 | CF129: =Randomizer!CF140 -> 0 | CG129: =Randomizer!CG140 -> 0 | CH129: =Randomizer!CH140 -> 0 | CI129: =Randomizer!CI140 -> 0 | CJ129: =Randomizer!CJ140 -> 0 | CK129: =Randomizer!CK140 -> 0 | CL129: =Randomizer!CL140 -> 0 | CM129: =Randomizer!CM140 -> 0 | CN129: =Randomizer!CN140 -> 0
B130: Name | C130: =C125 -> Bruce | D130: phil | E130: Aleix | F130: Mark R | G130: Les | H130: Mark T | I130: Paul | J130: mike | K130: Ian | L130: Dave | M130: 0 | N130: 0 | O130: 0 | P130: 0 | Q130: 0 | R130: 0 | S130: 0 | T130: 0 | U130: 0 | V130: 0 | W130: 0 | X130: 0 | Y130: 0 | Z130: 0 | AA130: 0 | AB130: 0 | AC130: 0 | AD130: 0 | AE130: 0 | AF130: 0 | AG130: 0 | AH130: 0 | AI130: =AI125 -> 0 | AJ130: 0 | AK130: 0 | AL130: 0 | AM130: 0 | AN130: 0 | AO130: 0 | AP130: 0 | AQ130: 0 | AR130: 0 | AS130: 0 | AT130: 0 | AU130: 0 | AV130: 0 | AW130: 0 | AX130: 0 | AY130: 0 | AZ130: 0 | BA130: 0 | BB130: 0 | BC130: 0 | BD130: 0 | BE130: 0 | BF130: 0 | BG130: 0 | BH130: 0 | BI130: 0 | BJ130: 0 | BK130: 0 | BL130: 0 | BM130: 0 | BN130: 0 | BO130: =BO125 -> 0 | BP130: 0 | BQ130: 0 | BR130: 0 | BS130: 0 | BT130: 0 | BU130: 0 | BV130: 0 | BW130: 0 | BX130: 0 | BY130: 0 | BZ130: 0 | CA130: 0 | CB130: 0 | CC130: 0 | CD130: 0 | CE130: 0 | CF130: 0 | CG130: 0 | CH130: 0 | CI130: 0 | CJ130: 0 | CK130: 0 | CL130: 0 | CM130: 0 | CN130: 0 | CT130: =A129 -> 0
A131: 22 | B131: Round rank | C131: =RANK(C134,$C134:$CN134,0) -> 1 | D131: 1 | E131: 1 | F131: 1 | G131: 1 | H131: 1 | I131: 1 | J131: 1 | K131: 1 | L131: 1 | M131: 1 | N131: 1 | O131: 1 | P131: 1 | Q131: 1 | R131: 1 | S131: 1 | T131: 1 | U131: 1 | V131: 1 | W131: 1 | X131: 1 | Y131: 1 | Z131: 1 | AA131: 1 | AB131: 1 | AC131: 1 | AD131: 1 | AE131: 1 | AF131: 1 | AG131: 1 | AH131: 1 | AI131: =RANK(AI134,$C134:$CN134,0) -> 1 | AJ131: 1 | AK131: 1 | AL131: 1 | AM131: 1 | AN131: 1 | AO131: 1 | AP131: 1 | AQ131: 1 | AR131: 1 | AS131: 1 | AT131: 1 | AU131: 1 | AV131: 1 | AW131: 1 | AX131: 1 | AY131: 1 | AZ131: 1 | BA131: 1 | BB131: 1 | BC131: 1 | BD131: 1 | BE131: 1 | BF131: 1 | BG131: 1 | BH131: 1 | BI131: 1 | BJ131: 1 | BK131: 1 | BL131: 1 | BM131: 1 | BN131: 1 | BO131: =RANK(BO134,$C134:$CN134,0) -> 1 | BP131: 1 | BQ131: 1 | BR131: 1 | BS131: 1 | BT131: 1 | BU131: 1 | BV131: 1 | BW131: 1 | BX131: 1 | BY131: 1 | BZ131: 1 | CA131: 1 | CB131: 1 | CC131: 1 | CD131: 1 | CE131: 1 | CF131: 1 | CG131: 1 | CH131: 1 | CI131: 1 | CJ131: 1 | CK131: 1 | CL131: 1 | CM131: 1 | CN131: 1
B132: Time | CP132: =IF(Randomizer!CP143=0,"",Randomizer!CP143) ->  | CQ132: =IF(CP132=0, "", Randomizer!CQ143) ->  | CT132: =A131 -> 22
B133: Penalties
B134: Score | C134: =Randomizer!C146 -> 0 | D134: =Randomizer!D146 -> 0 | E134: =Randomizer!E146 -> 0 | F134: =Randomizer!F146 -> 0 | G134: =Randomizer!G146 -> 0 | H134: =Randomizer!H146 -> 0 | I134: =Randomizer!I146 -> 0 | J134: =Randomizer!J146 -> 0 | K134: =Randomizer!K146 -> 0 | L134: =Randomizer!L146 -> 0 | M134: =Randomizer!M146 -> 0 | N134: =Randomizer!N146 -> 0 | O134: =Randomizer!O146 -> 0 | P134: =Randomizer!P146 -> 0 | Q134: =Randomizer!Q146 -> 0 | R134: =Randomizer!R146 -> 0 | S134: =Randomizer!S146 -> 0 | T134: =Randomizer!T146 -> 0 | U134: =Randomizer!U146 -> 0 | V134: =Randomizer!V146 -> 0 | W134: =Randomizer!W146 -> 0 | X134: =Randomizer!X146 -> 0 | Y134: =Randomizer!Y146 -> 0 | Z134: =Randomizer!Z146 -> 0 | AA134: =Randomizer!AA146 -> 0 | AB134: =Randomizer!AB146 -> 0 | AC134: =Randomizer!AC146 -> 0 | AD134: =Randomizer!AD146 -> 0 | AE134: =Randomizer!AE146 -> 0 | AF134: =Randomizer!AF146 -> 0 | AG134: =Randomizer!AG146 -> 0 | AH134: =Randomizer!AH146 -> 0 | AI134: =Randomizer!AI146 -> 0 | AJ134: =Randomizer!AJ146 -> 0 | AK134: =Randomizer!AK146 -> 0 | AL134: =Randomizer!AL146 -> 0 | AM134: =Randomizer!AM146 -> 0 | AN134: =Randomizer!AN146 -> 0 | AO134: =Randomizer!AO146 -> 0 | AP134: =Randomizer!AP146 -> 0 | AQ134: =Randomizer!AQ146 -> 0 | AR134: =Randomizer!AR146 -> 0 | AS134: =Randomizer!AS146 -> 0 | AT134: =Randomizer!AT146 -> 0 | AU134: =Randomizer!AU146 -> 0 | AV134: =Randomizer!AV146 -> 0 | AW134: =Randomizer!AW146 -> 0 | AX134: =Randomizer!AX146 -> 0 | AY134: =Randomizer!AY146 -> 0 | AZ134: =Randomizer!AZ146 -> 0 | BA134: =Randomizer!BA146 -> 0 | BB134: =Randomizer!BB146 -> 0 | BC134: =Randomizer!BC146 -> 0 | BD134: =Randomizer!BD146 -> 0 | BE134: =Randomizer!BE146 -> 0 | BF134: =Randomizer!BF146 -> 0 | BG134: =Randomizer!BG146 -> 0 | BH134: =Randomizer!BH146 -> 0 | BI134: =Randomizer!BI146 -> 0 | BJ134: =Randomizer!BJ146 -> 0 | BK134: =Randomizer!BK146 -> 0 | BL134: =Randomizer!BL146 -> 0 | BM134: =Randomizer!BM146 -> 0 | BN134: =Randomizer!BN146 -> 0 | BO134: =Randomizer!BO146 -> 0 | BP134: =Randomizer!BP146 -> 0 | BQ134: =Randomizer!BQ146 -> 0 | BR134: =Randomizer!BR146 -> 0 | BS134: =Randomizer!BS146 -> 0 | BT134: =Randomizer!BT146 -> 0 | BU134: =Randomizer!BU146 -> 0 | BV134: =Randomizer!BV146 -> 0 | BW134: =Randomizer!BW146 -> 0 | BX134: =Randomizer!BX146 -> 0 | BY134: =Randomizer!BY146 -> 0 | BZ134: =Randomizer!BZ146 -> 0 | CA134: =Randomizer!CA146 -> 0 | CB134: =Randomizer!CB146 -> 0 | CC134: =Randomizer!CC146 -> 0 | CD134: =Randomizer!CD146 -> 0 | CE134: =Randomizer!CE146 -> 0 | CF134: =Randomizer!CF146 -> 0 | CG134: =Randomizer!CG146 -> 0 | CH134: =Randomizer!CH146 -> 0 | CI134: =Randomizer!CI146 -> 0 | CJ134: =Randomizer!CJ146 -> 0 | CK134: =Randomizer!CK146 -> 0 | CL134: =Randomizer!CL146 -> 0 | CM134: =Randomizer!CM146 -> 0 | CN134: =Randomizer!CN146 -> 0
B135: Name | C135: =C130 -> Bruce | D135: phil | E135: Aleix | F135: Mark R | G135: Les | H135: Mark T | I135: Paul | J135: mike | K135: Ian | L135: Dave | M135: 0 | N135: 0 | O135: 0 | P135: 0 | Q135: 0 | R135: 0 | S135: 0 | T135: 0 | U135: 0 | V135: 0 | W135: 0 | X135: 0 | Y135: 0 | Z135: 0 | AA135: 0 | AB135: 0 | AC135: 0 | AD135: 0 | AE135: 0 | AF135: 0 | AG135: 0 | AH135: 0 | AI135: =AI130 -> 0 | AJ135: 0 | AK135: 0 | AL135: 0 | AM135: 0 | AN135: 0 | AO135: 0 | AP135: 0 | AQ135: 0 | AR135: 0 | AS135: 0 | AT135: 0 | AU135: 0 | AV135: 0 | AW135: 0 | AX135: 0 | AY135: 0 | AZ135: 0 | BA135: 0 | BB135: 0 | BC135: 0 | BD135: 0 | BE135: 0 | BF135: 0 | BG135: 0 | BH135: 0 | BI135: 0 | BJ135: 0 | BK135: 0 | BL135: 0 | BM135: 0 | BN135: 0 | BO135: =BO130 -> 0 | BP135: 0 | BQ135: 0 | BR135: 0 | BS135: 0 | BT135: 0 | BU135: 0 | BV135: 0 | BW135: 0 | BX135: 0 | BY135: 0 | BZ135: 0 | CA135: 0 | CB135: 0 | CC135: 0 | CD135: 0 | CE135: 0 | CF135: 0 | CG135: 0 | CH135: 0 | CI135: 0 | CJ135: 0 | CK135: 0 | CL135: 0 | CM135: 0 | CN135: 0 | CT135: =A134 -> 0
A136: 23 | B136: Round rank | C136: =RANK(C139,$C139:$CN139,0) -> 1 | D136: 1 | E136: 1 | F136: 1 | G136: 1 | H136: 1 | I136: 1 | J136: 1 | K136: 1 | L136: 1 | M136: 1 | N136: 1 | O136: 1 | P136: 1 | Q136: 1 | R136: 1 | S136: 1 | T136: 1 | U136: 1 | V136: 1 | W136: 1 | X136: 1 | Y136: 1 | Z136: 1 | AA136: 1 | AB136: 1 | AC136: 1 | AD136: 1 | AE136: 1 | AF136: 1 | AG136: 1 | AH136: 1 | AI136: =RANK(AI139,$C139:$CN139,0) -> 1 | AJ136: 1 | AK136: 1 | AL136: 1 | AM136: 1 | AN136: 1 | AO136: 1 | AP136: 1 | AQ136: 1 | AR136: 1 | AS136: 1 | AT136: 1 | AU136: 1 | AV136: 1 | AW136: 1 | AX136: 1 | AY136: 1 | AZ136: 1 | BA136: 1 | BB136: 1 | BC136: 1 | BD136: 1 | BE136: 1 | BF136: 1 | BG136: 1 | BH136: 1 | BI136: 1 | BJ136: 1 | BK136: 1 | BL136: 1 | BM136: 1 | BN136: 1 | BO136: =RANK(BO139,$C139:$CN139,0) -> 1 | BP136: 1 | BQ136: 1 | BR136: 1 | BS136: 1 | BT136: 1 | BU136: 1 | BV136: 1 | BW136: 1 | BX136: 1 | BY136: 1 | BZ136: 1 | CA136: 1 | CB136: 1 | CC136: 1 | CD136: 1 | CE136: 1 | CF136: 1 | CG136: 1 | CH136: 1 | CI136: 1 | CJ136: 1 | CK136: 1 | CL136: 1 | CM136: 1 | CN136: 1
B137: Time | CP137: =IF(Randomizer!CP149=0,"",Randomizer!CP149) ->  | CQ137: =IF(CP137=0, "", Randomizer!CQ149) ->  | CT137: =A136 -> 23
B138: Penalties
B139: Score | C139: =Randomizer!C152 -> 0 | D139: =Randomizer!D152 -> 0 | E139: =Randomizer!E152 -> 0 | F139: =Randomizer!F152 -> 0 | G139: =Randomizer!G152 -> 0 | H139: =Randomizer!H152 -> 0 | I139: =Randomizer!I152 -> 0 | J139: =Randomizer!J152 -> 0 | K139: =Randomizer!K152 -> 0 | L139: =Randomizer!L152 -> 0 | M139: =Randomizer!M152 -> 0 | N139: =Randomizer!N152 -> 0 | O139: =Randomizer!O152 -> 0 | P139: =Randomizer!P152 -> 0 | Q139: =Randomizer!Q152 -> 0 | R139: =Randomizer!R152 -> 0 | S139: =Randomizer!S152 -> 0 | T139: =Randomizer!T152 -> 0 | U139: =Randomizer!U152 -> 0 | V139: =Randomizer!V152 -> 0 | W139: =Randomizer!W152 -> 0 | X139: =Randomizer!X152 -> 0 | Y139: =Randomizer!Y152 -> 0 | Z139: =Randomizer!Z152 -> 0 | AA139: =Randomizer!AA152 -> 0 | AB139: =Randomizer!AB152 -> 0 | AC139: =Randomizer!AC152 -> 0 | AD139: =Randomizer!AD152 -> 0 | AE139: =Randomizer!AE152 -> 0 | AF139: =Randomizer!AF152 -> 0 | AG139: =Randomizer!AG152 -> 0 | AH139: =Randomizer!AH152 -> 0 | AI139: =Randomizer!AI152 -> 0 | AJ139: =Randomizer!AJ152 -> 0 | AK139: =Randomizer!AK152 -> 0 | AL139: =Randomizer!AL152 -> 0 | AM139: =Randomizer!AM152 -> 0 | AN139: =Randomizer!AN152 -> 0 | AO139: =Randomizer!AO152 -> 0 | AP139: =Randomizer!AP152 -> 0 | AQ139: =Randomizer!AQ152 -> 0 | AR139: =Randomizer!AR152 -> 0 | AS139: =Randomizer!AS152 -> 0 | AT139: =Randomizer!AT152 -> 0 | AU139: =Randomizer!AU152 -> 0 | AV139: =Randomizer!AV152 -> 0 | AW139: =Randomizer!AW152 -> 0 | AX139: =Randomizer!AX152 -> 0 | AY139: =Randomizer!AY152 -> 0 | AZ139: =Randomizer!AZ152 -> 0 | BA139: =Randomizer!BA152 -> 0 | BB139: =Randomizer!BB152 -> 0 | BC139: =Randomizer!BC152 -> 0 | BD139: =Randomizer!BD152 -> 0 | BE139: =Randomizer!BE152 -> 0 | BF139: =Randomizer!BF152 -> 0 | BG139: =Randomizer!BG152 -> 0 | BH139: =Randomizer!BH152 -> 0 | BI139: =Randomizer!BI152 -> 0 | BJ139: =Randomizer!BJ152 -> 0 | BK139: =Randomizer!BK152 -> 0 | BL139: =Randomizer!BL152 -> 0 | BM139: =Randomizer!BM152 -> 0 | BN139: =Randomizer!BN152 -> 0 | BO139: =Randomizer!BO152 -> 0 | BP139: =Randomizer!BP152 -> 0 | BQ139: =Randomizer!BQ152 -> 0 | BR139: =Randomizer!BR152 -> 0 | BS139: =Randomizer!BS152 -> 0 | BT139: =Randomizer!BT152 -> 0 | BU139: =Randomizer!BU152 -> 0 | BV139: =Randomizer!BV152 -> 0 | BW139: =Randomizer!BW152 -> 0 | BX139: =Randomizer!BX152 -> 0 | BY139: =Randomizer!BY152 -> 0 | BZ139: =Randomizer!BZ152 -> 0 | CA139: =Randomizer!CA152 -> 0 | CB139: =Randomizer!CB152 -> 0 | CC139: =Randomizer!CC152 -> 0 | CD139: =Randomizer!CD152 -> 0 | CE139: =Randomizer!CE152 -> 0 | CF139: =Randomizer!CF152 -> 0 | CG139: =Randomizer!CG152 -> 0 | CH139: =Randomizer!CH152 -> 0 | CI139: =Randomizer!CI152 -> 0 | CJ139: =Randomizer!CJ152 -> 0 | CK139: =Randomizer!CK152 -> 0 | CL139: =Randomizer!CL152 -> 0 | CM139: =Randomizer!CM152 -> 0 | CN139: =Randomizer!CN152 -> 0
B140: Name | C140: =C135 -> Bruce | D140: phil | E140: Aleix | F140: Mark R | G140: Les | H140: Mark T | I140: Paul | J140: mike | K140: Ian | L140: Dave | M140: 0 | N140: 0 | O140: 0 | P140: 0 | Q140: 0 | R140: 0 | S140: 0 | T140: 0 | U140: 0 | V140: 0 | W140: 0 | X140: 0 | Y140: 0 | Z140: 0 | AA140: 0 | AB140: 0 | AC140: 0 | AD140: 0 | AE140: 0 | AF140: 0 | AG140: 0 | AH140: 0 | AI140: =AI135 -> 0 | AJ140: 0 | AK140: 0 | AL140: 0 | AM140: 0 | AN140: 0 | AO140: 0 | AP140: 0 | AQ140: 0 | AR140: 0 | AS140: 0 | AT140: 0 | AU140: 0 | AV140: 0 | AW140: 0 | AX140: 0 | AY140: 0 | AZ140: 0 | BA140: 0 | BB140: 0 | BC140: 0 | BD140: 0 | BE140: 0 | BF140: 0 | BG140: 0 | BH140: 0 | BI140: 0 | BJ140: 0 | BK140: 0 | BL140: 0 | BM140: 0 | BN140: 0 | BO140: =BO135 -> 0 | BP140: 0 | BQ140: 0 | BR140: 0 | BS140: 0 | BT140: 0 | BU140: 0 | BV140: 0 | BW140: 0 | BX140: 0 | BY140: 0 | BZ140: 0 | CA140: 0 | CB140: 0 | CC140: 0 | CD140: 0 | CE140: 0 | CF140: 0 | CG140: 0 | CH140: 0 | CI140: 0 | CJ140: 0 | CK140: 0 | CL140: 0 | CM140: 0 | CN140: 0 | CT140: =A139 -> 0
A141: 24 | B141: Round rank | C141: =RANK(C144,$C144:$CN144,0) -> 1 | D141: 1 | E141: 1 | F141: 1 | G141: 1 | H141: 1 | I141: 1 | J141: 1 | K141: 1 | L141: 1 | M141: 1 | N141: 1 | O141: 1 | P141: 1 | Q141: 1 | R141: 1 | S141: 1 | T141: 1 | U141: 1 | V141: 1 | W141: 1 | X141: 1 | Y141: 1 | Z141: 1 | AA141: 1 | AB141: 1 | AC141: 1 | AD141: 1 | AE141: 1 | AF141: 1 | AG141: 1 | AH141: 1 | AI141: =RANK(AI144,$C144:$CN144,0) -> 1 | AJ141: 1 | AK141: 1 | AL141: 1 | AM141: 1 | AN141: 1 | AO141: 1 | AP141: 1 | AQ141: 1 | AR141: 1 | AS141: 1 | AT141: 1 | AU141: 1 | AV141: 1 | AW141: 1 | AX141: 1 | AY141: 1 | AZ141: 1 | BA141: 1 | BB141: 1 | BC141: 1 | BD141: 1 | BE141: 1 | BF141: 1 | BG141: 1 | BH141: 1 | BI141: 1 | BJ141: 1 | BK141: 1 | BL141: 1 | BM141: 1 | BN141: 1 | BO141: =RANK(BO144,$C144:$CN144,0) -> 1 | BP141: 1 | BQ141: 1 | BR141: 1 | BS141: 1 | BT141: 1 | BU141: 1 | BV141: 1 | BW141: 1 | BX141: 1 | BY141: 1 | BZ141: 1 | CA141: 1 | CB141: 1 | CC141: 1 | CD141: 1 | CE141: 1 | CF141: 1 | CG141: 1 | CH141: 1 | CI141: 1 | CJ141: 1 | CK141: 1 | CL141: 1 | CM141: 1 | CN141: 1
B142: Time | CP142: =IF(Randomizer!CP1072=0,"",Randomizer!CP155) ->  | CQ142: =IF(CP142=0, "", Randomizer!CQ155) ->  | CT142: =A141 -> 24
B143: Penalties
B144: Score | C144: =Randomizer!C158 -> 0 | D144: =Randomizer!D158 -> 0 | E144: =Randomizer!E158 -> 0 | F144: =Randomizer!F158 -> 0 | G144: =Randomizer!G158 -> 0 | H144: =Randomizer!H158 -> 0 | I144: =Randomizer!I158 -> 0 | J144: =Randomizer!J158 -> 0 | K144: =Randomizer!K158 -> 0 | L144: =Randomizer!L158 -> 0 | M144: =Randomizer!M158 -> 0 | N144: =Randomizer!N158 -> 0 | O144: =Randomizer!O158 -> 0 | P144: =Randomizer!P158 -> 0 | Q144: =Randomizer!Q158 -> 0 | R144: =Randomizer!R158 -> 0 | S144: =Randomizer!S158 -> 0 | T144: =Randomizer!T158 -> 0 | U144: =Randomizer!U158 -> 0 | V144: =Randomizer!V158 -> 0 | W144: =Randomizer!W158 -> 0 | X144: =Randomizer!X158 -> 0 | Y144: =Randomizer!Y158 -> 0 | Z144: =Randomizer!Z158 -> 0 | AA144: =Randomizer!AA158 -> 0 | AB144: =Randomizer!AB158 -> 0 | AC144: =Randomizer!AC158 -> 0 | AD144: =Randomizer!AD158 -> 0 | AE144: =Randomizer!AE158 -> 0 | AF144: =Randomizer!AF158 -> 0 | AG144: =Randomizer!AG158 -> 0 | AH144: =Randomizer!AH158 -> 0 | AI144: =Randomizer!AI158 -> 0 | AJ144: =Randomizer!AJ158 -> 0 | AK144: =Randomizer!AK158 -> 0 | AL144: =Randomizer!AL158 -> 0 | AM144: =Randomizer!AM158 -> 0 | AN144: =Randomizer!AN158 -> 0 | AO144: =Randomizer!AO158 -> 0 | AP144: =Randomizer!AP158 -> 0 | AQ144: =Randomizer!AQ158 -> 0 | AR144: =Randomizer!AR158 -> 0 | AS144: =Randomizer!AS158 -> 0 | AT144: =Randomizer!AT158 -> 0 | AU144: =Randomizer!AU158 -> 0 | AV144: =Randomizer!AV158 -> 0 | AW144: =Randomizer!AW158 -> 0 | AX144: =Randomizer!AX158 -> 0 | AY144: =Randomizer!AY158 -> 0 | AZ144: =Randomizer!AZ158 -> 0 | BA144: =Randomizer!BA158 -> 0 | BB144: =Randomizer!BB158 -> 0 | BC144: =Randomizer!BC158 -> 0 | BD144: =Randomizer!BD158 -> 0 | BE144: =Randomizer!BE158 -> 0 | BF144: =Randomizer!BF158 -> 0 | BG144: =Randomizer!BG158 -> 0 | BH144: =Randomizer!BH158 -> 0 | BI144: =Randomizer!BI158 -> 0 | BJ144: =Randomizer!BJ158 -> 0 | BK144: =Randomizer!BK158 -> 0 | BL144: =Randomizer!BL158 -> 0 | BM144: =Randomizer!BM158 -> 0 | BN144: =Randomizer!BN158 -> 0 | BO144: =Randomizer!BO158 -> 0 | BP144: =Randomizer!BP158 -> 0 | BQ144: =Randomizer!BQ158 -> 0 | BR144: =Randomizer!BR158 -> 0 | BS144: =Randomizer!BS158 -> 0 | BT144: =Randomizer!BT158 -> 0 | BU144: =Randomizer!BU158 -> 0 | BV144: =Randomizer!BV158 -> 0 | BW144: =Randomizer!BW158 -> 0 | BX144: =Randomizer!BX158 -> 0 | BY144: =Randomizer!BY158 -> 0 | BZ144: =Randomizer!BZ158 -> 0 | CA144: =Randomizer!CA158 -> 0 | CB144: =Randomizer!CB158 -> 0 | CC144: =Randomizer!CC158 -> 0 | CD144: =Randomizer!CD158 -> 0 | CE144: =Randomizer!CE158 -> 0 | CF144: =Randomizer!CF158 -> 0 | CG144: =Randomizer!CG158 -> 0 | CH144: =Randomizer!CH158 -> 0 | CI144: =Randomizer!CI158 -> 0 | CJ144: =Randomizer!CJ158 -> 0 | CK144: =Randomizer!CK158 -> 0 | CL144: =Randomizer!CL158 -> 0 | CM144: =Randomizer!CM158 -> 0 | CN144: =Randomizer!CN158 -> 0
B145: Name | C145: =C140 -> Bruce | D145: phil | E145: Aleix | F145: Mark R | G145: Les | H145: Mark T | I145: Paul | J145: mike | K145: Ian | L145: Dave | M145: 0 | N145: 0 | O145: 0 | P145: 0 | Q145: 0 | R145: 0 | S145: 0 | T145: 0 | U145: 0 | V145: 0 | W145: 0 | X145: 0 | Y145: 0 | Z145: 0 | AA145: 0 | AB145: 0 | AC145: 0 | AD145: 0 | AE145: 0 | AF145: 0 | AG145: 0 | AH145: 0 | AI145: =AI140 -> 0 | AJ145: 0 | AK145: 0 | AL145: 0 | AM145: 0 | AN145: 0 | AO145: 0 | AP145: 0 | AQ145: 0 | AR145: 0 | AS145: 0 | AT145: 0 | AU145: 0 | AV145: 0 | AW145: 0 | AX145: 0 | AY145: 0 | AZ145: 0 | BA145: 0 | BB145: 0 | BC145: 0 | BD145: 0 | BE145: 0 | BF145: 0 | BG145: 0 | BH145: 0 | BI145: 0 | BJ145: 0 | BK145: 0 | BL145: 0 | BM145: 0 | BN145: 0 | BO145: =BO140 -> 0 | BP145: 0 | BQ145: 0 | BR145: 0 | BS145: 0 | BT145: 0 | BU145: 0 | BV145: 0 | BW145: 0 | BX145: 0 | BY145: 0 | BZ145: 0 | CA145: 0 | CB145: 0 | CC145: 0 | CD145: 0 | CE145: 0 | CF145: 0 | CG145: 0 | CH145: 0 | CI145: 0 | CJ145: 0 | CK145: 0 | CL145: 0 | CM145: 0 | CN145: 0 | CT145: =A144 -> 0
A146: 25 | B146: Round rank | C146: =RANK(C149,$C149:$CN149,0) -> 1 | D146: 1 | E146: 1 | F146: 1 | G146: 1 | H146: 1 | I146: 1 | J146: 1 | K146: 1 | L146: 1 | M146: 1 | N146: 1 | O146: 1 | P146: 1 | Q146: 1 | R146: 1 | S146: 1 | T146: 1 | U146: 1 | V146: 1 | W146: 1 | X146: 1 | Y146: 1 | Z146: 1 | AA146: 1 | AB146: 1 | AC146: 1 | AD146: 1 | AE146: 1 | AF146: 1 | AG146: 1 | AH146: 1 | AI146: =RANK(AI149,$C149:$CN149,0) -> 1 | AJ146: 1 | AK146: 1 | AL146: 1 | AM146: 1 | AN146: 1 | AO146: 1 | AP146: 1 | AQ146: 1 | AR146: 1 | AS146: 1 | AT146: 1 | AU146: 1 | AV146: 1 | AW146: 1 | AX146: 1 | AY146: 1 | AZ146: 1 | BA146: 1 | BB146: 1 | BC146: 1 | BD146: 1 | BE146: 1 | BF146: 1 | BG146: 1 | BH146: 1 | BI146: 1 | BJ146: 1 | BK146: 1 | BL146: 1 | BM146: 1 | BN146: 1 | BO146: =RANK(BO149,$C149:$CN149,0) -> 1 | BP146: 1 | BQ146: 1 | BR146: 1 | BS146: 1 | BT146: 1 | BU146: 1 | BV146: 1 | BW146: 1 | BX146: 1 | BY146: 1 | BZ146: 1 | CA146: 1 | CB146: 1 | CC146: 1 | CD146: 1 | CE146: 1 | CF146: 1 | CG146: 1 | CH146: 1 | CI146: 1 | CJ146: 1 | CK146: 1 | CL146: 1 | CM146: 1 | CN146: 1
B147: Time | CP147: =IF(Randomizer!CP161=0,"",Randomizer!CP161) ->  | CQ147: =IF(CP147=0, "", Randomizer!CQ161) ->  | CT147: =A146 -> 25
B148: Penalties
B149: Score | C149: =Randomizer!C164 -> 0 | D149: =Randomizer!D164 -> 0 | E149: =Randomizer!E164 -> 0 | F149: =Randomizer!F164 -> 0 | G149: =Randomizer!G164 -> 0 | H149: =Randomizer!H164 -> 0 | I149: =Randomizer!I164 -> 0 | J149: =Randomizer!J164 -> 0 | K149: =Randomizer!K164 -> 0 | L149: =Randomizer!L164 -> 0 | M149: =Randomizer!M164 -> 0 | N149: =Randomizer!N164 -> 0 | O149: =Randomizer!O164 -> 0 | P149: =Randomizer!P164 -> 0 | Q149: =Randomizer!Q164 -> 0 | R149: =Randomizer!R164 -> 0 | S149: =Randomizer!S164 -> 0 | T149: =Randomizer!T164 -> 0 | U149: =Randomizer!U164 -> 0 | V149: =Randomizer!V164 -> 0 | W149: =Randomizer!W164 -> 0 | X149: =Randomizer!X164 -> 0 | Y149: =Randomizer!Y164 -> 0 | Z149: =Randomizer!Z164 -> 0 | AA149: =Randomizer!AA164 -> 0 | AB149: =Randomizer!AB164 -> 0 | AC149: =Randomizer!AC164 -> 0 | AD149: =Randomizer!AD164 -> 0 | AE149: =Randomizer!AE164 -> 0 | AF149: =Randomizer!AF164 -> 0 | AG149: =Randomizer!AG164 -> 0 | AH149: =Randomizer!AH164 -> 0 | AI149: =Randomizer!AI164 -> 0 | AJ149: =Randomizer!AJ164 -> 0 | AK149: =Randomizer!AK164 -> 0 | AL149: =Randomizer!AL164 -> 0 | AM149: =Randomizer!AM164 -> 0 | AN149: =Randomizer!AN164 -> 0 | AO149: =Randomizer!AO164 -> 0 | AP149: =Randomizer!AP164 -> 0 | AQ149: =Randomizer!AQ164 -> 0 | AR149: =Randomizer!AR164 -> 0 | AS149: =Randomizer!AS164 -> 0 | AT149: =Randomizer!AT164 -> 0 | AU149: =Randomizer!AU164 -> 0 | AV149: =Randomizer!AV164 -> 0 | AW149: =Randomizer!AW164 -> 0 | AX149: =Randomizer!AX164 -> 0 | AY149: =Randomizer!AY164 -> 0 | AZ149: =Randomizer!AZ164 -> 0 | BA149: =Randomizer!BA164 -> 0 | BB149: =Randomizer!BB164 -> 0 | BC149: =Randomizer!BC164 -> 0 | BD149: =Randomizer!BD164 -> 0 | BE149: =Randomizer!BE164 -> 0 | BF149: =Randomizer!BF164 -> 0 | BG149: =Randomizer!BG164 -> 0 | BH149: =Randomizer!BH164 -> 0 | BI149: =Randomizer!BI164 -> 0 | BJ149: =Randomizer!BJ164 -> 0 | BK149: =Randomizer!BK164 -> 0 | BL149: =Randomizer!BL164 -> 0 | BM149: =Randomizer!BM164 -> 0 | BN149: =Randomizer!BN164 -> 0 | BO149: =Randomizer!BO164 -> 0 | BP149: =Randomizer!BP164 -> 0 | BQ149: =Randomizer!BQ164 -> 0 | BR149: =Randomizer!BR164 -> 0 | BS149: =Randomizer!BS164 -> 0 | BT149: =Randomizer!BT164 -> 0 | BU149: =Randomizer!BU164 -> 0 | BV149: =Randomizer!BV164 -> 0 | BW149: =Randomizer!BW164 -> 0 | BX149: =Randomizer!BX164 -> 0 | BY149: =Randomizer!BY164 -> 0 | BZ149: =Randomizer!BZ164 -> 0 | CA149: =Randomizer!CA164 -> 0 | CB149: =Randomizer!CB164 -> 0 | CC149: =Randomizer!CC164 -> 0 | CD149: =Randomizer!CD164 -> 0 | CE149: =Randomizer!CE164 -> 0 | CF149: =Randomizer!CF164 -> 0 | CG149: =Randomizer!CG164 -> 0 | CH149: =Randomizer!CH164 -> 0 | CI149: =Randomizer!CI164 -> 0 | CJ149: =Randomizer!CJ164 -> 0 | CK149: =Randomizer!CK164 -> 0 | CL149: =Randomizer!CL164 -> 0 | CM149: =Randomizer!CM164 -> 0 | CN149: =Randomizer!CN164 -> 0
B150: Name | C150: =C145 -> Bruce | D150: phil | E150: Aleix | F150: Mark R | G150: Les | H150: Mark T | I150: Paul | J150: mike | K150: Ian | L150: Dave | M150: 0 | N150: 0 | O150: 0 | P150: 0 | Q150: 0 | R150: 0 | S150: 0 | T150: 0 | U150: 0 | V150: 0 | W150: 0 | X150: 0 | Y150: 0 | Z150: 0 | AA150: 0 | AB150: 0 | AC150: 0 | AD150: 0 | AE150: 0 | AF150: 0 | AG150: 0 | AH150: 0 | AI150: =AI145 -> 0 | AJ150: 0 | AK150: 0 | AL150: 0 | AM150: 0 | AN150: 0 | AO150: 0 | AP150: 0 | AQ150: 0 | AR150: 0 | AS150: 0 | AT150: 0 | AU150: 0 | AV150: 0 | AW150: 0 | AX150: 0 | AY150: 0 | AZ150: 0 | BA150: 0 | BB150: 0 | BC150: 0 | BD150: 0 | BE150: 0 | BF150: 0 | BG150: 0 | BH150: 0 | BI150: 0 | BJ150: 0 | BK150: 0 | BL150: 0 | BM150: 0 | BN150: 0 | BO150: =BO145 -> 0 | BP150: 0 | BQ150: 0 | BR150: 0 | BS150: 0 | BT150: 0 | BU150: 0 | BV150: 0 | BW150: 0 | BX150: 0 | BY150: 0 | BZ150: 0 | CA150: 0 | CB150: 0 | CC150: 0 | CD150: 0 | CE150: 0 | CF150: 0 | CG150: 0 | CH150: 0 | CI150: 0 | CJ150: 0 | CK150: 0 | CL150: 0 | CM150: 0 | CN150: 0 | CT150: =A149 -> 0
A151: 26 | B151: Round rank | C151: =RANK(C154,$C154:$CN154,0) -> 1 | D151: 1 | E151: 1 | F151: 1 | G151: 1 | H151: 1 | I151: 1 | J151: 1 | K151: 1 | L151: 1 | M151: 1 | N151: 1 | O151: 1 | P151: 1 | Q151: 1 | R151: 1 | S151: 1 | T151: 1 | U151: 1 | V151: 1 | W151: 1 | X151: 1 | Y151: 1 | Z151: 1 | AA151: 1 | AB151: 1 | AC151: 1 | AD151: 1 | AE151: 1 | AF151: 1 | AG151: 1 | AH151: 1 | AI151: =RANK(AI154,$C154:$CN154,0) -> 1 | AJ151: 1 | AK151: 1 | AL151: 1 | AM151: 1 | AN151: 1 | AO151: 1 | AP151: 1 | AQ151: 1 | AR151: 1 | AS151: 1 | AT151: 1 | AU151: 1 | AV151: 1 | AW151: 1 | AX151: 1 | AY151: 1 | AZ151: 1 | BA151: 1 | BB151: 1 | BC151: 1 | BD151: 1 | BE151: 1 | BF151: 1 | BG151: 1 | BH151: 1 | BI151: 1 | BJ151: 1 | BK151: 1 | BL151: 1 | BM151: 1 | BN151: 1 | BO151: =RANK(BO154,$C154:$CN154,0) -> 1 | BP151: 1 | BQ151: 1 | BR151: 1 | BS151: 1 | BT151: 1 | BU151: 1 | BV151: 1 | BW151: 1 | BX151: 1 | BY151: 1 | BZ151: 1 | CA151: 1 | CB151: 1 | CC151: 1 | CD151: 1 | CE151: 1 | CF151: 1 | CG151: 1 | CH151: 1 | CI151: 1 | CJ151: 1 | CK151: 1 | CL151: 1 | CM151: 1 | CN151: 1
B152: Time | CP152: =IF(Randomizer!CP167=0,"",Randomizer!CP167) ->  | CQ152: =IF(CP152=0, "", Randomizer!CQ167) ->  | CT152: =A151 -> 26
B154: Score | C154: =Randomizer!C170 -> 0 | D154: =Randomizer!D170 -> 0 | E154: =Randomizer!E170 -> 0 | F154: =Randomizer!F170 -> 0 | G154: =Randomizer!G170 -> 0 | H154: =Randomizer!H170 -> 0 | I154: =Randomizer!I170 -> 0 | J154: =Randomizer!J170 -> 0 | K154: =Randomizer!K170 -> 0 | L154: =Randomizer!L170 -> 0 | M154: =Randomizer!M170 -> 0 | N154: =Randomizer!N170 -> 0 | O154: =Randomizer!O170 -> 0 | P154: =Randomizer!P170 -> 0 | Q154: =Randomizer!Q170 -> 0 | R154: =Randomizer!R170 -> 0 | S154: =Randomizer!S170 -> 0 | T154: =Randomizer!T170 -> 0 | U154: =Randomizer!U170 -> 0 | V154: =Randomizer!V170 -> 0 | W154: =Randomizer!W170 -> 0 | X154: =Randomizer!X170 -> 0 | Y154: =Randomizer!Y170 -> 0 | Z154: =Randomizer!Z170 -> 0 | AA154: =Randomizer!AA170 -> 0 | AB154: =Randomizer!AB170 -> 0 | AC154: =Randomizer!AC170 -> 0 | AD154: =Randomizer!AD170 -> 0 | AE154: =Randomizer!AE170 -> 0 | AF154: =Randomizer!AF170 -> 0 | AG154: =Randomizer!AG170 -> 0 | AH154: =Randomizer!AH170 -> 0 | AI154: =Randomizer!AI170 -> 0 | AJ154: =Randomizer!AJ170 -> 0 | AK154: =Randomizer!AK170 -> 0 | AL154: =Randomizer!AL170 -> 0 | AM154: =Randomizer!AM170 -> 0 | AN154: =Randomizer!AN170 -> 0 | AO154: =Randomizer!AO170 -> 0 | AP154: =Randomizer!AP170 -> 0 | AQ154: =Randomizer!AQ170 -> 0 | AR154: =Randomizer!AR170 -> 0 | AS154: =Randomizer!AS170 -> 0 | AT154: =Randomizer!AT170 -> 0 | AU154: =Randomizer!AU170 -> 0 | AV154: =Randomizer!AV170 -> 0 | AW154: =Randomizer!AW170 -> 0 | AX154: =Randomizer!AX170 -> 0 | AY154: =Randomizer!AY170 -> 0 | AZ154: =Randomizer!AZ170 -> 0 | BA154: =Randomizer!BA170 -> 0 | BB154: =Randomizer!BB170 -> 0 | BC154: =Randomizer!BC170 -> 0 | BD154: =Randomizer!BD170 -> 0 | BE154: =Randomizer!BE170 -> 0 | BF154: =Randomizer!BF170 -> 0 | BG154: =Randomizer!BG170 -> 0 | BH154: =Randomizer!BH170 -> 0 | BI154: =Randomizer!BI170 -> 0 | BJ154: =Randomizer!BJ170 -> 0 | BK154: =Randomizer!BK170 -> 0 | BL154: =Randomizer!BL170 -> 0 | BM154: =Randomizer!BM170 -> 0 | BN154: =Randomizer!BN170 -> 0 | BO154: =Randomizer!BO170 -> 0 | BP154: =Randomizer!BP170 -> 0 | BQ154: =Randomizer!BQ170 -> 0 | BR154: =Randomizer!BR170 -> 0 | BS154: =Randomizer!BS170 -> 0 | BT154: =Randomizer!BT170 -> 0 | BU154: =Randomizer!BU170 -> 0 | BV154: =Randomizer!BV170 -> 0 | BW154: =Randomizer!BW170 -> 0 | BX154: =Randomizer!BX170 -> 0 | BY154: =Randomizer!BY170 -> 0 | BZ154: =Randomizer!BZ170 -> 0 | CA154: =Randomizer!CA170 -> 0 | CB154: =Randomizer!CB170 -> 0 | CC154: =Randomizer!CC170 -> 0 | CD154: =Randomizer!CD170 -> 0 | CE154: =Randomizer!CE170 -> 0 | CF154: =Randomizer!CF170 -> 0 | CG154: =Randomizer!CG170 -> 0 | CH154: =Randomizer!CH170 -> 0 | CI154: =Randomizer!CI170 -> 0 | CJ154: =Randomizer!CJ170 -> 0 | CK154: =Randomizer!CK170 -> 0 | CL154: =Randomizer!CL170 -> 0 | CM154: =Randomizer!CM170 -> 0 | CN154: =Randomizer!CN170 -> 0
B155: Name | C155: =C150 -> Bruce | D155: phil | E155: Aleix | F155: Mark R | G155: Les | H155: Mark T | I155: Paul | J155: mike | K155: Ian | L155: Dave | M155: 0 | N155: 0 | O155: 0 | P155: 0 | Q155: 0 | R155: 0 | S155: 0 | T155: 0 | U155: 0 | V155: 0 | W155: 0 | X155: 0 | Y155: 0 | Z155: 0 | AA155: 0 | AB155: 0 | AC155: 0 | AD155: 0 | AE155: 0 | AF155: 0 | AG155: 0 | AH155: 0 | AI155: =AI150 -> 0 | AJ155: 0 | AK155: 0 | AL155: 0 | AM155: 0 | AN155: 0 | AO155: 0 | AP155: 0 | AQ155: 0 | AR155: 0 | AS155: 0 | AT155: 0 | AU155: 0 | AV155: 0 | AW155: 0 | AX155: 0 | AY155: 0 | AZ155: 0 | BA155: 0 | BB155: 0 | BC155: 0 | BD155: 0 | BE155: 0 | BF155: 0 | BG155: 0 | BH155: 0 | BI155: 0 | BJ155: 0 | BK155: 0 | BL155: 0 | BM155: 0 | BN155: 0 | BO155: =BO150 -> 0 | BP155: 0 | BQ155: 0 | BR155: 0 | BS155: 0 | BT155: 0 | BU155: 0 | BV155: 0 | BW155: 0 | BX155: 0 | BY155: 0 | BZ155: 0 | CA155: 0 | CB155: 0 | CC155: 0 | CD155: 0 | CE155: 0 | CF155: 0 | CG155: 0 | CH155: 0 | CI155: 0 | CJ155: 0 | CK155: 0 | CL155: 0 | CM155: 0 | CN155: 0 | CT155: =A154 -> 0
A156: 27 | B156: Round rank | C156: =RANK(C159,$C159:$CN159,0) -> 1 | D156: 1 | E156: 1 | F156: 1 | G156: 1 | H156: 1 | I156: 1 | J156: 1 | K156: 1 | L156: 1 | M156: 1 | N156: 1 | O156: 1 | P156: 1 | Q156: 1 | R156: 1 | S156: 1 | T156: 1 | U156: 1 | V156: 1 | W156: 1 | X156: 1 | Y156: 1 | Z156: 1 | AA156: 1 | AB156: 1 | AC156: 1 | AD156: 1 | AE156: 1 | AF156: 1 | AG156: 1 | AH156: 1 | AI156: =RANK(AI159,$C159:$CN159,0) -> 1 | AJ156: 1 | AK156: 1 | AL156: 1 | AM156: 1 | AN156: 1 | AO156: 1 | AP156: 1 | AQ156: 1 | AR156: 1 | AS156: 1 | AT156: 1 | AU156: 1 | AV156: 1 | AW156: 1 | AX156: 1 | AY156: 1 | AZ156: 1 | BA156: 1 | BB156: 1 | BC156: 1 | BD156: 1 | BE156: 1 | BF156: 1 | BG156: 1 | BH156: 1 | BI156: 1 | BJ156: 1 | BK156: 1 | BL156: 1 | BM156: 1 | BN156: 1 | BO156: =RANK(BO159,$C159:$CN159,0) -> 1 | BP156: 1 | BQ156: 1 | BR156: 1 | BS156: 1 | BT156: 1 | BU156: 1 | BV156: 1 | BW156: 1 | BX156: 1 | BY156: 1 | BZ156: 1 | CA156: 1 | CB156: 1 | CC156: 1 | CD156: 1 | CE156: 1 | CF156: 1 | CG156: 1 | CH156: 1 | CI156: 1 | CJ156: 1 | CK156: 1 | CL156: 1 | CM156: 1 | CN156: 1
B157: Time | CP157: =IF(Randomizer!CP173=0,"",Randomizer!CP173) ->  | CQ157: =IF(CP157=0, "", Randomizer!CQ173) ->  | CT157: =A156 -> 27
B158: Penalties
B159: Score | C159: =Randomizer!C176 -> 0 | D159: =Randomizer!D176 -> 0 | E159: =Randomizer!E176 -> 0 | F159: =Randomizer!F176 -> 0 | G159: =Randomizer!G176 -> 0 | H159: =Randomizer!H176 -> 0 | I159: =Randomizer!I176 -> 0 | J159: =Randomizer!J176 -> 0 | K159: =Randomizer!K176 -> 0 | L159: =Randomizer!L176 -> 0 | M159: =Randomizer!M176 -> 0 | N159: =Randomizer!N176 -> 0 | O159: =Randomizer!O176 -> 0 | P159: =Randomizer!P176 -> 0 | Q159: =Randomizer!Q176 -> 0 | R159: =Randomizer!R176 -> 0 | S159: =Randomizer!S176 -> 0 | T159: =Randomizer!T176 -> 0 | U159: =Randomizer!U176 -> 0 | V159: =Randomizer!V176 -> 0 | W159: =Randomizer!W176 -> 0 | X159: =Randomizer!X176 -> 0 | Y159: =Randomizer!Y176 -> 0 | Z159: =Randomizer!Z176 -> 0 | AA159: =Randomizer!AA176 -> 0 | AB159: =Randomizer!AB176 -> 0 | AC159: =Randomizer!AC176 -> 0 | AD159: =Randomizer!AD176 -> 0 | AE159: =Randomizer!AE176 -> 0 | AF159: =Randomizer!AF176 -> 0 | AG159: =Randomizer!AG176 -> 0 | AH159: =Randomizer!AH176 -> 0 | AI159: =Randomizer!AI176 -> 0 | AJ159: =Randomizer!AJ176 -> 0 | AK159: =Randomizer!AK176 -> 0 | AL159: =Randomizer!AL176 -> 0 | AM159: =Randomizer!AM176 -> 0 | AN159: =Randomizer!AN176 -> 0 | AO159: =Randomizer!AO176 -> 0 | AP159: =Randomizer!AP176 -> 0 | AQ159: =Randomizer!AQ176 -> 0 | AR159: =Randomizer!AR176 -> 0 | AS159: =Randomizer!AS176 -> 0 | AT159: =Randomizer!AT176 -> 0 | AU159: =Randomizer!AU176 -> 0 | AV159: =Randomizer!AV176 -> 0 | AW159: =Randomizer!AW176 -> 0 | AX159: =Randomizer!AX176 -> 0 | AY159: =Randomizer!AY176 -> 0 | AZ159: =Randomizer!AZ176 -> 0 | BA159: =Randomizer!BA176 -> 0 | BB159: =Randomizer!BB176 -> 0 | BC159: =Randomizer!BC176 -> 0 | BD159: =Randomizer!BD176 -> 0 | BE159: =Randomizer!BE176 -> 0 | BF159: =Randomizer!BF176 -> 0 | BG159: =Randomizer!BG176 -> 0 | BH159: =Randomizer!BH176 -> 0 | BI159: =Randomizer!BI176 -> 0 | BJ159: =Randomizer!BJ176 -> 0 | BK159: =Randomizer!BK176 -> 0 | BL159: =Randomizer!BL176 -> 0 | BM159: =Randomizer!BM176 -> 0 | BN159: =Randomizer!BN176 -> 0 | BO159: =Randomizer!BO176 -> 0 | BP159: =Randomizer!BP176 -> 0 | BQ159: =Randomizer!BQ176 -> 0 | BR159: =Randomizer!BR176 -> 0 | BS159: =Randomizer!BS176 -> 0 | BT159: =Randomizer!BT176 -> 0 | BU159: =Randomizer!BU176 -> 0 | BV159: =Randomizer!BV176 -> 0 | BW159: =Randomizer!BW176 -> 0 | BX159: =Randomizer!BX176 -> 0 | BY159: =Randomizer!BY176 -> 0 | BZ159: =Randomizer!BZ176 -> 0 | CA159: =Randomizer!CA176 -> 0 | CB159: =Randomizer!CB176 -> 0 | CC159: =Randomizer!CC176 -> 0 | CD159: =Randomizer!CD176 -> 0 | CE159: =Randomizer!CE176 -> 0 | CF159: =Randomizer!CF176 -> 0 | CG159: =Randomizer!CG176 -> 0 | CH159: =Randomizer!CH176 -> 0 | CI159: =Randomizer!CI176 -> 0 | CJ159: =Randomizer!CJ176 -> 0 | CK159: =Randomizer!CK176 -> 0 | CL159: =Randomizer!CL176 -> 0 | CM159: =Randomizer!CM176 -> 0 | CN159: =Randomizer!CN176 -> 0
B160: Name | C160: =C155 -> Bruce | D160: phil | E160: Aleix | F160: Mark R | G160: Les | H160: Mark T | I160: Paul | J160: mike | K160: Ian | L160: Dave | M160: 0 | N160: 0 | O160: 0 | P160: 0 | Q160: 0 | R160: 0 | S160: 0 | T160: 0 | U160: 0 | V160: 0 | W160: 0 | X160: 0 | Y160: 0 | Z160: 0 | AA160: 0 | AB160: 0 | AC160: 0 | AD160: 0 | AE160: 0 | AF160: 0 | AG160: 0 | AH160: 0 | AI160: =AI155 -> 0 | AJ160: 0 | AK160: 0 | AL160: 0 | AM160: 0 | AN160: 0 | AO160: 0 | AP160: 0 | AQ160: 0 | AR160: 0 | AS160: 0 | AT160: 0 | AU160: 0 | AV160: 0 | AW160: 0 | AX160: 0 | AY160: 0 | AZ160: 0 | BA160: 0 | BB160: 0 | BC160: 0 | BD160: 0 | BE160: 0 | BF160: 0 | BG160: 0 | BH160: 0 | BI160: 0 | BJ160: 0 | BK160: 0 | BL160: 0 | BM160: 0 | BN160: 0 | BO160: =BO155 -> 0 | BP160: 0 | BQ160: 0 | BR160: 0 | BS160: 0 | BT160: 0 | BU160: 0 | BV160: 0 | BW160: 0 | BX160: 0 | BY160: 0 | BZ160: 0 | CA160: 0 | CB160: 0 | CC160: 0 | CD160: 0 | CE160: 0 | CF160: 0 | CG160: 0 | CH160: 0 | CI160: 0 | CJ160: 0 | CK160: 0 | CL160: 0 | CM160: 0 | CN160: 0 | CT160: =A159 -> 0
A161: 28 | B161: Round rank | C161: =RANK(C164,$C164:$CN164,0) -> 1 | D161: 1 | E161: 1 | F161: 1 | G161: 1 | H161: 1 | I161: 1 | J161: 1 | K161: 1 | L161: 1 | M161: 1 | N161: 1 | O161: 1 | P161: 1 | Q161: 1 | R161: 1 | S161: 1 | T161: 1 | U161: 1 | V161: 1 | W161: 1 | X161: 1 | Y161: 1 | Z161: 1 | AA161: 1 | AB161: 1 | AC161: 1 | AD161: 1 | AE161: 1 | AF161: 1 | AG161: 1 | AH161: 1 | AI161: =RANK(AI164,$C164:$CN164,0) -> 1 | AJ161: 1 | AK161: 1 | AL161: 1 | AM161: 1 | AN161: 1 | AO161: 1 | AP161: 1 | AQ161: 1 | AR161: 1 | AS161: 1 | AT161: 1 | AU161: 1 | AV161: 1 | AW161: 1 | AX161: 1 | AY161: 1 | AZ161: 1 | BA161: 1 | BB161: 1 | BC161: 1 | BD161: 1 | BE161: 1 | BF161: 1 | BG161: 1 | BH161: 1 | BI161: 1 | BJ161: 1 | BK161: 1 | BL161: 1 | BM161: 1 | BN161: 1 | BO161: =RANK(BO164,$C164:$CN164,0) -> 1 | BP161: 1 | BQ161: 1 | BR161: 1 | BS161: 1 | BT161: 1 | BU161: 1 | BV161: 1 | BW161: 1 | BX161: 1 | BY161: 1 | BZ161: 1 | CA161: 1 | CB161: 1 | CC161: 1 | CD161: 1 | CE161: 1 | CF161: 1 | CG161: 1 | CH161: 1 | CI161: 1 | CJ161: 1 | CK161: 1 | CL161: 1 | CM161: 1 | CN161: 1
B162: Time | CP162: =IF(Randomizer!CP179=0,"",Randomizer!CP179) ->  | CQ162: =IF(CP162=0, "", Randomizer!CQ179) ->  | CT162: =A161 -> 28
B163: Penalties
B164: Score | C164: =Randomizer!C182 -> 0 | D164: =Randomizer!D182 -> 0 | E164: =Randomizer!E182 -> 0 | F164: =Randomizer!F182 -> 0 | G164: =Randomizer!G182 -> 0 | H164: =Randomizer!H182 -> 0 | I164: =Randomizer!I182 -> 0 | J164: =Randomizer!J182 -> 0 | K164: =Randomizer!K182 -> 0 | L164: =Randomizer!L182 -> 0 | M164: =Randomizer!M182 -> 0 | N164: =Randomizer!N182 -> 0 | O164: =Randomizer!O182 -> 0 | P164: =Randomizer!P182 -> 0 | Q164: =Randomizer!Q182 -> 0 | R164: =Randomizer!R182 -> 0 | S164: =Randomizer!S182 -> 0 | T164: =Randomizer!T182 -> 0 | U164: =Randomizer!U182 -> 0 | V164: =Randomizer!V182 -> 0 | W164: =Randomizer!W182 -> 0 | X164: =Randomizer!X182 -> 0 | Y164: =Randomizer!Y182 -> 0 | Z164: =Randomizer!Z182 -> 0 | AA164: =Randomizer!AA182 -> 0 | AB164: =Randomizer!AB182 -> 0 | AC164: =Randomizer!AC182 -> 0 | AD164: =Randomizer!AD182 -> 0 | AE164: =Randomizer!AE182 -> 0 | AF164: =Randomizer!AF182 -> 0 | AG164: =Randomizer!AG182 -> 0 | AH164: =Randomizer!AH182 -> 0 | AI164: =Randomizer!AI182 -> 0 | AJ164: =Randomizer!AJ182 -> 0 | AK164: =Randomizer!AK182 -> 0 | AL164: =Randomizer!AL182 -> 0 | AM164: =Randomizer!AM182 -> 0 | AN164: =Randomizer!AN182 -> 0 | AO164: =Randomizer!AO182 -> 0 | AP164: =Randomizer!AP182 -> 0 | AQ164: =Randomizer!AQ182 -> 0 | AR164: =Randomizer!AR182 -> 0 | AS164: =Randomizer!AS182 -> 0 | AT164: =Randomizer!AT182 -> 0 | AU164: =Randomizer!AU182 -> 0 | AV164: =Randomizer!AV182 -> 0 | AW164: =Randomizer!AW182 -> 0 | AX164: =Randomizer!AX182 -> 0 | AY164: =Randomizer!AY182 -> 0 | AZ164: =Randomizer!AZ182 -> 0 | BA164: =Randomizer!BA182 -> 0 | BB164: =Randomizer!BB182 -> 0 | BC164: =Randomizer!BC182 -> 0 | BD164: =Randomizer!BD182 -> 0 | BE164: =Randomizer!BE182 -> 0 | BF164: =Randomizer!BF182 -> 0 | BG164: =Randomizer!BG182 -> 0 | BH164: =Randomizer!BH182 -> 0 | BI164: =Randomizer!BI182 -> 0 | BJ164: =Randomizer!BJ182 -> 0 | BK164: =Randomizer!BK182 -> 0 | BL164: =Randomizer!BL182 -> 0 | BM164: =Randomizer!BM182 -> 0 | BN164: =Randomizer!BN182 -> 0 | BO164: =Randomizer!BO182 -> 0 | BP164: =Randomizer!BP182 -> 0 | BQ164: =Randomizer!BQ182 -> 0 | BR164: =Randomizer!BR182 -> 0 | BS164: =Randomizer!BS182 -> 0 | BT164: =Randomizer!BT182 -> 0 | BU164: =Randomizer!BU182 -> 0 | BV164: =Randomizer!BV182 -> 0 | BW164: =Randomizer!BW182 -> 0 | BX164: =Randomizer!BX182 -> 0 | BY164: =Randomizer!BY182 -> 0 | BZ164: =Randomizer!BZ182 -> 0 | CA164: =Randomizer!CA182 -> 0 | CB164: =Randomizer!CB182 -> 0 | CC164: =Randomizer!CC182 -> 0 | CD164: =Randomizer!CD182 -> 0 | CE164: =Randomizer!CE182 -> 0 | CF164: =Randomizer!CF182 -> 0 | CG164: =Randomizer!CG182 -> 0 | CH164: =Randomizer!CH182 -> 0 | CI164: =Randomizer!CI182 -> 0 | CJ164: =Randomizer!CJ182 -> 0 | CK164: =Randomizer!CK182 -> 0 | CL164: =Randomizer!CL182 -> 0 | CM164: =Randomizer!CM182 -> 0 | CN164: =Randomizer!CN182 -> 0
B165: Name | C165: =C160 -> Bruce | D165: phil | E165: Aleix | F165: Mark R | G165: Les | H165: Mark T | I165: Paul | J165: mike | K165: Ian | L165: Dave | M165: 0 | N165: 0 | O165: 0 | P165: 0 | Q165: 0 | R165: 0 | S165: 0 | T165: 0 | U165: 0 | V165: 0 | W165: 0 | X165: 0 | Y165: 0 | Z165: 0 | AA165: 0 | AB165: 0 | AC165: 0 | AD165: 0 | AE165: 0 | AF165: 0 | AG165: 0 | AH165: 0 | AI165: =AI160 -> 0 | AJ165: 0 | AK165: 0 | AL165: 0 | AM165: 0 | AN165: 0 | AO165: 0 | AP165: 0 | AQ165: 0 | AR165: 0 | AS165: 0 | AT165: 0 | AU165: 0 | AV165: 0 | AW165: 0 | AX165: 0 | AY165: 0 | AZ165: 0 | BA165: 0 | BB165: 0 | BC165: 0 | BD165: 0 | BE165: 0 | BF165: 0 | BG165: 0 | BH165: 0 | BI165: 0 | BJ165: 0 | BK165: 0 | BL165: 0 | BM165: 0 | BN165: 0 | BO165: =BO160 -> 0 | BP165: 0 | BQ165: 0 | BR165: 0 | BS165: 0 | BT165: 0 | BU165: 0 | BV165: 0 | BW165: 0 | BX165: 0 | BY165: 0 | BZ165: 0 | CA165: 0 | CB165: 0 | CC165: 0 | CD165: 0 | CE165: 0 | CF165: 0 | CG165: 0 | CH165: 0 | CI165: 0 | CJ165: 0 | CK165: 0 | CL165: 0 | CM165: 0 | CN165: 0 | CT165: =A164 -> 0
A166: 29 | B166: Round rank | C166: =RANK(C169,$C169:$CN169,0) -> 1 | D166: 1 | E166: 1 | F166: 1 | G166: 1 | H166: 1 | I166: 1 | J166: 1 | K166: 1 | L166: 1 | M166: 1 | N166: 1 | O166: 1 | P166: 1 | Q166: 1 | R166: 1 | S166: 1 | T166: 1 | U166: 1 | V166: 1 | W166: 1 | X166: 1 | Y166: 1 | Z166: 1 | AA166: 1 | AB166: 1 | AC166: 1 | AD166: 1 | AE166: 1 | AF166: 1 | AG166: 1 | AH166: 1 | AI166: =RANK(AI169,$C169:$CN169,0) -> 1 | AJ166: 1 | AK166: 1 | AL166: 1 | AM166: 1 | AN166: 1 | AO166: 1 | AP166: 1 | AQ166: 1 | AR166: 1 | AS166: 1 | AT166: 1 | AU166: 1 | AV166: 1 | AW166: 1 | AX166: 1 | AY166: 1 | AZ166: 1 | BA166: 1 | BB166: 1 | BC166: 1 | BD166: 1 | BE166: 1 | BF166: 1 | BG166: 1 | BH166: 1 | BI166: 1 | BJ166: 1 | BK166: 1 | BL166: 1 | BM166: 1 | BN166: 1 | BO166: =RANK(BO169,$C169:$CN169,0) -> 1 | BP166: 1 | BQ166: 1 | BR166: 1 | BS166: 1 | BT166: 1 | BU166: 1 | BV166: 1 | BW166: 1 | BX166: 1 | BY166: 1 | BZ166: 1 | CA166: 1 | CB166: 1 | CC166: 1 | CD166: 1 | CE166: 1 | CF166: 1 | CG166: 1 | CH166: 1 | CI166: 1 | CJ166: 1 | CK166: 1 | CL166: 1 | CM166: 1 | CN166: 1
B167: Time | CP167: =IF(Randomizer!CP185=0,"",Randomizer!CP185) ->  | CQ167: =IF(CP167=0, "", Randomizer!CQ185) ->  | CT167: =A166 -> 29
B168: Penalties
B169: Score | C169: =Randomizer!C188 -> 0 | D169: =Randomizer!D188 -> 0 | E169: =Randomizer!E188 -> 0 | F169: =Randomizer!F188 -> 0 | G169: =Randomizer!G188 -> 0 | H169: =Randomizer!H188 -> 0 | I169: =Randomizer!I188 -> 0 | J169: =Randomizer!J188 -> 0 | K169: =Randomizer!K188 -> 0 | L169: =Randomizer!L188 -> 0 | M169: =Randomizer!M188 -> 0 | N169: =Randomizer!N188 -> 0 | O169: =Randomizer!O188 -> 0 | P169: =Randomizer!P188 -> 0 | Q169: =Randomizer!Q188 -> 0 | R169: =Randomizer!R188 -> 0 | S169: =Randomizer!S188 -> 0 | T169: =Randomizer!T188 -> 0 | U169: =Randomizer!U188 -> 0 | V169: =Randomizer!V188 -> 0 | W169: =Randomizer!W188 -> 0 | X169: =Randomizer!X188 -> 0 | Y169: =Randomizer!Y188 -> 0 | Z169: =Randomizer!Z188 -> 0 | AA169: =Randomizer!AA188 -> 0 | AB169: =Randomizer!AB188 -> 0 | AC169: =Randomizer!AC188 -> 0 | AD169: =Randomizer!AD188 -> 0 | AE169: =Randomizer!AE188 -> 0 | AF169: =Randomizer!AF188 -> 0 | AG169: =Randomizer!AG188 -> 0 | AH169: =Randomizer!AH188 -> 0 | AI169: =Randomizer!AI188 -> 0 | AJ169: =Randomizer!AJ188 -> 0 | AK169: =Randomizer!AK188 -> 0 | AL169: =Randomizer!AL188 -> 0 | AM169: =Randomizer!AM188 -> 0 | AN169: =Randomizer!AN188 -> 0 | AO169: =Randomizer!AO188 -> 0 | AP169: =Randomizer!AP188 -> 0 | AQ169: =Randomizer!AQ188 -> 0 | AR169: =Randomizer!AR188 -> 0 | AS169: =Randomizer!AS188 -> 0 | AT169: =Randomizer!AT188 -> 0 | AU169: =Randomizer!AU188 -> 0 | AV169: =Randomizer!AV188 -> 0 | AW169: =Randomizer!AW188 -> 0 | AX169: =Randomizer!AX188 -> 0 | AY169: =Randomizer!AY188 -> 0 | AZ169: =Randomizer!AZ188 -> 0 | BA169: =Randomizer!BA188 -> 0 | BB169: =Randomizer!BB188 -> 0 | BC169: =Randomizer!BC188 -> 0 | BD169: =Randomizer!BD188 -> 0 | BE169: =Randomizer!BE188 -> 0 | BF169: =Randomizer!BF188 -> 0 | BG169: =Randomizer!BG188 -> 0 | BH169: =Randomizer!BH188 -> 0 | BI169: =Randomizer!BI188 -> 0 | BJ169: =Randomizer!BJ188 -> 0 | BK169: =Randomizer!BK188 -> 0 | BL169: =Randomizer!BL188 -> 0 | BM169: =Randomizer!BM188 -> 0 | BN169: =Randomizer!BN188 -> 0 | BO169: =Randomizer!BO188 -> 0 | BP169: =Randomizer!BP188 -> 0 | BQ169: =Randomizer!BQ188 -> 0 | BR169: =Randomizer!BR188 -> 0 | BS169: =Randomizer!BS188 -> 0 | BT169: =Randomizer!BT188 -> 0 | BU169: =Randomizer!BU188 -> 0 | BV169: =Randomizer!BV188 -> 0 | BW169: =Randomizer!BW188 -> 0 | BX169: =Randomizer!BX188 -> 0 | BY169: =Randomizer!BY188 -> 0 | BZ169: =Randomizer!BZ188 -> 0 | CA169: =Randomizer!CA188 -> 0 | CB169: =Randomizer!CB188 -> 0 | CC169: =Randomizer!CC188 -> 0 | CD169: =Randomizer!CD188 -> 0 | CE169: =Randomizer!CE188 -> 0 | CF169: =Randomizer!CF188 -> 0 | CG169: =Randomizer!CG188 -> 0 | CH169: =Randomizer!CH188 -> 0 | CI169: =Randomizer!CI188 -> 0 | CJ169: =Randomizer!CJ188 -> 0 | CK169: =Randomizer!CK188 -> 0 | CL169: =Randomizer!CL188 -> 0 | CM169: =Randomizer!CM188 -> 0 | CN169: =Randomizer!CN188 -> 0
B170: Name | C170: =C165 -> Bruce | D170: phil | E170: Aleix | F170: Mark R | G170: Les | H170: Mark T | I170: Paul | J170: mike | K170: Ian | L170: Dave | M170: 0 | N170: 0 | O170: 0 | P170: 0 | Q170: 0 | R170: 0 | S170: 0 | T170: 0 | U170: 0 | V170: 0 | W170: 0 | X170: 0 | Y170: 0 | Z170: 0 | AA170: 0 | AB170: 0 | AC170: 0 | AD170: 0 | AE170: 0 | AF170: 0 | AG170: 0 | AH170: 0 | AI170: =AI165 -> 0 | AJ170: 0 | AK170: 0 | AL170: 0 | AM170: 0 | AN170: 0 | AO170: 0 | AP170: 0 | AQ170: 0 | AR170: 0 | AS170: 0 | AT170: 0 | AU170: 0 | AV170: 0 | AW170: 0 | AX170: 0 | AY170: 0 | AZ170: 0 | BA170: 0 | BB170: 0 | BC170: 0 | BD170: 0 | BE170: 0 | BF170: 0 | BG170: 0 | BH170: 0 | BI170: 0 | BJ170: 0 | BK170: 0 | BL170: 0 | BM170: 0 | BN170: 0 | BO170: =BO165 -> 0 | BP170: 0 | BQ170: 0 | BR170: 0 | BS170: 0 | BT170: 0 | BU170: 0 | BV170: 0 | BW170: 0 | BX170: 0 | BY170: 0 | BZ170: 0 | CA170: 0 | CB170: 0 | CC170: 0 | CD170: 0 | CE170: 0 | CF170: 0 | CG170: 0 | CH170: 0 | CI170: 0 | CJ170: 0 | CK170: 0 | CL170: 0 | CM170: 0 | CN170: 0 | CT170: =A169 -> 0
A171: 30 | B171: Round rank | C171: =RANK(C174,$C174:$CN174,0) -> 1 | D171: 1 | E171: 1 | F171: 1 | G171: 1 | H171: 1 | I171: 1 | J171: 1 | K171: 1 | L171: 1 | M171: 1 | N171: 1 | O171: 1 | P171: 1 | Q171: 1 | R171: 1 | S171: 1 | T171: 1 | U171: 1 | V171: 1 | W171: 1 | X171: 1 | Y171: 1 | Z171: 1 | AA171: 1 | AB171: 1 | AC171: 1 | AD171: 1 | AE171: 1 | AF171: 1 | AG171: 1 | AH171: 1 | AI171: =RANK(AI174,$C174:$CN174,0) -> 1 | AJ171: 1 | AK171: 1 | AL171: 1 | AM171: 1 | AN171: 1 | AO171: 1 | AP171: 1 | AQ171: 1 | AR171: 1 | AS171: 1 | AT171: 1 | AU171: 1 | AV171: 1 | AW171: 1 | AX171: 1 | AY171: 1 | AZ171: 1 | BA171: 1 | BB171: 1 | BC171: 1 | BD171: 1 | BE171: 1 | BF171: 1 | BG171: 1 | BH171: 1 | BI171: 1 | BJ171: 1 | BK171: 1 | BL171: 1 | BM171: 1 | BN171: 1 | BO171: =RANK(BO174,$C174:$CN174,0) -> 1 | BP171: 1 | BQ171: 1 | BR171: 1 | BS171: 1 | BT171: 1 | BU171: 1 | BV171: 1 | BW171: 1 | BX171: 1 | BY171: 1 | BZ171: 1 | CA171: 1 | CB171: 1 | CC171: 1 | CD171: 1 | CE171: 1 | CF171: 1 | CG171: 1 | CH171: 1 | CI171: 1 | CJ171: 1 | CK171: 1 | CL171: 1 | CM171: 1 | CN171: 1
B172: Time | CP172: =IF(Randomizer!CP191=0,"",Randomizer!CP191) ->  | CQ172: =IF(CP172=0, "", Randomizer!CQ191) ->  | CT172: =A171 -> 30
B173: Penalties
B174: Score | C174: =Randomizer!C194 -> 0 | D174: =Randomizer!D194 -> 0 | E174: =Randomizer!E194 -> 0 | F174: =Randomizer!F194 -> 0 | G174: =Randomizer!G194 -> 0 | H174: =Randomizer!H194 -> 0 | I174: =Randomizer!I194 -> 0 | J174: =Randomizer!J194 -> 0 | K174: =Randomizer!K194 -> 0 | L174: =Randomizer!L194 -> 0 | M174: =Randomizer!M194 -> 0 | N174: =Randomizer!N194 -> 0 | O174: =Randomizer!O194 -> 0 | P174: =Randomizer!P194 -> 0 | Q174: =Randomizer!Q194 -> 0 | R174: =Randomizer!R194 -> 0 | S174: =Randomizer!S194 -> 0 | T174: =Randomizer!T194 -> 0 | U174: =Randomizer!U194 -> 0 | V174: =Randomizer!V194 -> 0 | W174: =Randomizer!W194 -> 0 | X174: =Randomizer!X194 -> 0 | Y174: =Randomizer!Y194 -> 0 | Z174: =Randomizer!Z194 -> 0 | AA174: =Randomizer!AA194 -> 0 | AB174: =Randomizer!AB194 -> 0 | AC174: =Randomizer!AC194 -> 0 | AD174: =Randomizer!AD194 -> 0 | AE174: =Randomizer!AE194 -> 0 | AF174: =Randomizer!AF194 -> 0 | AG174: =Randomizer!AG194 -> 0 | AH174: =Randomizer!AH194 -> 0 | AI174: =Randomizer!AI194 -> 0 | AJ174: =Randomizer!AJ194 -> 0 | AK174: =Randomizer!AK194 -> 0 | AL174: =Randomizer!AL194 -> 0 | AM174: =Randomizer!AM194 -> 0 | AN174: =Randomizer!AN194 -> 0 | AO174: =Randomizer!AO194 -> 0 | AP174: =Randomizer!AP194 -> 0 | AQ174: =Randomizer!AQ194 -> 0 | AR174: =Randomizer!AR194 -> 0 | AS174: =Randomizer!AS194 -> 0 | AT174: =Randomizer!AT194 -> 0 | AU174: =Randomizer!AU194 -> 0 | AV174: =Randomizer!AV194 -> 0 | AW174: =Randomizer!AW194 -> 0 | AX174: =Randomizer!AX194 -> 0 | AY174: =Randomizer!AY194 -> 0 | AZ174: =Randomizer!AZ194 -> 0 | BA174: =Randomizer!BA194 -> 0 | BB174: =Randomizer!BB194 -> 0 | BC174: =Randomizer!BC194 -> 0 | BD174: =Randomizer!BD194 -> 0 | BE174: =Randomizer!BE194 -> 0 | BF174: =Randomizer!BF194 -> 0 | BG174: =Randomizer!BG194 -> 0 | BH174: =Randomizer!BH194 -> 0 | BI174: =Randomizer!BI194 -> 0 | BJ174: =Randomizer!BJ194 -> 0 | BK174: =Randomizer!BK194 -> 0 | BL174: =Randomizer!BL194 -> 0 | BM174: =Randomizer!BM194 -> 0 | BN174: =Randomizer!BN194 -> 0 | BO174: =Randomizer!BO194 -> 0 | BP174: =Randomizer!BP194 -> 0 | BQ174: =Randomizer!BQ194 -> 0 | BR174: =Randomizer!BR194 -> 0 | BS174: =Randomizer!BS194 -> 0 | BT174: =Randomizer!BT194 -> 0 | BU174: =Randomizer!BU194 -> 0 | BV174: =Randomizer!BV194 -> 0 | BW174: =Randomizer!BW194 -> 0 | BX174: =Randomizer!BX194 -> 0 | BY174: =Randomizer!BY194 -> 0 | BZ174: =Randomizer!BZ194 -> 0 | CA174: =Randomizer!CA194 -> 0 | CB174: =Randomizer!CB194 -> 0 | CC174: =Randomizer!CC194 -> 0 | CD174: =Randomizer!CD194 -> 0 | CE174: =Randomizer!CE194 -> 0 | CF174: =Randomizer!CF194 -> 0 | CG174: =Randomizer!CG194 -> 0 | CH174: =Randomizer!CH194 -> 0 | CI174: =Randomizer!CI194 -> 0 | CJ174: =Randomizer!CJ194 -> 0 | CK174: =Randomizer!CK194 -> 0 | CL174: =Randomizer!CL194 -> 0 | CM174: =Randomizer!CM194 -> 0 | CN174: =Randomizer!CN194 -> 0
B175: Name | C175: =C170 -> Bruce | D175: phil | E175: Aleix | F175: Mark R | G175: Les | H175: Mark T | I175: Paul | J175: mike | K175: Ian | L175: Dave | M175: 0 | N175: 0 | O175: 0 | P175: 0 | Q175: 0 | R175: 0 | S175: 0 | T175: 0 | U175: 0 | V175: 0 | W175: 0 | X175: 0 | Y175: 0 | Z175: 0 | AA175: 0 | AB175: 0 | AC175: 0 | AD175: 0 | AE175: 0 | AF175: 0 | AG175: 0 | AH175: 0 | AI175: =AI170 -> 0 | AJ175: 0 | AK175: 0 | AL175: 0 | AM175: 0 | AN175: 0 | AO175: 0 | AP175: 0 | AQ175: 0 | AR175: 0 | AS175: 0 | AT175: 0 | AU175: 0 | AV175: 0 | AW175: 0 | AX175: 0 | AY175: 0 | AZ175: 0 | BA175: 0 | BB175: 0 | BC175: 0 | BD175: 0 | BE175: 0 | BF175: 0 | BG175: 0 | BH175: 0 | BI175: 0 | BJ175: 0 | BK175: 0 | BL175: 0 | BM175: 0 | BN175: 0 | BO175: =BO170 -> 0 | BP175: 0 | BQ175: 0 | BR175: 0 | BS175: 0 | BT175: 0 | BU175: 0 | BV175: 0 | BW175: 0 | BX175: 0 | BY175: 0 | BZ175: 0 | CA175: 0 | CB175: 0 | CC175: 0 | CD175: 0 | CE175: 0 | CF175: 0 | CG175: 0 | CH175: 0 | CI175: 0 | CJ175: 0 | CK175: 0 | CL175: 0 | CM175: 0 | CN175: 0 | CT175: =A174 -> 0
A176: 31 | B176: Round rank | C176: =RANK(C179,$C179:$CN179,0) -> 1 | D176: 1 | E176: 1 | F176: 1 | G176: 1 | H176: 1 | I176: 1 | J176: 1 | K176: 1 | L176: 1 | M176: 1 | N176: 1 | O176: 1 | P176: 1 | Q176: 1 | R176: 1 | S176: 1 | T176: 1 | U176: 1 | V176: 1 | W176: 1 | X176: 1 | Y176: 1 | Z176: 1 | AA176: 1 | AB176: 1 | AC176: 1 | AD176: 1 | AE176: 1 | AF176: 1 | AG176: 1 | AH176: 1 | AI176: =RANK(AI179,$C179:$CN179,0) -> 1 | AJ176: 1 | AK176: 1 | AL176: 1 | AM176: 1 | AN176: 1 | AO176: 1 | AP176: 1 | AQ176: 1 | AR176: 1 | AS176: 1 | AT176: 1 | AU176: 1 | AV176: 1 | AW176: 1 | AX176: 1 | AY176: 1 | AZ176: 1 | BA176: 1 | BB176: 1 | BC176: 1 | BD176: 1 | BE176: 1 | BF176: 1 | BG176: 1 | BH176: 1 | BI176: 1 | BJ176: 1 | BK176: 1 | BL176: 1 | BM176: 1 | BN176: 1 | BO176: =RANK(BO179,$C179:$CN179,0) -> 1 | BP176: 1 | BQ176: 1 | BR176: 1 | BS176: 1 | BT176: 1 | BU176: 1 | BV176: 1 | BW176: 1 | BX176: 1 | BY176: 1 | BZ176: 1 | CA176: 1 | CB176: 1 | CC176: 1 | CD176: 1 | CE176: 1 | CF176: 1 | CG176: 1 | CH176: 1 | CI176: 1 | CJ176: 1 | CK176: 1 | CL176: 1 | CM176: 1 | CN176: 1
B177: Time | CP177: =IF(Randomizer!CP197=0,"",Randomizer!CP197) ->  | CQ177: =IF(CP177=0, "", Randomizer!CQ197) ->  | CT177: =A176 -> 31
B178: Penalties
B179: Score | C179: =Randomizer!C200 -> 0 | D179: =Randomizer!D200 -> 0 | E179: =Randomizer!E200 -> 0 | F179: =Randomizer!F200 -> 0 | G179: =Randomizer!G200 -> 0 | H179: =Randomizer!H200 -> 0 | I179: =Randomizer!I200 -> 0 | J179: =Randomizer!J200 -> 0 | K179: =Randomizer!K200 -> 0 | L179: =Randomizer!L200 -> 0 | M179: =Randomizer!M200 -> 0 | N179: =Randomizer!N200 -> 0 | O179: =Randomizer!O200 -> 0 | P179: =Randomizer!P200 -> 0 | Q179: =Randomizer!Q200 -> 0 | R179: =Randomizer!R200 -> 0 | S179: =Randomizer!S200 -> 0 | T179: =Randomizer!T200 -> 0 | U179: =Randomizer!U200 -> 0 | V179: =Randomizer!V200 -> 0 | W179: =Randomizer!W200 -> 0 | X179: =Randomizer!X200 -> 0 | Y179: =Randomizer!Y200 -> 0 | Z179: =Randomizer!Z200 -> 0 | AA179: =Randomizer!AA200 -> 0 | AB179: =Randomizer!AB200 -> 0 | AC179: =Randomizer!AC200 -> 0 | AD179: =Randomizer!AD200 -> 0 | AE179: =Randomizer!AE200 -> 0 | AF179: =Randomizer!AF200 -> 0 | AG179: =Randomizer!AG200 -> 0 | AH179: =Randomizer!AH200 -> 0 | AI179: =Randomizer!AI200 -> 0 | AJ179: =Randomizer!AJ200 -> 0 | AK179: =Randomizer!AK200 -> 0 | AL179: =Randomizer!AL200 -> 0 | AM179: =Randomizer!AM200 -> 0 | AN179: =Randomizer!AN200 -> 0 | AO179: =Randomizer!AO200 -> 0 | AP179: =Randomizer!AP200 -> 0 | AQ179: =Randomizer!AQ200 -> 0 | AR179: =Randomizer!AR200 -> 0 | AS179: =Randomizer!AS200 -> 0 | AT179: =Randomizer!AT200 -> 0 | AU179: =Randomizer!AU200 -> 0 | AV179: =Randomizer!AV200 -> 0 | AW179: =Randomizer!AW200 -> 0 | AX179: =Randomizer!AX200 -> 0 | AY179: =Randomizer!AY200 -> 0 | AZ179: =Randomizer!AZ200 -> 0 | BA179: =Randomizer!BA200 -> 0 | BB179: =Randomizer!BB200 -> 0 | BC179: =Randomizer!BC200 -> 0 | BD179: =Randomizer!BD200 -> 0 | BE179: =Randomizer!BE200 -> 0 | BF179: =Randomizer!BF200 -> 0 | BG179: =Randomizer!BG200 -> 0 | BH179: =Randomizer!BH200 -> 0 | BI179: =Randomizer!BI200 -> 0 | BJ179: =Randomizer!BJ200 -> 0 | BK179: =Randomizer!BK200 -> 0 | BL179: =Randomizer!BL200 -> 0 | BM179: =Randomizer!BM200 -> 0 | BN179: =Randomizer!BN200 -> 0 | BO179: =Randomizer!BO200 -> 0 | BP179: =Randomizer!BP200 -> 0 | BQ179: =Randomizer!BQ200 -> 0 | BR179: =Randomizer!BR200 -> 0 | BS179: =Randomizer!BS200 -> 0 | BT179: =Randomizer!BT200 -> 0 | BU179: =Randomizer!BU200 -> 0 | BV179: =Randomizer!BV200 -> 0 | BW179: =Randomizer!BW200 -> 0 | BX179: =Randomizer!BX200 -> 0 | BY179: =Randomizer!BY200 -> 0 | BZ179: =Randomizer!BZ200 -> 0 | CA179: =Randomizer!CA200 -> 0 | CB179: =Randomizer!CB200 -> 0 | CC179: =Randomizer!CC200 -> 0 | CD179: =Randomizer!CD200 -> 0 | CE179: =Randomizer!CE200 -> 0 | CF179: =Randomizer!CF200 -> 0 | CG179: =Randomizer!CG200 -> 0 | CH179: =Randomizer!CH200 -> 0 | CI179: =Randomizer!CI200 -> 0 | CJ179: =Randomizer!CJ200 -> 0 | CK179: =Randomizer!CK200 -> 0 | CL179: =Randomizer!CL200 -> 0 | CM179: =Randomizer!CM200 -> 0 | CN179: =Randomizer!CN200 -> 0
B180: Name | C180: =C175 -> Bruce | D180: phil | E180: Aleix | F180: Mark R | G180: Les | H180: Mark T | I180: Paul | J180: mike | K180: Ian | L180: Dave | M180: 0 | N180: 0 | O180: 0 | P180: 0 | Q180: 0 | R180: 0 | S180: 0 | T180: 0 | U180: 0 | V180: 0 | W180: 0 | X180: 0 | Y180: 0 | Z180: 0 | AA180: 0 | AB180: 0 | AC180: 0 | AD180: 0 | AE180: 0 | AF180: 0 | AG180: 0 | AH180: 0 | AI180: =AI175 -> 0 | AJ180: 0 | AK180: 0 | AL180: 0 | AM180: 0 | AN180: 0 | AO180: 0 | AP180: 0 | AQ180: 0 | AR180: 0 | AS180: 0 | AT180: 0 | AU180: 0 | AV180: 0 | AW180: 0 | AX180: 0 | AY180: 0 | AZ180: 0 | BA180: 0 | BB180: 0 | BC180: 0 | BD180: 0 | BE180: 0 | BF180: 0 | BG180: 0 | BH180: 0 | BI180: 0 | BJ180: 0 | BK180: 0 | BL180: 0 | BM180: 0 | BN180: 0 | BO180: =BO175 -> 0 | BP180: 0 | BQ180: 0 | BR180: 0 | BS180: 0 | BT180: 0 | BU180: 0 | BV180: 0 | BW180: 0 | BX180: 0 | BY180: 0 | BZ180: 0 | CA180: 0 | CB180: 0 | CC180: 0 | CD180: 0 | CE180: 0 | CF180: 0 | CG180: 0 | CH180: 0 | CI180: 0 | CJ180: 0 | CK180: 0 | CL180: 0 | CM180: 0 | CN180: 0 | CT180: =A179 -> 0
A181: 32 | B181: Round rank | C181: =RANK(C184,$C184:$CN184,0) -> 1 | D181: 1 | E181: 1 | F181: 1 | G181: 1 | H181: 1 | I181: 1 | J181: 1 | K181: 1 | L181: 1 | M181: 1 | N181: 1 | O181: 1 | P181: 1 | Q181: 1 | R181: 1 | S181: 1 | T181: 1 | U181: 1 | V181: 1 | W181: 1 | X181: 1 | Y181: 1 | Z181: 1 | AA181: 1 | AB181: 1 | AC181: 1 | AD181: 1 | AE181: 1 | AF181: 1 | AG181: 1 | AH181: 1 | AI181: =RANK(AI184,$C184:$CN184,0) -> 1 | AJ181: 1 | AK181: 1 | AL181: 1 | AM181: 1 | AN181: 1 | AO181: 1 | AP181: 1 | AQ181: 1 | AR181: 1 | AS181: 1 | AT181: 1 | AU181: 1 | AV181: 1 | AW181: 1 | AX181: 1 | AY181: 1 | AZ181: 1 | BA181: 1 | BB181: 1 | BC181: 1 | BD181: 1 | BE181: 1 | BF181: 1 | BG181: 1 | BH181: 1 | BI181: 1 | BJ181: 1 | BK181: 1 | BL181: 1 | BM181: 1 | BN181: 1 | BO181: =RANK(BO184,$C184:$CN184,0) -> 1 | BP181: 1 | BQ181: 1 | BR181: 1 | BS181: 1 | BT181: 1 | BU181: 1 | BV181: 1 | BW181: 1 | BX181: 1 | BY181: 1 | BZ181: 1 | CA181: 1 | CB181: 1 | CC181: 1 | CD181: 1 | CE181: 1 | CF181: 1 | CG181: 1 | CH181: 1 | CI181: 1 | CJ181: 1 | CK181: 1 | CL181: 1 | CM181: 1 | CN181: 1
B182: Time | CP182: =IF(Randomizer!CP203=0,"",Randomizer!CP203) ->  | CQ182: =IF(CP182=0, "", Randomizer!CQ203) ->  | CT182: =A181 -> 32
B183: Penalties
B184: Score | C184: =Randomizer!C206 -> 0 | D184: =Randomizer!D206 -> 0 | E184: =Randomizer!E206 -> 0 | F184: =Randomizer!F206 -> 0 | G184: =Randomizer!G206 -> 0 | H184: =Randomizer!H206 -> 0 | I184: =Randomizer!I206 -> 0 | J184: =Randomizer!J206 -> 0 | K184: =Randomizer!K206 -> 0 | L184: =Randomizer!L206 -> 0 | M184: =Randomizer!M206 -> 0 | N184: =Randomizer!N206 -> 0 | O184: =Randomizer!O206 -> 0 | P184: =Randomizer!P206 -> 0 | Q184: =Randomizer!Q206 -> 0 | R184: =Randomizer!R206 -> 0 | S184: =Randomizer!S206 -> 0 | T184: =Randomizer!T206 -> 0 | U184: =Randomizer!U206 -> 0 | V184: =Randomizer!V206 -> 0 | W184: =Randomizer!W206 -> 0 | X184: =Randomizer!X206 -> 0 | Y184: =Randomizer!Y206 -> 0 | Z184: =Randomizer!Z206 -> 0 | AA184: =Randomizer!AA206 -> 0 | AB184: =Randomizer!AB206 -> 0 | AC184: =Randomizer!AC206 -> 0 | AD184: =Randomizer!AD206 -> 0 | AE184: =Randomizer!AE206 -> 0 | AF184: =Randomizer!AF206 -> 0 | AG184: =Randomizer!AG206 -> 0 | AH184: =Randomizer!AH206 -> 0 | AI184: =Randomizer!AI206 -> 0 | AJ184: =Randomizer!AJ206 -> 0 | AK184: =Randomizer!AK206 -> 0 | AL184: =Randomizer!AL206 -> 0 | AM184: =Randomizer!AM206 -> 0 | AN184: =Randomizer!AN206 -> 0 | AO184: =Randomizer!AO206 -> 0 | AP184: =Randomizer!AP206 -> 0 | AQ184: =Randomizer!AQ206 -> 0 | AR184: =Randomizer!AR206 -> 0 | AS184: =Randomizer!AS206 -> 0 | AT184: =Randomizer!AT206 -> 0 | AU184: =Randomizer!AU206 -> 0 | AV184: =Randomizer!AV206 -> 0 | AW184: =Randomizer!AW206 -> 0 | AX184: =Randomizer!AX206 -> 0 | AY184: =Randomizer!AY206 -> 0 | AZ184: =Randomizer!AZ206 -> 0 | BA184: =Randomizer!BA206 -> 0 | BB184: =Randomizer!BB206 -> 0 | BC184: =Randomizer!BC206 -> 0 | BD184: =Randomizer!BD206 -> 0 | BE184: =Randomizer!BE206 -> 0 | BF184: =Randomizer!BF206 -> 0 | BG184: =Randomizer!BG206 -> 0 | BH184: =Randomizer!BH206 -> 0 | BI184: =Randomizer!BI206 -> 0 | BJ184: =Randomizer!BJ206 -> 0 | BK184: =Randomizer!BK206 -> 0 | BL184: =Randomizer!BL206 -> 0 | BM184: =Randomizer!BM206 -> 0 | BN184: =Randomizer!BN206 -> 0 | BO184: =Randomizer!BO206 -> 0 | BP184: =Randomizer!BP206 -> 0 | BQ184: =Randomizer!BQ206 -> 0 | BR184: =Randomizer!BR206 -> 0 | BS184: =Randomizer!BS206 -> 0 | BT184: =Randomizer!BT206 -> 0 | BU184: =Randomizer!BU206 -> 0 | BV184: =Randomizer!BV206 -> 0 | BW184: =Randomizer!BW206 -> 0 | BX184: =Randomizer!BX206 -> 0 | BY184: =Randomizer!BY206 -> 0 | BZ184: =Randomizer!BZ206 -> 0 | CA184: =Randomizer!CA206 -> 0 | CB184: =Randomizer!CB206 -> 0 | CC184: =Randomizer!CC206 -> 0 | CD184: =Randomizer!CD206 -> 0 | CE184: =Randomizer!CE206 -> 0 | CF184: =Randomizer!CF206 -> 0 | CG184: =Randomizer!CG206 -> 0 | CH184: =Randomizer!CH206 -> 0 | CI184: =Randomizer!CI206 -> 0 | CJ184: =Randomizer!CJ206 -> 0 | CK184: =Randomizer!CK206 -> 0 | CL184: =Randomizer!CL206 -> 0 | CM184: =Randomizer!CM206 -> 0 | CN184: =Randomizer!CN206 -> 0
B185: Name | C185: =C180 -> Bruce | D185: phil | E185: Aleix | F185: Mark R | G185: Les | H185: Mark T | I185: Paul | J185: mike | K185: Ian | L185: Dave | M185: 0 | N185: 0 | O185: 0 | P185: 0 | Q185: 0 | R185: 0 | S185: 0 | T185: 0 | U185: 0 | V185: 0 | W185: 0 | X185: 0 | Y185: 0 | Z185: 0 | AA185: 0 | AB185: 0 | AC185: 0 | AD185: 0 | AE185: 0 | AF185: 0 | AG185: 0 | AH185: 0 | AI185: =AI180 -> 0 | AJ185: 0 | AK185: 0 | AL185: 0 | AM185: 0 | AN185: 0 | AO185: 0 | AP185: 0 | AQ185: 0 | AR185: 0 | AS185: 0 | AT185: 0 | AU185: 0 | AV185: 0 | AW185: 0 | AX185: 0 | AY185: 0 | AZ185: 0 | BA185: 0 | BB185: 0 | BC185: 0 | BD185: 0 | BE185: 0 | BF185: 0 | BG185: 0 | BH185: 0 | BI185: 0 | BJ185: 0 | BK185: 0 | BL185: 0 | BM185: 0 | BN185: 0 | BO185: =BO180 -> 0 | BP185: 0 | BQ185: 0 | BR185: 0 | BS185: 0 | BT185: 0 | BU185: 0 | BV185: 0 | BW185: 0 | BX185: 0 | BY185: 0 | BZ185: 0 | CA185: 0 | CB185: 0 | CC185: 0 | CD185: 0 | CE185: 0 | CF185: 0 | CG185: 0 | CH185: 0 | CI185: 0 | CJ185: 0 | CK185: 0 | CL185: 0 | CM185: 0 | CN185: 0 | CT185: =A184 -> 0
A186: 33 | B186: Round rank | C186: =RANK(C189,$C189:$CN189,0) -> 1 | D186: 1 | E186: 1 | F186: 1 | G186: 1 | H186: 1 | I186: 1 | J186: 1 | K186: 1 | L186: 1 | M186: 1 | N186: 1 | O186: 1 | P186: 1 | Q186: 1 | R186: 1 | S186: 1 | T186: 1 | U186: 1 | V186: 1 | W186: 1 | X186: 1 | Y186: 1 | Z186: 1 | AA186: 1 | AB186: 1 | AC186: 1 | AD186: 1 | AE186: 1 | AF186: 1 | AG186: 1 | AH186: 1 | AI186: =RANK(AI189,$C189:$CN189,0) -> 1 | AJ186: 1 | AK186: 1 | AL186: 1 | AM186: 1 | AN186: 1 | AO186: 1 | AP186: 1 | AQ186: 1 | AR186: 1 | AS186: 1 | AT186: 1 | AU186: 1 | AV186: 1 | AW186: 1 | AX186: 1 | AY186: 1 | AZ186: 1 | BA186: 1 | BB186: 1 | BC186: 1 | BD186: 1 | BE186: 1 | BF186: 1 | BG186: 1 | BH186: 1 | BI186: 1 | BJ186: 1 | BK186: 1 | BL186: 1 | BM186: 1 | BN186: 1 | BO186: =RANK(BO189,$C189:$CN189,0) -> 1 | BP186: 1 | BQ186: 1 | BR186: 1 | BS186: 1 | BT186: 1 | BU186: 1 | BV186: 1 | BW186: 1 | BX186: 1 | BY186: 1 | BZ186: 1 | CA186: 1 | CB186: 1 | CC186: 1 | CD186: 1 | CE186: 1 | CF186: 1 | CG186: 1 | CH186: 1 | CI186: 1 | CJ186: 1 | CK186: 1 | CL186: 1 | CM186: 1 | CN186: 1
B187: Time | CP187: =IF(Randomizer!CP209=0,"",Randomizer!CP209) ->  | CQ187: =IF(CP187=0, "", Randomizer!CQ209) ->  | CT187: =A186 -> 33
B188: Penalties
B189: Score | C189: =Randomizer!C212 -> 0 | D189: =Randomizer!D212 -> 0 | E189: =Randomizer!E212 -> 0 | F189: =Randomizer!F212 -> 0 | G189: =Randomizer!G212 -> 0 | H189: =Randomizer!H212 -> 0 | I189: =Randomizer!I212 -> 0 | J189: =Randomizer!J212 -> 0 | K189: =Randomizer!K212 -> 0 | L189: =Randomizer!L212 -> 0 | M189: =Randomizer!M212 -> 0 | N189: =Randomizer!N212 -> 0 | O189: =Randomizer!O212 -> 0 | P189: =Randomizer!P212 -> 0 | Q189: =Randomizer!Q212 -> 0 | R189: =Randomizer!R212 -> 0 | S189: =Randomizer!S212 -> 0 | T189: =Randomizer!T212 -> 0 | U189: =Randomizer!U212 -> 0 | V189: =Randomizer!V212 -> 0 | W189: =Randomizer!W212 -> 0 | X189: =Randomizer!X212 -> 0 | Y189: =Randomizer!Y212 -> 0 | Z189: =Randomizer!Z212 -> 0 | AA189: =Randomizer!AA212 -> 0 | AB189: =Randomizer!AB212 -> 0 | AC189: =Randomizer!AC212 -> 0 | AD189: =Randomizer!AD212 -> 0 | AE189: =Randomizer!AE212 -> 0 | AF189: =Randomizer!AF212 -> 0 | AG189: =Randomizer!AG212 -> 0 | AH189: =Randomizer!AH212 -> 0 | AI189: =Randomizer!AI212 -> 0 | AJ189: =Randomizer!AJ212 -> 0 | AK189: =Randomizer!AK212 -> 0 | AL189: =Randomizer!AL212 -> 0 | AM189: =Randomizer!AM212 -> 0 | AN189: =Randomizer!AN212 -> 0 | AO189: =Randomizer!AO212 -> 0 | AP189: =Randomizer!AP212 -> 0 | AQ189: =Randomizer!AQ212 -> 0 | AR189: =Randomizer!AR212 -> 0 | AS189: =Randomizer!AS212 -> 0 | AT189: =Randomizer!AT212 -> 0 | AU189: =Randomizer!AU212 -> 0 | AV189: =Randomizer!AV212 -> 0 | AW189: =Randomizer!AW212 -> 0 | AX189: =Randomizer!AX212 -> 0 | AY189: =Randomizer!AY212 -> 0 | AZ189: =Randomizer!AZ212 -> 0 | BA189: =Randomizer!BA212 -> 0 | BB189: =Randomizer!BB212 -> 0 | BC189: =Randomizer!BC212 -> 0 | BD189: =Randomizer!BD212 -> 0 | BE189: =Randomizer!BE212 -> 0 | BF189: =Randomizer!BF212 -> 0 | BG189: =Randomizer!BG212 -> 0 | BH189: =Randomizer!BH212 -> 0 | BI189: =Randomizer!BI212 -> 0 | BJ189: =Randomizer!BJ212 -> 0 | BK189: =Randomizer!BK212 -> 0 | BL189: =Randomizer!BL212 -> 0 | BM189: =Randomizer!BM212 -> 0 | BN189: =Randomizer!BN212 -> 0 | BO189: =Randomizer!BO212 -> 0 | BP189: =Randomizer!BP212 -> 0 | BQ189: =Randomizer!BQ212 -> 0 | BR189: =Randomizer!BR212 -> 0 | BS189: =Randomizer!BS212 -> 0 | BT189: =Randomizer!BT212 -> 0 | BU189: =Randomizer!BU212 -> 0 | BV189: =Randomizer!BV212 -> 0 | BW189: =Randomizer!BW212 -> 0 | BX189: =Randomizer!BX212 -> 0 | BY189: =Randomizer!BY212 -> 0 | BZ189: =Randomizer!BZ212 -> 0 | CA189: =Randomizer!CA212 -> 0 | CB189: =Randomizer!CB212 -> 0 | CC189: =Randomizer!CC212 -> 0 | CD189: =Randomizer!CD212 -> 0 | CE189: =Randomizer!CE212 -> 0 | CF189: =Randomizer!CF212 -> 0 | CG189: =Randomizer!CG212 -> 0 | CH189: =Randomizer!CH212 -> 0 | CI189: =Randomizer!CI212 -> 0 | CJ189: =Randomizer!CJ212 -> 0 | CK189: =Randomizer!CK212 -> 0 | CL189: =Randomizer!CL212 -> 0 | CM189: =Randomizer!CM212 -> 0 | CN189: =Randomizer!CN212 -> 0
B190: Name | C190: =C185 -> Bruce | D190: phil | E190: Aleix | F190: Mark R | G190: Les | H190: Mark T | I190: Paul | J190: mike | K190: Ian | L190: Dave | M190: 0 | N190: 0 | O190: 0 | P190: 0 | Q190: 0 | R190: 0 | S190: 0 | T190: 0 | U190: 0 | V190: 0 | W190: 0 | X190: 0 | Y190: 0 | Z190: 0 | AA190: 0 | AB190: 0 | AC190: 0 | AD190: 0 | AE190: 0 | AF190: 0 | AG190: 0 | AH190: 0 | AI190: =AI185 -> 0 | AJ190: 0 | AK190: 0 | AL190: 0 | AM190: 0 | AN190: 0 | AO190: 0 | AP190: 0 | AQ190: 0 | AR190: 0 | AS190: 0 | AT190: 0 | AU190: 0 | AV190: 0 | AW190: 0 | AX190: 0 | AY190: 0 | AZ190: 0 | BA190: 0 | BB190: 0 | BC190: 0 | BD190: 0 | BE190: 0 | BF190: 0 | BG190: 0 | BH190: 0 | BI190: 0 | BJ190: 0 | BK190: 0 | BL190: 0 | BM190: 0 | BN190: 0 | BO190: =BO185 -> 0 | BP190: 0 | BQ190: 0 | BR190: 0 | BS190: 0 | BT190: 0 | BU190: 0 | BV190: 0 | BW190: 0 | BX190: 0 | BY190: 0 | BZ190: 0 | CA190: 0 | CB190: 0 | CC190: 0 | CD190: 0 | CE190: 0 | CF190: 0 | CG190: 0 | CH190: 0 | CI190: 0 | CJ190: 0 | CK190: 0 | CL190: 0 | CM190: 0 | CN190: 0 | CT190: =A189 -> 0
A191: 34 | B191: Round rank | C191: =RANK(C194,$C194:$CN194,0) -> 1 | D191: 1 | E191: 1 | F191: 1 | G191: 1 | H191: 1 | I191: 1 | J191: 1 | K191: 1 | L191: 1 | M191: 1 | N191: 1 | O191: 1 | P191: 1 | Q191: 1 | R191: 1 | S191: 1 | T191: 1 | U191: 1 | V191: 1 | W191: 1 | X191: 1 | Y191: 1 | Z191: 1 | AA191: 1 | AB191: 1 | AC191: 1 | AD191: 1 | AE191: 1 | AF191: 1 | AG191: 1 | AH191: 1 | AI191: =RANK(AI194,$C194:$CN194,0) -> 1 | AJ191: 1 | AK191: 1 | AL191: 1 | AM191: 1 | AN191: 1 | AO191: 1 | AP191: 1 | AQ191: 1 | AR191: 1 | AS191: 1 | AT191: 1 | AU191: 1 | AV191: 1 | AW191: 1 | AX191: 1 | AY191: 1 | AZ191: 1 | BA191: 1 | BB191: 1 | BC191: 1 | BD191: 1 | BE191: 1 | BF191: 1 | BG191: 1 | BH191: 1 | BI191: 1 | BJ191: 1 | BK191: 1 | BL191: 1 | BM191: 1 | BN191: 1 | BO191: =RANK(BO194,$C194:$CN194,0) -> 1 | BP191: 1 | BQ191: 1 | BR191: 1 | BS191: 1 | BT191: 1 | BU191: 1 | BV191: 1 | BW191: 1 | BX191: 1 | BY191: 1 | BZ191: 1 | CA191: 1 | CB191: 1 | CC191: 1 | CD191: 1 | CE191: 1 | CF191: 1 | CG191: 1 | CH191: 1 | CI191: 1 | CJ191: 1 | CK191: 1 | CL191: 1 | CM191: 1 | CN191: 1
B192: Time | CP192: =IF(Randomizer!CP215=0,"",Randomizer!CP215) ->  | CQ192: =IF(CP192=0, "", Randomizer!CQ215) ->  | CT192: =A191 -> 34
B193: Penalties
B194: Score | C194: =Randomizer!C218 -> 0 | D194: =Randomizer!D218 -> 0 | E194: =Randomizer!E218 -> 0 | F194: =Randomizer!F218 -> 0 | G194: =Randomizer!G218 -> 0 | H194: =Randomizer!H218 -> 0 | I194: =Randomizer!I218 -> 0 | J194: =Randomizer!J218 -> 0 | K194: =Randomizer!K218 -> 0 | L194: =Randomizer!L218 -> 0 | M194: =Randomizer!M218 -> 0 | N194: =Randomizer!N218 -> 0 | O194: =Randomizer!O218 -> 0 | P194: =Randomizer!P218 -> 0 | Q194: =Randomizer!Q218 -> 0 | R194: =Randomizer!R218 -> 0 | S194: =Randomizer!S218 -> 0 | T194: =Randomizer!T218 -> 0 | U194: =Randomizer!U218 -> 0 | V194: =Randomizer!V218 -> 0 | W194: =Randomizer!W218 -> 0 | X194: =Randomizer!X218 -> 0 | Y194: =Randomizer!Y218 -> 0 | Z194: =Randomizer!Z218 -> 0 | AA194: =Randomizer!AA218 -> 0 | AB194: =Randomizer!AB218 -> 0 | AC194: =Randomizer!AC218 -> 0 | AD194: =Randomizer!AD218 -> 0 | AE194: =Randomizer!AE218 -> 0 | AF194: =Randomizer!AF218 -> 0 | AG194: =Randomizer!AG218 -> 0 | AH194: =Randomizer!AH218 -> 0 | AI194: =Randomizer!AI218 -> 0 | AJ194: =Randomizer!AJ218 -> 0 | AK194: =Randomizer!AK218 -> 0 | AL194: =Randomizer!AL218 -> 0 | AM194: =Randomizer!AM218 -> 0 | AN194: =Randomizer!AN218 -> 0 | AO194: =Randomizer!AO218 -> 0 | AP194: =Randomizer!AP218 -> 0 | AQ194: =Randomizer!AQ218 -> 0 | AR194: =Randomizer!AR218 -> 0 | AS194: =Randomizer!AS218 -> 0 | AT194: =Randomizer!AT218 -> 0 | AU194: =Randomizer!AU218 -> 0 | AV194: =Randomizer!AV218 -> 0 | AW194: =Randomizer!AW218 -> 0 | AX194: =Randomizer!AX218 -> 0 | AY194: =Randomizer!AY218 -> 0 | AZ194: =Randomizer!AZ218 -> 0 | BA194: =Randomizer!BA218 -> 0 | BB194: =Randomizer!BB218 -> 0 | BC194: =Randomizer!BC218 -> 0 | BD194: =Randomizer!BD218 -> 0 | BE194: =Randomizer!BE218 -> 0 | BF194: =Randomizer!BF218 -> 0 | BG194: =Randomizer!BG218 -> 0 | BH194: =Randomizer!BH218 -> 0 | BI194: =Randomizer!BI218 -> 0 | BJ194: =Randomizer!BJ218 -> 0 | BK194: =Randomizer!BK218 -> 0 | BL194: =Randomizer!BL218 -> 0 | BM194: =Randomizer!BM218 -> 0 | BN194: =Randomizer!BN218 -> 0 | BO194: =Randomizer!BO218 -> 0 | BP194: =Randomizer!BP218 -> 0 | BQ194: =Randomizer!BQ218 -> 0 | BR194: =Randomizer!BR218 -> 0 | BS194: =Randomizer!BS218 -> 0 | BT194: =Randomizer!BT218 -> 0 | BU194: =Randomizer!BU218 -> 0 | BV194: =Randomizer!BV218 -> 0 | BW194: =Randomizer!BW218 -> 0 | BX194: =Randomizer!BX218 -> 0 | BY194: =Randomizer!BY218 -> 0 | BZ194: =Randomizer!BZ218 -> 0 | CA194: =Randomizer!CA218 -> 0 | CB194: =Randomizer!CB218 -> 0 | CC194: =Randomizer!CC218 -> 0 | CD194: =Randomizer!CD218 -> 0 | CE194: =Randomizer!CE218 -> 0 | CF194: =Randomizer!CF218 -> 0 | CG194: =Randomizer!CG218 -> 0 | CH194: =Randomizer!CH218 -> 0 | CI194: =Randomizer!CI218 -> 0 | CJ194: =Randomizer!CJ218 -> 0 | CK194: =Randomizer!CK218 -> 0 | CL194: =Randomizer!CL218 -> 0 | CM194: =Randomizer!CM218 -> 0 | CN194: =Randomizer!CN218 -> 0
B195: Name | C195: =C190 -> Bruce | D195: phil | E195: Aleix | F195: Mark R | G195: Les | H195: Mark T | I195: Paul | J195: mike | K195: Ian | L195: Dave | M195: 0 | N195: 0 | O195: 0 | P195: 0 | Q195: 0 | R195: 0 | S195: 0 | T195: 0 | U195: 0 | V195: 0 | W195: 0 | X195: 0 | Y195: 0 | Z195: 0 | AA195: 0 | AB195: 0 | AC195: 0 | AD195: 0 | AE195: 0 | AF195: 0 | AG195: 0 | AH195: 0 | AI195: =AI190 -> 0 | AJ195: 0 | AK195: 0 | AL195: 0 | AM195: 0 | AN195: 0 | AO195: 0 | AP195: 0 | AQ195: 0 | AR195: 0 | AS195: 0 | AT195: 0 | AU195: 0 | AV195: 0 | AW195: 0 | AX195: 0 | AY195: 0 | AZ195: 0 | BA195: 0 | BB195: 0 | BC195: 0 | BD195: 0 | BE195: 0 | BF195: 0 | BG195: 0 | BH195: 0 | BI195: 0 | BJ195: 0 | BK195: 0 | BL195: 0 | BM195: 0 | BN195: 0 | BO195: =BO190 -> 0 | BP195: 0 | BQ195: 0 | BR195: 0 | BS195: 0 | BT195: 0 | BU195: 0 | BV195: 0 | BW195: 0 | BX195: 0 | BY195: 0 | BZ195: 0 | CA195: 0 | CB195: 0 | CC195: 0 | CD195: 0 | CE195: 0 | CF195: 0 | CG195: 0 | CH195: 0 | CI195: 0 | CJ195: 0 | CK195: 0 | CL195: 0 | CM195: 0 | CN195: 0 | CT195: =A194 -> 0
A196: 35 | B196: Round rank | C196: =RANK(C199,$C199:$CN199,0) -> 1 | D196: 1 | E196: 1 | F196: 1 | G196: 1 | H196: 1 | I196: 1 | J196: 1 | K196: 1 | L196: 1 | M196: 1 | N196: 1 | O196: 1 | P196: 1 | Q196: 1 | R196: 1 | S196: 1 | T196: 1 | U196: 1 | V196: 1 | W196: 1 | X196: 1 | Y196: 1 | Z196: 1 | AA196: 1 | AB196: 1 | AC196: 1 | AD196: 1 | AE196: 1 | AF196: 1 | AG196: 1 | AH196: 1 | AI196: =RANK(AI199,$C199:$CN199,0) -> 1 | AJ196: 1 | AK196: 1 | AL196: 1 | AM196: 1 | AN196: 1 | AO196: 1 | AP196: 1 | AQ196: 1 | AR196: 1 | AS196: 1 | AT196: 1 | AU196: 1 | AV196: 1 | AW196: 1 | AX196: 1 | AY196: 1 | AZ196: 1 | BA196: 1 | BB196: 1 | BC196: 1 | BD196: 1 | BE196: 1 | BF196: 1 | BG196: 1 | BH196: 1 | BI196: 1 | BJ196: 1 | BK196: 1 | BL196: 1 | BM196: 1 | BN196: 1 | BO196: =RANK(BO199,$C199:$CN199,0) -> 1 | BP196: 1 | BQ196: 1 | BR196: 1 | BS196: 1 | BT196: 1 | BU196: 1 | BV196: 1 | BW196: 1 | BX196: 1 | BY196: 1 | BZ196: 1 | CA196: 1 | CB196: 1 | CC196: 1 | CD196: 1 | CE196: 1 | CF196: 1 | CG196: 1 | CH196: 1 | CI196: 1 | CJ196: 1 | CK196: 1 | CL196: 1 | CM196: 1 | CN196: 1
B197: Time | CP197: =IF(Randomizer!CP221=0,"",Randomizer!CP221) ->  | CQ197: =IF(CP197=0, "", Randomizer!CQ221) ->  | CT197: =A196 -> 35
B198: Penalties
B199: Score | C199: =Randomizer!C224 -> 0 | D199: =Randomizer!D224 -> 0 | E199: =Randomizer!E224 -> 0 | F199: =Randomizer!F224 -> 0 | G199: =Randomizer!G224 -> 0 | H199: =Randomizer!H224 -> 0 | I199: =Randomizer!I224 -> 0 | J199: =Randomizer!J224 -> 0 | K199: =Randomizer!K224 -> 0 | L199: =Randomizer!L224 -> 0 | M199: =Randomizer!M224 -> 0 | N199: =Randomizer!N224 -> 0 | O199: =Randomizer!O224 -> 0 | P199: =Randomizer!P224 -> 0 | Q199: =Randomizer!Q224 -> 0 | R199: =Randomizer!R224 -> 0 | S199: =Randomizer!S224 -> 0 | T199: =Randomizer!T224 -> 0 | U199: =Randomizer!U224 -> 0 | V199: =Randomizer!V224 -> 0 | W199: =Randomizer!W224 -> 0 | X199: =Randomizer!X224 -> 0 | Y199: =Randomizer!Y224 -> 0 | Z199: =Randomizer!Z224 -> 0 | AA199: =Randomizer!AA224 -> 0 | AB199: =Randomizer!AB224 -> 0 | AC199: =Randomizer!AC224 -> 0 | AD199: =Randomizer!AD224 -> 0 | AE199: =Randomizer!AE224 -> 0 | AF199: =Randomizer!AF224 -> 0 | AG199: =Randomizer!AG224 -> 0 | AH199: =Randomizer!AH224 -> 0 | AI199: =Randomizer!AI224 -> 0 | AJ199: =Randomizer!AJ224 -> 0 | AK199: =Randomizer!AK224 -> 0 | AL199: =Randomizer!AL224 -> 0 | AM199: =Randomizer!AM224 -> 0 | AN199: =Randomizer!AN224 -> 0 | AO199: =Randomizer!AO224 -> 0 | AP199: =Randomizer!AP224 -> 0 | AQ199: =Randomizer!AQ224 -> 0 | AR199: =Randomizer!AR224 -> 0 | AS199: =Randomizer!AS224 -> 0 | AT199: =Randomizer!AT224 -> 0 | AU199: =Randomizer!AU224 -> 0 | AV199: =Randomizer!AV224 -> 0 | AW199: =Randomizer!AW224 -> 0 | AX199: =Randomizer!AX224 -> 0 | AY199: =Randomizer!AY224 -> 0 | AZ199: =Randomizer!AZ224 -> 0 | BA199: =Randomizer!BA224 -> 0 | BB199: =Randomizer!BB224 -> 0 | BC199: =Randomizer!BC224 -> 0 | BD199: =Randomizer!BD224 -> 0 | BE199: =Randomizer!BE224 -> 0 | BF199: =Randomizer!BF224 -> 0 | BG199: =Randomizer!BG224 -> 0 | BH199: =Randomizer!BH224 -> 0 | BI199: =Randomizer!BI224 -> 0 | BJ199: =Randomizer!BJ224 -> 0 | BK199: =Randomizer!BK224 -> 0 | BL199: =Randomizer!BL224 -> 0 | BM199: =Randomizer!BM224 -> 0 | BN199: =Randomizer!BN224 -> 0 | BO199: =Randomizer!BO224 -> 0 | BP199: =Randomizer!BP224 -> 0 | BQ199: =Randomizer!BQ224 -> 0 | BR199: =Randomizer!BR224 -> 0 | BS199: =Randomizer!BS224 -> 0 | BT199: =Randomizer!BT224 -> 0 | BU199: =Randomizer!BU224 -> 0 | BV199: =Randomizer!BV224 -> 0 | BW199: =Randomizer!BW224 -> 0 | BX199: =Randomizer!BX224 -> 0 | BY199: =Randomizer!BY224 -> 0 | BZ199: =Randomizer!BZ224 -> 0 | CA199: =Randomizer!CA224 -> 0 | CB199: =Randomizer!CB224 -> 0 | CC199: =Randomizer!CC224 -> 0 | CD199: =Randomizer!CD224 -> 0 | CE199: =Randomizer!CE224 -> 0 | CF199: =Randomizer!CF224 -> 0 | CG199: =Randomizer!CG224 -> 0 | CH199: =Randomizer!CH224 -> 0 | CI199: =Randomizer!CI224 -> 0 | CJ199: =Randomizer!CJ224 -> 0 | CK199: =Randomizer!CK224 -> 0 | CL199: =Randomizer!CL224 -> 0 | CM199: =Randomizer!CM224 -> 0 | CN199: =Randomizer!CN224 -> 0
B200: Name | C200: =C195 -> Bruce | D200: phil | E200: Aleix | F200: Mark R | G200: Les | H200: Mark T | I200: Paul | J200: mike | K200: Ian | L200: Dave | M200: 0 | N200: 0 | O200: 0 | P200: 0 | Q200: 0 | R200: 0 | S200: 0 | T200: 0 | U200: 0 | V200: 0 | W200: 0 | X200: 0 | Y200: 0 | Z200: 0 | AA200: 0 | AB200: 0 | AC200: 0 | AD200: 0 | AE200: 0 | AF200: 0 | AG200: 0 | AH200: 0 | AI200: =AI195 -> 0 | AJ200: 0 | AK200: 0 | AL200: 0 | AM200: 0 | AN200: 0 | AO200: 0 | AP200: 0 | AQ200: 0 | AR200: 0 | AS200: 0 | AT200: 0 | AU200: 0 | AV200: 0 | AW200: 0 | AX200: 0 | AY200: 0 | AZ200: 0 | BA200: 0 | BB200: 0 | BC200: 0 | BD200: 0 | BE200: 0 | BF200: 0 | BG200: 0 | BH200: 0 | BI200: 0 | BJ200: 0 | BK200: 0 | BL200: 0 | BM200: 0 | BN200: 0 | BO200: =BO195 -> 0 | BP200: 0 | BQ200: 0 | BR200: 0 | BS200: 0 | BT200: 0 | BU200: 0 | BV200: 0 | BW200: 0 | BX200: 0 | BY200: 0 | BZ200: 0 | CA200: 0 | CB200: 0 | CC200: 0 | CD200: 0 | CE200: 0 | CF200: 0 | CG200: 0 | CH200: 0 | CI200: 0 | CJ200: 0 | CK200: 0 | CL200: 0 | CM200: 0 | CN200: 0 | CT200: =A199 -> 0
A201: 36 | B201: Round rank | C201: =RANK(C204,$C204:$CN204,0) -> 1 | D201: 1 | E201: 1 | F201: 1 | G201: 1 | H201: 1 | I201: 1 | J201: 1 | K201: 1 | L201: 1 | M201: 1 | N201: 1 | O201: 1 | P201: 1 | Q201: 1 | R201: 1 | S201: 1 | T201: 1 | U201: 1 | V201: 1 | W201: 1 | X201: 1 | Y201: 1 | Z201: 1 | AA201: 1 | AB201: 1 | AC201: 1 | AD201: 1 | AE201: 1 | AF201: 1 | AG201: 1 | AH201: 1 | AI201: =RANK(AI204,$C204:$CN204,0) -> 1 | AJ201: 1 | AK201: 1 | AL201: 1 | AM201: 1 | AN201: 1 | AO201: 1 | AP201: 1 | AQ201: 1 | AR201: 1 | AS201: 1 | AT201: 1 | AU201: 1 | AV201: 1 | AW201: 1 | AX201: 1 | AY201: 1 | AZ201: 1 | BA201: 1 | BB201: 1 | BC201: 1 | BD201: 1 | BE201: 1 | BF201: 1 | BG201: 1 | BH201: 1 | BI201: 1 | BJ201: 1 | BK201: 1 | BL201: 1 | BM201: 1 | BN201: 1 | BO201: =RANK(BO204,$C204:$CN204,0) -> 1 | BP201: 1 | BQ201: 1 | BR201: 1 | BS201: 1 | BT201: 1 | BU201: 1 | BV201: 1 | BW201: 1 | BX201: 1 | BY201: 1 | BZ201: 1 | CA201: 1 | CB201: 1 | CC201: 1 | CD201: 1 | CE201: 1 | CF201: 1 | CG201: 1 | CH201: 1 | CI201: 1 | CJ201: 1 | CK201: 1 | CL201: 1 | CM201: 1 | CN201: 1
B202: Time | CP202: =IF(Randomizer!CP227=0,"",Randomizer!CP227) ->  | CQ202: =IF(CP202=0, "", Randomizer!CQ227) ->  | CT202: =A201 -> 36
B203: Penalties
B204: Score | C204: =Randomizer!C230 -> 0 | D204: =Randomizer!D230 -> 0 | E204: =Randomizer!E230 -> 0 | F204: =Randomizer!F230 -> 0 | G204: =Randomizer!G230 -> 0 | H204: =Randomizer!H230 -> 0 | I204: =Randomizer!I230 -> 0 | J204: =Randomizer!J230 -> 0 | K204: =Randomizer!K230 -> 0 | L204: =Randomizer!L230 -> 0 | M204: =Randomizer!M230 -> 0 | N204: =Randomizer!N230 -> 0 | O204: =Randomizer!O230 -> 0 | P204: =Randomizer!P230 -> 0 | Q204: =Randomizer!Q230 -> 0 | R204: =Randomizer!R230 -> 0 | S204: =Randomizer!S230 -> 0 | T204: =Randomizer!T230 -> 0 | U204: =Randomizer!U230 -> 0 | V204: =Randomizer!V230 -> 0 | W204: =Randomizer!W230 -> 0 | X204: =Randomizer!X230 -> 0 | Y204: =Randomizer!Y230 -> 0 | Z204: =Randomizer!Z230 -> 0 | AA204: =Randomizer!AA230 -> 0 | AB204: =Randomizer!AB230 -> 0 | AC204: =Randomizer!AC230 -> 0 | AD204: =Randomizer!AD230 -> 0 | AE204: =Randomizer!AE230 -> 0 | AF204: =Randomizer!AF230 -> 0 | AG204: =Randomizer!AG230 -> 0 | AH204: =Randomizer!AH230 -> 0 | AI204: =Randomizer!AI230 -> 0 | AJ204: =Randomizer!AJ230 -> 0 | AK204: =Randomizer!AK230 -> 0 | AL204: =Randomizer!AL230 -> 0 | AM204: =Randomizer!AM230 -> 0 | AN204: =Randomizer!AN230 -> 0 | AO204: =Randomizer!AO230 -> 0 | AP204: =Randomizer!AP230 -> 0 | AQ204: =Randomizer!AQ230 -> 0 | AR204: =Randomizer!AR230 -> 0 | AS204: =Randomizer!AS230 -> 0 | AT204: =Randomizer!AT230 -> 0 | AU204: =Randomizer!AU230 -> 0 | AV204: =Randomizer!AV230 -> 0 | AW204: =Randomizer!AW230 -> 0 | AX204: =Randomizer!AX230 -> 0 | AY204: =Randomizer!AY230 -> 0 | AZ204: =Randomizer!AZ230 -> 0 | BA204: =Randomizer!BA230 -> 0 | BB204: =Randomizer!BB230 -> 0 | BC204: =Randomizer!BC230 -> 0 | BD204: =Randomizer!BD230 -> 0 | BE204: =Randomizer!BE230 -> 0 | BF204: =Randomizer!BF230 -> 0 | BG204: =Randomizer!BG230 -> 0 | BH204: =Randomizer!BH230 -> 0 | BI204: =Randomizer!BI230 -> 0 | BJ204: =Randomizer!BJ230 -> 0 | BK204: =Randomizer!BK230 -> 0 | BL204: =Randomizer!BL230 -> 0 | BM204: =Randomizer!BM230 -> 0 | BN204: =Randomizer!BN230 -> 0 | BO204: =Randomizer!BO230 -> 0 | BP204: =Randomizer!BP230 -> 0 | BQ204: =Randomizer!BQ230 -> 0 | BR204: =Randomizer!BR230 -> 0 | BS204: =Randomizer!BS230 -> 0 | BT204: =Randomizer!BT230 -> 0 | BU204: =Randomizer!BU230 -> 0 | BV204: =Randomizer!BV230 -> 0 | BW204: =Randomizer!BW230 -> 0 | BX204: =Randomizer!BX230 -> 0 | BY204: =Randomizer!BY230 -> 0 | BZ204: =Randomizer!BZ230 -> 0 | CA204: =Randomizer!CA230 -> 0 | CB204: =Randomizer!CB230 -> 0 | CC204: =Randomizer!CC230 -> 0 | CD204: =Randomizer!CD230 -> 0 | CE204: =Randomizer!CE230 -> 0 | CF204: =Randomizer!CF230 -> 0 | CG204: =Randomizer!CG230 -> 0 | CH204: =Randomizer!CH230 -> 0 | CI204: =Randomizer!CI230 -> 0 | CJ204: =Randomizer!CJ230 -> 0 | CK204: =Randomizer!CK230 -> 0 | CL204: =Randomizer!CL230 -> 0 | CM204: =Randomizer!CM230 -> 0 | CN204: =Randomizer!CN230 -> 0
... 125 more rows

Sheet Results summary
A1: =CONCATENATE("Results Summary - ",'Enter data here!'!D3) -> Results Summary - mynd bmfa | E1: =IF('Enter data here!'!D4="","",'Enter data here!'!D4) -> 
A3: Overall Results (1-50): | G3: =CONCATENATE("CD - ",'Enter data here!'!D5) -> CD - | I3: Round Winners:
I4: (* denotes joint round winners - see full round scores for details)
A5: ='Enter data here!'!A242 -> Rank | B5: ='Enter data here!'!B242 -> Competitor | C5: ='Enter data here!'!C242 -> Score | I5: Round | J5: Competitor | K5: Time
A6: ='Enter data here!'!A243 -> 1 | B6: ='Enter data here!'!B243 -> Mark R | C6: ='Enter data here!'!C243 -> 4887.059654 | I6: =A6 -> 1 | J6: =IF(ISERROR('Full round scores'!F11-'Full round scores'!F10),"",IF(('Full round scores'!F11-'Full round scores'!F10)<0.001,CONCATENATE('Full round scores'!E10,$M$7),'Full round scores'!E10)) -> Mark R | K6: ='Enter data here!'!$CP27 -> 51.02
A7: ='Enter data here!'!A244 -> 2 | B7: ='Enter data here!'!B244 -> Mark T | C7: ='Enter data here!'!C244 -> 4836.302184 | I7: 2 | J7: =IF(ISERROR('Full round scores'!I11-'Full round scores'!I10),"",IF(('Full round scores'!I11-'Full round scores'!I10)<0.001,CONCATENATE('Full round scores'!H10,$M$7),'Full round scores'!H10)) -> Mark R | K7: ='Enter data here!'!$CP32 -> 44.76 | M7: *
A8: ='Enter data here!'!A245 -> 3 | B8: ='Enter data here!'!B245 -> Aleix | C8: ='Enter data here!'!C245 -> 4740.852677 | I8: 3 | J8: =IF(ISERROR('Full round scores'!L11-'Full round scores'!L10),"",IF(('Full round scores'!L11-'Full round scores'!L10)<0.001,CONCATENATE('Full round scores'!K10,$M$7),'Full round scores'!K10)) -> Mark T | K8: ='Enter data here!'!$CP37 -> 49.36
A9: ='Enter data here!'!A246 -> 4 | B9: ='Enter data here!'!B246 -> Les | C9: ='Enter data here!'!C246 -> 4713.237272 | I9: 4 | J9: =IF(ISERROR('Full round scores'!O11-'Full round scores'!O10),"",IF(('Full round scores'!O11-'Full round scores'!O10)<0.001,CONCATENATE('Full round scores'!N10,$M$7),'Full round scores'!N10)) -> Les | K9: ='Enter data here!'!$CP42 -> 45.39
A10: ='Enter data here!'!A247 -> 5 | B10: ='Enter data here!'!B247 -> mike | C10: ='Enter data here!'!C247 -> 4575.122638 | I10: 5 | J10: =IF(ISERROR('Full round scores'!R11-'Full round scores'!R10),"",IF(('Full round scores'!R11-'Full round scores'!R10)<0.001,CONCATENATE('Full round scores'!Q10,$M$7),'Full round scores'!Q10)) -> Mark T | K10: ='Enter data here!'!$CP47 -> 46.36
A11: ='Enter data here!'!A248 -> 6 | B11: ='Enter data here!'!B248 -> Paul | C11: ='Enter data here!'!C248 -> 4289.411339 | I11: 6 | J11: =IF(ISERROR('Full round scores'!U11-'Full round scores'!U10),"",IF(('Full round scores'!U11-'Full round scores'!U10)<0.001,CONCATENATE('Full round scores'!T10,$M$7),'Full round scores'!T10)) -> mike | K11: ='Enter data here!'!$CP52 -> 53.5
A12: ='Enter data here!'!A249 -> 7 | B12: ='Enter data here!'!B249 -> Dave | C12: ='Enter data here!'!C249 -> 4261.379162 | I12: 7 | J12: =IF(ISERROR('Full round scores'!X11-'Full round scores'!X10),"",IF(('Full round scores'!X11-'Full round scores'!X10)<0.001,CONCATENATE('Full round scores'!W10,$M$7),'Full round scores'!W10)) ->  | K12: ='Enter data here!'!$CP57 -> 
A13: ='Enter data here!'!A250 -> 8 | B13: ='Enter data here!'!B250 -> Bruce | C13: ='Enter data here!'!C250 -> 4170.354917 | I13: 8 | J13: =IF(ISERROR('Full round scores'!AA11-'Full round scores'!AA10),"",IF(('Full round scores'!AA11-'Full round scores'!AA10)<0.001,CONCATENATE('Full round scores'!Z10,$M$7),'Full round scores'!Z10)) ->  | K13: ='Enter data here!'!$CP62 -> 
A14: ='Enter data here!'!A251 -> 9 | B14: ='Enter data here!'!B251 -> phil | C14: ='Enter data here!'!C251 -> 4115.097749 | I14: 9 | J14: =IF(ISERROR('Full round scores'!AD11-'Full round scores'!AD10),"",IF(('Full round scores'!AD11-'Full round scores'!AD10)<0.001,CONCATENATE('Full round scores'!AC10,$M$7),'Full round scores'!AC10)) ->  | K14: ='Enter data here!'!$CP67 -> 
A15: ='Enter data here!'!A252 -> 10 | B15: ='Enter data here!'!B252 -> Ian | C15: ='Enter data here!'!C252 -> 4068.738038 | I15: 10 | J15: =IF(ISERROR('Full round scores'!AG11-'Full round scores'!AG10),"",IF(('Full round scores'!AG11-'Full round scores'!AG10)<0.001,CONCATENATE('Full round scores'!AF10,$M$7),'Full round scores'!AF10)) ->  | K15: ='Enter data here!'!$CP72 -> 
A16: ='Enter data here!'!A253 -> 11 | B16: ='Enter data here!'!B253 ->  | C16: ='Enter data here!'!C253 ->  | I16: 11 | J16: =IF(ISERROR('Full round scores'!AJ11-'Full round scores'!AJ10),"",IF(('Full round scores'!AJ11-'Full round scores'!AJ10)<0.001,CONCATENATE('Full round scores'!AI10,$M$7),'Full round scores'!AI10)) ->  | K16: ='Enter data here!'!$CP77 -> 
A17: ='Enter data here!'!A254 -> 12 | B17: ='Enter data here!'!B254 ->  | C17: ='Enter data here!'!C254 ->  | I17: 12 | J17: =IF(ISERROR('Full round scores'!AM11-'Full round scores'!AM10),"",IF(('Full round scores'!AM11-'Full round scores'!AM10)<0.001,CONCATENATE('Full round scores'!AL10,$M$7),'Full round scores'!AL10)) ->  | K17: ='Enter data here!'!$CP82 -> 
A18: ='Enter data here!'!A255 -> 13 | B18: ='Enter data here!'!B255 ->  | C18: ='Enter data here!'!C255 ->  | I18: 13 | J18: =IF(ISERROR('Full round scores'!AP11-'Full round scores'!AP10),"",IF(('Full round scores'!AP11-'Full round scores'!AP10)<0.001,CONCATENATE('Full round scores'!AO10,$M$7),'Full round scores'!AO10)) ->  | K18: ='Enter data here!'!$CP87 -> 
A19: ='Enter data here!'!A256 -> 14 | B19: ='Enter data here!'!B256 ->  | C19: ='Enter data here!'!C256 ->  | I19: 14 | J19: =IF(ISERROR('Full round scores'!AS11-'Full round scores'!AS10),"",IF(('Full round scores'!AS11-'Full round scores'!AS10)<0.001,CONCATENATE('Full round scores'!AR10,$M$7),'Full round scores'!AR10)) ->  | K19: ='Enter data here!'!$CP92 -> 
A20: ='Enter data here!'!A257 -> 15 | B20: ='Enter data here!'!B257 ->  | C20: ='Enter data here!'!C257 ->  | I20: 15 | J20: =IF(ISERROR('Full round scores'!AV11-'Full round scores'!AV10),"",IF(('Full round scores'!AV11-'Full round scores'!AV10)<0.001,CONCATENATE('Full round scores'!AU10,$M$7),'Full round scores'!AU10)) ->  | K20: ='Enter data here!'!$CP97 -> 
A21: ='Enter data here!'!A258 -> 16 | B21: ='Enter data here!'!B258 ->  | C21: ='Enter data here!'!C258 ->  | I21: 16 | J21: =IF(ISERROR('Full round scores'!AY11-'Full round scores'!AY10),"",IF(('Full round scores'!AY11-'Full round scores'!AY10)<0.001,CONCATENATE('Full round scores'!AY10,$M$7),'Full round scores'!AX10)) ->  | K21: ='Enter data here!'!$CP102 -> 
A22: ='Enter data here!'!A259 -> 17 | B22: ='Enter data here!'!B259 ->  | C22: ='Enter data here!'!C259 ->  | I22: 17 | J22: =IF(ISERROR('Full round scores'!BB11-'Full round scores'!BB10),"",IF(('Full round scores'!BB11-'Full round scores'!BB10)<0.001,CONCATENATE('Full round scores'!BB10,$M$7),'Full round scores'!BA10)) ->  | K22: ='Enter data here!'!$CP107 -> 
A23: ='Enter data here!'!A260 -> 18 | B23: ='Enter data here!'!B260 ->  | C23: ='Enter data here!'!C260 ->  | I23: 18 | J23: =IF(ISERROR('Full round scores'!BE11-'Full round scores'!BE10),"",IF(('Full round scores'!BE11-'Full round scores'!BE10)<0.001,CONCATENATE('Full round scores'!BE10,$M$7),'Full round scores'!BD10)) ->  | K23: ='Enter data here!'!$CP112 -> 
A24: ='Enter data here!'!A261 -> 19 | B24: ='Enter data here!'!B261 ->  | C24: ='Enter data here!'!C261 ->  | I24: 19 | J24: =IF(ISERROR('Full round scores'!BH11-'Full round scores'!BH10),"",IF(('Full round scores'!BH11-'Full round scores'!BH10)<0.001,CONCATENATE('Full round scores'!BH10,$M$7),'Full round scores'!BG10)) ->  | K24: ='Enter data here!'!$CP117 -> 
A25: ='Enter data here!'!A262 -> 20 | B25: ='Enter data here!'!B262 ->  | C25: ='Enter data here!'!C262 ->  | I25: 20 | J25: =IF(ISERROR('Full round scores'!BK11-'Full round scores'!BK10),"",IF(('Full round scores'!BK11-'Full round scores'!BK10)<0.001,CONCATENATE('Full round scores'!BK10,$M$7),'Full round scores'!BJ10)) ->  | K25: ='Enter data here!'!$CP122 -> 
A26: ='Enter data here!'!A263 -> 21 | B26: ='Enter data here!'!B263 ->  | C26: ='Enter data here!'!C263 ->  | I26: 21 | J26: =IF(ISERROR('Full round scores'!BN11-'Full round scores'!BN10),"",IF(('Full round scores'!BN11-'Full round scores'!BN10)<0.001,CONCATENATE('Full round scores'!BN10,$M$7),'Full round scores'!BM10)) ->  | K26: ='Enter data here!'!$CP127 -> 
A27: ='Enter data here!'!A264 -> 22 | B27: ='Enter data here!'!B264 ->  | C27: ='Enter data here!'!C264 ->  | I27: 22 | J27: =IF(ISERROR('Full round scores'!BQ11-'Full round scores'!BQ10),"",IF(('Full round scores'!BQ11-'Full round scores'!BQ10)<0.001,CONCATENATE('Full round scores'!BQ10,$M$7),'Full round scores'!BP10)) ->  | K27: ='Enter data here!'!$CP132 -> 
A28: ='Enter data here!'!A265 -> 23 | B28: ='Enter data here!'!B265 ->  | C28: ='Enter data here!'!C265 ->  | I28: 23 | J28: =IF(ISERROR('Full round scores'!BT11-'Full round scores'!BT10),"",IF(('Full round scores'!BT11-'Full round scores'!BT10)<0.001,CONCATENATE('Full round scores'!BT10,$M$7),'Full round scores'!BS10)) ->  | K28: ='Enter data here!'!$CP137 -> 
A29: ='Enter data here!'!A266 -> 24 | B29: ='Enter data here!'!B266 ->  | C29: ='Enter data here!'!C266 ->  | I29: 24 | J29: =IF(ISERROR('Full round scores'!BW11-'Full round scores'!BW10),"",IF(('Full round scores'!BW11-'Full round scores'!BW10)<0.001,CONCATENATE('Full round scores'!BW10,$M$7),'Full round scores'!BV10)) ->  | K29: ='Enter data here!'!$CP142 -> 
A30: ='Enter data here!'!A267 -> 25 | B30: ='Enter data here!'!B267 ->  | C30: ='Enter data here!'!C267 ->  | I30: 25 | J30: =IF(ISERROR('Full round scores'!BZ11-'Full round scores'!BZ10),"",IF(('Full round scores'!BZ11-'Full round scores'!BZ10)<0.001,CONCATENATE('Full round scores'!BZ10,$M$7),'Full round scores'!BY10)) ->  | K30: ='Enter data here!'!$CP147 -> 
A31: ='Enter data here!'!A268 -> 26 | B31: ='Enter data here!'!B268 ->  | C31: ='Enter data here!'!C268 ->  | I31: 26 | J31: =IF(ISERROR('Full round scores'!CC11-'Full round scores'!CC10),"",IF(('Full round scores'!CC11-'Full round scores'!CC10)<0.001,CONCATENATE('Full round scores'!CC10,$M$7),'Full round scores'!CB10)) ->  | K31: ='Enter data here!'!$CP152 -> 
A32: ='Enter data here!'!A269 -> 27 | B32: ='Enter data here!'!B269 ->  | C32: ='Enter data here!'!C269 ->  | I32: 27 | J32: =IF(ISERROR('Full round scores'!CF11-'Full round scores'!CF10),"",IF(('Full round scores'!CF11-'Full round scores'!CF10)<0.001,CONCATENATE('Full round scores'!CF10,$M$7),'Full round scores'!CE10)) ->  | K32: ='Enter data here!'!$CP157 -> 
A33: ='Enter data here!'!A270 -> 28 | B33: ='Enter data here!'!B270 ->  | C33: ='Enter data here!'!C270 ->  | I33: 28 | J33: =IF(ISERROR('Full round scores'!CI11-'Full round scores'!CI10),"",IF(('Full round scores'!CI11-'Full round scores'!CI10)<0.001,CONCATENATE('Full round scores'!CI10,$M$7),'Full round scores'!CH10)) ->  | K33: ='Enter data here!'!$CP162 -> 
A34: ='Enter data here!'!A271 -> 29 | B34: ='Enter data here!'!B271 ->  | C34: ='Enter data here!'!C271 ->  | I34: 29 | J34: =IF(ISERROR('Full round scores'!CL11-'Full round scores'!CL10),"",IF(('Full round scores'!CL11-'Full round scores'!CL10)<0.001,CONCATENATE('Full round scores'!CL10,$M$7),'Full round scores'!CK10)) ->  | K34: ='Enter data here!'!$CP167 -> 
A35: ='Enter data here!'!A272 -> 30 | B35: ='Enter data here!'!B272 ->  | C35: ='Enter data here!'!C272 ->  | E35: Rounds Flown | F35: ='Enter data here!'!C227 -> 6 | I35: 30 | J35: =IF(ISERROR('Full round scores'!CO11-'Full round scores'!CO10),"",IF(('Full round scores'!CO11-'Full round scores'!CO10)<0.001,CONCATENATE('Full round scores'!CO10,$M$7),'Full round scores'!CN10)) ->  | K35: ='Enter data here!'!$CP172 -> 
A36: ='Enter data here!'!A273 -> 31 | B36: ='Enter data here!'!B273 ->  | C36: ='Enter data here!'!C273 ->  | I36: 31 | J36: =IF(ISERROR('Full round scores'!CR11-'Full round scores'!CR10),"",IF(('Full round scores'!CR11-'Full round scores'!CR10)<0.001,CONCATENATE('Full round scores'!CR10,$M$7),'Full round scores'!CQ10)) ->  | K36: ='Enter data here!'!$CP177 -> 
A37: ='Enter data here!'!A274 -> 32 | B37: ='Enter data here!'!B274 ->  | C37: ='Enter data here!'!C274 ->  | I37: 32 | J37: =IF(ISERROR('Full round scores'!CU11-'Full round scores'!CU10),"",IF(('Full round scores'!CU11-'Full round scores'!CU10)<0.001,CONCATENATE('Full round scores'!CU10,$M$7),'Full round scores'!CT10)) ->  | K37: ='Enter data here!'!$CP182 -> 
A38: ='Enter data here!'!A275 -> 33 | B38: ='Enter data here!'!B275 ->  | C38: ='Enter data here!'!C275 ->  | E38: Best flight: | I38: 33 | J38: =IF(ISERROR('Full round scores'!CX11-'Full round scores'!CX10),"",IF(('Full round scores'!CX11-'Full round scores'!CX10)<0.001,CONCATENATE('Full round scores'!CX10,$M$7),'Full round scores'!CW10)) ->  | K38: ='Enter data here!'!$CP187 -> 
A39: ='Enter data here!'!A276 -> 34 | B39: ='Enter data here!'!B276 ->  | C39: ='Enter data here!'!C276 ->  | I39: 34 | J39: =IF(ISERROR('Full round scores'!DA11-'Full round scores'!DA10),"",IF(('Full round scores'!DA11-'Full round scores'!DA10)<0.001,CONCATENATE('Full round scores'!DA10,$M$7),'Full round scores'!CZ10)) ->  | K39: ='Enter data here!'!$CP192 -> 
A40: ='Enter data here!'!A277 -> 35 | B40: ='Enter data here!'!B277 ->  | C40: ='Enter data here!'!C277 ->  | E40: ='Enter data here!'!CR229 -> Competitor | F40: Time | I40: 35 | J40: =IF(ISERROR('Full round scores'!DD11-'Full round scores'!DD10),"",IF(('Full round scores'!DD11-'Full round scores'!DD10)<0.001,CONCATENATE('Full round scores'!DD10,$M$7),'Full round scores'!DC10)) ->  | K40: ='Enter data here!'!$CP197 -> 
A41: ='Enter data here!'!A278 -> 36 | B41: ='Enter data here!'!B278 ->  | C41: ='Enter data here!'!C278 ->  | E41: ='Enter data here!'!CR239 -> Mark R | F41: ='Enter data here!'!CP239 -> 44.76 | I41: 36 | J41: =IF(ISERROR('Full round scores'!DG11-'Full round scores'!DG10),"",IF(('Full round scores'!DG11-'Full round scores'!DG10)<0.001,CONCATENATE('Full round scores'!DG10,$M$7),'Full round scores'!DF10)) ->  | K41: ='Enter data here!'!$CP202 -> 
A42: ='Enter data here!'!A279 -> 37 | B42: ='Enter data here!'!B279 ->  | C42: ='Enter data here!'!C279 ->  | I42: 37 | J42: =IF(ISERROR('Full round scores'!DJ11-'Full round scores'!DJ10),"",IF(('Full round scores'!DJ11-'Full round scores'!DJ10)<0.001,CONCATENATE('Full round scores'!DJ10,$M$7),'Full round scores'!DI10)) ->  | K42: ='Enter data here!'!$CP207 -> 
A43: ='Enter data here!'!A280 -> 38 | B43: ='Enter data here!'!B280 ->  | C43: ='Enter data here!'!C280 ->  | E43: (In round | F43: ='Enter data here!'!CQ239 -> 2 | G43: ) | I43: 38 | J43: =IF(ISERROR('Full round scores'!DM11-'Full round scores'!DM10),"",IF(('Full round scores'!DM11-'Full round scores'!DM10)<0.001,CONCATENATE('Full round scores'!DM10,$M$7),'Full round scores'!DL10)) ->  | K43: ='Enter data here!'!$CP212 -> 
A44: ='Enter data here!'!A281 -> 39 | B44: ='Enter data here!'!B281 ->  | C44: ='Enter data here!'!C281 ->  | I44: 39 | J44: =IF(ISERROR('Full round scores'!DP11-'Full round scores'!DP10),"",IF(('Full round scores'!DP11-'Full round scores'!DP10)<0.001,CONCATENATE('Full round scores'!DP10,$M$7),'Full round scores'!DO10)) ->  | K44: ='Enter data here!'!$CP127 -> 
A45: ='Enter data here!'!A282 -> 40 | B45: ='Enter data here!'!B282 ->  | C45: ='Enter data here!'!C282 ->  | I45: 40 | J45: =IF(ISERROR('Full round scores'!DS11-'Full round scores'!DS10),"",IF(('Full round scores'!DS11-'Full round scores'!DS10)<0.001,CONCATENATE('Full round scores'!DS10,$M$7),'Full round scores'!DR10)) ->  | K45: ='Enter data here!'!$CP222 -> 
A46: ='Enter data here!'!A283 -> 41 | B46: ='Enter data here!'!B283 ->  | C46: ='Enter data here!'!C283 -> 
A47: ='Enter data here!'!A284 -> 42 | B47: ='Enter data here!'!B284 ->  | C47: ='Enter data here!'!C284 -> 
A48: ='Enter data here!'!A285 -> 43 | B48: ='Enter data here!'!B285 ->  | C48: ='Enter data here!'!C285 -> 
A49: ='Enter data here!'!A286 -> 44 | B49: ='Enter data here!'!B286 ->  | C49: ='Enter data here!'!C286 -> 
A50: ='Enter data here!'!A287 -> 45 | B50: ='Enter data here!'!B287 ->  | C50: ='Enter data here!'!C287 -> 
A51: ='Enter data here!'!A288 -> 46 | B51: ='Enter data here!'!B288 ->  | C51: ='Enter data here!'!C288 -> 
A52: ='Enter data here!'!A289 -> 47 | B52: ='Enter data here!'!B289 ->  | C52: ='Enter data here!'!C289 -> 
A53: ='Enter data here!'!A290 -> 48 | B53: ='Enter data here!'!B290 ->  | C53: ='Enter data here!'!C290 -> 
A54: ='Enter data here!'!A291 -> 49 | B54: ='Enter data here!'!B291 ->  | C54: ='Enter data here!'!C291 ->  | E54: Sheet author:
A55: ='Enter data here!'!A292 -> 50 | B55: ='Enter data here!'!B292 ->  | C55: ='Enter data here!'!C292 ->  | E55: Matt Brett, Sept 08
A57: =A1 -> Results Summary - mynd bmfa | E57: =E1 -> 
A59: Overall Results (51-90): | G59: =G3 -> CD -
A61: =A5 -> Rank | B61: =B5 -> Competitor | C61: =C5 -> Score
A62: ='Enter data here!'!A293 -> 51 | B62: ='Enter data here!'!B293 ->  | C62: ='Enter data here!'!C293 -> 
A63: ='Enter data here!'!A294 -> 52 | B63: ='Enter data here!'!B294 ->  | C63: ='Enter data here!'!C294 -> 
A64: ='Enter data here!'!A295 -> 53 | B64: ='Enter data here!'!B295 ->  | C64: ='Enter data here!'!C295 -> 
A65: ='Enter data here!'!A296 -> 54 | B65: ='Enter data here!'!B296 ->  | C65: ='Enter data here!'!C296 -> 
A66: ='Enter data here!'!A297 -> 55 | B66: ='Enter data here!'!B297 ->  | C66: ='Enter data here!'!C297 -> 
A67: ='Enter data here!'!A298 -> 56 | B67: ='Enter data here!'!B298 ->  | C67: ='Enter data here!'!C298 -> 
A68: ='Enter data here!'!A299 -> 57 | B68: ='Enter data here!'!B299 ->  | C68: ='Enter data here!'!C299 -> 
A69: ='Enter data here!'!A300 -> 58 | B69: ='Enter data here!'!B300 ->  | C69: ='Enter data here!'!C300 -> 
A70: ='Enter data here!'!A301 -> 59 | B70: ='Enter data here!'!B301 ->  | C70: ='Enter data here!'!C301 -> 
A71: ='Enter data here!'!A302 -> 60 | B71: ='Enter data here!'!B302 ->  | C71: ='Enter data here!'!C302 -> 
A72: ='Enter data here!'!A303 -> 61 | B72: ='Enter data here!'!B303 ->  | C72: ='Enter data here!'!C303 -> 
A73: ='Enter data here!'!A304 -> 62 | B73: ='Enter data here!'!B304 ->  | C73: ='Enter data here!'!C304 -> 
A74: ='Enter data here!'!A305 -> 63 | B74: ='Enter data here!'!B305 ->  | C74: ='Enter data here!'!C305 -> 
A75: ='Enter data here!'!A306 -> 64 | B75: ='Enter data here!'!B306 ->  | C75: ='Enter data here!'!C306 -> 
A76: ='Enter data here!'!A307 -> 65 | B76: ='Enter data here!'!B307 ->  | C76: ='Enter data here!'!C307 -> 
A77: ='Enter data here!'!A308 -> 66 | B77: ='Enter data here!'!B308 ->  | C77: ='Enter data here!'!C308 -> 
A78: ='Enter data here!'!A309 -> 67 | B78: ='Enter data here!'!B309 ->  | C78: ='Enter data here!'!C309 -> 
A79: ='Enter data here!'!A310 -> 68 | B79: ='Enter data here!'!B310 ->  | C79: ='Enter data here!'!C310 -> 
A80: ='Enter data here!'!A311 -> 69 | B80: ='Enter data here!'!B311 ->  | C80: ='Enter data here!'!C311 -> 
A81: ='Enter data here!'!A312 -> 70 | B81: ='Enter data here!'!B312 ->  | C81: ='Enter data here!'!C312 ->  | E81: =E35 -> Rounds Flown | F81: =F35 -> 6
A82: ='Enter data here!'!A313 -> 71 | B82: ='Enter data here!'!B313 ->  | C82: ='Enter data here!'!C313 -> 
A83: ='Enter data here!'!A314 -> 72 | B83: ='Enter data here!'!B314 ->  | C83: ='Enter data here!'!C314 -> 
A84: ='Enter data here!'!A315 -> 73 | B84: ='Enter data here!'!B315 ->  | C84: ='Enter data here!'!C315 ->  | E84: =E38 -> Best flight:
A85: ='Enter data here!'!A316 -> 74 | B85: ='Enter data here!'!B316 ->  | C85: ='Enter data here!'!C316 -> 
A86: ='Enter data here!'!A317 -> 75 | B86: ='Enter data here!'!B317 ->  | C86: ='Enter data here!'!C317 ->  | E86: =E40 -> Competitor | F86: =F40 -> Time
A87: ='Enter data here!'!A318 -> 76 | B87: ='Enter data here!'!B318 ->  | C87: ='Enter data here!'!C318 ->  | E87: =E41 -> Mark R | F87: =F41 -> 44.76
A88: ='Enter data here!'!A319 -> 77 | B88: ='Enter data here!'!B319 ->  | C88: ='Enter data here!'!C319 -> 
A89: ='Enter data here!'!A320 -> 78 | B89: ='Enter data here!'!B320 ->  | C89: ='Enter data here!'!C320 ->  | E89: =E43 -> (In round | F89: =F43 -> 2 | G89: =G43 -> )
A90: ='Enter data here!'!A321 -> 79 | B90: ='Enter data here!'!B321 ->  | C90: ='Enter data here!'!C321 -> 
A91: ='Enter data here!'!A322 -> 80 | B91: ='Enter data here!'!B322 ->  | C91: ='Enter data here!'!C322 -> 
A92: ='Enter data here!'!A323 -> 81 | B92: ='Enter data here!'!B323 ->  | C92: ='Enter data here!'!C323 -> 
A93: ='Enter data here!'!A324 -> 82 | B93: ='Enter data here!'!B324 ->  | C93: ='Enter data here!'!C324 -> 
A94: ='Enter data here!'!A325 -> 83 | B94: ='Enter data here!'!B325 ->  | C94: ='Enter data here!'!C325 -> 
A95: ='Enter data here!'!A326 -> 84 | B95: ='Enter data here!'!B326 ->  | C95: ='Enter data here!'!C326 -> 
A96: ='Enter data here!'!A327 -> 85 | B96: ='Enter data here!'!B327 ->  | C96: ='Enter data here!'!C327 -> 
A97: ='Enter data here!'!A328 -> 86 | B97: ='Enter data here!'!B328 ->  | C97: ='Enter data here!'!C328 -> 
A98: ='Enter data here!'!A329 -> 87 | B98: ='Enter data here!'!B329 ->  | C98: ='Enter data here!'!C329 -> 
A99: ='Enter data here!'!A330 -> 88 | B99: ='Enter data here!'!B330 ->  | C99: ='Enter data here!'!C330 -> 
A100: ='Enter data here!'!A331 -> 89 | B100: ='Enter data here!'!B331 ->  | C100: ='Enter data here!'!C331 ->  | E100: =E54 -> Sheet author:
A101: ='Enter data here!'!A332 -> 90 | B101: ='Enter data here!'!B332 ->  | C101: ='Enter data here!'!C332 ->  | E101: =E55 -> Matt Brett, Sept 08

Sheet Round summaries
A1: =CONCATENATE("Round Summaries - ",'Enter data here!'!D3) -> Round Summaries - mynd bmfa | H1: =IF('Enter data here!'!D4="","",'Enter data here!'!D4) -> 
A3: For a detailed round summary and leaderboard at the end of any given round, enter round number from 1-40 in light blue box.
A5: Round | B5: 10 | D5: Speed in: | E5: kph | H5: * - Leaderboard calcs on this page do | K5: mph
B6: 3 | H6: not take any discards into account | K6: kph
B8: Round | C8: Result | H8: Round | I8: Leaderboard*
B9: =CONCATENATE(B8,$B$5,C8) -> Round 10 Result | H9: =CONCATENATE(H8,$B$5,I8) -> Round 10 Leaderboard*
A10: Rank | B10: Competitor | C10: Time | D10: Score | E10: =CONCATENATE("Av. Speed/",E5) -> Av. Speed/kph | G10: Rank | H10: Competitor | I10: Total Score
A11: 1 | B11: =IF(ISERROR('Full round scores'!B107),"",'Full round scores'!B107) ->  | C11: =IF(ISERROR('Full round scores'!C107),"",'Full round scores'!C107) ->  | D11: =IF(ISERROR('Full round scores'!D107),"",'Full round scores'!D107) ->  | E11: =IF(ISERROR('Enter data here!'!$D$7/C11),"",IF($E$5="mph",(((10*'Enter data here!'!$D$7)/1609)*(60/C11)*60),(60/C11)*60)) ->  | G11: 1 | H11: ='Round by round data'!E360 -> Mark R | I11: ='Round by round data'!F360 -> 5742.518926
A12: 2 | B12: =IF(ISERROR('Full round scores'!B108),"",'Full round scores'!B108) ->  | C12: =IF(ISERROR('Full round scores'!C108),"",'Full round scores'!C108) ->  | D12: =IF(ISERROR('Full round scores'!D108),"",'Full round scores'!D108) ->  | E12: =IF(ISERROR('Enter data here!'!$D$7/C12),"",IF($E$5="mph",(((10*'Enter data here!'!$D$7)/1609)*(60/C12)*60),(60/C12)*60)) ->  | G12: 2 | H12: ='Round by round data'!E361 -> Mark T | I12: ='Round by round data'!F361 -> 5733.120605
A13: 3 | B13: =IF(ISERROR('Full round scores'!B109),"",'Full round scores'!B109) ->  | C13: =IF(ISERROR('Full round scores'!C109),"",'Full round scores'!C109) ->  | D13: =IF(ISERROR('Full round scores'!D109),"",'Full round scores'!D109) ->  | E13: =IF(ISERROR('Enter data here!'!$D$7/C13),"",IF($E$5="mph",(((10*'Enter data here!'!$D$7)/1609)*(60/C13)*60),(60/C13)*60)) ->  | G13: 3 | H13: ='Round by round data'!E362 -> Aleix | I13: ='Round by round data'!F362 -> 5587.617717
A14: 4 | B14: =IF(ISERROR('Full round scores'!B110),"",'Full round scores'!B110) ->  | C14: =IF(ISERROR('Full round scores'!C110),"",'Full round scores'!C110) ->  | D14: =IF(ISERROR('Full round scores'!D110),"",'Full round scores'!D110) ->  | E14: =IF(ISERROR('Enter data here!'!$D$7/C14),"",IF($E$5="mph",(((10*'Enter data here!'!$D$7)/1609)*(60/C14)*60),(60/C14)*60)) ->  | G14: 4 | H14: ='Round by round data'!E363 -> Les | I14: ='Round by round data'!F363 -> 5542.126161
A15: 5 | B15: =IF(ISERROR('Full round scores'!B111),"",'Full round scores'!B111) ->  | C15: =IF(ISERROR('Full round scores'!C111),"",'Full round scores'!C111) ->  | D15: =IF(ISERROR('Full round scores'!D111),"",'Full round scores'!D111) ->  | E15: =IF(ISERROR('Enter data here!'!$D$7/C15),"",IF($E$5="mph",(((10*'Enter data here!'!$D$7)/1609)*(60/C15)*60),(60/C15)*60)) ->  | G15: 5 | H15: ='Round by round data'!E364 -> mike | I15: ='Round by round data'!F364 -> 5345.916508
A16: 6 | B16: =IF(ISERROR('Full round scores'!B112),"",'Full round scores'!B112) ->  | C16: =IF(ISERROR('Full round scores'!C112),"",'Full round scores'!C112) ->  | D16: =IF(ISERROR('Full round scores'!D112),"",'Full round scores'!D112) ->  | E16: =IF(ISERROR('Enter data here!'!$D$7/C16),"",IF($E$5="mph",(((10*'Enter data here!'!$D$7)/1609)*(60/C16)*60),(60/C16)*60)) ->  | G16: 6 | H16: ='Round by round data'!E365 -> Paul | I16: ='Round by round data'!F365 -> 5033.685592
A17: 7 | B17: =IF(ISERROR('Full round scores'!B113),"",'Full round scores'!B113) ->  | C17: =IF(ISERROR('Full round scores'!C113),"",'Full round scores'!C113) ->  | D17: =IF(ISERROR('Full round scores'!D113),"",'Full round scores'!D113) ->  | E17: =IF(ISERROR('Enter data here!'!$D$7/C17),"",IF($E$5="mph",(((10*'Enter data here!'!$D$7)/1609)*(60/C17)*60),(60/C17)*60)) ->  | G17: 7 | H17: ='Round by round data'!E366 -> Dave | I17: ='Round by round data'!F366 -> 5013.000433
A18: 8 | B18: =IF(ISERROR('Full round scores'!B114),"",'Full round scores'!B114) ->  | C18: =IF(ISERROR('Full round scores'!C114),"",'Full round scores'!C114) ->  | D18: =IF(ISERROR('Full round scores'!D114),"",'Full round scores'!D114) ->  | E18: =IF(ISERROR('Enter data here!'!$D$7/C18),"",IF($E$5="mph",(((10*'Enter data here!'!$D$7)/1609)*(60/C18)*60),(60/C18)*60)) ->  | G18: 8 | H18: ='Round by round data'!E367 -> Bruce | I18: ='Round by round data'!F367 -> 4911.521984
A19: 9 | B19: =IF(ISERROR('Full round scores'!B115),"",'Full round scores'!B115) ->  | C19: =IF(ISERROR('Full round scores'!C115),"",'Full round scores'!C115) ->  | D19: =IF(ISERROR('Full round scores'!D115),"",'Full round scores'!D115) ->  | E19: =IF(ISERROR('Enter data here!'!$D$7/C19),"",IF($E$5="mph",(((10*'Enter data here!'!$D$7)/1609)*(60/C19)*60),(60/C19)*60)) ->  | G19: 9 | H19: ='Round by round data'!E368 -> phil | I19: ='Round by round data'!F368 -> 4803.440976
A20: 10 | B20: =IF(ISERROR('Full round scores'!B116),"",'Full round scores'!B116) ->  | C20: =IF(ISERROR('Full round scores'!C116),"",'Full round scores'!C116) ->  | D20: =IF(ISERROR('Full round scores'!D116),"",'Full round scores'!D116) ->  | E20: =IF(ISERROR('Enter data here!'!$D$7/C20),"",IF($E$5="mph",(((10*'Enter data here!'!$D$7)/1609)*(60/C20)*60),(60/C20)*60)) ->  | G20: 10 | H20: ='Round by round data'!E369 -> Ian | I20: ='Round by round data'!F369 -> 4737.0294
A21: 11 | B21: =IF(ISERROR('Full round scores'!B117),"",'Full round scores'!B117) ->  | C21: =IF(ISERROR('Full round scores'!C117),"",'Full round scores'!C117) ->  | D21: =IF(ISERROR('Full round scores'!D117),"",'Full round scores'!D117) ->  | E21: =IF(ISERROR('Enter data here!'!$D$7/C21),"",IF($E$5="mph",(((10*'Enter data here!'!$D$7)/1609)*(60/C21)*60),(60/C21)*60)) ->  | G21: 11 | H21: ='Round by round data'!E370 ->  | I21: ='Round by round data'!F370 -> 
A22: 12 | B22: =IF(ISERROR('Full round scores'!B118),"",'Full round scores'!B118) ->  | C22: =IF(ISERROR('Full round scores'!C118),"",'Full round scores'!C118) ->  | D22: =IF(ISERROR('Full round scores'!D118),"",'Full round scores'!D118) ->  | E22: =IF(ISERROR('Enter data here!'!$D$7/C22),"",IF($E$5="mph",(((10*'Enter data here!'!$D$7)/1609)*(60/C22)*60),(60/C22)*60)) ->  | G22: 12 | H22: ='Round by round data'!E371 ->  | I22: ='Round by round data'!F371 -> 
A23: 13 | B23: =IF(ISERROR('Full round scores'!B119),"",'Full round scores'!B119) ->  | C23: =IF(ISERROR('Full round scores'!C119),"",'Full round scores'!C119) ->  | D23: =IF(ISERROR('Full round scores'!D119),"",'Full round scores'!D119) ->  | E23: =IF(ISERROR('Enter data here!'!$D$7/C23),"",IF($E$5="mph",(((10*'Enter data here!'!$D$7)/1609)*(60/C23)*60),(60/C23)*60)) ->  | G23: 13 | H23: ='Round by round data'!E372 ->  | I23: ='Round by round data'!F372 -> 
A24: 14 | B24: =IF(ISERROR('Full round scores'!B120),"",'Full round scores'!B120) ->  | C24: =IF(ISERROR('Full round scores'!C120),"",'Full round scores'!C120) ->  | D24: =IF(ISERROR('Full round scores'!D120),"",'Full round scores'!D120) ->  | E24: =IF(ISERROR('Enter data here!'!$D$7/C24),"",IF($E$5="mph",(((10*'Enter data here!'!$D$7)/1609)*(60/C24)*60),(60/C24)*60)) ->  | G24: 14 | H24: ='Round by round data'!E373 ->  | I24: ='Round by round data'!F373 -> 
A25: 15 | B25: =IF(ISERROR('Full round scores'!B121),"",'Full round scores'!B121) ->  | C25: =IF(ISERROR('Full round scores'!C121),"",'Full round scores'!C121) ->  | D25: =IF(ISERROR('Full round scores'!D121),"",'Full round scores'!D121) ->  | E25: =IF(ISERROR('Enter data here!'!$D$7/C25),"",IF($E$5="mph",(((10*'Enter data here!'!$D$7)/1609)*(60/C25)*60),(60/C25)*60)) ->  | G25: 15 | H25: ='Round by round data'!E374 ->  | I25: ='Round by round data'!F374 -> 
A26: 16 | B26: =IF(ISERROR('Full round scores'!B122),"",'Full round scores'!B122) ->  | C26: =IF(ISERROR('Full round scores'!C122),"",'Full round scores'!C122) ->  | D26: =IF(ISERROR('Full round scores'!D122),"",'Full round scores'!D122) ->  | E26: =IF(ISERROR('Enter data here!'!$D$7/C26),"",IF($E$5="mph",(((10*'Enter data here!'!$D$7)/1609)*(60/C26)*60),(60/C26)*60)) ->  | G26: 16 | H26: ='Round by round data'!E375 ->  | I26: ='Round by round data'!F375 -> 
A27: 17 | B27: =IF(ISERROR('Full round scores'!B123),"",'Full round scores'!B123) ->  | C27: =IF(ISERROR('Full round scores'!C123),"",'Full round scores'!C123) ->  | D27: =IF(ISERROR('Full round scores'!D123),"",'Full round scores'!D123) ->  | E27: =IF(ISERROR('Enter data here!'!$D$7/C27),"",IF($E$5="mph",(((10*'Enter data here!'!$D$7)/1609)*(60/C27)*60),(60/C27)*60)) ->  | G27: 17 | H27: ='Round by round data'!E376 ->  | I27: ='Round by round data'!F376 -> 
A28: 18 | B28: =IF(ISERROR('Full round scores'!B124),"",'Full round scores'!B124) ->  | C28: =IF(ISERROR('Full round scores'!C124),"",'Full round scores'!C124) ->  | D28: =IF(ISERROR('Full round scores'!D124),"",'Full round scores'!D124) ->  | E28: =IF(ISERROR('Enter data here!'!$D$7/C28),"",IF($E$5="mph",(((10*'Enter data here!'!$D$7)/1609)*(60/C28)*60),(60/C28)*60)) ->  | G28: 18 | H28: ='Round by round data'!E377 ->  | I28: ='Round by round data'!F377 -> 
A29: 19 | B29: =IF(ISERROR('Full round scores'!B125),"",'Full round scores'!B125) ->  | C29: =IF(ISERROR('Full round scores'!C125),"",'Full round scores'!C125) ->  | D29: =IF(ISERROR('Full round scores'!D125),"",'Full round scores'!D125) ->  | E29: =IF(ISERROR('Enter data here!'!$D$7/C29),"",IF($E$5="mph",(((10*'Enter data here!'!$D$7)/1609)*(60/C29)*60),(60/C29)*60)) ->  | G29: 19 | H29: ='Round by round data'!E378 ->  | I29: ='Round by round data'!F378 -> 
A30: 20 | B30: =IF(ISERROR('Full round scores'!B126),"",'Full round scores'!B126) ->  | C30: =IF(ISERROR('Full round scores'!C126),"",'Full round scores'!C126) ->  | D30: =IF(ISERROR('Full round scores'!D126),"",'Full round scores'!D126) ->  | E30: =IF(ISERROR('Enter data here!'!$D$7/C30),"",IF($E$5="mph",(((10*'Enter data here!'!$D$7)/1609)*(60/C30)*60),(60/C30)*60)) ->  | G30: 20 | H30: ='Round by round data'!E379 ->  | I30: ='Round by round data'!F379 -> 
A31: 21 | B31: =IF(ISERROR('Full round scores'!B127),"",'Full round scores'!B127) ->  | C31: =IF(ISERROR('Full round scores'!C127),"",'Full round scores'!C127) ->  | D31: =IF(ISERROR('Full round scores'!D127),"",'Full round scores'!D127) ->  | E31: =IF(ISERROR('Enter data here!'!$D$7/C31),"",IF($E$5="mph",(((10*'Enter data here!'!$D$7)/1609)*(60/C31)*60),(60/C31)*60)) ->  | G31: 21 | H31: ='Round by round data'!E380 ->  | I31: ='Round by round data'!F380 -> 
A32: 22 | B32: =IF(ISERROR('Full round scores'!B128),"",'Full round scores'!B128) ->  | C32: =IF(ISERROR('Full round scores'!C128),"",'Full round scores'!C128) ->  | D32: =IF(ISERROR('Full round scores'!D128),"",'Full round scores'!D128) ->  | E32: =IF(ISERROR('Enter data here!'!$D$7/C32),"",IF($E$5="mph",(((10*'Enter data here!'!$D$7)/1609)*(60/C32)*60),(60/C32)*60)) ->  | G32: 22 | H32: ='Round by round data'!E381 ->  | I32: ='Round by round data'!F381 -> 
A33: 23 | B33: =IF(ISERROR('Full round scores'!B129),"",'Full round scores'!B129) ->  | C33: =IF(ISERROR('Full round scores'!C129),"",'Full round scores'!C129) ->  | D33: =IF(ISERROR('Full round scores'!D129),"",'Full round scores'!D129) ->  | E33: =IF(ISERROR('Enter data here!'!$D$7/C33),"",IF($E$5="mph",(((10*'Enter data here!'!$D$7)/1609)*(60/C33)*60),(60/C33)*60)) ->  | G33: 23 | H33: ='Round by round data'!E382 ->  | I33: ='Round by round data'!F382 -> 
A34: 24 | B34: =IF(ISERROR('Full round scores'!B130),"",'Full round scores'!B130) ->  | C34: =IF(ISERROR('Full round scores'!C130),"",'Full round scores'!C130) ->  | D34: =IF(ISERROR('Full round scores'!D130),"",'Full round scores'!D130) ->  | E34: =IF(ISERROR('Enter data here!'!$D$7/C34),"",IF($E$5="mph",(((10*'Enter data here!'!$D$7)/1609)*(60/C34)*60),(60/C34)*60)) ->  | G34: 24 | H34: ='Round by round data'!E383 ->  | I34: ='Round by round data'!F383 -> 
A35: 25 | B35: =IF(ISERROR('Full round scores'!B131),"",'Full round scores'!B131) ->  | C35: =IF(ISERROR('Full round scores'!C131),"",'Full round scores'!C131) ->  | D35: =IF(ISERROR('Full round scores'!D131),"",'Full round scores'!D131) ->  | E35: =IF(ISERROR('Enter data here!'!$D$7/C35),"",IF($E$5="mph",(((10*'Enter data here!'!$D$7)/1609)*(60/C35)*60),(60/C35)*60)) ->  | G35: 25 | H35: ='Round by round data'!E384 ->  | I35: ='Round by round data'!F384 -> 
A36: 26 | B36: =IF(ISERROR('Full round scores'!B132),"",'Full round scores'!B132) ->  | C36: =IF(ISERROR('Full round scores'!C132),"",'Full round scores'!C132) ->  | D36: =IF(ISERROR('Full round scores'!D132),"",'Full round scores'!D132) ->  | E36: =IF(ISERROR('Enter data here!'!$D$7/C36),"",IF($E$5="mph",(((10*'Enter data here!'!$D$7)/1609)*(60/C36)*60),(60/C36)*60)) ->  | G36: 26 | H36: ='Round by round data'!E385 ->  | I36: ='Round by round data'!F385 -> 
A37: 27 | B37: =IF(ISERROR('Full round scores'!B133),"",'Full round scores'!B133) ->  | C37: =IF(ISERROR('Full round scores'!C133),"",'Full round scores'!C133) ->  | D37: =IF(ISERROR('Full round scores'!D133),"",'Full round scores'!D133) ->  | E37: =IF(ISERROR('Enter data here!'!$D$7/C37),"",IF($E$5="mph",(((10*'Enter data here!'!$D$7)/1609)*(60/C37)*60),(60/C37)*60)) ->  | G37: 27 | H37: ='Round by round data'!E386 ->  | I37: ='Round by round data'!F386 -> 
A38: 28 | B38: =IF(ISERROR('Full round scores'!B134),"",'Full round scores'!B134) ->  | C38: =IF(ISERROR('Full round scores'!C134),"",'Full round scores'!C134) ->  | D38: =IF(ISERROR('Full round scores'!D134),"",'Full round scores'!D134) ->  | E38: =IF(ISERROR('Enter data here!'!$D$7/C38),"",IF($E$5="mph",(((10*'Enter data here!'!$D$7)/1609)*(60/C38)*60),(60/C38)*60)) ->  | G38: 28 | H38: ='Round by round data'!E387 ->  | I38: ='Round by round data'!F387 -> 
A39: 29 | B39: =IF(ISERROR('Full round scores'!B135),"",'Full round scores'!B135) ->  | C39: =IF(ISERROR('Full round scores'!C135),"",'Full round scores'!C135) ->  | D39: =IF(ISERROR('Full round scores'!D135),"",'Full round scores'!D135) ->  | E39: =IF(ISERROR('Enter data here!'!$D$7/C39),"",IF($E$5="mph",(((10*'Enter data here!'!$D$7)/1609)*(60/C39)*60),(60/C39)*60)) ->  | G39: 29 | H39: ='Round by round data'!E388 ->  | I39: ='Round by round data'!F388 -> 
A40: 30 | B40: =IF(ISERROR('Full round scores'!B136),"",'Full round scores'!B136) ->  | C40: =IF(ISERROR('Full round scores'!C136),"",'Full round scores'!C136) ->  | D40: =IF(ISERROR('Full round scores'!D136),"",'Full round scores'!D136) ->  | E40: =IF(ISERROR('Enter data here!'!$D$7/C40),"",IF($E$5="mph",(((10*'Enter data here!'!$D$7)/1609)*(60/C40)*60),(60/C40)*60)) ->  | G40: 30 | H40: ='Round by round data'!E389 ->  | I40: ='Round by round data'!F389 -> 
A41: 31 | B41: =IF(ISERROR('Full round scores'!B137),"",'Full round scores'!B137) ->  | C41: =IF(ISERROR('Full round scores'!C137),"",'Full round scores'!C137) ->  | D41: =IF(ISERROR('Full round scores'!D137),"",'Full round scores'!D137) ->  | E41: =IF(ISERROR('Enter data here!'!$D$7/C41),"",IF($E$5="mph",(((10*'Enter data here!'!$D$7)/1609)*(60/C41)*60),(60/C41)*60)) ->  | G41: 31 | H41: ='Round by round data'!E390 ->  | I41: ='Round by round data'!F390 -> 
A42: 32 | B42: =IF(ISERROR('Full round scores'!B138),"",'Full round scores'!B138) ->  | C42: =IF(ISERROR('Full round scores'!C138),"",'Full round scores'!C138) ->  | D42: =IF(ISERROR('Full round scores'!D138),"",'Full round scores'!D138) ->  | E42: =IF(ISERROR('Enter data here!'!$D$7/C42),"",IF($E$5="mph",(((10*'Enter data here!'!$D$7)/1609)*(60/C42)*60),(60/C42)*60)) ->  | G42: 32 | H42: ='Round by round data'!E391 ->  | I42: ='Round by round data'!F391 -> 
A43: 33 | B43: =IF(ISERROR('Full round scores'!B139),"",'Full round scores'!B139) ->  | C43: =IF(ISERROR('Full round scores'!C139),"",'Full round scores'!C139) ->  | D43: =IF(ISERROR('Full round scores'!D139),"",'Full round scores'!D139) ->  | E43: =IF(ISERROR('Enter data here!'!$D$7/C43),"",IF($E$5="mph",(((10*'Enter data here!'!$D$7)/1609)*(60/C43)*60),(60/C43)*60)) ->  | G43: 33 | H43: ='Round by round data'!E392 ->  | I43: ='Round by round data'!F392 -> 
A44: 34 | B44: =IF(ISERROR('Full round scores'!B140),"",'Full round scores'!B140) ->  | C44: =IF(ISERROR('Full round scores'!C140),"",'Full round scores'!C140) ->  | D44: =IF(ISERROR('Full round scores'!D140),"",'Full round scores'!D140) ->  | E44: =IF(ISERROR('Enter data here!'!$D$7/C44),"",IF($E$5="mph",(((10*'Enter data here!'!$D$7)/1609)*(60/C44)*60),(60/C44)*60)) ->  | G44: 34 | H44: ='Round by round data'!E393 ->  | I44: ='Round by round data'!F393 -> 
A45: 35 | B45: =IF(ISERROR('Full round scores'!B141),"",'Full round scores'!B141) ->  | C45: =IF(ISERROR('Full round scores'!C141),"",'Full round scores'!C141) ->  | D45: =IF(ISERROR('Full round scores'!D141),"",'Full round scores'!D141) ->  | E45: =IF(ISERROR('Enter data here!'!$D$7/C45),"",IF($E$5="mph",(((10*'Enter data here!'!$D$7)/1609)*(60/C45)*60),(60/C45)*60)) ->  | G45: 35 | H45: ='Round by round data'!E394 ->  | I45: ='Round by round data'!F394 -> 
A46: 36 | B46: =IF(ISERROR('Full round scores'!B142),"",'Full round scores'!B142) ->  | C46: =IF(ISERROR('Full round scores'!C142),"",'Full round scores'!C142) ->  | D46: =IF(ISERROR('Full round scores'!D142),"",'Full round scores'!D142) ->  | E46: =IF(ISERROR('Enter data here!'!$D$7/C46),"",IF($E$5="mph",(((10*'Enter data here!'!$D$7)/1609)*(60/C46)*60),(60/C46)*60)) ->  | G46: 36 | H46: ='Round by round data'!E395 ->  | I46: ='Round by round data'!F395 -> 
A47: 37 | B47: =IF(ISERROR('Full round scores'!B143),"",'Full round scores'!B143) ->  | C47: =IF(ISERROR('Full round scores'!C143),"",'Full round scores'!C143) ->  | D47: =IF(ISERROR('Full round scores'!D143),"",'Full round scores'!D143) ->  | E47: =IF(ISERROR('Enter data here!'!$D$7/C47),"",IF($E$5="mph",(((10*'Enter data here!'!$D$7)/1609)*(60/C47)*60),(60/C47)*60)) ->  | G47: 37 | H47: ='Round by round data'!E396 ->  | I47: ='Round by round data'!F396 -> 
A48: 38 | B48: =IF(ISERROR('Full round scores'!B144),"",'Full round scores'!B144) ->  | C48: =IF(ISERROR('Full round scores'!C144),"",'Full round scores'!C144) ->  | D48: =IF(ISERROR('Full round scores'!D144),"",'Full round scores'!D144) ->  | E48: =IF(ISERROR('Enter data here!'!$D$7/C48),"",IF($E$5="mph",(((10*'Enter data here!'!$D$7)/1609)*(60/C48)*60),(60/C48)*60)) ->  | G48: 38 | H48: ='Round by round data'!E397 ->  | I48: ='Round by round data'!F397 -> 
A49: 39 | B49: =IF(ISERROR('Full round scores'!B145),"",'Full round scores'!B145) ->  | C49: =IF(ISERROR('Full round scores'!C145),"",'Full round scores'!C145) ->  | D49: =IF(ISERROR('Full round scores'!D145),"",'Full round scores'!D145) ->  | E49: =IF(ISERROR('Enter data here!'!$D$7/C49),"",IF($E$5="mph",(((10*'Enter data here!'!$D$7)/1609)*(60/C49)*60),(60/C49)*60)) ->  | G49: 39 | H49: ='Round by round data'!E398 ->  | I49: ='Round by round data'!F398 -> 
A50: 40 | B50: =IF(ISERROR('Full round scores'!B146),"",'Full round scores'!B146) ->  | C50: =IF(ISERROR('Full round scores'!C146),"",'Full round scores'!C146) ->  | D50: =IF(ISERROR('Full round scores'!D146),"",'Full round scores'!D146) ->  | E50: =IF(ISERROR('Enter data here!'!$D$7/C50),"",IF($E$5="mph",(((10*'Enter data here!'!$D$7)/1609)*(60/C50)*60),(60/C50)*60)) ->  | G50: 40 | H50: ='Round by round data'!E399 ->  | I50: ='Round by round data'!F399 -> 
A51: 41 | B51: =IF(ISERROR('Full round scores'!B147),"",'Full round scores'!B147) ->  | C51: =IF(ISERROR('Full round scores'!C147),"",'Full round scores'!C147) ->  | D51: =IF(ISERROR('Full round scores'!D147),"",'Full round scores'!D147) ->  | E51: =IF(ISERROR('Enter data here!'!$D$7/C51),"",IF($E$5="mph",(((10*'Enter data here!'!$D$7)/1609)*(60/C51)*60),(60/C51)*60)) ->  | G51: 41 | H51: ='Round by round data'!E400 ->  | I51: ='Round by round data'!F400 -> 
A52: 42 | B52: =IF(ISERROR('Full round scores'!B148),"",'Full round scores'!B148) ->  | C52: =IF(ISERROR('Full round scores'!C148),"",'Full round scores'!C148) ->  | D52: =IF(ISERROR('Full round scores'!D148),"",'Full round scores'!D148) ->  | E52: =IF(ISERROR('Enter data here!'!$D$7/C52),"",IF($E$5="mph",(((10*'Enter data here!'!$D$7)/1609)*(60/C52)*60),(60/C52)*60)) ->  | G52: 42 | H52: ='Round by round data'!E401 ->  | I52: ='Round by round data'!F401 -> 
A53: 43 | B53: =IF(ISERROR('Full round scores'!B149),"",'Full round scores'!B149) ->  | C53: =IF(ISERROR('Full round scores'!C149),"",'Full round scores'!C149) ->  | D53: =IF(ISERROR('Full round scores'!D149),"",'Full round scores'!D149) ->  | E53: =IF(ISERROR('Enter data here!'!$D$7/C53),"",IF($E$5="mph",(((10*'Enter data here!'!$D$7)/1609)*(60/C53)*60),(60/C53)*60)) ->  | G53: 43 | H53: ='Round by round data'!E402 ->  | I53: ='Round by round data'!F402 -> 
A54: 44 | B54: =IF(ISERROR('Full round scores'!B150),"",'Full round scores'!B150) ->  | C54: =IF(ISERROR('Full round scores'!C150),"",'Full round scores'!C150) ->  | D54: =IF(ISERROR('Full round scores'!D150),"",'Full round scores'!D150) ->  | E54: =IF(ISERROR('Enter data here!'!$D$7/C54),"",IF($E$5="mph",(((10*'Enter data here!'!$D$7)/1609)*(60/C54)*60),(60/C54)*60)) ->  | G54: 44 | H54: ='Round by round data'!E403 ->  | I54: ='Round by round data'!F403 -> 
A55: 45 | B55: =IF(ISERROR('Full round scores'!B151),"",'Full round scores'!B151) ->  | C55: =IF(ISERROR('Full round scores'!C151),"",'Full round scores'!C151) ->  | D55: =IF(ISERROR('Full round scores'!D151),"",'Full round scores'!D151) ->  | E55: =IF(ISERROR('Enter data here!'!$D$7/C55),"",IF($E$5="mph",(((10*'Enter data here!'!$D$7)/1609)*(60/C55)*60),(60/C55)*60)) ->  | G55: 45 | H55: ='Round by round data'!E404 ->  | I55: ='Round by round data'!F404 -> 
A56: 46 | B56: =IF(ISERROR('Full round scores'!B152),"",'Full round scores'!B152) ->  | C56: =IF(ISERROR('Full round scores'!C152),"",'Full round scores'!C152) ->  | D56: =IF(ISERROR('Full round scores'!D152),"",'Full round scores'!D152) ->  | E56: =IF(ISERROR('Enter data here!'!$D$7/C56),"",IF($E$5="mph",(((10*'Enter data here!'!$D$7)/1609)*(60/C56)*60),(60/C56)*60)) ->  | G56: 46 | H56: ='Round by round data'!E405 ->  | I56: ='Round by round data'!F405 -> 
A57: 47 | B57: =IF(ISERROR('Full round scores'!B153),"",'Full round scores'!B153) ->  | C57: =IF(ISERROR('Full round scores'!C153),"",'Full round scores'!C153) ->  | D57: =IF(ISERROR('Full round scores'!D153),"",'Full round scores'!D153) ->  | E57: =IF(ISERROR('Enter data here!'!$D$7/C57),"",IF($E$5="mph",(((10*'Enter data here!'!$D$7)/1609)*(60/C57)*60),(60/C57)*60)) ->  | G57: 47 | H57: ='Round by round data'!E406 ->  | I57: ='Round by round data'!F406 -> 
A58: 48 | B58: =IF(ISERROR('Full round scores'!B154),"",'Full round scores'!B154) ->  | C58: =IF(ISERROR('Full round scores'!C154),"",'Full round scores'!C154) ->  | D58: =IF(ISERROR('Full round scores'!D154),"",'Full round scores'!D154) ->  | E58: =IF(ISERROR('Enter data here!'!$D$7/C58),"",IF($E$5="mph",(((10*'Enter data here!'!$D$7)/1609)*(60/C58)*60),(60/C58)*60)) ->  | G58: 48 | H58: ='Round by round data'!E407 ->  | I58: ='Round by round data'!F407 -> 
A59: 49 | B59: =IF(ISERROR('Full round scores'!B155),"",'Full round scores'!B155) ->  | C59: =IF(ISERROR('Full round scores'!C155),"",'Full round scores'!C155) ->  | D59: =IF(ISERROR('Full round scores'!D155),"",'Full round scores'!D155) ->  | E59: =IF(ISERROR('Enter data here!'!$D$7/C59),"",IF($E$5="mph",(((10*'Enter data here!'!$D$7)/1609)*(60/C59)*60),(60/C59)*60)) ->  | G59: 49 | H59: ='Round by round data'!E408 ->  | I59: ='Round by round data'!F408 -> 
A60: 50 | B60: =IF(ISERROR('Full round scores'!B156),"",'Full round scores'!B156) ->  | C60: =IF(ISERROR('Full round scores'!C156),"",'Full round scores'!C156) ->  | D60: =IF(ISERROR('Full round scores'!D156),"",'Full round scores'!D156) ->  | E60: =IF(ISERROR('Enter data here!'!$D$7/C60),"",IF($E$5="mph",(((10*'Enter data here!'!$D$7)/1609)*(60/C60)*60),(60/C60)*60)) ->  | G60: 50 | H60: ='Round by round data'!E409 ->  | I60: ='Round by round data'!F409 -> 
A61: 51 | B61: =IF(ISERROR('Full round scores'!B157),"",'Full round scores'!B157) ->  | C61: =IF(ISERROR('Full round scores'!C157),"",'Full round scores'!C157) ->  | D61: =IF(ISERROR('Full round scores'!D157),"",'Full round scores'!D157) ->  | E61: =IF(ISERROR('Enter data here!'!$D$7/C61),"",IF($E$5="mph",(((10*'Enter data here!'!$D$7)/1609)*(60/C61)*60),(60/C61)*60)) ->  | G61: 51 | H61: ='Round by round data'!E410 ->  | I61: ='Round by round data'!F410 -> 
A62: 52 | B62: =IF(ISERROR('Full round scores'!B158),"",'Full round scores'!B158) ->  | C62: =IF(ISERROR('Full round scores'!C158),"",'Full round scores'!C158) ->  | D62: =IF(ISERROR('Full round scores'!D158),"",'Full round scores'!D158) ->  | E62: =IF(ISERROR('Enter data here!'!$D$7/C62),"",IF($E$5="mph",(((10*'Enter data here!'!$D$7)/1609)*(60/C62)*60),(60/C62)*60)) ->  | G62: 52 | H62: ='Round by round data'!E411 ->  | I62: ='Round by round data'!F411 -> 
A63: 53 | B63: =IF(ISERROR('Full round scores'!B159),"",'Full round scores'!B159) ->  | C63: =IF(ISERROR('Full round scores'!C159),"",'Full round scores'!C159) ->  | D63: =IF(ISERROR('Full round scores'!D159),"",'Full round scores'!D159) ->  | E63: =IF(ISERROR('Enter data here!'!$D$7/C63),"",IF($E$5="mph",(((10*'Enter data here!'!$D$7)/1609)*(60/C63)*60),(60/C63)*60)) ->  | G63: 53 | H63: ='Round by round data'!E412 ->  | I63: ='Round by round data'!F412 -> 
A64: 54 | B64: =IF(ISERROR('Full round scores'!B160),"",'Full round scores'!B160) ->  | C64: =IF(ISERROR('Full round scores'!C160),"",'Full round scores'!C160) ->  | D64: =IF(ISERROR('Full round scores'!D160),"",'Full round scores'!D160) ->  | E64: =IF(ISERROR('Enter data here!'!$D$7/C64),"",IF($E$5="mph",(((10*'Enter data here!'!$D$7)/1609)*(60/C64)*60),(60/C64)*60)) ->  | G64: 54 | H64: ='Round by round data'!E413 ->  | I64: ='Round by round data'!F413 -> 
A65: 55 | B65: =IF(ISERROR('Full round scores'!B161),"",'Full round scores'!B161) ->  | C65: =IF(ISERROR('Full round scores'!C161),"",'Full round scores'!C161) ->  | D65: =IF(ISERROR('Full round scores'!D161),"",'Full round scores'!D161) ->  | E65: =IF(ISERROR('Enter data here!'!$D$7/C65),"",IF($E$5="mph",(((10*'Enter data here!'!$D$7)/1609)*(60/C65)*60),(60/C65)*60)) ->  | G65: 55 | H65: ='Round by round data'!E414 ->  | I65: ='Round by round data'!F414 -> 
A66: 56 | B66: =IF(ISERROR('Full round scores'!B162),"",'Full round scores'!B162) ->  | C66: =IF(ISERROR('Full round scores'!C162),"",'Full round scores'!C162) ->  | D66: =IF(ISERROR('Full round scores'!D162),"",'Full round scores'!D162) ->  | E66: =IF(ISERROR('Enter data here!'!$D$7/C66),"",IF($E$5="mph",(((10*'Enter data here!'!$D$7)/1609)*(60/C66)*60),(60/C66)*60)) ->  | G66: 56 | H66: ='Round by round data'!E415 ->  | I66: ='Round by round data'!F415 -> 
A67: 57 | B67: =IF(ISERROR('Full round scores'!B163),"",'Full round scores'!B163) ->  | C67: =IF(ISERROR('Full round scores'!C163),"",'Full round scores'!C163) ->  | D67: =IF(ISERROR('Full round scores'!D163),"",'Full round scores'!D163) ->  | E67: =IF(ISERROR('Enter data here!'!$D$7/C67),"",IF($E$5="mph",(((10*'Enter data here!'!$D$7)/1609)*(60/C67)*60),(60/C67)*60)) ->  | G67: 57 | H67: ='Round by round data'!E416 ->  | I67: ='Round by round data'!F416 -> 
A68: 58 | B68: =IF(ISERROR('Full round scores'!B164),"",'Full round scores'!B164) ->  | C68: =IF(ISERROR('Full round scores'!C164),"",'Full round scores'!C164) ->  | D68: =IF(ISERROR('Full round scores'!D164),"",'Full round scores'!D164) ->  | E68: =IF(ISERROR('Enter data here!'!$D$7/C68),"",IF($E$5="mph",(((10*'Enter data here!'!$D$7)/1609)*(60/C68)*60),(60/C68)*60)) ->  | G68: 58 | H68: ='Round by round data'!E417 ->  | I68: ='Round by round data'!F417 -> 
A69: 59 | B69: =IF(ISERROR('Full round scores'!B165),"",'Full round scores'!B165) ->  | C69: =IF(ISERROR('Full round scores'!C165),"",'Full round scores'!C165) ->  | D69: =IF(ISERROR('Full round scores'!D165),"",'Full round scores'!D165) ->  | E69: =IF(ISERROR('Enter data here!'!$D$7/C69),"",IF($E$5="mph",(((10*'Enter data here!'!$D$7)/1609)*(60/C69)*60),(60/C69)*60)) ->  | G69: 59 | H69: ='Round by round data'!E418 ->  | I69: ='Round by round data'!F418 -> 
A70: 60 | B70: =IF(ISERROR('Full round scores'!B166),"",'Full round scores'!B166) ->  | C70: =IF(ISERROR('Full round scores'!C166),"",'Full round scores'!C166) ->  | D70: =IF(ISERROR('Full round scores'!D166),"",'Full round scores'!D166) ->  | E70: =IF(ISERROR('Enter data here!'!$D$7/C70),"",IF($E$5="mph",(((10*'Enter data here!'!$D$7)/1609)*(60/C70)*60),(60/C70)*60)) ->  | G70: 60 | H70: ='Round by round data'!E419 ->  | I70: ='Round by round data'!F419 -> 
A71: 61 | B71: =IF(ISERROR('Full round scores'!B167),"",'Full round scores'!B167) ->  | C71: =IF(ISERROR('Full round scores'!C167),"",'Full round scores'!C167) ->  | D71: =IF(ISERROR('Full round scores'!D167),"",'Full round scores'!D167) ->  | E71: =IF(ISERROR('Enter data here!'!$D$7/C71),"",IF($E$5="mph",(((10*'Enter data here!'!$D$7)/1609)*(60/C71)*60),(60/C71)*60)) ->  | G71: 61 | H71: ='Round by round data'!E420 ->  | I71: ='Round by round data'!F420 -> 
A72: 62 | B72: =IF(ISERROR('Full round scores'!B168),"",'Full round scores'!B168) ->  | C72: =IF(ISERROR('Full round scores'!C168),"",'Full round scores'!C168) ->  | D72: =IF(ISERROR('Full round scores'!D168),"",'Full round scores'!D168) ->  | E72: =IF(ISERROR('Enter data here!'!$D$7/C72),"",IF($E$5="mph",(((10*'Enter data here!'!$D$7)/1609)*(60/C72)*60),(60/C72)*60)) ->  | G72: 62 | H72: ='Round by round data'!E421 ->  | I72: ='Round by round data'!F421 -> 
A73: 63 | B73: =IF(ISERROR('Full round scores'!B169),"",'Full round scores'!B169) ->  | C73: =IF(ISERROR('Full round scores'!C169),"",'Full round scores'!C169) ->  | D73: =IF(ISERROR('Full round scores'!D169),"",'Full round scores'!D169) ->  | E73: =IF(ISERROR('Enter data here!'!$D$7/C73),"",IF($E$5="mph",(((10*'Enter data here!'!$D$7)/1609)*(60/C73)*60),(60/C73)*60)) ->  | G73: 63 | H73: ='Round by round data'!E422 ->  | I73: ='Round by round data'!F422 -> 
A74: 64 | B74: =IF(ISERROR('Full round scores'!B170),"",'Full round scores'!B170) ->  | C74: =IF(ISERROR('Full round scores'!C170),"",'Full round scores'!C170) ->  | D74: =IF(ISERROR('Full round scores'!D170),"",'Full round scores'!D170) ->  | E74: =IF(ISERROR('Enter data here!'!$D$7/C74),"",IF($E$5="mph",(((10*'Enter data here!'!$D$7)/1609)*(60/C74)*60),(60/C74)*60)) ->  | G74: 64 | H74: ='Round by round data'!E423 ->  | I74: ='Round by round data'!F423 -> 
A75: 65 | B75: =IF(ISERROR('Full round scores'!B171),"",'Full round scores'!B171) ->  | C75: =IF(ISERROR('Full round scores'!C171),"",'Full round scores'!C171) ->  | D75: =IF(ISERROR('Full round scores'!D171),"",'Full round scores'!D171) ->  | E75: =IF(ISERROR('Enter data here!'!$D$7/C75),"",IF($E$5="mph",(((10*'Enter data here!'!$D$7)/1609)*(60/C75)*60),(60/C75)*60)) ->  | G75: 65 | H75: ='Round by round data'!E424 ->  | I75: ='Round by round data'!F424 -> 
A76: 66 | B76: =IF(ISERROR('Full round scores'!B172),"",'Full round scores'!B172) ->  | C76: =IF(ISERROR('Full round scores'!C172),"",'Full round scores'!C172) ->  | D76: =IF(ISERROR('Full round scores'!D172),"",'Full round scores'!D172) ->  | E76: =IF(ISERROR('Enter data here!'!$D$7/C76),"",IF($E$5="mph",(((10*'Enter data here!'!$D$7)/1609)*(60/C76)*60),(60/C76)*60)) ->  | G76: 66 | H76: ='Round by round data'!E425 ->  | I76: ='Round by round data'!F425 -> 
A77: 67 | B77: =IF(ISERROR('Full round scores'!B173),"",'Full round scores'!B173) ->  | C77: =IF(ISERROR('Full round scores'!C173),"",'Full round scores'!C173) ->  | D77: =IF(ISERROR('Full round scores'!D173),"",'Full round scores'!D173) ->  | E77: =IF(ISERROR('Enter data here!'!$D$7/C77),"",IF($E$5="mph",(((10*'Enter data here!'!$D$7)/1609)*(60/C77)*60),(60/C77)*60)) ->  | G77: 67 | H77: ='Round by round data'!E426 ->  | I77: ='Round by round data'!F426 -> 
A78: 68 | B78: =IF(ISERROR('Full round scores'!B174),"",'Full round scores'!B174) ->  | C78: =IF(ISERROR('Full round scores'!C174),"",'Full round scores'!C174) ->  | D78: =IF(ISERROR('Full round scores'!D174),"",'Full round scores'!D174) ->  | E78: =IF(ISERROR('Enter data here!'!$D$7/C78),"",IF($E$5="mph",(((10*'Enter data here!'!$D$7)/1609)*(60/C78)*60),(60/C78)*60)) ->  | G78: 68 | H78: ='Round by round data'!E427 ->  | I78: ='Round by round data'!F427 -> 
A79: 69 | B79: =IF(ISERROR('Full round scores'!B175),"",'Full round scores'!B175) ->  | C79: =IF(ISERROR('Full round scores'!C175),"",'Full round scores'!C175) ->  | D79: =IF(ISERROR('Full round scores'!D175),"",'Full round scores'!D175) ->  | E79: =IF(ISERROR('Enter data here!'!$D$7/C79),"",IF($E$5="mph",(((10*'Enter data here!'!$D$7)/1609)*(60/C79)*60),(60/C79)*60)) ->  | G79: 69 | H79: ='Round by round data'!E428 ->  | I79: ='Round by round data'!F428 -> 
A80: 70 | B80: =IF(ISERROR('Full round scores'!B176),"",'Full round scores'!B176) ->  | C80: =IF(ISERROR('Full round scores'!C176),"",'Full round scores'!C176) ->  | D80: =IF(ISERROR('Full round scores'!D176),"",'Full round scores'!D176) ->  | E80: =IF(ISERROR('Enter data here!'!$D$7/C80),"",IF($E$5="mph",(((10*'Enter data here!'!$D$7)/1609)*(60/C80)*60),(60/C80)*60)) ->  | G80: 70 | H80: ='Round by round data'!E429 ->  | I80: ='Round by round data'!F429 -> 
A81: 71 | B81: =IF(ISERROR('Full round scores'!B177),"",'Full round scores'!B177) ->  | C81: =IF(ISERROR('Full round scores'!C177),"",'Full round scores'!C177) ->  | D81: =IF(ISERROR('Full round scores'!D177),"",'Full round scores'!D177) ->  | E81: =IF(ISERROR('Enter data here!'!$D$7/C81),"",IF($E$5="mph",(((10*'Enter data here!'!$D$7)/1609)*(60/C81)*60),(60/C81)*60)) ->  | G81: 71 | H81: ='Round by round data'!E430 ->  | I81: ='Round by round data'!F430 -> 
A82: 72 | B82: =IF(ISERROR('Full round scores'!B178),"",'Full round scores'!B178) ->  | C82: =IF(ISERROR('Full round scores'!C178),"",'Full round scores'!C178) ->  | D82: =IF(ISERROR('Full round scores'!D178),"",'Full round scores'!D178) ->  | E82: =IF(ISERROR('Enter data here!'!$D$7/C82),"",IF($E$5="mph",(((10*'Enter data here!'!$D$7)/1609)*(60/C82)*60),(60/C82)*60)) ->  | G82: 72 | H82: ='Round by round data'!E431 ->  | I82: ='Round by round data'!F431 -> 
A83: 73 | B83: =IF(ISERROR('Full round scores'!B179),"",'Full round scores'!B179) ->  | C83: =IF(ISERROR('Full round scores'!C179),"",'Full round scores'!C179) ->  | D83: =IF(ISERROR('Full round scores'!D179),"",'Full round scores'!D179) ->  | E83: =IF(ISERROR('Enter data here!'!$D$7/C83),"",IF($E$5="mph",(((10*'Enter data here!'!$D$7)/1609)*(60/C83)*60),(60/C83)*60)) ->  | G83: 73 | H83: ='Round by round data'!E432 ->  | I83: ='Round by round data'!F432 -> 
A84: 74 | B84: =IF(ISERROR('Full round scores'!B180),"",'Full round scores'!B180) ->  | C84: =IF(ISERROR('Full round scores'!C180),"",'Full round scores'!C180) ->  | D84: =IF(ISERROR('Full round scores'!D180),"",'Full round scores'!D180) ->  | E84: =IF(ISERROR('Enter data here!'!$D$7/C84),"",IF($E$5="mph",(((10*'Enter data here!'!$D$7)/1609)*(60/C84)*60),(60/C84)*60)) ->  | G84: 74 | H84: ='Round by round data'!E433 ->  | I84: ='Round by round data'!F433 -> 
A85: 75 | B85: =IF(ISERROR('Full round scores'!B181),"",'Full round scores'!B181) ->  | C85: =IF(ISERROR('Full round scores'!C181),"",'Full round scores'!C181) ->  | D85: =IF(ISERROR('Full round scores'!D181),"",'Full round scores'!D181) ->  | E85: =IF(ISERROR('Enter data here!'!$D$7/C85),"",IF($E$5="mph",(((10*'Enter data here!'!$D$7)/1609)*(60/C85)*60),(60/C85)*60)) ->  | G85: 75 | H85: ='Round by round data'!E434 ->  | I85: ='Round by round data'!F434 -> 
A86: 76 | B86: =IF(ISERROR('Full round scores'!B182),"",'Full round scores'!B182) ->  | C86: =IF(ISERROR('Full round scores'!C182),"",'Full round scores'!C182) ->  | D86: =IF(ISERROR('Full round scores'!D182),"",'Full round scores'!D182) ->  | E86: =IF(ISERROR('Enter data here!'!$D$7/C86),"",IF($E$5="mph",(((10*'Enter data here!'!$D$7)/1609)*(60/C86)*60),(60/C86)*60)) ->  | G86: 76 | H86: ='Round by round data'!E435 ->  | I86: ='Round by round data'!F435 -> 
A87: 77 | B87: =IF(ISERROR('Full round scores'!B183),"",'Full round scores'!B183) ->  | C87: =IF(ISERROR('Full round scores'!C183),"",'Full round scores'!C183) ->  | D87: =IF(ISERROR('Full round scores'!D183),"",'Full round scores'!D183) ->  | E87: =IF(ISERROR('Enter data here!'!$D$7/C87),"",IF($E$5="mph",(((10*'Enter data here!'!$D$7)/1609)*(60/C87)*60),(60/C87)*60)) ->  | G87: 77 | H87: ='Round by round data'!E436 ->  | I87: ='Round by round data'!F436 -> 
A88: 78 | B88: =IF(ISERROR('Full round scores'!B184),"",'Full round scores'!B184) ->  | C88: =IF(ISERROR('Full round scores'!C184),"",'Full round scores'!C184) ->  | D88: =IF(ISERROR('Full round scores'!D184),"",'Full round scores'!D184) ->  | E88: =IF(ISERROR('Enter data here!'!$D$7/C88),"",IF($E$5="mph",(((10*'Enter data here!'!$D$7)/1609)*(60/C88)*60),(60/C88)*60)) ->  | G88: 78 | H88: ='Round by round data'!E437 ->  | I88: ='Round by round data'!F437 -> 
A89: 79 | B89: =IF(ISERROR('Full round scores'!B185),"",'Full round scores'!B185) ->  | C89: =IF(ISERROR('Full round scores'!C185),"",'Full round scores'!C185) ->  | D89: =IF(ISERROR('Full round scores'!D185),"",'Full round scores'!D185) ->  | E89: =IF(ISERROR('Enter data here!'!$D$7/C89),"",IF($E$5="mph",(((10*'Enter data here!'!$D$7)/1609)*(60/C89)*60),(60/C89)*60)) ->  | G89: 79 | H89: ='Round by round data'!E438 ->  | I89: ='Round by round data'!F438 -> 
A90: 80 | B90: =IF(ISERROR('Full round scores'!B186),"",'Full round scores'!B186) ->  | C90: =IF(ISERROR('Full round scores'!C186),"",'Full round scores'!C186) ->  | D90: =IF(ISERROR('Full round scores'!D186),"",'Full round scores'!D186) ->  | E90: =IF(ISERROR('Enter data here!'!$D$7/C90),"",IF($E$5="mph",(((10*'Enter data here!'!$D$7)/1609)*(60/C90)*60),(60/C90)*60)) ->  | G90: 80 | H90: ='Round by round data'!E439 ->  | I90: ='Round by round data'!F439 -> 
A91: 81 | B91: =IF(ISERROR('Full round scores'!B187),"",'Full round scores'!B187) ->  | C91: =IF(ISERROR('Full round scores'!C187),"",'Full round scores'!C187) ->  | D91: =IF(ISERROR('Full round scores'!D187),"",'Full round scores'!D187) ->  | E91: =IF(ISERROR('Enter data here!'!$D$7/C91),"",IF($E$5="mph",(((10*'Enter data here!'!$D$7)/1609)*(60/C91)*60),(60/C91)*60)) ->  | G91: 81 | H91: ='Round by round data'!E440 ->  | I91: ='Round by round data'!F440 -> 
A92: 82 | B92: =IF(ISERROR('Full round scores'!B188),"",'Full round scores'!B188) ->  | C92: =IF(ISERROR('Full round scores'!C188),"",'Full round scores'!C188) ->  | D92: =IF(ISERROR('Full round scores'!D188),"",'Full round scores'!D188) ->  | E92: =IF(ISERROR('Enter data here!'!$D$7/C92),"",IF($E$5="mph",(((10*'Enter data here!'!$D$7)/1609)*(60/C92)*60),(60/C92)*60)) ->  | G92: 82 | H92: ='Round by round data'!E441 ->  | I92: ='Round by round data'!F441 -> 
A93: 83 | B93: =IF(ISERROR('Full round scores'!B189),"",'Full round scores'!B189) ->  | C93: =IF(ISERROR('Full round scores'!C189),"",'Full round scores'!C189) ->  | D93: =IF(ISERROR('Full round scores'!D189),"",'Full round scores'!D189) ->  | E93: =IF(ISERROR('Enter data here!'!$D$7/C93),"",IF($E$5="mph",(((10*'Enter data here!'!$D$7)/1609)*(60/C93)*60),(60/C93)*60)) ->  | G93: 83 | H93: ='Round by round data'!E442 ->  | I93: ='Round by round data'!F442 -> 
A94: 84 | B94: =IF(ISERROR('Full round scores'!B190),"",'Full round scores'!B190) ->  | C94: =IF(ISERROR('Full round scores'!C190),"",'Full round scores'!C190) ->  | D94: =IF(ISERROR('Full round scores'!D190),"",'Full round scores'!D190) ->  | E94: =IF(ISERROR('Enter data here!'!$D$7/C94),"",IF($E$5="mph",(((10*'Enter data here!'!$D$7)/1609)*(60/C94)*60),(60/C94)*60)) ->  | G94: 84 | H94: ='Round by round data'!E443 ->  | I94: ='Round by round data'!F443 -> 
A95: 85 | B95: =IF(ISERROR('Full round scores'!B191),"",'Full round scores'!B191) ->  | C95: =IF(ISERROR('Full round scores'!C191),"",'Full round scores'!C191) ->  | D95: =IF(ISERROR('Full round scores'!D191),"",'Full round scores'!D191) ->  | E95: =IF(ISERROR('Enter data here!'!$D$7/C95),"",IF($E$5="mph",(((10*'Enter data here!'!$D$7)/1609)*(60/C95)*60),(60/C95)*60)) ->  | G95: 85 | H95: ='Round by round data'!E444 ->  | I95: ='Round by round data'!F444 -> 
A96: 86 | B96: =IF(ISERROR('Full round scores'!B192),"",'Full round scores'!B192) ->  | C96: =IF(ISERROR('Full round scores'!C192),"",'Full round scores'!C192) ->  | D96: =IF(ISERROR('Full round scores'!D192),"",'Full round scores'!D192) ->  | E96: =IF(ISERROR('Enter data here!'!$D$7/C96),"",IF($E$5="mph",(((10*'Enter data here!'!$D$7)/1609)*(60/C96)*60),(60/C96)*60)) ->  | G96: 86 | H96: ='Round by round data'!E445 ->  | I96: ='Round by round data'!F445 -> 
A97: 87 | B97: =IF(ISERROR('Full round scores'!B193),"",'Full round scores'!B193) ->  | C97: =IF(ISERROR('Full round scores'!C193),"",'Full round scores'!C193) ->  | D97: =IF(ISERROR('Full round scores'!D193),"",'Full round scores'!D193) ->  | E97: =IF(ISERROR('Enter data here!'!$D$7/C97),"",IF($E$5="mph",(((10*'Enter data here!'!$D$7)/1609)*(60/C97)*60),(60/C97)*60)) ->  | G97: 87 | H97: ='Round by round data'!E446 ->  | I97: ='Round by round data'!F446 -> 
A98: 88 | B98: =IF(ISERROR('Full round scores'!B194),"",'Full round scores'!B194) ->  | C98: =IF(ISERROR('Full round scores'!C194),"",'Full round scores'!C194) ->  | D98: =IF(ISERROR('Full round scores'!D194),"",'Full round scores'!D194) ->  | E98: =IF(ISERROR('Enter data here!'!$D$7/C98),"",IF($E$5="mph",(((10*'Enter data here!'!$D$7)/1609)*(60/C98)*60),(60/C98)*60)) ->  | G98: 88 | H98: ='Round by round data'!E447 ->  | I98: ='Round by round data'!F447 -> 
A99: 89 | B99: =IF(ISERROR('Full round scores'!B195),"",'Full round scores'!B195) ->  | C99: =IF(ISERROR('Full round scores'!C195),"",'Full round scores'!C195) ->  | D99: =IF(ISERROR('Full round scores'!D195),"",'Full round scores'!D195) ->  | E99: =IF(ISERROR('Enter data here!'!$D$7/C99),"",IF($E$5="mph",(((10*'Enter data here!'!$D$7)/1609)*(60/C99)*60),(60/C99)*60)) ->  | G99: 89 | H99: ='Round by round data'!E448 ->  | I99: ='Round by round data'!F448 -> 
A100: 90 | B100: =IF(ISERROR('Full round scores'!B196),"",'Full round scores'!B196) ->  | C100: =IF(ISERROR('Full round scores'!C196),"",'Full round scores'!C196) ->  | D100: =IF(ISERROR('Full round scores'!D196),"",'Full round scores'!D196) ->  | E100: =IF(ISERROR('Enter data here!'!$D$7/C100),"",IF($E$5="mph",(((10*'Enter data here!'!$D$7)/1609)*(60/C100)*60),(60/C100)*60)) ->  | G100: 90 | H100: ='Round by round data'!E449 ->  | I100: ='Round by round data'!F449 -> 

Sheet Full round scores
A1: =CONCATENATE("Full Round Scores - ",'Enter data here!'!D3) -> Full Round Scores - mynd bmfa | F1: =IF('Enter data here!'!D4="","",'Enter data here!'!D4) -> 
A3: This sheet summarises the round results for the entire competition.
B5: Round Number
B6: 0 | E6: 1 | H6: 2 | K6: 3 | N6: 4 | Q6: 5 | T6: 6 | W6: 7 | Z6: 8 | AC6: 9 | AF6: 10 | AI6: 11 | AL6: 12 | AO6: 13 | AR6: 14 | AU6: 15 | AX6: 16 | BA6: 17 | BD6: 18 | BG6: 19 | BJ6: 20 | BM6: 21 | BP6: 22 | BS6: 23 | BV6: 24 | BY6: 25 | CB6: 26 | CE6: 27 | CH6: 28 | CK6: 29 | CN6: 30 | CQ6: 31 | CT6: 32 | CW6: 33 | CZ6: 34 | DC6: 35 | DF6: 36 | DI6: 37 | DL6: 38 | DO6: 39 | DR6: 40
B7: 1 | C7: 2 | D7: 3 | E7: 1 | F7: 2 | G7: 3 | H7: =E7 -> 1 | I7: 2 | J7: 3 | K7: 1 | L7: 2 | M7: 3 | N7: 1 | O7: 2 | P7: 3 | Q7: 1 | R7: 2 | S7: 3 | T7: 1 | U7: 2 | V7: 3 | W7: 1 | X7: 2 | Y7: 3 | Z7: 1 | AA7: 2 | AB7: 3 | AC7: 1 | AD7: 2 | AE7: 3 | AF7: 1 | AG7: 2 | AH7: 3 | AI7: 1 | AJ7: 2 | AK7: 3 | AL7: 1 | AM7: 2 | AN7: =AK7 -> 3 | AO7: 1 | AP7: 2 | AQ7: 3 | AR7: 1 | AS7: 2 | AT7: 3 | AU7: 1 | AV7: 2 | AW7: 3 | AX7: 1 | AY7: 2 | AZ7: 3 | BA7: 1 | BB7: 2 | BC7: 3 | BD7: 1 | BE7: 2 | BF7: 3 | BG7: 1 | BH7: 2 | BI7: 3 | BJ7: 1 | BK7: 2 | BL7: 3 | BM7: 1 | BN7: 2 | BO7: 3 | BP7: 1 | BQ7: 2 | BR7: 3 | BS7: 1 | BT7: =BQ7 -> 2 | BU7: 3 | BV7: 1 | BW7: 2 | BX7: 3 | BY7: 1 | BZ7: 2 | CA7: 3 | CB7: 1 | CC7: 2 | CD7: 3 | CE7: 1 | CF7: 2 | CG7: 3 | CH7: 1 | CI7: 2 | CJ7: 3 | CK7: 1 | CL7: 2 | CM7: 3 | CN7: 1 | CO7: 2 | CP7: 3 | CQ7: 1 | CR7: 2 | CS7: 3 | CT7: 1 | CU7: 2 | CV7: 3 | CW7: 1 | CX7: 2 | CY7: 3 | CZ7: =CW7 -> 1 | DA7: 2 | DB7: 3 | DC7: 1 | DD7: 2 | DE7: 3 | DF7: 1 | DG7: 2 | DH7: 3 | DI7: 1 | DJ7: 2 | DK7: 3 | DL7: 1 | DM7: 2 | DN7: 3 | DO7: 1 | DP7: 2 | DQ7: 3 | DR7: 1 | DS7: 2 | DT7: 3
B8: =CONCATENATE($B$6,B7) -> 01 | C8: =CONCATENATE($B$6,C7) -> 02 | D8: =CONCATENATE($B$6,D7) -> 03 | E8: =CONCATENATE($E$6,E7) -> 11 | F8: =CONCATENATE($E$6,F7) -> 12 | G8: =CONCATENATE($E$6,G7) -> 13 | H8: =CONCATENATE($H$6,H7) -> 21 | I8: =CONCATENATE($H$6,I7) -> 22 | J8: =CONCATENATE($H$6,J7) -> 23 | K8: =CONCATENATE($K$6,K7) -> 31 | L8: =CONCATENATE($K$6,L7) -> 32 | M8: =CONCATENATE($K$6,M7) -> 33 | N8: =CONCATENATE($N$6,N7) -> 41 | O8: =CONCATENATE($N$6,O7) -> 42 | P8: =CONCATENATE($N$6,P7) -> 43 | Q8: =CONCATENATE($Q$6,Q7) -> 51 | R8: =CONCATENATE($Q$6,R7) -> 52 | S8: =CONCATENATE($Q$6,S7) -> 53 | T8: =CONCATENATE($T$6,T7) -> 61 | U8: =CONCATENATE($T$6,U7) -> 62 | V8: =CONCATENATE($T$6,V7) -> 63 | W8: =CONCATENATE($W$6,W7) -> 71 | X8: =CONCATENATE($W$6,X7) -> 72 | Y8: =CONCATENATE($W$6,Y7) -> 73 | Z8: =CONCATENATE($Z$6,Z7) -> 81 | AA8: =CONCATENATE($Z$6,AA7) -> 82 | AB8: =CONCATENATE($Z$6,AB7) -> 83 | AC8: =CONCATENATE($AC$6,AC7) -> 91 | AD8: =CONCATENATE($AC$6,AD7) -> 92 | AE8: =CONCATENATE($AC$6,AE7) -> 93 | AF8: =CONCATENATE($AF$6,AF7) -> 101 | AG8: =CONCATENATE($AF$6,AG7) -> 102 | AH8: =CONCATENATE($AF$6,AH7) -> 103 | AI8: =CONCATENATE($AI$6,AI7) -> 111 | AJ8: =CONCATENATE($AI$6,AJ7) -> 112 | AK8: =CONCATENATE($AI$6,AK7) -> 113 | AL8: =CONCATENATE($AL$6,AL7) -> 121 | AM8: =CONCATENATE($AL$6,AM7) -> 122 | AN8: =CONCATENATE($AL$6,AN7) -> 123 | AO8: =CONCATENATE($AO$6,AO7) -> 131 | AP8: =CONCATENATE($AO$6,AP7) -> 132 | AQ8: =CONCATENATE($AO$6,AQ7) -> 133 | AR8: =CONCATENATE($AR$6,AR7) -> 141 | AS8: =CONCATENATE($AR$6,AS7) -> 142 | AT8: =CONCATENATE($AR$6,AT7) -> 143 | AU8: =CONCATENATE($AU$6,AU7) -> 151 | AV8: =CONCATENATE($AU$6,AV7) -> 152 | AW8: =CONCATENATE($AU$6,AW7) -> 153 | AX8: =CONCATENATE($AX$6,AX7) -> 161 | AY8: =CONCATENATE($AX$6,AY7) -> 162 | AZ8: =CONCATENATE($AX$6,AZ7) -> 163 | BA8: =CONCATENATE($BA$6,BA7) -> 171 | BB8: =CONCATENATE($BA$6,BB7) -> 172 | BC8: =CONCATENATE($BA$6,BC7) -> 173 | BD8: =CONCATENATE($BD$6,BD7) -> 181 | BE8: =CONCATENATE($BD$6,BE7) -> 182 | BF8: =CONCATENATE($BD$6,BF7) -> 183 | BG8: =CONCATENATE($BG$6,BG7) -> 191 | BH8: =CONCATENATE($BG$6,BH7) -> 192 | BI8: =CONCATENATE($BG$6,BI7) -> 193 | BJ8: =CONCATENATE($BJ$6,BJ7) -> 201 | BK8: =CONCATENATE($BJ$6,BK7) -> 202 | BL8: =CONCATENATE($BJ$6,BL7) -> 203 | BM8: =CONCATENATE($BM$6,BM7) -> 211 | BN8: =CONCATENATE($BM$6,BN7) -> 212 | BO8: =CONCATENATE($BM$6,BO7) -> 213 | BP8: =CONCATENATE($BP$6,BP7) -> 221 | BQ8: =CONCATENATE($BP$6,BQ7) -> 222 | BR8: =CONCATENATE($BP$6,BR7) -> 223 | BS8: =CONCATENATE($BS$6,BS7) -> 231 | BT8: =CONCATENATE($BS$6,BT7) -> 232 | BU8: =CONCATENATE($BS$6,BU7) -> 233 | BV8: =CONCATENATE($BV$6,BV7) -> 241 | BW8: =CONCATENATE($BV$6,BW7) -> 242 | BX8: =CONCATENATE($BV$6,BX7) -> 243 | BY8: =CONCATENATE($BY$6,BY7) -> 251 | BZ8: =CONCATENATE($BY$6,BZ7) -> 252 | CA8: =CONCATENATE($BY$6,CA7) -> 253 | CB8: =CONCATENATE($CB$6,CB7) -> 261 | CC8: =CONCATENATE($CB$6,CC7) -> 262 | CD8: =CONCATENATE($CB$6,CD7) -> 263 | CE8: =CONCATENATE($CE$6,CE7) -> 271 | CF8: =CONCATENATE($CE$6,CF7) -> 272 | CG8: =CONCATENATE($CE$6,CG7) -> 273 | CH8: =CONCATENATE($CH$6,CH7) -> 281 | CI8: =CONCATENATE($CH$6,CI7) -> 282 | CJ8: =CONCATENATE($CH$6,CJ7) -> 283 | CK8: =CONCATENATE($CK$6,CK7) -> 291 | CL8: =CONCATENATE($CK$6,CL7) -> 292 | CM8: =CONCATENATE($CK$6,CM7) -> 293 | CN8: =CONCATENATE($CN$6,CN7) -> 301 | CO8: =CONCATENATE($CN$6,CO7) -> 302 | CP8: =CONCATENATE($CN$6,CP7) -> 303 | CQ8: =CONCATENATE($CQ$6,CQ7) -> 311 | CR8: =CONCATENATE($CQ$6,CR7) -> 312 | CS8: =CONCATENATE($CQ$6,CS7) -> 313 | CT8: =CONCATENATE($CT$6,CT7) -> 321 | CU8: =CONCATENATE($CT$6,CU7) -> 322 | CV8: =CONCATENATE($CT$6,CV7) -> 323 | CW8: =CONCATENATE($CW$6,CW7) -> 331 | CX8: =CONCATENATE($CW$6,CX7) -> 332 | CY8: =CONCATENATE($CW$6,CY7) -> 333 | CZ8: =CONCATENATE($CZ$6,CZ7) -> 341 | DA8: =CONCATENATE($CZ$6,DA7) -> 342 | DB8: =CONCATENATE($CZ$6,DB7) -> 343 | DC8: =CONCATENATE($DC$6,DC7) -> 351 | DD8: =CONCATENATE($DC$6,DD7) -> 352 | DE8: =CONCATENATE($DC$6,DE7) -> 353 | DF8: =CONCATENATE($DF$6,DF7) -> 361 | DG8: =CONCATENATE($DF$6,DG7) -> 362 | DH8: =CONCATENATE($DF$6,DH7) -> 363 | DI8: =CONCATENATE($DI$6,DI7) -> 371 | DJ8: =CONCATENATE($DI$6,DJ7) -> 372 | DK8: =CONCATENATE($DI$6,DK7) -> 373 | DL8: =CONCATENATE($DL$6,DL7) -> 381 | DM8: =CONCATENATE($DL$6,DM7) -> 382 | DN8: =CONCATENATE($DL$6,DN7) -> 383 | DO8: =CONCATENATE($DO$6,DO7) -> 391 | DP8: =CONCATENATE($DO$6,DP7) -> 392 | DQ8: =CONCATENATE($DO$6,DQ7) -> 393 | DR8: =CONCATENATE($DR$6,DR7) -> 401 | DS8: =CONCATENATE($DR$6,DS7) -> 402 | DT8: =CONCATENATE($DR$6,DT7) -> 403
A9: Rank | B9: Competitor | C9: Time | D9: Score | E9: Competitor | F9: Time | G9: Score | H9: Competitor | I9: Time | J9: Score | K9: Competitor | L9: Time | M9: Score | N9: Competitor | O9: Time | P9: Score | Q9: Competitor | R9: Time | S9: Score | T9: Competitor | U9: Time | V9: Score | W9: Competitor | X9: Time | Y9: Score | Z9: Competitor | AA9: Time | AB9: Score | AC9: Competitor | AD9: Time | AE9: Score | AF9: Competitor | AG9: Time | AH9: Score | AI9: Competitor | AJ9: Time | AK9: Score | AL9: Competitor | AM9: Time | AN9: Score | AO9: Competitor | AP9: Time | AQ9: Score | AR9: Competitor | AS9: Time | AT9: Score | AU9: Competitor | AV9: Time | AW9: Score | AX9: Competitor | AY9: Time | AZ9: Score | BA9: Competitor | BB9: Time | BC9: Score | BD9: Competitor | BE9: Time | BF9: Score | BG9: Competitor | BH9: Time | BI9: Score | BJ9: Competitor | BK9: Time | BL9: Score | BM9: Competitor | BN9: Time | BO9: Score | BP9: Competitor | BQ9: Time | BR9: Score | BS9: Competitor | BT9: Time | BU9: Score | BV9: Competitor | BW9: Time | BX9: Score | BY9: Competitor | BZ9: Time | CA9: Score | CB9: Competitor | CC9: Time | CD9: Score | CE9: Competitor | CF9: Time | CG9: Score | CH9: Competitor | CI9: Time | CJ9: Score | CK9: Competitor | CL9: Time | CM9: Score | CN9: Competitor | CO9: Time | CP9: Score | CQ9: Competitor | CR9: Time | CS9: Score | CT9: Competitor | CU9: Time | CV9: Score | CW9: Competitor | CX9: Time | CY9: Score | CZ9: Competitor | DA9: Time | DB9: Score | DC9: Competitor | DD9: Time | DE9: Score | DF9: Competitor | DG9: Time | DH9: Score | DI9: Competitor | DJ9: Time | DK9: Score | DL9: Competitor | DM9: Time | DN9: Score | DO9: Competitor | DP9: Time | DQ9: Score | DR9: Competitor | DS9: Time | DT9: Score
A10: 1 | B10: =IF(ISERROR(HLOOKUP($A10,'Enter data here!'!$C$21:$CN$25,4,FALSE)),"",IF('Enter data here!'!$CP$22=0,"",IF(HLOOKUP($A10,'Enter data here!'!$C$21:$CN$25,4,FALSE)=0,"",(HLOOKUP($A10,'Enter data here!'!$C$21:$CN$25,5,FALSE))))) ->  | C10: =IF(ISERROR(HLOOKUP($A10,'Enter data here!'!$C$21:$CN$25,4,FALSE)),"",IF('Enter data here!'!$CP$22=0,"",IF(HLOOKUP($A10,'Enter data here!'!$C$21:$CN$25,4,FALSE)=0,"",(HLOOKUP($A10,'Enter data here!'!$C$21:$CN$25,2,FALSE))))) ->  | D10: =IF(ISERROR(HLOOKUP($A10,'Enter data here!'!$C$21:$CN$25,4,FALSE)),"",IF('Enter data here!'!$CP$22=0,"",IF(HLOOKUP($A10,'Enter data here!'!$C$21:$CN$25,4,FALSE)=0,"",(HLOOKUP($A10,'Enter data here!'!$C$21:$CN$25,4,FALSE))))) ->  | E10: =IF(ISERROR(HLOOKUP($A10,'Enter data here!'!$C$26:$CN$30,4,FALSE)),"",IF('Enter data here!'!$CP$27=0,"",IF(HLOOKUP($A10,'Enter data here!'!$C$26:$CN$30,4,FALSE)=0,"",(HLOOKUP($A10,'Enter data here!'!$C$26:$CN$30,5,FALSE))))) -> Mark R | F10: =IF(ISERROR(HLOOKUP($A10,'Enter data here!'!$C$26:$CN$30,4,FALSE)),"",IF('Enter data here!'!$CP$27=0,"",IF(HLOOKUP($A10,'Enter data here!'!$C$26:$CN$30,4,FALSE)=0,"",(HLOOKUP($A10,'Enter data here!'!$C$26:$CN$30,2,FALSE))))) -> 51.02 | G10: =IF(ISERROR(HLOOKUP($A10,'Enter data here!'!$C$26:$CN$30,4,FALSE)),"",IF('Enter data here!'!$CP$27=0,"",IF(HLOOKUP($A10,'Enter data here!'!$C$26:$CN$30,4,FALSE)=0,"",(HLOOKUP($A10,'Enter data here!'!$C$26:$CN$30,4,FALSE))))) -> 1000 | H10: =IF(ISERROR(HLOOKUP($A10,'Enter data here!'!$C$31:$CN$35,4,FALSE)),"",IF('Enter data here!'!$CP$32=0,"",IF(HLOOKUP($A10,'Enter data here!'!$C$31:$CN$35,4,FALSE)=0,"",(HLOOKUP($A10,'Enter data here!'!$C$31:$CN$35,5,FALSE))))) -> Mark R | I10: =IF(ISERROR(HLOOKUP($A10,'Enter data here!'!$C$31:$CN$35,4,FALSE)),"",IF('Enter data here!'!$CP$32=0,"",IF(HLOOKUP($A10,'Enter data here!'!$C$31:$CN$35,4,FALSE)=0,"",(HLOOKUP($A10,'Enter data here!'!$C$31:$CN$35,2,FALSE))))) -> 44.76 | J10: =IF(ISERROR(HLOOKUP($A10,'Enter data here!'!$C$31:$CN$35,4,FALSE)),"",IF('Enter data here!'!$CP$32=0,"",IF(HLOOKUP($A10,'Enter data here!'!$C$31:$CN$35,4,FALSE)=0,"",(HLOOKUP($A10,'Enter data here!'!$C$31:$CN$35,4,FALSE))))) -> 1000 | K10: =IF(ISERROR(HLOOKUP($A10,'Enter data here!'!$C$36:$CN$40,4,FALSE)),"",IF('Enter data here!'!$CP$37=0,"",IF(HLOOKUP($A10,'Enter data here!'!$C$36:$CN$40,4,FALSE)=0,"",(HLOOKUP($A10,'Enter data here!'!$C$36:$CN$40,5,FALSE))))) -> Mark T | L10: =IF(ISERROR(HLOOKUP($A10,'Enter data here!'!$C$36:$CN$40,4,FALSE)),"",IF('Enter data here!'!$CP$37=0,"",IF(HLOOKUP($A10,'Enter data here!'!$C$36:$CN$40,4,FALSE)=0,"",(HLOOKUP($A10,'Enter data here!'!$C$36:$CN$40,2,FALSE))))) -> 49.36 | M10: =IF(ISERROR(HLOOKUP($A10,'Enter data here!'!$C$36:$CN$40,4,FALSE)),"",IF('Enter data here!'!$CP$37=0,"",IF(HLOOKUP($A10,'Enter data here!'!$C$36:$CN$40,4,FALSE)=0,"",(HLOOKUP($A10,'Enter data here!'!$C$36:$CN$40,4,FALSE))))) -> 1000 | N10: =IF(ISERROR(HLOOKUP($A10,'Enter data here!'!$C$41:$CN$45,4,FALSE)),"",IF('Enter data here!'!$CP$42=0,"",IF(HLOOKUP($A10,'Enter data here!'!$C$41:$CN$45,4,FALSE)=0,"",(HLOOKUP($A10,'Enter data here!'!$C$41:$CN$45,5,FALSE))))) -> Les | O10: =IF(ISERROR(HLOOKUP($A10,'Enter data here!'!$C$41:$CN$45,4,FALSE)),"",IF('Enter data here!'!$CP$42=0,"",IF(HLOOKUP($A10,'Enter data here!'!$C$41:$CN$45,4,FALSE)=0,"",(HLOOKUP($A10,'Enter data here!'!$C$41:$CN$45,2,FALSE))))) -> 45.39 | P10: =IF(ISERROR(HLOOKUP($A10,'Enter data here!'!$C$41:$CN$45,4,FALSE)),"",IF('Enter data here!'!$CP$42=0,"",IF(HLOOKUP($A10,'Enter data here!'!$C$41:$CN$45,4,FALSE)=0,"",(HLOOKUP($A10,'Enter data here!'!$C$41:$CN$45,4,FALSE))))) -> 1000 | Q10: =IF(ISERROR(HLOOKUP($A10,'Enter data here!'!$C$46:$CN$50,4,FALSE)),"",IF('Enter data here!'!$CP$47=0,"",IF(HLOOKUP($A10,'Enter data here!'!$C$46:$CN$50,4,FALSE)=0,"",(HLOOKUP($A10,'Enter data here!'!$C$46:$CN$50,5,FALSE))))) -> Mark T | R10: =IF(ISERROR(HLOOKUP($A10,'Enter data here!'!$C$46:$CN$50,4,FALSE)),"",IF('Enter data here!'!$CP$47=0,"",IF(HLOOKUP($A10,'Enter data here!'!$C$46:$CN$50,4,FALSE)=0,"",(HLOOKUP($A10,'Enter data here!'!$C$46:$CN$50,2,FALSE))))) -> 46.36 | S10: =IF(ISERROR(HLOOKUP($A10,'Enter data here!'!$C$46:$CN$50,4,FALSE)),"",IF('Enter data here!'!$CP$47=0,"",IF(HLOOKUP($A10,'Enter data here!'!$C$46:$CN$50,4,FALSE)=0,"",(HLOOKUP($A10,'Enter data here!'!$C$46:$CN$50,4,FALSE))))) -> 1000 | T10: =IF(ISERROR(HLOOKUP($A10,'Enter data here!'!$C$51:$CN$55,4,FALSE)),"",IF('Enter data here!'!$CP$52=0,"",IF(HLOOKUP($A10,'Enter data here!'!$C$51:$CN$55,4,FALSE)=0,"",(HLOOKUP($A10,'Enter data here!'!$C$51:$CN$55,5,FALSE))))) -> mike | U10: =IF(ISERROR(HLOOKUP($A10,'Enter data here!'!$C$51:$CN$55,4,FALSE)),"",IF('Enter data here!'!$CP$52=0,"",IF(HLOOKUP($A10,'Enter data here!'!$C$51:$CN$55,4,FALSE)=0,"",(HLOOKUP($A10,'Enter data here!'!$C$51:$CN$55,2,FALSE))))) -> 53.5 | V10: =IF(ISERROR(HLOOKUP($A10,'Enter data here!'!$C$51:$CN$55,4,FALSE)),"",IF('Enter data here!'!$CP$52=0,"",IF(HLOOKUP($A10,'Enter data here!'!$C$51:$CN$55,4,FALSE)=0,"",(HLOOKUP($A10,'Enter data here!'!$C$51:$CN$55,4,FALSE))))) -> 1000 | W10: =IF(ISERROR(HLOOKUP($A10,'Enter data here!'!$C$56:$CN$60,4,FALSE)),"",IF('Enter data here!'!$CP$57=0,"",IF(HLOOKUP($A10,'Enter data here!'!$C$56:$CN$60,4,FALSE)=0,"",(HLOOKUP($A10,'Enter data here!'!$C$56:$CN$60,5,FALSE))))) ->  | X10: =IF(ISERROR(HLOOKUP($A10,'Enter data here!'!$C$56:$CN$60,4,FALSE)),"",IF('Enter data here!'!$CP$57=0,"",IF(HLOOKUP($A10,'Enter data here!'!$C$56:$CN$60,4,FALSE)=0,"",(HLOOKUP($A10,'Enter data here!'!$C$56:$CN$60,2,FALSE))))) ->  | Y10: =IF(ISERROR(HLOOKUP($A10,'Enter data here!'!$C$56:$CN$60,4,FALSE)),"",IF('Enter data here!'!$CP$57=0,"",IF(HLOOKUP($A10,'Enter data here!'!$C$56:$CN$60,4,FALSE)=0,"",(HLOOKUP($A10,'Enter data here!'!$C$56:$CN$60,4,FALSE))))) ->  | Z10: =IF(ISERROR(HLOOKUP($A10,'Enter data here!'!$C$61:$CN$65,4,FALSE)),"",IF('Enter data here!'!$CP$62=0,"",IF(HLOOKUP($A10,'Enter data here!'!$C$61:$CN$65,4,FALSE)=0,"",(HLOOKUP($A10,'Enter data here!'!$C$61:$CN$65,5,FALSE))))) ->  | AA10: =IF(ISERROR(HLOOKUP($A10,'Enter data here!'!$C$61:$CN$65,4,FALSE)),"",IF('Enter data here!'!$CP$62=0,"",IF(HLOOKUP($A10,'Enter data here!'!$C$61:$CN$65,4,FALSE)=0,"",(HLOOKUP($A10,'Enter data here!'!$C$61:$CN$65,2,FALSE))))) ->  | AB10: =IF(ISERROR(HLOOKUP($A10,'Enter data here!'!$C$61:$CN$65,4,FALSE)),"",IF('Enter data here!'!$CP$62=0,"",IF(HLOOKUP($A10,'Enter data here!'!$C$61:$CN$65,4,FALSE)=0,"",(HLOOKUP($A10,'Enter data here!'!$C$61:$CN$65,4,FALSE))))) ->  | AC10: =IF(ISERROR(HLOOKUP($A10,'Enter data here!'!$C$66:$CN$70,4,FALSE)),"",IF('Enter data here!'!$CP$67=0,"",IF(HLOOKUP($A10,'Enter data here!'!$C$66:$CN$70,4,FALSE)=0,"",(HLOOKUP($A10,'Enter data here!'!$C$66:$CN$70,5,FALSE))))) ->  | AD10: =IF(ISERROR(HLOOKUP($A10,'Enter data here!'!$C$66:$CN$70,4,FALSE)),"",IF('Enter data here!'!$CP$67=0,"",IF(HLOOKUP($A10,'Enter data here!'!$C$66:$CN$70,4,FALSE)=0,"",(HLOOKUP($A10,'Enter data here!'!$C$66:$CN$70,2,FALSE))))) ->  | AE10: =IF(ISERROR(HLOOKUP($A10,'Enter data here!'!$C$66:$CN$70,4,FALSE)),"",IF('Enter data here!'!$CP$67=0,"",IF(HLOOKUP($A10,'Enter data here!'!$C$66:$CN$70,4,FALSE)=0,"",(HLOOKUP($A10,'Enter data here!'!$C$66:$CN$70,4,FALSE))))) ->  | AF10: =IF(ISERROR(HLOOKUP($A10,'Enter data here!'!$C$71:$CN$75,4,FALSE)),"",IF('Enter data here!'!$CP$72=0,"",IF(HLOOKUP($A10,'Enter data here!'!$C$71:$CN$75,4,FALSE)=0,"",(HLOOKUP($A10,'Enter data here!'!$C$71:$CN$75,5,FALSE))))) ->  | AG10: =IF(ISERROR(HLOOKUP($A10,'Enter data here!'!$C$71:$CN$75,4,FALSE)),"",IF('Enter data here!'!$CP$72=0,"",IF(HLOOKUP($A10,'Enter data here!'!$C$71:$CN$75,4,FALSE)=0,"",(HLOOKUP($A10,'Enter data here!'!$C$71:$CN$75,2,FALSE))))) ->  | AH10: =IF(ISERROR(HLOOKUP($A10,'Enter data here!'!$C$71:$CN$75,4,FALSE)),"",IF('Enter data here!'!$CP$72=0,"",IF(HLOOKUP($A10,'Enter data here!'!$C$71:$CN$75,4,FALSE)=0,"",(HLOOKUP($A10,'Enter data here!'!$C$71:$CN$75,4,FALSE))))) ->  | AI10: =IF(ISERROR(HLOOKUP($A10,'Enter data here!'!$C$76:$CN$80,4,FALSE)),"",IF('Enter data here!'!$CP$77=0,"",IF(HLOOKUP($A10,'Enter data here!'!$C$76:$CN$80,4,FALSE)=0,"",(HLOOKUP($A10,'Enter data here!'!$C$76:$CN$80,5,FALSE))))) ->  | AJ10: =IF(ISERROR(HLOOKUP($A10,'Enter data here!'!$C$76:$CN$80,4,FALSE)),"",IF('Enter data here!'!$CP$77=0,"",IF(HLOOKUP($A10,'Enter data here!'!$C$76:$CN$80,4,FALSE)=0,"",(HLOOKUP($A10,'Enter data here!'!$C$76:$CN$80,2,FALSE))))) ->  | AK10: =IF(ISERROR(HLOOKUP($A10,'Enter data here!'!$C$76:$CN$80,4,FALSE)),"",IF('Enter data here!'!$CP$77=0,"",IF(HLOOKUP($A10,'Enter data here!'!$C$76:$CN$80,4,FALSE)=0,"",(HLOOKUP($A10,'Enter data here!'!$C$76:$CN$80,4,FALSE))))) ->  | AL10: =IF(ISERROR(HLOOKUP($A10,'Enter data here!'!$C$81:$CN$85,4,FALSE)),"",IF('Enter data here!'!$CP$82=0,"",IF(HLOOKUP($A10,'Enter data here!'!$C$81:$CN$85,4,FALSE)=0,"",(HLOOKUP($A10,'Enter data here!'!$C$81:$CN$85,5,FALSE))))) ->  | AM10: =IF(ISERROR(HLOOKUP($A10,'Enter data here!'!$C$81:$CN$85,4,FALSE)),"",IF('Enter data here!'!$CP$82=0,"",IF(HLOOKUP($A10,'Enter data here!'!$C$81:$CN$85,4,FALSE)=0,"",(HLOOKUP($A10,'Enter data here!'!$C$81:$CN$85,2,FALSE))))) ->  | AN10: =IF(ISERROR(HLOOKUP($A10,'Enter data here!'!$C$81:$CN$85,4,FALSE)),"",IF('Enter data here!'!$CP$82=0,"",IF(HLOOKUP($A10,'Enter data here!'!$C$81:$CN$85,4,FALSE)=0,"",(HLOOKUP($A10,'Enter data here!'!$C$81:$CN$85,4,FALSE))))) ->  | AO10: =IF(ISERROR(HLOOKUP($A10,'Enter data here!'!$C$86:$CN$90,4,FALSE)),"",IF('Enter data here!'!$CP$87=0,"",IF(HLOOKUP($A10,'Enter data here!'!$C$86:$CN$90,4,FALSE)=0,"",(HLOOKUP($A10,'Enter data here!'!$C$86:$CN$90,5,FALSE))))) ->  | AP10: =IF(ISERROR(HLOOKUP($A10,'Enter data here!'!$C$86:$CN$90,4,FALSE)),"",IF('Enter data here!'!$CP$87=0,"",IF(HLOOKUP($A10,'Enter data here!'!$C$86:$CN$90,4,FALSE)=0,"",(HLOOKUP($A10,'Enter data here!'!$C$86:$CN$90,2,FALSE))))) ->  | AQ10: =IF(ISERROR(HLOOKUP($A10,'Enter data here!'!$C$86:$CN$90,4,FALSE)),"",IF('Enter data here!'!$CP$87=0,"",IF(HLOOKUP($A10,'Enter data here!'!$C$86:$CN$90,4,FALSE)=0,"",(HLOOKUP($A10,'Enter data here!'!$C$86:$CN$90,4,FALSE))))) ->  | AR10: =IF(ISERROR(HLOOKUP($A10,'Enter data here!'!$C$91:$CN$95,4,FALSE)),"",IF('Enter data here!'!$CP$92=0,"",IF(HLOOKUP($A10,'Enter data here!'!$C$91:$CN$95,4,FALSE)=0,"",(HLOOKUP($A10,'Enter data here!'!$C$91:$CN$95,5,FALSE))))) ->  | AS10: =IF(ISERROR(HLOOKUP($A10,'Enter data here!'!$C$91:$CN$95,4,FALSE)),"",IF('Enter data here!'!$CP$92=0,"",IF(HLOOKUP($A10,'Enter data here!'!$C$91:$CN$95,4,FALSE)=0,"",(HLOOKUP($A10,'Enter data here!'!$C$91:$CN$95,2,FALSE))))) ->  | AT10: =IF(ISERROR(HLOOKUP($A10,'Enter data here!'!$C$91:$CN$95,4,FALSE)),"",IF('Enter data here!'!$CP$92=0,"",IF(HLOOKUP($A10,'Enter data here!'!$C$91:$CN$95,4,FALSE)=0,"",(HLOOKUP($A10,'Enter data here!'!$C$91:$CN$95,4,FALSE))))) ->  | AU10: =IF(ISERROR(HLOOKUP($A10,'Enter data here!'!$C$96:$CN$100,4,FALSE)),"",IF('Enter data here!'!$CP$97=0,"",IF(HLOOKUP($A10,'Enter data here!'!$C$96:$CN$100,4,FALSE)=0,"",(HLOOKUP($A10,'Enter data here!'!$C$96:$CN$100,5,FALSE))))) ->  | AV10: =IF(ISERROR(HLOOKUP($A10,'Enter data here!'!$C$96:$CN$100,4,FALSE)),"",IF('Enter data here!'!$CP$97=0,"",IF(HLOOKUP($A10,'Enter data here!'!$C$96:$CN$100,4,FALSE)=0,"",(HLOOKUP($A10,'Enter data here!'!$C$96:$CN$100,2,FALSE))))) ->  | AW10: =IF(ISERROR(HLOOKUP($A10,'Enter data here!'!$C$96:$CN$100,4,FALSE)),"",IF('Enter data here!'!$CP$97=0,"",IF(HLOOKUP($A10,'Enter data here!'!$C$96:$CN$100,4,FALSE)=0,"",(HLOOKUP($A10,'Enter data here!'!$C$96:$CN$100,4,FALSE))))) ->  | AX10: =IF(ISERROR(HLOOKUP($A10,'Enter data here!'!$C$101:$CN$105,4,FALSE)),"",IF('Enter data here!'!$CP$102=0,"",IF(HLOOKUP($A10,'Enter data here!'!$C$101:$CN$105,4,FALSE)=0,"",(HLOOKUP($A10,'Enter data here!'!$C$101:$CN$105,5,FALSE))))) ->  | AY10: =IF(ISERROR(HLOOKUP($A10,'Enter data here!'!$C$101:$CN$105,4,FALSE)),"",IF('Enter data here!'!$CP$102=0,"",IF(HLOOKUP($A10,'Enter data here!'!$C$101:$CN$105,4,FALSE)=0,"",(HLOOKUP($A10,'Enter data here!'!$C$101:$CN$105,2,FALSE))))) ->  | AZ10: =IF(ISERROR(HLOOKUP($A10,'Enter data here!'!$C$101:$CN$105,4,FALSE)),"",IF('Enter data here!'!$CP$102=0,"",IF(HLOOKUP($A10,'Enter data here!'!$C$101:$CN$105,4,FALSE)=0,"",(HLOOKUP($A10,'Enter data here!'!$C$101:$CN$105,4,FALSE))))) ->  | BA10: =IF(ISERROR(HLOOKUP($A10,'Enter data here!'!$C$106:$CN$110,4,FALSE)),"",IF('Enter data here!'!$CP$107=0,"",IF(HLOOKUP($A10,'Enter data here!'!$C$106:$CN$110,4,FALSE)=0,"",(HLOOKUP($A10,'Enter data here!'!$C$106:$CN$110,5,FALSE))))) ->  | BB10: =IF(ISERROR(HLOOKUP($A10,'Enter data here!'!$C$106:$CN$110,4,FALSE)),"",IF('Enter data here!'!$CP$107=0,"",IF(HLOOKUP($A10,'Enter data here!'!$C$106:$CN$110,4,FALSE)=0,"",(HLOOKUP($A10,'Enter data here!'!$C$106:$CN$110,2,FALSE))))) ->  | BC10: =IF(ISERROR(HLOOKUP($A10,'Enter data here!'!$C$106:$CN$110,4,FALSE)),"",IF('Enter data here!'!$CP$107=0,"",IF(HLOOKUP($A10,'Enter data here!'!$C$106:$CN$110,4,FALSE)=0,"",(HLOOKUP($A10,'Enter data here!'!$C$106:$CN$110,4,FALSE))))) ->  | BD10: =IF(ISERROR(HLOOKUP($A10,'Enter data here!'!$C$111:$CN$115,4,FALSE)),"",IF('Enter data here!'!$CP$112=0,"",IF(HLOOKUP($A10,'Enter data here!'!$C$111:$CN$115,4,FALSE)=0,"",(HLOOKUP($A10,'Enter data here!'!$C$111:$CN$115,5,FALSE))))) ->  | BE10: =IF(ISERROR(HLOOKUP($A10,'Enter data here!'!$C$111:$CN$115,4,FALSE)),"",IF('Enter data here!'!$CP$112=0,"",IF(HLOOKUP($A10,'Enter data here!'!$C$111:$CN$115,4,FALSE)=0,"",(HLOOKUP($A10,'Enter data here!'!$C$111:$CN$115,2,FALSE))))) ->  | BF10: =IF(ISERROR(HLOOKUP($A10,'Enter data here!'!$C$111:$CN$115,4,FALSE)),"",IF('Enter data here!'!$CP$112=0,"",IF(HLOOKUP($A10,'Enter data here!'!$C$111:$CN$115,4,FALSE)=0,"",(HLOOKUP($A10,'Enter data here!'!$C$111:$CN$115,4,FALSE))))) ->  | BG10: =IF(ISERROR(HLOOKUP($A10,'Enter data here!'!$C$116:$CN$120,4,FALSE)),"",IF('Enter data here!'!$CP$117=0,"",IF(HLOOKUP($A10,'Enter data here!'!$C$116:$CN$120,4,FALSE)=0,"",(HLOOKUP($A10,'Enter data here!'!$C$116:$CN$120,5,FALSE))))) ->  | BH10: =IF(ISERROR(HLOOKUP($A10,'Enter data here!'!$C$116:$CN$120,4,FALSE)),"",IF('Enter data here!'!$CP$117=0,"",IF(HLOOKUP($A10,'Enter data here!'!$C$116:$CN$120,4,FALSE)=0,"",(HLOOKUP($A10,'Enter data here!'!$C$116:$CN$120,2,FALSE))))) ->  | BI10: =IF(ISERROR(HLOOKUP($A10,'Enter data here!'!$C$116:$CN$120,4,FALSE)),"",IF('Enter data here!'!$CP$117=0,"",IF(HLOOKUP($A10,'Enter data here!'!$C$116:$CN$120,4,FALSE)=0,"",(HLOOKUP($A10,'Enter data here!'!$C$116:$CN$120,4,FALSE))))) ->  | BJ10: =IF(ISERROR(HLOOKUP($A10,'Enter data here!'!$C$121:$CN$125,4,FALSE)),"",IF('Enter data here!'!$CP$122=0,"",IF(HLOOKUP($A10,'Enter data here!'!$C$121:$CN$125,4,FALSE)=0,"",(HLOOKUP($A10,'Enter data here!'!$C$121:$CN$125,5,FALSE))))) ->  | BK10: =IF(ISERROR(HLOOKUP($A10,'Enter data here!'!$C$121:$CN$125,4,FALSE)),"",IF('Enter data here!'!$CP$122=0,"",IF(HLOOKUP($A10,'Enter data here!'!$C$121:$CN$125,4,FALSE)=0,"",(HLOOKUP($A10,'Enter data here!'!$C$121:$CN$125,2,FALSE))))) ->  | BL10: =IF(ISERROR(HLOOKUP($A10,'Enter data here!'!$C$121:$CN$125,4,FALSE)),"",IF('Enter data here!'!$CP$122=0,"",IF(HLOOKUP($A10,'Enter data here!'!$C$121:$CN$125,4,FALSE)=0,"",(HLOOKUP($A10,'Enter data here!'!$C$121:$CN$125,4,FALSE))))) ->  | BM10: =IF(ISERROR(HLOOKUP($A10,'Enter data here!'!$C$126:$CN$130,4,FALSE)),"",IF('Enter data here!'!$CP$127=0,"",IF(HLOOKUP($A10,'Enter data here!'!$C$126:$CN$130,4,FALSE)=0,"",(HLOOKUP($A10,'Enter data here!'!$C$126:$CN$130,5,FALSE))))) ->  | BN10: =IF(ISERROR(HLOOKUP($A10,'Enter data here!'!$C$126:$CN$130,4,FALSE)),"",IF('Enter data here!'!$CP$127=0,"",IF(HLOOKUP($A10,'Enter data here!'!$C$126:$CN$130,4,FALSE)=0,"",(HLOOKUP($A10,'Enter data here!'!$C$126:$CN$130,2,FALSE))))) ->  | BO10: =IF(ISERROR(HLOOKUP($A10,'Enter data here!'!$C$126:$CN$130,4,FALSE)),"",IF('Enter data here!'!$CP$127=0,"",IF(HLOOKUP($A10,'Enter data here!'!$C$126:$CN$130,4,FALSE)=0,"",(HLOOKUP($A10,'Enter data here!'!$C$126:$CN$130,4,FALSE))))) ->  | BP10: =IF(ISERROR(HLOOKUP($A10,'Enter data here!'!$C$131:$CN$135,4,FALSE)),"",IF('Enter data here!'!$CP$132=0,"",IF(HLOOKUP($A10,'Enter data here!'!$C$131:$CN$135,4,FALSE)=0,"",(HLOOKUP($A10,'Enter data here!'!$C$131:$CN$135,5,FALSE))))) ->  | BQ10: =IF(ISERROR(HLOOKUP($A10,'Enter data here!'!$C$131:$CN$135,4,FALSE)),"",IF('Enter data here!'!$CP$132=0,"",IF(HLOOKUP($A10,'Enter data here!'!$C$131:$CN$135,4,FALSE)=0,"",(HLOOKUP($A10,'Enter data here!'!$C$131:$CN$135,2,FALSE))))) ->  | BR10: =IF(ISERROR(HLOOKUP($A10,'Enter data here!'!$C$131:$CN$135,4,FALSE)),"",IF('Enter data here!'!$CP$132=0,"",IF(HLOOKUP($A10,'Enter data here!'!$C$131:$CN$135,4,FALSE)=0,"",(HLOOKUP($A10,'Enter data here!'!$C$131:$CN$135,4,FALSE))))) ->  | BS10: =IF(ISERROR(HLOOKUP($A10,'Enter data here!'!$C$136:$CN$140,4,FALSE)),"",IF('Enter data here!'!$CP$137=0,"",IF(HLOOKUP($A10,'Enter data here!'!$C$136:$CN$140,4,FALSE)=0,"",(HLOOKUP($A10,'Enter data here!'!$C$136:$CN$140,5,FALSE))))) ->  | BT10: =IF(ISERROR(HLOOKUP($A10,'Enter data here!'!$C$136:$CN$140,4,FALSE)),"",IF('Enter data here!'!$CP$137=0,"",IF(HLOOKUP($A10,'Enter data here!'!$C$136:$CN$140,4,FALSE)=0,"",(HLOOKUP($A10,'Enter data here!'!$C$136:$CN$140,2,FALSE))))) ->  | BU10: =IF(ISERROR(HLOOKUP($A10,'Enter data here!'!$C$136:$CN$140,4,FALSE)),"",IF('Enter data here!'!$CP$137=0,"",IF(HLOOKUP($A10,'Enter data here!'!$C$136:$CN$140,4,FALSE)=0,"",(HLOOKUP($A10,'Enter data here!'!$C$136:$CN$140,4,FALSE))))) ->  | BV10: =IF(ISERROR(HLOOKUP($A10,'Enter data here!'!$C$141:$CN$145,4,FALSE)),"",IF('Enter data here!'!$CP$142=0,"",IF(HLOOKUP($A10,'Enter data here!'!$C$141:$CN$145,4,FALSE)=0,"",(HLOOKUP($A10,'Enter data here!'!$C$141:$CN$145,5,FALSE))))) ->  | BW10: =IF(ISERROR(HLOOKUP($A10,'Enter data here!'!$C$141:$CN$145,4,FALSE)),"",IF('Enter data here!'!$CP$142=0,"",IF(HLOOKUP($A10,'Enter data here!'!$C$141:$CN$145,4,FALSE)=0,"",(HLOOKUP($A10,'Enter data here!'!$C$141:$CN$145,2,FALSE))))) ->  | BX10: =IF(ISERROR(HLOOKUP($A10,'Enter data here!'!$C$141:$CN$145,4,FALSE)),"",IF('Enter data here!'!$CP$142=0,"",IF(HLOOKUP($A10,'Enter data here!'!$C$141:$CN$145,4,FALSE)=0,"",(HLOOKUP($A10,'Enter data here!'!$C$141:$CN$145,4,FALSE))))) ->  | BY10: =IF(ISERROR(HLOOKUP($A10,'Enter data here!'!$C$146:$CN$150,4,FALSE)),"",IF('Enter data here!'!$CP$147=0,"",IF(HLOOKUP($A10,'Enter data here!'!$C$146:$CN$150,4,FALSE)=0,"",(HLOOKUP($A10,'Enter data here!'!$C$146:$CN$150,5,FALSE))))) ->  | BZ10: =IF(ISERROR(HLOOKUP($A10,'Enter data here!'!$C$146:$CN$150,4,FALSE)),"",IF('Enter data here!'!$CP$147=0,"",IF(HLOOKUP($A10,'Enter data here!'!$C$146:$CN$150,4,FALSE)=0,"",(HLOOKUP($A10,'Enter data here!'!$C$146:$CN$150,2,FALSE))))) ->  | CA10: =IF(ISERROR(HLOOKUP($A10,'Enter data here!'!$C$146:$CN$150,4,FALSE)),"",IF('Enter data here!'!$CP$147=0,"",IF(HLOOKUP($A10,'Enter data here!'!$C$146:$CN$150,4,FALSE)=0,"",(HLOOKUP($A10,'Enter data here!'!$C$146:$CN$150,4,FALSE))))) ->  | CB10: =IF(ISERROR(HLOOKUP($A10,'Enter data here!'!$C$151:$CN$155,4,FALSE)),"",IF('Enter data here!'!$CP$152=0,"",IF(HLOOKUP($A10,'Enter data here!'!$C$151:$CN$155,4,FALSE)=0,"",(HLOOKUP($A10,'Enter data here!'!$C$151:$CN$155,5,FALSE))))) ->  | CC10: =IF(ISERROR(HLOOKUP($A10,'Enter data here!'!$C$151:$CN$155,4,FALSE)),"",IF('Enter data here!'!$CP$152=0,"",IF(HLOOKUP($A10,'Enter data here!'!$C$151:$CN$155,4,FALSE)=0,"",(HLOOKUP($A10,'Enter data here!'!$C$151:$CN$155,2,FALSE))))) ->  | CD10: =IF(ISERROR(HLOOKUP($A10,'Enter data here!'!$C$151:$CN$155,4,FALSE)),"",IF('Enter data here!'!$CP$152=0,"",IF(HLOOKUP($A10,'Enter data here!'!$C$151:$CN$155,4,FALSE)=0,"",(HLOOKUP($A10,'Enter data here!'!$C$151:$CN$155,4,FALSE))))) ->  | CE10: =IF(ISERROR(HLOOKUP($A10,'Enter data here!'!$C$156:$CN$160,4,FALSE)),"",IF('Enter data here!'!$CP$157=0,"",IF(HLOOKUP($A10,'Enter data here!'!$C$156:$CN$160,4,FALSE)=0,"",(HLOOKUP($A10,'Enter data here!'!$C$156:$CN$160,5,FALSE))))) ->  | CF10: =IF(ISERROR(HLOOKUP($A10,'Enter data here!'!$C$156:$CN$160,4,FALSE)),"",IF('Enter data here!'!$CP$157=0,"",IF(HLOOKUP($A10,'Enter data here!'!$C$156:$CN$160,4,FALSE)=0,"",(HLOOKUP($A10,'Enter data here!'!$C$156:$CN$160,2,FALSE))))) ->  | CG10: =IF(ISERROR(HLOOKUP($A10,'Enter data here!'!$C$156:$CN$160,4,FALSE)),"",IF('Enter data here!'!$CP$157=0,"",IF(HLOOKUP($A10,'Enter data here!'!$C$156:$CN$160,4,FALSE)=0,"",(HLOOKUP($A10,'Enter data here!'!$C$156:$CN$160,4,FALSE))))) ->  | CH10: =IF(ISERROR(HLOOKUP($A10,'Enter data here!'!$C$161:$CN$165,4,FALSE)),"",IF('Enter data here!'!$CP$162=0,"",IF(HLOOKUP($A10,'Enter data here!'!$C$161:$CN$165,4,FALSE)=0,"",(HLOOKUP($A10,'Enter data here!'!$C$161:$CN$165,5,FALSE))))) ->  | CI10: =IF(ISERROR(HLOOKUP($A10,'Enter data here!'!$C$161:$CN$165,4,FALSE)),"",IF('Enter data here!'!$CP$162=0,"",IF(HLOOKUP($A10,'Enter data here!'!$C$161:$CN$165,4,FALSE)=0,"",(HLOOKUP($A10,'Enter data here!'!$C$161:$CN$165,2,FALSE))))) ->  | CJ10: =IF(ISERROR(HLOOKUP($A10,'Enter data here!'!$C$161:$CN$165,4,FALSE)),"",IF('Enter data here!'!$CP$162=0,"",IF(HLOOKUP($A10,'Enter data here!'!$C$161:$CN$165,4,FALSE)=0,"",(HLOOKUP($A10,'Enter data here!'!$C$161:$CN$165,4,FALSE))))) ->  | CK10: =IF(ISERROR(HLOOKUP($A10,'Enter data here!'!$C$166:$CN$170,4,FALSE)),"",IF('Enter data here!'!$CP$167=0,"",IF(HLOOKUP($A10,'Enter data here!'!$C$166:$CN$170,4,FALSE)=0,"",(HLOOKUP($A10,'Enter data here!'!$C$166:$CN$170,5,FALSE))))) ->  | CL10: =IF(ISERROR(HLOOKUP($A10,'Enter data here!'!$C$166:$CN$170,4,FALSE)),"",IF('Enter data here!'!$CP$167=0,"",IF(HLOOKUP($A10,'Enter data here!'!$C$166:$CN$170,4,FALSE)=0,"",(HLOOKUP($A10,'Enter data here!'!$C$166:$CN$170,2,FALSE))))) ->  | CM10: =IF(ISERROR(HLOOKUP($A10,'Enter data here!'!$C$166:$CN$170,4,FALSE)),"",IF('Enter data here!'!$CP$167=0,"",IF(HLOOKUP($A10,'Enter data here!'!$C$166:$CN$170,4,FALSE)=0,"",(HLOOKUP($A10,'Enter data here!'!$C$166:$CN$170,4,FALSE))))) ->  | CN10: =IF(ISERROR(HLOOKUP($A10,'Enter data here!'!$C$171:$CN$175,4,FALSE)),"",IF('Enter data here!'!$CP$172=0,"",IF(HLOOKUP($A10,'Enter data here!'!$C$171:$CN$175,4,FALSE)=0,"",(HLOOKUP($A10,'Enter data here!'!$C$171:$CN$175,5,FALSE))))) ->  | CO10: =IF(ISERROR(HLOOKUP($A10,'Enter data here!'!$C$171:$CN$175,4,FALSE)),"",IF('Enter data here!'!$CP$172=0,"",IF(HLOOKUP($A10,'Enter data here!'!$C$171:$CN$175,4,FALSE)=0,"",(HLOOKUP($A10,'Enter data here!'!$C$171:$CN$175,2,FALSE))))) ->  | CP10: =IF(ISERROR(HLOOKUP($A10,'Enter data here!'!$C$171:$CN$175,4,FALSE)),"",IF('Enter data here!'!$CP$172=0,"",IF(HLOOKUP($A10,'Enter data here!'!$C$171:$CN$175,4,FALSE)=0,"",(HLOOKUP($A10,'Enter data here!'!$C$171:$CN$175,4,FALSE))))) ->  | CQ10: =IF(ISERROR(HLOOKUP($A10,'Enter data here!'!$C$176:$CN$180,4,FALSE)),"",IF('Enter data here!'!$CP$177=0,"",IF(HLOOKUP($A10,'Enter data here!'!$C$176:$CN$180,4,FALSE)=0,"",(HLOOKUP($A10,'Enter data here!'!$C$176:$CN$180,5,FALSE))))) ->  | CR10: =IF(ISERROR(HLOOKUP($A10,'Enter data here!'!$C$176:$CN$180,4,FALSE)),"",IF('Enter data here!'!$CP$177=0,"",IF(HLOOKUP($A10,'Enter data here!'!$C$176:$CN$180,4,FALSE)=0,"",(HLOOKUP($A10,'Enter data here!'!$C$176:$CN$180,2,FALSE))))) ->  | CS10: =IF(ISERROR(HLOOKUP($A10,'Enter data here!'!$C$176:$CN$180,4,FALSE)),"",IF('Enter data here!'!$CP$177=0,"",IF(HLOOKUP($A10,'Enter data here!'!$C$176:$CN$180,4,FALSE)=0,"",(HLOOKUP($A10,'Enter data here!'!$C$176:$CN$180,4,FALSE))))) ->  | CT10: =IF(ISERROR(HLOOKUP($A10,'Enter data here!'!$C$181:$CN$185,4,FALSE)),"",IF('Enter data here!'!$CP$182=0,"",IF(HLOOKUP($A10,'Enter data here!'!$C$181:$CN$185,4,FALSE)=0,"",(HLOOKUP($A10,'Enter data here!'!$C$181:$CN$185,5,FALSE))))) ->  | CU10: =IF(ISERROR(HLOOKUP($A10,'Enter data here!'!$C$181:$CN$185,4,FALSE)),"",IF('Enter data here!'!$CP$182=0,"",IF(HLOOKUP($A10,'Enter data here!'!$C$181:$CN$185,4,FALSE)=0,"",(HLOOKUP($A10,'Enter data here!'!$C$181:$CN$185,2,FALSE))))) ->  | CV10: =IF(ISERROR(HLOOKUP($A10,'Enter data here!'!$C$181:$CN$185,4,FALSE)),"",IF('Enter data here!'!$CP$182=0,"",IF(HLOOKUP($A10,'Enter data here!'!$C$181:$CN$185,4,FALSE)=0,"",(HLOOKUP($A10,'Enter data here!'!$C$181:$CN$185,4,FALSE))))) ->  | CW10: =IF(ISERROR(HLOOKUP($A10,'Enter data here!'!$C$186:$CN$190,4,FALSE)),"",IF('Enter data here!'!$CP$187=0,"",IF(HLOOKUP($A10,'Enter data here!'!$C$186:$CN$190,4,FALSE)=0,"",(HLOOKUP($A10,'Enter data here!'!$C$186:$CN$190,5,FALSE))))) ->  | CX10: =IF(ISERROR(HLOOKUP($A10,'Enter data here!'!$C$186:$CN$190,4,FALSE)),"",IF('Enter data here!'!$CP$187=0,"",IF(HLOOKUP($A10,'Enter data here!'!$C$186:$CN$190,4,FALSE)=0,"",(HLOOKUP($A10,'Enter data here!'!$C$186:$CN$190,2,FALSE))))) ->  | CY10: =IF(ISERROR(HLOOKUP($A10,'Enter data here!'!$C$186:$CN$190,4,FALSE)),"",IF('Enter data here!'!$CP$187=0,"",IF(HLOOKUP($A10,'Enter data here!'!$C$186:$CN$190,4,FALSE)=0,"",(HLOOKUP($A10,'Enter data here!'!$C$186:$CN$190,4,FALSE))))) ->  | CZ10: =IF(ISERROR(HLOOKUP($A10,'Enter data here!'!$C$191:$CN$195,4,FALSE)),"",IF('Enter data here!'!$CP$192=0,"",IF(HLOOKUP($A10,'Enter data here!'!$C$191:$CN$195,4,FALSE)=0,"",(HLOOKUP($A10,'Enter data here!'!$C$191:$CN$195,5,FALSE))))) ->  | DA10: =IF(ISERROR(HLOOKUP($A10,'Enter data here!'!$C$191:$CN$195,4,FALSE)),"",IF('Enter data here!'!$CP$192=0,"",IF(HLOOKUP($A10,'Enter data here!'!$C$191:$CN$195,4,FALSE)=0,"",(HLOOKUP($A10,'Enter data here!'!$C$191:$CN$195,2,FALSE))))) ->  | DB10: =IF(ISERROR(HLOOKUP($A10,'Enter data here!'!$C$191:$CN$195,4,FALSE)),"",IF('Enter data here!'!$CP$192=0,"",IF(HLOOKUP($A10,'Enter data here!'!$C$191:$CN$195,4,FALSE)=0,"",(HLOOKUP($A10,'Enter data here!'!$C$191:$CN$195,4,FALSE))))) ->  | DC10: =IF(ISERROR(HLOOKUP($A10,'Enter data here!'!$C$196:$CN$200,4,FALSE)),"",IF('Enter data here!'!$CP$197=0,"",IF(HLOOKUP($A10,'Enter data here!'!$C$196:$CN$200,4,FALSE)=0,"",(HLOOKUP($A10,'Enter data here!'!$C$196:$CN$200,5,FALSE))))) ->  | DD10: =IF(ISERROR(HLOOKUP($A10,'Enter data here!'!$C$196:$CN$200,4,FALSE)),"",IF('Enter data here!'!$CP$197=0,"",IF(HLOOKUP($A10,'Enter data here!'!$C$196:$CN$200,4,FALSE)=0,"",(HLOOKUP($A10,'Enter data here!'!$C$196:$CN$200,2,FALSE))))) ->  | DE10: =IF(ISERROR(HLOOKUP($A10,'Enter data here!'!$C$196:$CN$200,4,FALSE)),"",IF('Enter data here!'!$CP$197=0,"",IF(HLOOKUP($A10,'Enter data here!'!$C$196:$CN$200,4,FALSE)=0,"",(HLOOKUP($A10,'Enter data here!'!$C$196:$CN$200,4,FALSE))))) ->  | DF10: =IF(ISERROR(HLOOKUP($A10,'Enter data here!'!$C$201:$CN$205,4,FALSE)),"",IF('Enter data here!'!$CP$202=0,"",IF(HLOOKUP($A10,'Enter data here!'!$C$201:$CN$205,4,FALSE)=0,"",(HLOOKUP($A10,'Enter data here!'!$C$201:$CN$205,5,FALSE))))) ->  | DG10: =IF(ISERROR(HLOOKUP($A10,'Enter data here!'!$C$201:$CN$205,4,FALSE)),"",IF('Enter data here!'!$CP$202=0,"",IF(HLOOKUP($A10,'Enter data here!'!$C$201:$CN$205,4,FALSE)=0,"",(HLOOKUP($A10,'Enter data here!'!$C$201:$CN$205,2,FALSE))))) ->  | DH10: =IF(ISERROR(HLOOKUP($A10,'Enter data here!'!$C$201:$CN$205,4,FALSE)),"",IF('Enter data here!'!$CP$202=0,"",IF(HLOOKUP($A10,'Enter data here!'!$C$201:$CN$205,4,FALSE)=0,"",(HLOOKUP($A10,'Enter data here!'!$C$201:$CN$205,4,FALSE))))) ->  | DI10: =IF(ISERROR(HLOOKUP($A10,'Enter data here!'!$C$206:$CN$210,4,FALSE)),"",IF('Enter data here!'!$CP$207=0,"",IF(HLOOKUP($A10,'Enter data here!'!$C$206:$CN$210,4,FALSE)=0,"",(HLOOKUP($A10,'Enter data here!'!$C$206:$CN$210,5,FALSE))))) ->  | DJ10: =IF(ISERROR(HLOOKUP($A10,'Enter data here!'!$C$206:$CN$210,4,FALSE)),"",IF('Enter data here!'!$CP$207=0,"",IF(HLOOKUP($A10,'Enter data here!'!$C$206:$CN$210,4,FALSE)=0,"",(HLOOKUP($A10,'Enter data here!'!$C$206:$CN$210,2,FALSE))))) ->  | DK10: =IF(ISERROR(HLOOKUP($A10,'Enter data here!'!$C$206:$CN$210,4,FALSE)),"",IF('Enter data here!'!$CP$207=0,"",IF(HLOOKUP($A10,'Enter data here!'!$C$206:$CN$210,4,FALSE)=0,"",(HLOOKUP($A10,'Enter data here!'!$C$206:$CN$210,4,FALSE))))) ->  | DL10: =IF(ISERROR(HLOOKUP($A10,'Enter data here!'!$C$211:$CN$215,4,FALSE)),"",IF('Enter data here!'!$CP$212=0,"",IF(HLOOKUP($A10,'Enter data here!'!$C$211:$CN$215,4,FALSE)=0,"",(HLOOKUP($A10,'Enter data here!'!$C$211:$CN$215,5,FALSE))))) ->  | DM10: =IF(ISERROR(HLOOKUP($A10,'Enter data here!'!$C$211:$CN$215,4,FALSE)),"",IF('Enter data here!'!$CP$212=0,"",IF(HLOOKUP($A10,'Enter data here!'!$C$211:$CN$215,4,FALSE)=0,"",(HLOOKUP($A10,'Enter data here!'!$C$211:$CN$215,2,FALSE))))) ->  | DN10: =IF(ISERROR(HLOOKUP($A10,'Enter data here!'!$C$211:$CN$215,4,FALSE)),"",IF('Enter data here!'!$CP$212=0,"",IF(HLOOKUP($A10,'Enter data here!'!$C$211:$CN$215,4,FALSE)=0,"",(HLOOKUP($A10,'Enter data here!'!$C$211:$CN$215,4,FALSE))))) ->  | DO10: =IF(ISERROR(HLOOKUP($A10,'Enter data here!'!$C$216:$CN$220,4,FALSE)),"",IF('Enter data here!'!$CP$217=0,"",IF(HLOOKUP($A10,'Enter data here!'!$C$216:$CN$220,4,FALSE)=0,"",(HLOOKUP($A10,'Enter data here!'!$C$216:$CN$220,5,FALSE))))) ->  | DP10: =IF(ISERROR(HLOOKUP($A10,'Enter data here!'!$C$216:$CN$220,4,FALSE)),"",IF('Enter data here!'!$CP$217=0,"",IF(HLOOKUP($A10,'Enter data here!'!$C$216:$CN$220,4,FALSE)=0,"",(HLOOKUP($A10,'Enter data here!'!$C$216:$CN$220,2,FALSE))))) ->  | DQ10: =IF(ISERROR(HLOOKUP($A10,'Enter data here!'!$C$216:$CN$220,4,FALSE)),"",IF('Enter data here!'!$CP$217=0,"",IF(HLOOKUP($A10,'Enter data here!'!$C$216:$CN$220,4,FALSE)=0,"",(HLOOKUP($A10,'Enter data here!'!$C$216:$CN$220,4,FALSE))))) ->  | DR10: =IF(ISERROR(HLOOKUP($A10,'Enter data here!'!$C$221:$CN$225,4,FALSE)),"",IF('Enter data here!'!$CP$222=0,"",IF(HLOOKUP($A10,'Enter data here!'!$C$221:$CN$225,4,FALSE)=0,"",(HLOOKUP($A10,'Enter data here!'!$C$221:$CN$225,5,FALSE))))) ->  | DS10: =IF(ISERROR(HLOOKUP($A10,'Enter data here!'!$C$221:$CN$225,4,FALSE)),"",IF('Enter data here!'!$CP$222=0,"",IF(HLOOKUP($A10,'Enter data here!'!$C$221:$CN$225,4,FALSE)=0,"",(HLOOKUP($A10,'Enter data here!'!$C$221:$CN$225,2,FALSE))))) ->  | DT10: =IF(ISERROR(HLOOKUP($A10,'Enter data here!'!$C$221:$CN$225,4,FALSE)),"",IF('Enter data here!'!$CP$222=0,"",IF(HLOOKUP($A10,'Enter data here!'!$C$221:$CN$225,4,FALSE)=0,"",(HLOOKUP($A10,'Enter data here!'!$C$221:$CN$225,4,FALSE))))) -> 
